Workbook

Sheet Cover page
G13: =Name_Model -> FGN 5M Solar Connections Facility - SHS
A15: =Names!E9 -> [Insert Company Name]
A17: =Names!E10 -> [Insert Project Name, Location]

Sheet Names
C2: Names and Lists
C5: Name | E5: Value
C7: Entity Names
C8: Model Name | E8: FGN 5M Solar Connections Facility - SHS
C9: Company Name | E9: [Insert Company Name]
C10: Project Name | E10: [Insert Project Name, Location]
C12: Lists
C13: Price increase dropdown | E13: Inflation
E14: Inflation+ x%
C16: Year | E16: =Start_Year -> 2020
E17: =E16+1 -> 2021
E18: =E17+1 -> 2022
E19: 2023
E20: 2024
E21: 2025
C23: Scenario | E23: Upside
E24: Base
E25: Downside

Sheet Legend
C2: Style legend
C6: Style | E6: Design | G6: Comment
C8: Header1 | E8: Header1
C10: Header2 | E10: Header2
C12: Header3 | E12: Header3
C14: Assumption | E14: 100 | G14: A user driven input
C16: Technical_Input | E16: 100 | G16: A model input that should not be changed to protect the integrity of the model
C18: Empty_Cell | G18: A cell that is left intentionally blank to avoid the risk of error
C20: InSheet | E20: 100 | G20: A link within the worksheet or an interim calculation step
C22: OffSheet | E22: 100 | G22: A link to another worksheet to minimise the number of inter-worksheet references
C24: Line_SubTotal | E24: 100 | G24: The sum of elements in the table immediately above
C26: Line_Total | E26: 100 | G26: The sum of elements above, including sub-totals
C28: Unit / Info | E28: NGN | G28: Explanatory text showing helpful information and the units/dimensions of the calculations
C30: Line_Summary | E30: 100 | G30: The SUM() of everything to the right
C32: Table_Header | E32: Qtr | G32: Header of a table or of an off-sheet reference
C34: Flag | E34: 1 | G34: Binary flag - set up as a 'Style' and updated with conditional formatting
C36: Line_ClosingBal | E36: 100 | G36: The closing balance of a control account

Sheet Dashboard
C1: =Name_Model -> FGN 5M Solar Connections Facility - SHS
C3: Dashboard
A5: ● | C5: Model Information
C7: Company name | D7: =Names!E9 -> [Insert Company Name] | I7: Model checks
C8: Model name | D8: =CONCATENATE(Names!E9," ",Name_Model) -> [Insert Company Name] FGN 5M Solar Connections Facility - SHS | I8: Model balances | K8: =Model!H75 -> 0
C9: Location | D9: LGA, State, Nigeria | I9: Cash balance always positive | K9: =Model!P104 -> 1
I10: Inputs correct | K10: =Inputs!E285 -> 0
I11: Operating Scenario | K11: =Inputs!E25 -> Base
A14: ● | C14: Key Outputs | N14: Graphs
C17: Financial Statements
C18: Income statement key outputs | G18: =Start_Year -> 2020 | H18: =G18+1 -> 2021 | I18: =H18+1 -> 2022 | J18: 2023 | K18: 2024 | L18: 2025
C19: Revenue | D19: =Inputs!$E$9 -> NGN | G19: =Model!I16 -> 1488000000 | H19: =Model!J16 -> 2187360000 | I19: =Model!K16 -> 3077721360 | J19: =Model!L16 -> 4171369784 | K19: =Model!M16 -> 5655283922 | L19: =Model!N16 -> 7079294742
C20: Operating Expenses (inc VAT) | D20: =Inputs!$E$9 -> NGN | G20: =Model!I26+Model!I28 -> -106226500 | H20: =Model!J26+Model!J28 -> -180988820 | I20: =Model!K26+Model!K28 -> -282404040.4 | J20: =Model!L26+Model!L28 -> -408910492.8 | K20: =Model!M26+Model!M28 -> -569117062.9 | L20: =Model!N26+Model!N28 -> -746349434.5
C21: EBITDA | D21: =Inputs!$E$9 -> NGN | G21: =Model!I30 -> 633963500 | H21: =Model!J30 -> 854743780 | I21: =Model!K30 -> 1085150631 | J21: =Model!L30 -> 1316920926 | K21: =Model!M30 -> 1589046997 | L21: =Model!N30 -> 1716747089
C22: Net Income | D22: =Inputs!$E$9 -> NGN | G22: =Model!I43 -> 430333580 | H22: =Model!J43 -> 581689530.4 | I22: =Model!K43 -> 738178236.8 | J22: =Model!L43 -> 895633194 | K22: =Model!M43 -> 1080630534 | L22: =Model!N43 -> 1167150361
C23: Profit margin | D23: % | E23: =SUM(G22:K22)/SUM(G19:K19) -> 0.2247602305 | G23: =G22/G19 -> 0.2892026747 | H23: =H22/H19 -> 0.2659322336 | I23: 0.2398457009 | J23: 0.2147096135 | K23: 0.1910833388 | L23: =L22/L19 -> 0.1648681689
C25: Balance sheet key outputs
C26: Cash balance | D26: =Inputs!$E$9 -> NGN | G26: =Model!I49 -> -146257844.7 | H26: =Model!J49 -> -129203483.6 | I26: =Model!K49 -> 127993345.2 | J26: =Model!L49 -> 567570049 | K26: =Model!M49 -> 1066588762 | L26: =Model!N49 -> 1708830049
C27: Debt | D27: =Inputs!$E$9 -> NGN | G27: =Model!I65 -> 60975890.41 | H27: =Model!J65 -> 79302871.23 | I27: =Model!K65 -> 105371763.8 | J27: =Model!L65 -> 140300662.2 | K27: =Model!M65 -> 191623006.2 | L27: =Model!N65 -> 252942368.1
C28: Equity | D28: =Inputs!$E$9 -> NGN | G28: =Model!I71 -> 452383580 | H28: =Model!J71 -> 1034073110 | I28: =Model!K71 -> 1772251347 | J28: =Model!L71 -> 2667884541 | K28: =Model!M71 -> 3748515075 | L28: =Model!N71 -> 4915665436
C29: Debt:equity ratio | D29: multiple | G29: =G27/G28 -> 0.1347880275 | H29: =H27/H28 -> 0.07668981084 | I29: =I27/I28 -> 0.05945644445 | J29: =J27/J28 -> 0.0525887309 | K29: =K27/K28 -> 0.05111971069 | L29: =L27/L28 -> 0.05145638396
AF32: DO NOT DELETE
AF33: =Model!F247 -> 0.9703385363 | AG33: Upside | AH33: Downside | AI33: Base

Sheet Inputs
B1: Input Sheet | C1: =Name_Model -> FGN 5M Solar Connections Facility - SHS
C3: Inputs
A5: ● | C5: Timing
C6: Start
C7: Model Start Date | D7: Date | E7: 2020-01-01 | G7: Please enter a model start date to coincide with the day after financial year close; according to your latest audited financial statements
C8: Model Start Year | D8: Date | E8: =YEAR(E7) -> 2020
C9: Model Currency | D9: USD/NGN | E9: NGN | P9: USD
P10: NGN
A23: ● | C23: Operating Scenario
C25: Operating Scenario | D25: Name | E25: Base
A27: ● | C27: COGS assumptions
C29: Product 1 | G29: NGN Inputs
C30: System name | D30: Name
C31: System cost | D31: =$E$9 -> NGN | E31: =IF($E$9="NGN",G31,(G31/$E$324)) -> 70000 | G31: 70000
C32: Shipping cost | D32: =$E$9 -> NGN | E32: =IF($E$9="NGN",G32,(G32/$E$324)) -> 3500 | G32: 3500
C33: Installation cost | D33: % module cost | E33: 0.05
C34: Total COGS | D34: =$E$9 -> NGN | E34: =SUM(E31:E32)*E33+(E31+E32) -> 77175
C36: Product 2 | G36: NGN Inputs
C37: System name | D37: Name
C38: System cost | D38: =$E$9 -> NGN | E38: =IF($E$9="NGN",G38,(G38/$E$324)) -> 180000 | G38: 180000
C39: Shipping cost | D39: =$E$9 -> NGN | E39: =IF($E$9="NGN",G39,(G39/$E$324)) -> 6500 | G39: 6500
C40: Installation cost | D40: % module cost | E40: 0.05
C41: Total COGS | D41: =$E$9 -> NGN | E41: =SUM(E38:E39)*E40+(E38+E39) -> 195825
C43: Product 3 | G43: NGN Inputs
C44: System name | D44: Name
C45: System cost | D45: =$E$9 -> NGN | E45: =IF($E$9="NGN",G45,(G45/$E$324)) -> 70000 | G45: 70000
C46: Shipping cost | D46: =$E$9 -> NGN | E46: =IF($E$9="NGN",G46,(G46/$E$324)) -> 3500 | G46: 3500
C47: Installation cost | D47: % module cost | E47: 0.05
C48: Total COGS | D48: =$E$9 -> NGN | E48: =SUM(E45:E46)*E47+(E45+E46) -> 77175
C50: Product 4 | G50: NGN Inputs
C51: System name | D51: Name
C52: System cost | D52: =$E$9 -> NGN | E52: =IF($E$9="NGN",G52,(G52/$E$324)) -> 180000 | G52: 180000
C53: Shipping cost | D53: =$E$9 -> NGN | E53: =IF($E$9="NGN",G53,(G53/$E$324)) -> 6500 | G53: 6500
C54: Installation cost | D54: % module cost | E54: 0.05
C55: Total COGS | D55: =$E$9 -> NGN | E55: =SUM(E52:E53)*E54+(E52+E53) -> 195825
C57: Product 5 | G57: NGN Inputs
C58: System name | D58: Name
C59: System cost | D59: =$E$9 -> NGN | E59: =IF($E$9="NGN",G59,(G59/$E$324)) -> 70000 | G59: 70000
C60: Shipping cost | D60: =$E$9 -> NGN | E60: =IF($E$9="NGN",G60,(G60/$E$324)) -> 3500 | G60: 3500
C61: Installation cost | D61: % module cost | E61: 0.05
C62: Total COGS | D62: =$E$9 -> NGN | E62: =SUM(E59:E60)*E61+(E59+E60) -> 77175
C64: Product 6 | G64: NGN Inputs
C65: System name | D65: Name
C66: System cost | D66: =$E$9 -> NGN | E66: =IF($E$9="NGN",G66,(G66/$E$324)) -> 180000 | G66: 180000
C67: Shipping cost | D67: =$E$9 -> NGN | E67: =IF($E$9="NGN",G67,(G67/$E$324)) -> 6500 | G67: 6500
C68: Installation cost | D68: % module cost | E68: 0.05
C69: Total COGS | D69: =$E$9 -> NGN | E69: =SUM(E66:E67)*E68+(E66+E67) -> 195825
A71: ● | C71: Sales and pricing
C73: Sales assumptions
C74: Product 1
C75: Initial sales (2020) | D75: # | E75: 1200 | I75: =$E$8 -> 2020 | J75: =I75+1 -> 2021 | K75: =J75+1 -> 2022 | L75: 2023 | M75: 2024 | N75: 2025
C76: Annual sales growth | D76: # | J76: =J333 -> 0.4 | K76: =K333 -> 0.35 | L76: 0.3 | M76: 0.3 | N76: 0.2
C77: Total sales | E77: =SUM(I77:Q77) -> 16528.824 | I77: =E75 -> 1200 | J77: =I77*(1+J76) -> 1680 | K77: =J77*(1+K76) -> 2268 | L77: 2948.4 | M77: 3832.92 | N77: 4599.504
I79: 1 | J79: =I79+1 -> 2 | K79: =J79+1 -> 3 | L79: 4 | M79: 5 | N79: 6 | O79: 7 | P79: 8 | Q79: 9 | R79: 10 | S79: 11 | T79: 12 | U79: Check
C80: Monthly sales profile | D80: % | I80: =100%/12 -> 0.08333333333 | J80: =I80 -> 0.08333333333 | K80: =J80 -> 0.08333333333 | L80: 0.08333333333 | M80: 0.08333333333 | N80: 0.08333333333 | O80: 0.08333333333 | P80: 0.08333333333 | Q80: 0.08333333333 | R80: 0.08333333333 | S80: 0.08333333333 | T80: 0.08333333333 | U80: =SUM(I80:T80) -> 1
C82: Pricing assumptions
C83: Product 1 | G83: NGN Inputs | I83: Annual Price Adjustment
C84: Total PAYG | D84: =$E$9 -> NGN | E84: =E85 + (E86*E87) -> 240000 | I84: =E84 -> 240000 | J84: =I84*(1+$E$91) -> 252000 | K84: =J84*(1+$E$91) -> 264600 | L84: 277830 | M84: 291721.5 | N84: 306307.575
C85: Down Payment | D85: NGN | E85: =IF($E$9="NGN",G85,(G85/$E$324)) -> 60000 | G85: 60000 | I85: =E85 -> 60000 | J85: =I85*(1+$E$91) -> 63000 | K85: 66150 | L85: 69457.5 | M85: 72930.375 | N85: 76576.89375
C86: Monthly fees | D86: NGN | E86: =IF($E$9="NGN",G86,(G86/$E$324)) -> 5000 | G86: 5000 | I86: =E86 -> 5000 | J86: 5250 | K86: 5512.5 | L86: 5788.125 | M86: 6077.53125 | N86: 6381.407813
C87: Tenure | D87: Months | E87: 36
C88: Number of months in a year | D88: Months | E88: 12
C90: Default rate | D90: % | E90: 0.2
C91: Annual price increase | D91: % | E91: 0.05
C93: Sales assumptions
C94: Product 2
C95: Initial sales (2020) | D95: # | E95: 800 | I95: =$E$8 -> 2020 | J95: =I95+1 -> 2021 | K95: =J95+1 -> 2022 | L95: 2023 | M95: 2024 | N95: 2025
C96: Annual sales growth | D96: # | J96: =J334 -> 0.4 | K96: =K334 -> 0.35 | L96: 0.3 | M96: 0.3 | N96: 0.2
C97: Total sales | E97: =SUM(I97:Q97) -> 11019.216 | I97: =E95 -> 800 | J97: =I97*(1+J96) -> 1120 | K97: =J97*(1+K96) -> 1512 | L97: 1965.6 | M97: 2555.28 | N97: 3066.336
I99: 1 | J99: =I99+1 -> 2 | K99: =J99+1 -> 3 | L99: 4 | M99: 5 | N99: 6 | O99: 7 | P99: 8 | Q99: 9 | R99: 10 | S99: 11 | T99: 12 | U99: Check
C100: Monthly sales profile | D100: % | I100: =100%/12 -> 0.08333333333 | J100: =I100 -> 0.08333333333 | K100: =J100 -> 0.08333333333 | L100: 0.08333333333 | M100: 0.08333333333 | N100: 0.08333333333 | O100: 0.08333333333 | P100: 0.08333333333 | Q100: 0.08333333333 | R100: 0.08333333333 | S100: 0.08333333333 | T100: 0.08333333333 | U100: =SUM(I100:T100) -> 1
C102: Pricing assumptions
C103: Product 2 | G103: NGN Inputs | I103: Annual Price Adjustment
C104: Total PAYG | D104: =$E$9 -> NGN | E104: =E105 + (E106*E107) -> 415000 | I104: =E104 -> 415000 | J104: =I104*(1+$E$111) -> 435750 | K104: =J104*(1+$E$111) -> 457537.5 | L104: 480414.375 | M104: 504435.0938 | N104: 529656.8484
C105: Down Payment | D105: NGN | E105: =IF($E$9="NGN",G105,(G105/$E$324)) -> 235000 | G105: 235000 | I105: =E105 -> 235000 | J105: =I105*(1+$E$111) -> 246750 | K105: 259087.5 | L105: 272041.875 | M105: 285643.9688 | N105: 299926.1672
C106: Monthly fees | D106: NGN | E106: =IF($E$9="NGN",G106,(G106/$E$324)) -> 5000 | G106: 5000 | I106: =E106 -> 5000 | J106: 5250 | K106: 5512.5 | L106: 5788.125 | M106: 6077.53125 | N106: 6381.407813
C107: Tenure | D107: Months | E107: 36
C108: Number of months in a year | D108: Months | E108: 12
C110: Default rate | D110: % | E110: 0.2
C111: Annual price increase | D111: % | E111: 0.05
C113: Sales assumptions
C114: Product 3
C115: Initial sales (2020) | D115: # | E115: 1200 | I115: =$E$8 -> 2020 | J115: =I115+1 -> 2021 | K115: =J115+1 -> 2022 | L115: 2023 | M115: 2024 | N115: 2025
C116: Annual sales growth | D116: # | J116: =J335 -> 0.4 | K116: =K335 -> 0.35 | L116: 0.3 | M116: 0.3 | N116: 0.2
C117: Total sales | E117: =SUM(I117:Q117) -> 16528.824 | I117: =E115 -> 1200 | J117: =I117*(1+J116) -> 1680 | K117: =J117*(1+K116) -> 2268 | L117: 2948.4 | M117: 3832.92 | N117: 4599.504
I119: 1 | J119: =I119+1 -> 2 | K119: =J119+1 -> 3 | L119: 4 | M119: 5 | N119: 6 | O119: 7 | P119: 8 | Q119: 9 | R119: 10 | S119: 11 | T119: 12 | U119: Check
C120: Monthly sales profile | D120: % | I120: =100%/12 -> 0.08333333333 | J120: =I120 -> 0.08333333333 | K120: =J120 -> 0.08333333333 | L120: 0.08333333333 | M120: 0.08333333333 | N120: 0.08333333333 | O120: 0.08333333333 | P120: 0.08333333333 | Q120: 0.08333333333 | R120: 0.08333333333 | S120: 0.08333333333 | T120: 0.08333333333 | U120: =SUM(I120:T120) -> 1
C122: Pricing assumptions
C123: Product 3 | G123: NGN Inputs | I123: Annual Price Adjustment
C124: Total PAYG | D124: =$E$9 -> NGN | E124: =E125 + (E126*E127) -> 240000 | I124: =E124 -> 240000 | J124: =I124*(1+$E$131) -> 252000 | K124: =J124*(1+$E$131) -> 264600 | L124: 277830 | M124: 291721.5 | N124: 306307.575
C125: Down Payment | D125: NGN | E125: =IF($E$9="NGN",G125,(G125/$E$324)) -> 60000 | G125: 60000 | I125: =E125 -> 60000 | J125: =I125*(1+$E$131) -> 63000 | K125: 66150 | L125: 69457.5 | M125: 72930.375 | N125: 76576.89375
C126: Monthly fees | D126: NGN | E126: =IF($E$9="NGN",G126,(G126/$E$324)) -> 5000 | G126: 5000 | I126: =E126 -> 5000 | J126: 5250 | K126: 5512.5 | L126: 5788.125 | M126: 6077.53125 | N126: 6381.407813
C127: Tenure | D127: Months | E127: 36
C128: Number of months in a year | D128: Months | E128: 12
C130: Default rate | D130: % | E130: 0.2
C131: Annual price increase | D131: % | E131: 0.05
C133: Sales assumptions
C134: Product 4
C135: Initial sales (2020) | D135: # | E135: 800 | I135: =$E$8 -> 2020 | J135: =I135+1 -> 2021 | K135: =J135+1 -> 2022 | L135: 2023 | M135: 2024 | N135: 2025
C136: Annual sales growth | D136: # | J136: =J336 -> 0.4 | K136: =K336 -> 0.35 | L136: 0.3 | M136: 0.3 | N136: 0.2
C137: Total sales | E137: =SUM(I137:Q137) -> 11019.216 | I137: =E135 -> 800 | J137: =I137*(1+J136) -> 1120 | K137: =J137*(1+K136) -> 1512 | L137: 1965.6 | M137: 2555.28 | N137: 3066.336
I139: 1 | J139: =I139+1 -> 2 | K139: =J139+1 -> 3 | L139: 4 | M139: 5 | N139: 6 | O139: 7 | P139: 8 | Q139: 9 | R139: 10 | S139: 11 | T139: 12 | U139: Check
C140: Monthly sales profile | D140: % | I140: =100%/12 -> 0.08333333333 | J140: =I140 -> 0.08333333333 | K140: =J140 -> 0.08333333333 | L140: 0.08333333333 | M140: 0.08333333333 | N140: 0.08333333333 | O140: 0.08333333333 | P140: 0.08333333333 | Q140: 0.08333333333 | R140: 0.08333333333 | S140: 0.08333333333 | T140: 0.08333333333 | U140: =SUM(I140:T140) -> 1
C142: Pricing assumptions
C143: Product 4 | G143: NGN Inputs | I143: Annual Price Adjustment
C144: Total PAYG | D144: =$E$9 -> NGN | E144: =E145 + (E146*E147) -> 415000 | I144: =E144 -> 415000 | J144: =I144*(1+$E$151) -> 435750 | K144: =J144*(1+$E$151) -> 457537.5 | L144: 480414.375 | M144: 504435.0938 | N144: 529656.8484
C145: Down Payment | D145: NGN | E145: =IF($E$9="NGN",G145,(G145/$E$324)) -> 235000 | G145: 235000 | I145: =E145 -> 235000 | J145: =I145*(1+$E$151) -> 246750 | K145: 259087.5 | L145: 272041.875 | M145: 285643.9688 | N145: 299926.1672
C146: Monthly fees | D146: NGN | E146: =IF($E$9="NGN",G146,(G146/$E$324)) -> 5000 | G146: 5000 | I146: =E146 -> 5000 | J146: 5250 | K146: 5512.5 | L146: 5788.125 | M146: 6077.53125 | N146: 6381.407813
C147: Tenure | D147: Months | E147: 36
C148: Number of months in a year | D148: Months | E148: 12
C150: Default rate | D150: % | E150: 0.2
C151: Annual price increase | D151: % | E151: 0.05
C153: Sales assumptions
C154: Product 5
C155: Initial sales (2020) | D155: # | E155: 1200 | I155: =$E$8 -> 2020 | J155: =I155+1 -> 2021 | K155: =J155+1 -> 2022 | L155: 2023 | M155: 2024 | N155: 2025
C156: Annual sales growth | D156: # | J156: =J337 -> 0.4 | K156: =K337 -> 0.35 | L156: 0.3 | M156: 0.3 | N156: 0.2
C157: Total sales | E157: =SUM(I157:Q157) -> 16528.824 | I157: =E155 -> 1200 | J157: =I157*(1+J156) -> 1680 | K157: =J157*(1+K156) -> 2268 | L157: 2948.4 | M157: 3832.92 | N157: 4599.504
I159: 1 | J159: =I159+1 -> 2 | K159: =J159+1 -> 3 | L159: 4 | M159: 5 | N159: 6 | O159: 7 | P159: 8 | Q159: 9 | R159: 10 | S159: 11 | T159: 12 | U159: Check
C160: Monthly sales profile | D160: % | I160: =100%/12 -> 0.08333333333 | J160: =I160 -> 0.08333333333 | K160: =J160 -> 0.08333333333 | L160: 0.08333333333 | M160: 0.08333333333 | N160: 0.08333333333 | O160: 0.08333333333 | P160: 0.08333333333 | Q160: 0.08333333333 | R160: 0.08333333333 | S160: 0.08333333333 | T160: 0.08333333333 | U160: =SUM(I160:T160) -> 1
C162: Pricing assumptions
C163: Product 5 | G163: NGN Inputs | I163: Annual Price Adjustment
C164: Total PAYG | D164: =$E$9 -> NGN | E164: =E165 + (E166*E167) -> 240000 | I164: =E164 -> 240000 | J164: =I164*(1+$E$171) -> 252000 | K164: =J164*(1+$E$171) -> 264600 | L164: 277830 | M164: 291721.5 | N164: 306307.575
C165: Down Payment | D165: NGN | E165: =IF($E$9="NGN",G165,(G165/$E$324)) -> 60000 | G165: 60000 | I165: =E165 -> 60000 | J165: =I165*(1+$E$171) -> 63000 | K165: 66150 | L165: 69457.5 | M165: 72930.375 | N165: 76576.89375
C166: Monthly fees | D166: NGN | E166: =IF($E$9="NGN",G166,(G166/$E$324)) -> 5000 | G166: 5000 | I166: =E166 -> 5000 | J166: 5250 | K166: 5512.5 | L166: 5788.125 | M166: 6077.53125 | N166: 6381.407813
C167: Tenure | D167: Months | E167: 36
C168: Number of months in a year | D168: Months | E168: 12
C170: Default rate | D170: % | E170: 0.2
C171: Annual price increase | D171: % | E171: 0.05
C173: Sales assumptions
C174: Product 6
C175: Initial sales (2020) | D175: # | E175: 800 | I175: =$E$8 -> 2020 | J175: =I175+1 -> 2021 | K175: =J175+1 -> 2022 | L175: 2023 | M175: 2024 | N175: 2025
C176: Annual sales growth | D176: # | J176: =J338 -> 0.4 | K176: =K338 -> 0.35 | L176: 0.3 | M176: 0.3 | N176: 0.2
C177: Total sales | E177: =SUM(I177:Q177) -> 11019.216 | I177: =E175 -> 800 | J177: =I177*(1+J176) -> 1120 | K177: =J177*(1+K176) -> 1512 | L177: 1965.6 | M177: 2555.28 | N177: 3066.336
I179: 1 | J179: =I179+1 -> 2 | K179: =J179+1 -> 3 | L179: 4 | M179: 5 | N179: 6 | O179: 7 | P179: 8 | Q179: 9 | R179: 10 | S179: 11 | T179: 12 | U179: Check
C180: Monthly sales profile | D180: % | I180: =100%/12 -> 0.08333333333 | J180: =I180 -> 0.08333333333 | K180: =J180 -> 0.08333333333 | L180: 0.08333333333 | M180: 0.08333333333 | N180: 0.08333333333 | O180: 0.08333333333 | P180: 0.08333333333 | Q180: 0.08333333333 | R180: 0.08333333333 | S180: 0.08333333333 | T180: 0.08333333333 | U180: =SUM(I180:T180) -> 1
C182: Pricing assumptions
C183: Product 6 | G183: NGN Inputs | I183: Annual Price Adjustment
C184: Total PAYG | D184: =$E$9 -> NGN | E184: =E185 + (E186*E187) -> 415000 | I184: =E184 -> 415000 | J184: =I184*(1+$E$191) -> 435750 | K184: =J184*(1+$E$191) -> 457537.5 | L184: 480414.375 | M184: 504435.0938 | N184: 529656.8484
C185: Down Payment | D185: NGN | E185: =IF($E$9="NGN",G185,(G185/$E$324)) -> 235000 | G185: 235000 | I185: =E185 -> 235000 | J185: =I185*(1+$E$191) -> 246750 | K185: 259087.5 | L185: 272041.875 | M185: 285643.9688 | N185: 299926.1672
C186: Monthly fees | D186: NGN | E186: =IF($E$9="NGN",G186,(G186/$E$324)) -> 5000 | G186: 5000 | I186: =E186 -> 5000 | J186: 5250 | K186: 5512.5 | L186: 5788.125 | M186: 6077.53125 | N186: 6381.407813
C187: Tenure | D187: Months | E187: 36
C188: Number of months in a year | D188: Months | E188: 12
C190: Default rate | D190: % | E190: 0.2
C191: Annual price increase | D191: % | E191: 0.05
C193: Total Units Deployed | I193: =I77+I97+I117+I137+I157 -> 5200 | J193: 7280 | K193: 9828 | L193: 12776.4 | M193: 16609.32 | N193: 19931.184
C195: Coporate overhead | G195: NGN Inputs
C196: Employees and salaries | E196: Per employee | I196: =Start_Year -> 2020 | J196: =I196+1 -> 2021 | K196: =J196+1 -> 2022 | L196: 2023 | M196: 2024 | N196: =M196+1 -> 2025
C197: Artisan (Technician, Electrician) | D197: =CONCATENATE($E$9," ","annual") -> NGN annual | E197: =IF($E$9="NGN",G197,(G197/$E$324)) -> 360000 | G197: 360000 | I197: 1 | J197: 2 | K197: 2 | L197: 4 | M197: 4 | N197: 5
C198: Technical Manager | D198: =CONCATENATE($E$9," ","annual") -> NGN annual | E198: 480000 | G198: 480000 | I198: 1 | J198: 1 | K198: 1 | L198: 2 | M198: 2 | N198: 2
C199: HR and Admin Manager | D199: NGN annual | E199: 600000 | G199: 600000 | I199: 1 | J199: 1 | K199: 1 | L199: 2 | M199: 2 | N199: 2
C200: Marketing & PR Executive | D200: NGN annual | E200: 540000 | G200: 540000 | I200: 1 | J200: 2 | K200: 2 | L200: 3 | M200: 3 | N200: 4
C201: Logistics and Stock Control | D201: NGN annual | E201: 240000 | G201: 240000 | I201: 1 | J201: 1 | K201: 1 | L201: 2 | M201: 2 | N201: 2
C202: IT Support | D202: NGN annual | E202: 240000 | G202: 240000 | I202: 1 | J202: 1 | K202: 1 | L202: 2 | M202: 2 | N202: 3
C203: Employee benefits & payroll tax | D203: % payroll | E203: 0.025
C205: Total corporate salaries and benefits | D205: =CONCATENATE($E$9," ","annual") -> NGN annual | I205: =SUMPRODUCT($E$197:$E$202,I197:I202) + SUMPRODUCT($E$197:$E$202,I197:I202)*$E$203 -> 2521500 | J205: 3444000 | K205: 3444000 | L205: 6334500 | M205: 6334500 | N205: 7503000
G206: NGN Inputs
C207: Office
C208: Head office rent | D208: =CONCATENATE($E$9," ","annual") -> NGN annual | E208: =IF($E$9="NGN",G208,(G208/$E$325)) -> 240000 | G208: 240000
C209: Warehouse rent | D209: NGN annual | E209: =IF($E$9="NGN",G209,(G209/$E$325)) -> 850000 | G209: 850000
C210: Maintenance | D210: NGN annual | E210: =IF($E$9="NGN",G210,(G210/$E$325)) -> 295000 | G210: 295000
C211: Technology & communications | D211: NGN annual | E211: =IF($E$9="NGN",G211,(G211/$E$325)) -> 112000 | G211: 112000
C213: Total office expenses | D213: =CONCATENATE($E$9," ","annual") -> NGN annual | E213: =SUM(E208:E211) -> 1497000
G214: NGN Inputs
C215: Administration | G215: Annual increase
C216: Insurance | D216: =CONCATENATE($E$9," ","annual") -> NGN annual | E216: =IF($E$9="NGN",G216,(G216/$E$325)) -> 155000 | G216: 155000
C217: Legal | D217: NGN annual | E217: =IF($E$9="NGN",G217,(G217/$E$325)) -> 178000 | G217: 178000
C218: Travel expenses | D218: NGN annual | E218: =IF($E$9="NGN",G218,(G218/$E$325)) -> 325000 | G218: 325000
C220: Total administration expenses | D220: =CONCATENATE($E$9," ","annual") -> NGN annual | E220: =SUM(E216:E218) -> 658000
C222: Direct sales and service costs | I222: =$E$8 -> 2020 | J222: =I222+1 -> 2021 | K222: =J222+1 -> 2022 | L222: 2023 | M222: 2024 | N222: 2025
C223: New service centers | D223: # | I223: 1 | J223: 1 | K223: 1 | L223: 1 | M223: 1 | N223: 1
C224: Active service centers | D224: # | I224: =SUM(I223) -> 1 | J224: =SUM($I$223:J223) -> 2 | K224: =SUM($I$223:K223) -> 3 | L224: =SUM($I$223:L223) -> 4 | M224: =SUM($I$223:M223) -> 5 | N224: =SUM($I$223:N223) -> 6
G225: NGN Inputs
C226: Service center rent (plus CRM cost) | D226: =CONCATENATE($E$9," ","annual") -> NGN annual | E226: =IF($E$9="NGN",G226,(G226/$E$325)) -> 150000 | G226: 150000
C228: Marketing (% revenue) | D228: % | E228: 0.02
G229: NGN Inputs
C230: Salaries (per service center) | E230: Salary | I230: =$E$8 -> 2020 | J230: =I230+1 -> 2021 | K230: =J230+1 -> 2022 | L230: 2023 | M230: 2024 | N230: 2025
C231: Sales Agent | D231: =CONCATENATE($E$9," ","annual") -> NGN annual | E231: =IF($E$9="NGN",G231,(G231/$E$325)) -> 360000 | G231: 360000 | I231: 2 | J231: 2 | K231: 2 | L231: 2 | M231: 2 | N231: 2
C232: Technician | D232: NGN annual | E232: =IF($E$9="NGN",G232,(G232/$E$325)) -> 360000 | G232: 360000 | I232: 2 | J232: 2 | K232: 2 | L232: 2 | M232: 2 | N232: 2
C233: Local labour (periodic) | D233: NGN annual | E233: =IF($E$9="NGN",G233,(G233/$E$325)) -> 0 | G233: 0
C234: Security | D234: NGN annual | E234: =IF($E$9="NGN",G234,(G234/$E$325)) -> 0 | G234: 0
C235: Driver | D235: NGN annual | E235: =IF($E$9="NGN",G235,(G235/$E$325)) -> 0 | G235: 0
C236: Total salaries per service center | D236: NGN annual | I236: =($E$231*I231)+($E$232*I232)+($E$233*I233)+($E$234*I234)+($E$235*I235) -> 1440000 | J236: =($E$231*J231)+($E$232*J232)+($E$233*J233)+($E$234*J234)+($E$235*J235) -> 1440000 | K236: 1440000 | L236: 1440000 | M236: 1440000 | N236: 1440000
C238: Total direct and service costs | D238: =CONCATENATE($E$9," ","annual") -> NGN annual | I238: =(I224*$E$226) +($E$228*Model!I16)+Inputs!I$236 -> 31350000 | J238: =(J224*$E$226) +($E$228*Model!J16)+Inputs!J$236 -> 45487200 | K238: =(K224*$E$226) +($E$228*Model!K16)+Inputs!K$236 -> 63444427.2 | L238: =(L224*$E$226) +($E$228*Model!L16)+Inputs!L$236 -> 85467395.69 | M238: =(M224*$E$226) +($E$228*Model!M16)+Inputs!M$236 -> 115295678.4 | N238: =(N224*$E$226) +($E$228*Model!N16)+Inputs!N$236 -> 143925894.8
A241: ● | C241: Working capital
C243: Days in period | D243: # | E243: 365
C245: Receivable days | D245: # | E245: 30
C246: Payable days | D246: # | E246: 20
C247: Inventory days | D247: # | E247: 52
I249: =$E$8 -> 2020 | J249: =I249+1 -> 2021 | K249: =J249+1 -> 2022 | L249: 2023 | M249: 2024 | N249: 2025
C250: Beginning Account Receivable | I250: =H253 -> 0 | J250: =I253 -> 552000000 | K250: 1075440000 | L250: 1501674780 | M250: 1888326369 | N250: 2371834515
C251: Total Sales Revenue | I251: =Model!I16 -> 1488000000 | J251: =Model!J16 -> 2187360000 | K251: =Model!K16 -> 3077721360 | L251: =Model!L16 -> 4171369784 | M251: =Model!M16 -> 5655283922 | N251: =Model!N16 -> 7079294742
C252: Total Realised Revenue (Cash) | I252: =Model!I17 -> 936000000 | J252: =Model!J17 -> 1663920000 | K252: =Model!K17 -> 2651486580 | L252: =Model!L17 -> 3784718196 | M252: =Model!M17 -> 5171775775 | N252: =Model!N17 -> 6653347148
C253: Final Account Receivable | I253: =I250+I251-I252 -> 552000000 | J253: =J250+J251-J252 -> 1075440000 | K253: 1501674780 | L253: 1888326369 | M253: 2371834515 | N253: 2797782109
A256: ● | C256: Depreciation and Tax
C258: Depreciation of corporate PP&E
C259: Existing PP&E
C260: Beginning PP&E | D260: =$E$9 -> NGN | E260: =E274 -> 1200000 | I260: SL Deprec
C261: Depreciation rate | D261: years | E261: 10 | I261: =1/E261 -> 0.1
C263: Additions to PP&E | I263: =$E$8 -> 2020 | J263: =I263+1 -> 2021 | K263: =J263+1 -> 2022 | L263: =K263+1 -> 2023 | M263: =L263+1 -> 2024 | N263: =M263+1 -> 2025
C264: Equipment | D264: =$E$9 -> NGN | I264: =IF($E$9="NGN",I265,(I265/I326)) -> 0 | J264: =IF($E$9="NGN",J265,(J265/J326)) -> 2100000 | K264: 1550000 | L264: 0 | M264: 0 | N264: 1200000
... 90 more rows

Sheet Monthly Sales Profile
C1: =Name_Model -> FGN 5M Solar Connections Facility - SHS
C3: Model
I5: =CONCATENATE("Annual summary"," ",Inputs!$E$9) -> Annual summary NGN | Q5: =Q6 -> 2020 | AC5: =AC6 -> 2021 | AO5: =AO6 -> 2022 | BA5: =BA6 -> 2023 | BM5: =BM6 -> 2024 | BY5: =BY6 -> 2025
C6: Financial Year | I6: =Start_Year -> 2020 | J6: =I6+1 -> 2021 | K6: =J6+1 -> 2022 | L6: 2023 | M6: 2024 | N6: 2025 | Q6: =INDEX($I$6:$N$6,MATCH(1, IF($I$7:$N$7<=Q7,IF($I$8:$N$8>=Q8,1)),0)) -> 2020 | R6: =INDEX($I$6:$N$6,MATCH(1, IF($I$7:$N$7<=R7,IF($I$8:$N$8>=R8,1)),0)) -> 2020 | S6: =INDEX($I$6:$N$6,MATCH(1, IF($I$7:$N$7<=S7,IF($I$8:$N$8>=S8,1)),0)) -> 2020 | T6: =INDEX($I$6:$N$6,MATCH(1, IF($I$7:$N$7<=T7,IF($I$8:$N$8>=T8,1)),0)) -> 2020 | U6: =INDEX($I$6:$N$6,MATCH(1, IF($I$7:$N$7<=U7,IF($I$8:$N$8>=U8,1)),0)) -> 2020 | V6: =INDEX($I$6:$N$6,MATCH(1, IF($I$7:$N$7<=V7,IF($I$8:$N$8>=V8,1)),0)) -> 2020 | W6: =INDEX($I$6:$N$6,MATCH(1, IF($I$7:$N$7<=W7,IF($I$8:$N$8>=W8,1)),0)) -> 2020 | X6: =INDEX($I$6:$N$6,MATCH(1, IF($I$7:$N$7<=X7,IF($I$8:$N$8>=X8,1)),0)) -> 2020 | Y6: =INDEX($I$6:$N$6,MATCH(1, IF($I$7:$N$7<=Y7,IF($I$8:$N$8>=Y8,1)),0)) -> 2020 | Z6: =INDEX($I$6:$N$6,MATCH(1, IF($I$7:$N$7<=Z7,IF($I$8:$N$8>=Z8,1)),0)) -> 2020 | AA6: =INDEX($I$6:$N$6,MATCH(1, IF($I$7:$N$7<=AA7,IF($I$8:$N$8>=AA8,1)),0)) -> 2020 | AB6: =INDEX($I$6:$N$6,MATCH(1, IF($I$7:$N$7<=AB7,IF($I$8:$N$8>=AB8,1)),0)) -> 2020 | AC6: =INDEX($I$6:$N$6,MATCH(1, IF($I$7:$N$7<=AC7,IF($I$8:$N$8>=AC8,1)),0)) -> 2021 | AD6: =INDEX($I$6:$N$6,MATCH(1, IF($I$7:$N$7<=AD7,IF($I$8:$N$8>=AD8,1)),0)) -> 2021 | AE6: =INDEX($I$6:$N$6,MATCH(1, IF($I$7:$N$7<=AE7,IF($I$8:$N$8>=AE8,1)),0)) -> 2021 | AF6: =INDEX($I$6:$N$6,MATCH(1, IF($I$7:$N$7<=AF7,IF($I$8:$N$8>=AF8,1)),0)) -> 2021 | AG6: =INDEX($I$6:$N$6,MATCH(1, IF($I$7:$N$7<=AG7,IF($I$8:$N$8>=AG8,1)),0)) -> 2021 | AH6: =INDEX($I$6:$N$6,MATCH(1, IF($I$7:$N$7<=AH7,IF($I$8:$N$8>=AH8,1)),0)) -> 2021 | AI6: =INDEX($I$6:$N$6,MATCH(1, IF($I$7:$N$7<=AI7,IF($I$8:$N$8>=AI8,1)),0)) -> 2021 | AJ6: =INDEX($I$6:$N$6,MATCH(1, IF($I$7:$N$7<=AJ7,IF($I$8:$N$8>=AJ8,1)),0)) -> 2021 | AK6: =INDEX($I$6:$N$6,MATCH(1, IF($I$7:$N$7<=AK7,IF($I$8:$N$8>=AK8,1)),0)) -> 2021 | AL6: =INDEX($I$6:$N$6,MATCH(1, IF($I$7:$N$7<=AL7,IF($I$8:$N$8>=AL8,1)),0)) -> 2021 | AM6: =INDEX($I$6:$N$6,MATCH(1, IF($I$7:$N$7<=AM7,IF($I$8:$N$8>=AM8,1)),0)) -> 2021 | AN6: =INDEX($I$6:$N$6,MATCH(1, IF($I$7:$N$7<=AN7,IF($I$8:$N$8>=AN8,1)),0)) -> 2021 | AO6: =INDEX($I$6:$N$6,MATCH(1, IF($I$7:$N$7<=AO7,IF($I$8:$N$8>=AO8,1)),0)) -> 2022 | AP6: =INDEX($I$6:$N$6,MATCH(1, IF($I$7:$N$7<=AP7,IF($I$8:$N$8>=AP8,1)),0)) -> 2022 | AQ6: =INDEX($I$6:$N$6,MATCH(1, IF($I$7:$N$7<=AQ7,IF($I$8:$N$8>=AQ8,1)),0)) -> 2022 | AR6: =INDEX($I$6:$N$6,MATCH(1, IF($I$7:$N$7<=AR7,IF($I$8:$N$8>=AR8,1)),0)) -> 2022 | AS6: =INDEX($I$6:$N$6,MATCH(1, IF($I$7:$N$7<=AS7,IF($I$8:$N$8>=AS8,1)),0)) -> 2022 | AT6: =INDEX($I$6:$N$6,MATCH(1, IF($I$7:$N$7<=AT7,IF($I$8:$N$8>=AT8,1)),0)) -> 2022 | AU6: =INDEX($I$6:$N$6,MATCH(1, IF($I$7:$N$7<=AU7,IF($I$8:$N$8>=AU8,1)),0)) -> 2022 | AV6: =INDEX($I$6:$N$6,MATCH(1, IF($I$7:$N$7<=AV7,IF($I$8:$N$8>=AV8,1)),0)) -> 2022 | AW6: =INDEX($I$6:$N$6,MATCH(1, IF($I$7:$N$7<=AW7,IF($I$8:$N$8>=AW8,1)),0)) -> 2022 | AX6: =INDEX($I$6:$N$6,MATCH(1, IF($I$7:$N$7<=AX7,IF($I$8:$N$8>=AX8,1)),0)) -> 2022 | AY6: =INDEX($I$6:$N$6,MATCH(1, IF($I$7:$N$7<=AY7,IF($I$8:$N$8>=AY8,1)),0)) -> 2022 | AZ6: =INDEX($I$6:$N$6,MATCH(1, IF($I$7:$N$7<=AZ7,IF($I$8:$N$8>=AZ8,1)),0)) -> 2022 | BA6: =INDEX($I$6:$N$6,MATCH(1, IF($I$7:$N$7<=BA7,IF($I$8:$N$8>=BA8,1)),0)) -> 2023 | BB6: =INDEX($I$6:$N$6,MATCH(1, IF($I$7:$N$7<=BB7,IF($I$8:$N$8>=BB8,1)),0)) -> 2023 | BC6: =INDEX($I$6:$N$6,MATCH(1, IF($I$7:$N$7<=BC7,IF($I$8:$N$8>=BC8,1)),0)) -> 2023 | BD6: =INDEX($I$6:$N$6,MATCH(1, IF($I$7:$N$7<=BD7,IF($I$8:$N$8>=BD8,1)),0)) -> 2023 | BE6: =INDEX($I$6:$N$6,MATCH(1, IF($I$7:$N$7<=BE7,IF($I$8:$N$8>=BE8,1)),0)) -> 2023 | BF6: =INDEX($I$6:$N$6,MATCH(1, IF($I$7:$N$7<=BF7,IF($I$8:$N$8>=BF8,1)),0)) -> 2023 | BG6: =INDEX($I$6:$N$6,MATCH(1, IF($I$7:$N$7<=BG7,IF($I$8:$N$8>=BG8,1)),0)) -> 2023 | BH6: =INDEX($I$6:$N$6,MATCH(1, IF($I$7:$N$7<=BH7,IF($I$8:$N$8>=BH8,1)),0)) -> 2023 | BI6: =INDEX($I$6:$N$6,MATCH(1, IF($I$7:$N$7<=BI7,IF($I$8:$N$8>=BI8,1)),0)) -> 2023 | BJ6: =INDEX($I$6:$N$6,MATCH(1, IF($I$7:$N$7<=BJ7,IF($I$8:$N$8>=BJ8,1)),0)) -> 2023 | BK6: =INDEX($I$6:$N$6,MATCH(1, IF($I$7:$N$7<=BK7,IF($I$8:$N$8>=BK8,1)),0)) -> 2023 | BL6: =INDEX($I$6:$N$6,MATCH(1, IF($I$7:$N$7<=BL7,IF($I$8:$N$8>=BL8,1)),0)) -> 2023 | BM6: =INDEX($I$6:$N$6,MATCH(1, IF($I$7:$N$7<=BM7,IF($I$8:$N$8>=BM8,1)),0)) -> 2024 | BN6: =INDEX($I$6:$N$6,MATCH(1, IF($I$7:$N$7<=BN7,IF($I$8:$N$8>=BN8,1)),0)) -> 2024 | BO6: =INDEX($I$6:$N$6,MATCH(1, IF($I$7:$N$7<=BO7,IF($I$8:$N$8>=BO8,1)),0)) -> 2024 | BP6: =INDEX($I$6:$N$6,MATCH(1, IF($I$7:$N$7<=BP7,IF($I$8:$N$8>=BP8,1)),0)) -> 2024 | BQ6: =INDEX($I$6:$N$6,MATCH(1, IF($I$7:$N$7<=BQ7,IF($I$8:$N$8>=BQ8,1)),0)) -> 2024 | BR6: =INDEX($I$6:$N$6,MATCH(1, IF($I$7:$N$7<=BR7,IF($I$8:$N$8>=BR8,1)),0)) -> 2024 | BS6: =INDEX($I$6:$N$6,MATCH(1, IF($I$7:$N$7<=BS7,IF($I$8:$N$8>=BS8,1)),0)) -> 2024 | BT6: =INDEX($I$6:$N$6,MATCH(1, IF($I$7:$N$7<=BT7,IF($I$8:$N$8>=BT8,1)),0)) -> 2024 | BU6: =INDEX($I$6:$N$6,MATCH(1, IF($I$7:$N$7<=BU7,IF($I$8:$N$8>=BU8,1)),0)) -> 2024 | BV6: =INDEX($I$6:$N$6,MATCH(1, IF($I$7:$N$7<=BV7,IF($I$8:$N$8>=BV8,1)),0)) -> 2024 | BW6: =INDEX($I$6:$N$6,MATCH(1, IF($I$7:$N$7<=BW7,IF($I$8:$N$8>=BW8,1)),0)) -> 2024 | BX6: =INDEX($I$6:$N$6,MATCH(1, IF($I$7:$N$7<=BX7,IF($I$8:$N$8>=BX8,1)),0)) -> 2024 | BY6: =INDEX($I$6:$N$6,MATCH(1, IF($I$7:$N$7<=BY7,IF($I$8:$N$8>=BY8,1)),0)) -> 2025 | BZ6: =INDEX($I$6:$N$6,MATCH(1, IF($I$7:$N$7<=BZ7,IF($I$8:$N$8>=BZ8,1)),0)) -> 2025 | CA6: =INDEX($I$6:$N$6,MATCH(1, IF($I$7:$N$7<=CA7,IF($I$8:$N$8>=CA8,1)),0)) -> 2025 | CB6: =INDEX($I$6:$N$6,MATCH(1, IF($I$7:$N$7<=CB7,IF($I$8:$N$8>=CB8,1)),0)) -> 2025 | CC6: =INDEX($I$6:$N$6,MATCH(1, IF($I$7:$N$7<=CC7,IF($I$8:$N$8>=CC8,1)),0)) -> 2025 | CD6: =INDEX($I$6:$N$6,MATCH(1, IF($I$7:$N$7<=CD7,IF($I$8:$N$8>=CD8,1)),0)) -> 2025 | CE6: =INDEX($I$6:$N$6,MATCH(1, IF($I$7:$N$7<=CE7,IF($I$8:$N$8>=CE8,1)),0)) -> 2025 | CF6: =INDEX($I$6:$N$6,MATCH(1, IF($I$7:$N$7<=CF7,IF($I$8:$N$8>=CF8,1)),0)) -> 2025 | CG6: =INDEX($I$6:$N$6,MATCH(1, IF($I$7:$N$7<=CG7,IF($I$8:$N$8>=CG8,1)),0)) -> 2025 | CH6: =INDEX($I$6:$N$6,MATCH(1, IF($I$7:$N$7<=CH7,IF($I$8:$N$8>=CH8,1)),0)) -> 2025 | CI6: =INDEX($I$6:$N$6,MATCH(1, IF($I$7:$N$7<=CI7,IF($I$8:$N$8>=CI8,1)),0)) -> 2025 | CJ6: =INDEX($I$6:$N$6,MATCH(1, IF($I$7:$N$7<=CJ7,IF($I$8:$N$8>=CJ8,1)),0)) -> 2025
C7: Period start | I7: =Inputs!E7 -> 2020-01-01 | J7: =EOMONTH(I7,11)+1 -> 2021-01-01 | K7: =EOMONTH(J7,11)+1 -> 2022-01-01 | L7: 2023-01-01 | M7: 2024-01-01 | N7: 2025-01-01 | Q7: =Inputs!E7 -> 2020-01-01 | R7: =EOMONTH(Q7,0)+1 -> 2020-02-01 | S7: =EOMONTH(R7,0)+1 -> 2020-03-01 | T7: 2020-04-01 | U7: 2020-05-01 | V7: 2020-06-01 | W7: 2020-07-01 | X7: 2020-08-01 | Y7: 2020-09-01 | Z7: 2020-10-01 | AA7: 2020-11-01 | AB7: 2020-12-01 | AC7: 2021-01-01 | AD7: 2021-02-01 | AE7: 2021-03-01 | AF7: 2021-04-01 | AG7: 2021-05-01 | AH7: 2021-06-01 | AI7: 2021-07-01 | AJ7: 2021-08-01 | AK7: 2021-09-01 | AL7: 2021-10-01 | AM7: 2021-11-01 | AN7: 2021-12-01 | AO7: 2022-01-01 | AP7: 2022-02-01 | AQ7: 2022-03-01 | AR7: 2022-04-01 | AS7: 2022-05-01 | AT7: 2022-06-01 | AU7: 2022-07-01 | AV7: 2022-08-01 | AW7: 2022-09-01 | AX7: 2022-10-01 | AY7: 2022-11-01 | AZ7: 2022-12-01 | BA7: 2023-01-01 | BB7: 2023-02-01 | BC7: 2023-03-01 | BD7: 2023-04-01 | BE7: 2023-05-01 | BF7: 2023-06-01 | BG7: 2023-07-01 | BH7: 2023-08-01 | BI7: 2023-09-01 | BJ7: 2023-10-01 | BK7: 2023-11-01 | BL7: 2023-12-01 | BM7: 2024-01-01 | BN7: 2024-02-01 | BO7: 2024-03-01 | BP7: 2024-04-01 | BQ7: 2024-05-01 | BR7: 2024-06-01 | BS7: 2024-07-01 | BT7: 2024-08-01 | BU7: 2024-09-01 | BV7: 2024-10-01 | BW7: 2024-11-01 | BX7: 2024-12-01 | BY7: 2025-01-01 | BZ7: 2025-02-01 | CA7: 2025-03-01 | CB7: 2025-04-01 | CC7: 2025-05-01 | CD7: 2025-06-01 | CE7: =EOMONTH(CD7,0)+1 -> 2025-07-01 | CF7: 2025-08-01 | CG7: 2025-09-01 | CH7: 2025-10-01 | CI7: 2025-11-01 | CJ7: 2025-12-01
C8: Period end | I8: =EOMONTH(I7,11) -> 2020-12-31 | J8: =EOMONTH(J7,11) -> 2021-12-31 | K8: 2022-12-31 | L8: 2023-12-31 | M8: 2024-12-31 | N8: 2025-12-31 | Q8: =EOMONTH(Q7,0) -> 2020-01-31 | R8: =EOMONTH(R7,0) -> 2020-02-29 | S8: 2020-03-31 | T8: 2020-04-30 | U8: 2020-05-31 | V8: 2020-06-30 | W8: 2020-07-31 | X8: 2020-08-31 | Y8: 2020-09-30 | Z8: 2020-10-31 | AA8: 2020-11-30 | AB8: 2020-12-31 | AC8: 2021-01-31 | AD8: 2021-02-28 | AE8: 2021-03-31 | AF8: 2021-04-30 | AG8: 2021-05-31 | AH8: 2021-06-30 | AI8: 2021-07-31 | AJ8: 2021-08-31 | AK8: 2021-09-30 | AL8: 2021-10-31 | AM8: 2021-11-30 | AN8: 2021-12-31 | AO8: 2022-01-31 | AP8: 2022-02-28 | AQ8: 2022-03-31 | AR8: 2022-04-30 | AS8: 2022-05-31 | AT8: 2022-06-30 | AU8: 2022-07-31 | AV8: 2022-08-31 | AW8: 2022-09-30 | AX8: 2022-10-31 | AY8: 2022-11-30 | AZ8: 2022-12-31 | BA8: 2023-01-31 | BB8: 2023-02-28 | BC8: 2023-03-31 | BD8: 2023-04-30 | BE8: 2023-05-31 | BF8: 2023-06-30 | BG8: 2023-07-31 | BH8: 2023-08-31 | BI8: 2023-09-30 | BJ8: 2023-10-31 | BK8: 2023-11-30 | BL8: 2023-12-31 | BM8: 2024-01-31 | BN8: 2024-02-29 | BO8: 2024-03-31 | BP8: 2024-04-30 | BQ8: 2024-05-31 | BR8: 2024-06-30 | BS8: 2024-07-31 | BT8: 2024-08-31 | BU8: 2024-09-30 | BV8: 2024-10-31 | BW8: 2024-11-30 | BX8: 2024-12-31 | BY8: 2025-01-31 | BZ8: 2025-02-28 | CA8: 2025-03-31 | CB8: 2025-04-30 | CC8: 2025-05-31 | CD8: =EOMONTH(CD7,0) -> 2025-06-30 | CE8: 2025-07-31 | CF8: 2025-08-31 | CG8: 2025-09-30 | CH8: 2025-10-31 | CI8: 2025-11-30 | CJ8: 2025-12-31
C9: Period | Q9: =P9+1 -> 1 | R9: =Q9+1 -> 2 | S9: 3 | T9: 4 | U9: 5 | V9: 6 | W9: 7 | X9: 8 | Y9: 9 | Z9: 10 | AA9: 11 | AB9: 12 | AC9: 13 | AD9: 14 | AE9: 15 | AF9: 16 | AG9: 17 | AH9: 18 | AI9: 19 | AJ9: 20 | AK9: 21 | AL9: 22 | AM9: 23 | AN9: 24 | AO9: 25 | AP9: 26 | AQ9: 27 | AR9: 28 | AS9: 29 | AT9: 30 | AU9: 31 | AV9: 32 | AW9: 33 | AX9: 34 | AY9: 35 | AZ9: 36 | BA9: 37 | BB9: 38 | BC9: 39 | BD9: 40 | BE9: 41 | BF9: 42 | BG9: 43 | BH9: 44 | BI9: 45 | BJ9: 46 | BK9: 47 | BL9: 48 | BM9: 49 | BN9: 50 | BO9: 51 | BP9: 52 | BQ9: 53 | BR9: 54 | BS9: 55 | BT9: 56 | BU9: 57 | BV9: 58 | BW9: 59 | BX9: 60 | BY9: 61 | BZ9: 62 | CA9: 63 | CB9: 64 | CC9: 65 | CD9: =CC9+1 -> 66 | CE9: 67 | CF9: 68 | CG9: 69 | CH9: 70 | CI9: 71 | CJ9: 72
A11: ● | C11: Sales
C13: Sales calculations
C14: Product 1 sales
C15: Sales percentage | D15: % | I15: =SUMIF($Q$6:$CJ$6,I$6,$Q15:$CJ15) -> 1 | J15: 1 | K15: 1 | L15: 1 | M15: 1 | N15: 1 | Q15: =INDEX(Inputs!$I$80:$T$80, MATCH(MONTH('Monthly Sales Profile'!Q$7), Inputs!$I$79:$T$79,0)) -> 0.08333333333 | R15: =INDEX(Inputs!$I$80:$T$80, MATCH(MONTH('Monthly Sales Profile'!R$7), Inputs!$I$79:$T$79,0)) -> 0.08333333333 | S15: =INDEX(Inputs!$I$80:$T$80, MATCH(MONTH('Monthly Sales Profile'!S$7), Inputs!$I$79:$T$79,0)) -> 0.08333333333 | T15: =INDEX(Inputs!$I$80:$T$80, MATCH(MONTH('Monthly Sales Profile'!T$7), Inputs!$I$79:$T$79,0)) -> 0.08333333333 | U15: =INDEX(Inputs!$I$80:$T$80, MATCH(MONTH('Monthly Sales Profile'!U$7), Inputs!$I$79:$T$79,0)) -> 0.08333333333 | V15: =INDEX(Inputs!$I$80:$T$80, MATCH(MONTH('Monthly Sales Profile'!V$7), Inputs!$I$79:$T$79,0)) -> 0.08333333333 | W15: =INDEX(Inputs!$I$80:$T$80, MATCH(MONTH('Monthly Sales Profile'!W$7), Inputs!$I$79:$T$79,0)) -> 0.08333333333 | X15: =INDEX(Inputs!$I$80:$T$80, MATCH(MONTH('Monthly Sales Profile'!X$7), Inputs!$I$79:$T$79,0)) -> 0.08333333333 | Y15: =INDEX(Inputs!$I$80:$T$80, MATCH(MONTH('Monthly Sales Profile'!Y$7), Inputs!$I$79:$T$79,0)) -> 0.08333333333 | Z15: =INDEX(Inputs!$I$80:$T$80, MATCH(MONTH('Monthly Sales Profile'!Z$7), Inputs!$I$79:$T$79,0)) -> 0.08333333333 | AA15: =INDEX(Inputs!$I$80:$T$80, MATCH(MONTH('Monthly Sales Profile'!AA$7), Inputs!$I$79:$T$79,0)) -> 0.08333333333 | AB15: =INDEX(Inputs!$I$80:$T$80, MATCH(MONTH('Monthly Sales Profile'!AB$7), Inputs!$I$79:$T$79,0)) -> 0.08333333333 | AC15: =INDEX(Inputs!$I$80:$T$80, MATCH(MONTH('Monthly Sales Profile'!AC$7), Inputs!$I$79:$T$79,0)) -> 0.08333333333 | AD15: =INDEX(Inputs!$I$80:$T$80, MATCH(MONTH('Monthly Sales Profile'!AD$7), Inputs!$I$79:$T$79,0)) -> 0.08333333333 | AE15: =INDEX(Inputs!$I$80:$T$80, MATCH(MONTH('Monthly Sales Profile'!AE$7), Inputs!$I$79:$T$79,0)) -> 0.08333333333 | AF15: =INDEX(Inputs!$I$80:$T$80, MATCH(MONTH('Monthly Sales Profile'!AF$7), Inputs!$I$79:$T$79,0)) -> 0.08333333333 | AG15: =INDEX(Inputs!$I$80:$T$80, MATCH(MONTH('Monthly Sales Profile'!AG$7), Inputs!$I$79:$T$79,0)) -> 0.08333333333 | AH15: =INDEX(Inputs!$I$80:$T$80, MATCH(MONTH('Monthly Sales Profile'!AH$7), Inputs!$I$79:$T$79,0)) -> 0.08333333333 | AI15: =INDEX(Inputs!$I$80:$T$80, MATCH(MONTH('Monthly Sales Profile'!AI$7), Inputs!$I$79:$T$79,0)) -> 0.08333333333 | AJ15: =INDEX(Inputs!$I$80:$T$80, MATCH(MONTH('Monthly Sales Profile'!AJ$7), Inputs!$I$79:$T$79,0)) -> 0.08333333333 | AK15: =INDEX(Inputs!$I$80:$T$80, MATCH(MONTH('Monthly Sales Profile'!AK$7), Inputs!$I$79:$T$79,0)) -> 0.08333333333 | AL15: =INDEX(Inputs!$I$80:$T$80, MATCH(MONTH('Monthly Sales Profile'!AL$7), Inputs!$I$79:$T$79,0)) -> 0.08333333333 | AM15: =INDEX(Inputs!$I$80:$T$80, MATCH(MONTH('Monthly Sales Profile'!AM$7), Inputs!$I$79:$T$79,0)) -> 0.08333333333 | AN15: =INDEX(Inputs!$I$80:$T$80, MATCH(MONTH('Monthly Sales Profile'!AN$7), Inputs!$I$79:$T$79,0)) -> 0.08333333333 | AO15: =INDEX(Inputs!$I$80:$T$80, MATCH(MONTH('Monthly Sales Profile'!AO$7), Inputs!$I$79:$T$79,0)) -> 0.08333333333 | AP15: =INDEX(Inputs!$I$80:$T$80, MATCH(MONTH('Monthly Sales Profile'!AP$7), Inputs!$I$79:$T$79,0)) -> 0.08333333333 | AQ15: =INDEX(Inputs!$I$80:$T$80, MATCH(MONTH('Monthly Sales Profile'!AQ$7), Inputs!$I$79:$T$79,0)) -> 0.08333333333 | AR15: =INDEX(Inputs!$I$80:$T$80, MATCH(MONTH('Monthly Sales Profile'!AR$7), Inputs!$I$79:$T$79,0)) -> 0.08333333333 | AS15: =INDEX(Inputs!$I$80:$T$80, MATCH(MONTH('Monthly Sales Profile'!AS$7), Inputs!$I$79:$T$79,0)) -> 0.08333333333 | AT15: =INDEX(Inputs!$I$80:$T$80, MATCH(MONTH('Monthly Sales Profile'!AT$7), Inputs!$I$79:$T$79,0)) -> 0.08333333333 | AU15: =INDEX(Inputs!$I$80:$T$80, MATCH(MONTH('Monthly Sales Profile'!AU$7), Inputs!$I$79:$T$79,0)) -> 0.08333333333 | AV15: =INDEX(Inputs!$I$80:$T$80, MATCH(MONTH('Monthly Sales Profile'!AV$7), Inputs!$I$79:$T$79,0)) -> 0.08333333333 | AW15: =INDEX(Inputs!$I$80:$T$80, MATCH(MONTH('Monthly Sales Profile'!AW$7), Inputs!$I$79:$T$79,0)) -> 0.08333333333 | AX15: =INDEX(Inputs!$I$80:$T$80, MATCH(MONTH('Monthly Sales Profile'!AX$7), Inputs!$I$79:$T$79,0)) -> 0.08333333333 | AY15: =INDEX(Inputs!$I$80:$T$80, MATCH(MONTH('Monthly Sales Profile'!AY$7), Inputs!$I$79:$T$79,0)) -> 0.08333333333 | AZ15: =INDEX(Inputs!$I$80:$T$80, MATCH(MONTH('Monthly Sales Profile'!AZ$7), Inputs!$I$79:$T$79,0)) -> 0.08333333333 | BA15: =INDEX(Inputs!$I$80:$T$80, MATCH(MONTH('Monthly Sales Profile'!BA$7), Inputs!$I$79:$T$79,0)) -> 0.08333333333 | BB15: =INDEX(Inputs!$I$80:$T$80, MATCH(MONTH('Monthly Sales Profile'!BB$7), Inputs!$I$79:$T$79,0)) -> 0.08333333333 | BC15: =INDEX(Inputs!$I$80:$T$80, MATCH(MONTH('Monthly Sales Profile'!BC$7), Inputs!$I$79:$T$79,0)) -> 0.08333333333 | BD15: =INDEX(Inputs!$I$80:$T$80, MATCH(MONTH('Monthly Sales Profile'!BD$7), Inputs!$I$79:$T$79,0)) -> 0.08333333333 | BE15: =INDEX(Inputs!$I$80:$T$80, MATCH(MONTH('Monthly Sales Profile'!BE$7), Inputs!$I$79:$T$79,0)) -> 0.08333333333 | BF15: =INDEX(Inputs!$I$80:$T$80, MATCH(MONTH('Monthly Sales Profile'!BF$7), Inputs!$I$79:$T$79,0)) -> 0.08333333333 | BG15: =INDEX(Inputs!$I$80:$T$80, MATCH(MONTH('Monthly Sales Profile'!BG$7), Inputs!$I$79:$T$79,0)) -> 0.08333333333 | BH15: =INDEX(Inputs!$I$80:$T$80, MATCH(MONTH('Monthly Sales Profile'!BH$7), Inputs!$I$79:$T$79,0)) -> 0.08333333333 | BI15: =INDEX(Inputs!$I$80:$T$80, MATCH(MONTH('Monthly Sales Profile'!BI$7), Inputs!$I$79:$T$79,0)) -> 0.08333333333 | BJ15: =INDEX(Inputs!$I$80:$T$80, MATCH(MONTH('Monthly Sales Profile'!BJ$7), Inputs!$I$79:$T$79,0)) -> 0.08333333333 | BK15: =INDEX(Inputs!$I$80:$T$80, MATCH(MONTH('Monthly Sales Profile'!BK$7), Inputs!$I$79:$T$79,0)) -> 0.08333333333 | BL15: =INDEX(Inputs!$I$80:$T$80, MATCH(MONTH('Monthly Sales Profile'!BL$7), Inputs!$I$79:$T$79,0)) -> 0.08333333333 | BM15: =INDEX(Inputs!$I$80:$T$80, MATCH(MONTH('Monthly Sales Profile'!BM$7), Inputs!$I$79:$T$79,0)) -> 0.08333333333 | BN15: =INDEX(Inputs!$I$80:$T$80, MATCH(MONTH('Monthly Sales Profile'!BN$7), Inputs!$I$79:$T$79,0)) -> 0.08333333333 | BO15: =INDEX(Inputs!$I$80:$T$80, MATCH(MONTH('Monthly Sales Profile'!BO$7), Inputs!$I$79:$T$79,0)) -> 0.08333333333 | BP15: =INDEX(Inputs!$I$80:$T$80, MATCH(MONTH('Monthly Sales Profile'!BP$7), Inputs!$I$79:$T$79,0)) -> 0.08333333333 | BQ15: =INDEX(Inputs!$I$80:$T$80, MATCH(MONTH('Monthly Sales Profile'!BQ$7), Inputs!$I$79:$T$79,0)) -> 0.08333333333 | BR15: =INDEX(Inputs!$I$80:$T$80, MATCH(MONTH('Monthly Sales Profile'!BR$7), Inputs!$I$79:$T$79,0)) -> 0.08333333333 | BS15: =INDEX(Inputs!$I$80:$T$80, MATCH(MONTH('Monthly Sales Profile'!BS$7), Inputs!$I$79:$T$79,0)) -> 0.08333333333 | BT15: =INDEX(Inputs!$I$80:$T$80, MATCH(MONTH('Monthly Sales Profile'!BT$7), Inputs!$I$79:$T$79,0)) -> 0.08333333333 | BU15: =INDEX(Inputs!$I$80:$T$80, MATCH(MONTH('Monthly Sales Profile'!BU$7), Inputs!$I$79:$T$79,0)) -> 0.08333333333 | BV15: =INDEX(Inputs!$I$80:$T$80, MATCH(MONTH('Monthly Sales Profile'!BV$7), Inputs!$I$79:$T$79,0)) -> 0.08333333333 | BW15: =INDEX(Inputs!$I$80:$T$80, MATCH(MONTH('Monthly Sales Profile'!BW$7), Inputs!$I$79:$T$79,0)) -> 0.08333333333 | BX15: =INDEX(Inputs!$I$80:$T$80, MATCH(MONTH('Monthly Sales Profile'!BX$7), Inputs!$I$79:$T$79,0)) -> 0.08333333333 | BY15: =INDEX(Inputs!$I$80:$T$80, MATCH(MONTH('Monthly Sales Profile'!BY$7), Inputs!$I$79:$T$79,0)) -> 0.08333333333 | BZ15: =INDEX(Inputs!$I$80:$T$80, MATCH(MONTH('Monthly Sales Profile'!BZ$7), Inputs!$I$79:$T$79,0)) -> 0.08333333333 | CA15: =INDEX(Inputs!$I$80:$T$80, MATCH(MONTH('Monthly Sales Profile'!CA$7), Inputs!$I$79:$T$79,0)) -> 0.08333333333 | CB15: =INDEX(Inputs!$I$80:$T$80, MATCH(MONTH('Monthly Sales Profile'!CB$7), Inputs!$I$79:$T$79,0)) -> 0.08333333333 | CC15: =INDEX(Inputs!$I$80:$T$80, MATCH(MONTH('Monthly Sales Profile'!CC$7), Inputs!$I$79:$T$79,0)) -> 0.08333333333 | CD15: =INDEX(Inputs!$I$80:$T$80, MATCH(MONTH('Monthly Sales Profile'!CD$7), Inputs!$I$79:$T$79,0)) -> 0.08333333333 | CE15: =INDEX(Inputs!$I$80:$T$80, MATCH(MONTH('Monthly Sales Profile'!CE$7), Inputs!$I$79:$T$79,0)) -> 0.08333333333 | CF15: =INDEX(Inputs!$I$80:$T$80, MATCH(MONTH('Monthly Sales Profile'!CF$7), Inputs!$I$79:$T$79,0)) -> 0.08333333333 | CG15: =INDEX(Inputs!$I$80:$T$80, MATCH(MONTH('Monthly Sales Profile'!CG$7), Inputs!$I$79:$T$79,0)) -> 0.08333333333 | CH15: =INDEX(Inputs!$I$80:$T$80, MATCH(MONTH('Monthly Sales Profile'!CH$7), Inputs!$I$79:$T$79,0)) -> 0.08333333333 | CI15: =INDEX(Inputs!$I$80:$T$80, MATCH(MONTH('Monthly Sales Profile'!CI$7), Inputs!$I$79:$T$79,0)) -> 0.08333333333 | CJ15: =INDEX(Inputs!$I$80:$T$80, MATCH(MONTH('Monthly Sales Profile'!CJ$7), Inputs!$I$79:$T$79,0)) -> 0.08333333333
C16: Annual sales | D16: # | I16: =Inputs!I77 -> 1200 | J16: =Inputs!J77 -> 1680 | K16: =Inputs!K77 -> 2268 | L16: =Inputs!L77 -> 2948.4 | M16: =Inputs!M77 -> 3832.92 | N16: =Inputs!N77 -> 4599.504 | Q16: =INDEX($I16:$N16,MATCH('Monthly Sales Profile'!Q$6,$I$6:$N$6,0)) -> 1200 | R16: =INDEX($I16:$N16,MATCH('Monthly Sales Profile'!R$6,$I$6:$N$6,0)) -> 1200 | S16: =INDEX($I16:$N16,MATCH('Monthly Sales Profile'!S$6,$I$6:$N$6,0)) -> 1200 | T16: =INDEX($I16:$N16,MATCH('Monthly Sales Profile'!T$6,$I$6:$N$6,0)) -> 1200 | U16: =INDEX($I16:$N16,MATCH('Monthly Sales Profile'!U$6,$I$6:$N$6,0)) -> 1200 | V16: =INDEX($I16:$N16,MATCH('Monthly Sales Profile'!V$6,$I$6:$N$6,0)) -> 1200 | W16: =INDEX($I16:$N16,MATCH('Monthly Sales Profile'!W$6,$I$6:$N$6,0)) -> 1200 | X16: =INDEX($I16:$N16,MATCH('Monthly Sales Profile'!X$6,$I$6:$N$6,0)) -> 1200 | Y16: =INDEX($I16:$N16,MATCH('Monthly Sales Profile'!Y$6,$I$6:$N$6,0)) -> 1200 | Z16: =INDEX($I16:$N16,MATCH('Monthly Sales Profile'!Z$6,$I$6:$N$6,0)) -> 1200 | AA16: =INDEX($I16:$N16,MATCH('Monthly Sales Profile'!AA$6,$I$6:$N$6,0)) -> 1200 | AB16: =INDEX($I16:$N16,MATCH('Monthly Sales Profile'!AB$6,$I$6:$N$6,0)) -> 1200 | AC16: =INDEX($I16:$N16,MATCH('Monthly Sales Profile'!AC$6,$I$6:$N$6,0)) -> 1680 | AD16: =INDEX($I16:$N16,MATCH('Monthly Sales Profile'!AD$6,$I$6:$N$6,0)) -> 1680 | AE16: =INDEX($I16:$N16,MATCH('Monthly Sales Profile'!AE$6,$I$6:$N$6,0)) -> 1680 | AF16: =INDEX($I16:$N16,MATCH('Monthly Sales Profile'!AF$6,$I$6:$N$6,0)) -> 1680 | AG16: =INDEX($I16:$N16,MATCH('Monthly Sales Profile'!AG$6,$I$6:$N$6,0)) -> 1680 | AH16: =INDEX($I16:$N16,MATCH('Monthly Sales Profile'!AH$6,$I$6:$N$6,0)) -> 1680 | AI16: =INDEX($I16:$N16,MATCH('Monthly Sales Profile'!AI$6,$I$6:$N$6,0)) -> 1680 | AJ16: =INDEX($I16:$N16,MATCH('Monthly Sales Profile'!AJ$6,$I$6:$N$6,0)) -> 1680 | AK16: =INDEX($I16:$N16,MATCH('Monthly Sales Profile'!AK$6,$I$6:$N$6,0)) -> 1680 | AL16: =INDEX($I16:$N16,MATCH('Monthly Sales Profile'!AL$6,$I$6:$N$6,0)) -> 1680 | AM16: =INDEX($I16:$N16,MATCH('Monthly Sales Profile'!AM$6,$I$6:$N$6,0)) -> 1680 | AN16: =INDEX($I16:$N16,MATCH('Monthly Sales Profile'!AN$6,$I$6:$N$6,0)) -> 1680 | AO16: =INDEX($I16:$N16,MATCH('Monthly Sales Profile'!AO$6,$I$6:$N$6,0)) -> 2268 | AP16: =INDEX($I16:$N16,MATCH('Monthly Sales Profile'!AP$6,$I$6:$N$6,0)) -> 2268 | AQ16: =INDEX($I16:$N16,MATCH('Monthly Sales Profile'!AQ$6,$I$6:$N$6,0)) -> 2268 | AR16: =INDEX($I16:$N16,MATCH('Monthly Sales Profile'!AR$6,$I$6:$N$6,0)) -> 2268 | AS16: =INDEX($I16:$N16,MATCH('Monthly Sales Profile'!AS$6,$I$6:$N$6,0)) -> 2268 | AT16: =INDEX($I16:$N16,MATCH('Monthly Sales Profile'!AT$6,$I$6:$N$6,0)) -> 2268 | AU16: =INDEX($I16:$N16,MATCH('Monthly Sales Profile'!AU$6,$I$6:$N$6,0)) -> 2268 | AV16: =INDEX($I16:$N16,MATCH('Monthly Sales Profile'!AV$6,$I$6:$N$6,0)) -> 2268 | AW16: =INDEX($I16:$N16,MATCH('Monthly Sales Profile'!AW$6,$I$6:$N$6,0)) -> 2268 | AX16: =INDEX($I16:$N16,MATCH('Monthly Sales Profile'!AX$6,$I$6:$N$6,0)) -> 2268 | AY16: =INDEX($I16:$N16,MATCH('Monthly Sales Profile'!AY$6,$I$6:$N$6,0)) -> 2268 | AZ16: =INDEX($I16:$N16,MATCH('Monthly Sales Profile'!AZ$6,$I$6:$N$6,0)) -> 2268 | BA16: =INDEX($I16:$N16,MATCH('Monthly Sales Profile'!BA$6,$I$6:$N$6,0)) -> 2948.4 | BB16: =INDEX($I16:$N16,MATCH('Monthly Sales Profile'!BB$6,$I$6:$N$6,0)) -> 2948.4 | BC16: =INDEX($I16:$N16,MATCH('Monthly Sales Profile'!BC$6,$I$6:$N$6,0)) -> 2948.4 | BD16: =INDEX($I16:$N16,MATCH('Monthly Sales Profile'!BD$6,$I$6:$N$6,0)) -> 2948.4 | BE16: =INDEX($I16:$N16,MATCH('Monthly Sales Profile'!BE$6,$I$6:$N$6,0)) -> 2948.4 | BF16: =INDEX($I16:$N16,MATCH('Monthly Sales Profile'!BF$6,$I$6:$N$6,0)) -> 2948.4 | BG16: =INDEX($I16:$N16,MATCH('Monthly Sales Profile'!BG$6,$I$6:$N$6,0)) -> 2948.4 | BH16: =INDEX($I16:$N16,MATCH('Monthly Sales Profile'!BH$6,$I$6:$N$6,0)) -> 2948.4 | BI16: =INDEX($I16:$N16,MATCH('Monthly Sales Profile'!BI$6,$I$6:$N$6,0)) -> 2948.4 | BJ16: =INDEX($I16:$N16,MATCH('Monthly Sales Profile'!BJ$6,$I$6:$N$6,0)) -> 2948.4 | BK16: =INDEX($I16:$N16,MATCH('Monthly Sales Profile'!BK$6,$I$6:$N$6,0)) -> 2948.4 | BL16: =INDEX($I16:$N16,MATCH('Monthly Sales Profile'!BL$6,$I$6:$N$6,0)) -> 2948.4 | BM16: =INDEX($I16:$N16,MATCH('Monthly Sales Profile'!BM$6,$I$6:$N$6,0)) -> 3832.92 | BN16: =INDEX($I16:$N16,MATCH('Monthly Sales Profile'!BN$6,$I$6:$N$6,0)) -> 3832.92 | BO16: =INDEX($I16:$N16,MATCH('Monthly Sales Profile'!BO$6,$I$6:$N$6,0)) -> 3832.92 | BP16: =INDEX($I16:$N16,MATCH('Monthly Sales Profile'!BP$6,$I$6:$N$6,0)) -> 3832.92 | BQ16: =INDEX($I16:$N16,MATCH('Monthly Sales Profile'!BQ$6,$I$6:$N$6,0)) -> 3832.92 | BR16: =INDEX($I16:$N16,MATCH('Monthly Sales Profile'!BR$6,$I$6:$N$6,0)) -> 3832.92 | BS16: =INDEX($I16:$N16,MATCH('Monthly Sales Profile'!BS$6,$I$6:$N$6,0)) -> 3832.92 | BT16: =INDEX($I16:$N16,MATCH('Monthly Sales Profile'!BT$6,$I$6:$N$6,0)) -> 3832.92 | BU16: =INDEX($I16:$N16,MATCH('Monthly Sales Profile'!BU$6,$I$6:$N$6,0)) -> 3832.92 | BV16: =INDEX($I16:$N16,MATCH('Monthly Sales Profile'!BV$6,$I$6:$N$6,0)) -> 3832.92 | BW16: =INDEX($I16:$N16,MATCH('Monthly Sales Profile'!BW$6,$I$6:$N$6,0)) -> 3832.92 | BX16: =INDEX($I16:$N16,MATCH('Monthly Sales Profile'!BX$6,$I$6:$N$6,0)) -> 3832.92 | BY16: =INDEX($I16:$N16,MATCH('Monthly Sales Profile'!BY$6,$I$6:$N$6,0)) -> 4599.504 | BZ16: =INDEX($I16:$N16,MATCH('Monthly Sales Profile'!BZ$6,$I$6:$N$6,0)) -> 4599.504 | CA16: =INDEX($I16:$N16,MATCH('Monthly Sales Profile'!CA$6,$I$6:$N$6,0)) -> 4599.504 | CB16: =INDEX($I16:$N16,MATCH('Monthly Sales Profile'!CB$6,$I$6:$N$6,0)) -> 4599.504 | CC16: =INDEX($I16:$N16,MATCH('Monthly Sales Profile'!CC$6,$I$6:$N$6,0)) -> 4599.504 | CD16: =INDEX($I16:$N16,MATCH('Monthly Sales Profile'!CD$6,$I$6:$N$6,0)) -> 4599.504 | CE16: =INDEX($I16:$N16,MATCH('Monthly Sales Profile'!CE$6,$I$6:$N$6,0)) -> 4599.504 | CF16: =INDEX($I16:$N16,MATCH('Monthly Sales Profile'!CF$6,$I$6:$N$6,0)) -> 4599.504 | CG16: =INDEX($I16:$N16,MATCH('Monthly Sales Profile'!CG$6,$I$6:$N$6,0)) -> 4599.504 | CH16: =INDEX($I16:$N16,MATCH('Monthly Sales Profile'!CH$6,$I$6:$N$6,0)) -> 4599.504 | CI16: =INDEX($I16:$N16,MATCH('Monthly Sales Profile'!CI$6,$I$6:$N$6,0)) -> 4599.504 | CJ16: =INDEX($I16:$N16,MATCH('Monthly Sales Profile'!CJ$6,$I$6:$N$6,0)) -> 4599.504
C17: Monthly sales | D17: # | Q17: =Q16*Q15 -> 100 | R17: 100 | S17: 100 | T17: 100 | U17: 100 | V17: 100 | W17: 100 | X17: 100 | Y17: 100 | Z17: 100 | AA17: 100 | AB17: 100 | AC17: 140 | AD17: 140 | AE17: 140 | AF17: 140 | AG17: 140 | AH17: 140 | AI17: 140 | AJ17: 140 | AK17: 140 | AL17: 140 | AM17: 140 | AN17: 140 | AO17: 189 | AP17: 189 | AQ17: 189 | AR17: 189 | AS17: 189 | AT17: 189 | AU17: 189 | AV17: 189 | AW17: =AW16*AW15 -> 189 | AX17: 189 | AY17: 189 | AZ17: 189 | BA17: 245.7 | BB17: 245.7 | BC17: 245.7 | BD17: 245.7 | BE17: 245.7 | BF17: 245.7 | BG17: 245.7 | BH17: 245.7 | BI17: 245.7 | BJ17: 245.7 | BK17: 245.7 | BL17: 245.7 | BM17: 319.41 | BN17: 319.41 | BO17: 319.41 | BP17: 319.41 | BQ17: 319.41 | BR17: 319.41 | BS17: 319.41 | BT17: 319.41 | BU17: 319.41 | BV17: 319.41 | BW17: 319.41 | BX17: 319.41 | BY17: 383.292 | BZ17: 383.292 | CA17: 383.292 | CB17: 383.292 | CC17: =CC16*CC15 -> 383.292 | CD17: 383.292 | CE17: 383.292 | CF17: 383.292 | CG17: 383.292 | CH17: 383.292 | CI17: 383.292 | CJ17: 383.292
C19: Balance b/f | D19: # | I19: =Q19 -> 0 | J19: =I22 -> 1200 | K19: =J22 -> 2880 | L19: =K22 -> 5148 | M19: =L22 -> 6896.4 | N19: =M22 -> 9049.32 | R19: =Q22 -> 100 | S19: 200 | T19: 300 | U19: 400 | V19: 500 | W19: 600 | X19: 700 | Y19: 800 | Z19: 900 | AA19: 1000 | AB19: 1100 | AC19: 1200 | AD19: 1340 | AE19: 1480 | AF19: 1620 | AG19: 1760 | AH19: 1900 | AI19: 2040 | AJ19: 2180 | AK19: 2320 | AL19: 2460 | AM19: 2600 | AN19: 2740 | AO19: 2880 | AP19: 3069 | AQ19: 3258 | AR19: 3447 | AS19: 3636 | AT19: 3825 | AU19: 4014 | AV19: 4203 | AW19: 4392 | AX19: =AW22 -> 4581 | AY19: 4770 | AZ19: 4959 | BA19: 5148 | BB19: 5293.7 | BC19: 5439.4 | BD19: 5585.1 | BE19: 5730.8 | BF19: 5876.5 | BG19: 6022.2 | BH19: 6167.9 | BI19: 6313.6 | BJ19: 6459.3 | BK19: 6605 | BL19: 6750.7 | BM19: 6896.4 | BN19: 7075.81 | BO19: 7255.22 | BP19: 7434.63 | BQ19: 7614.04 | BR19: 7793.45 | BS19: 7972.86 | BT19: 8152.27 | BU19: 8331.68 | BV19: 8511.09 | BW19: 8690.5 | BX19: 8869.91 | BY19: 9049.32 | BZ19: 9243.612 | CA19: 9437.904 | CB19: 9632.196 | CC19: 9826.488 | CD19: =CC22 -> 10020.78 | CE19: 10215.072 | CF19: 10409.364 | CG19: 10603.656 | CH19: 10797.948 | CI19: 10992.24 | CJ19: 11186.532
C20: New contracts | D20: # | I20: =SUMIF($Q$6:$CJ$6,I$6,$Q20:$CJ20) -> 1200 | J20: 1680 | K20: 2268 | L20: 2948.4 | M20: 3832.92 | N20: 4599.504 | Q20: =SUM(Q31,Q41,Q51,Q61,Q71,Q81) -> 100 | R20: 100 | S20: 100 | T20: 100 | U20: 100 | V20: 100 | W20: 100 | X20: 100 | Y20: 100 | Z20: 100 | AA20: 100 | AB20: 100 | AC20: 140 | AD20: 140 | AE20: 140 | AF20: 140 | AG20: 140 | AH20: 140 | AI20: 140 | AJ20: 140 | AK20: 140 | AL20: 140 | AM20: 140 | AN20: 140 | AO20: 189 | AP20: 189 | AQ20: 189 | AR20: 189 | AS20: 189 | AT20: 189 | AU20: 189 | AV20: 189 | AW20: =SUM(AW31,AW41,AW51,AW61,AW71,AW81) -> 189 | AX20: 189 | AY20: 189 | AZ20: 189 | BA20: 245.7 | BB20: 245.7 | BC20: 245.7 | BD20: 245.7 | BE20: 245.7 | BF20: 245.7 | BG20: 245.7 | BH20: 245.7 | BI20: 245.7 | BJ20: 245.7 | BK20: 245.7 | BL20: 245.7 | BM20: 319.41 | BN20: 319.41 | BO20: 319.41 | BP20: 319.41 | BQ20: 319.41 | BR20: 319.41 | BS20: 319.41 | BT20: 319.41 | BU20: 319.41 | BV20: 319.41 | BW20: 319.41 | BX20: 319.41 | BY20: 383.292 | BZ20: 383.292 | CA20: 383.292 | CB20: 383.292 | CC20: =SUM(CC31,CC41,CC51,CC61,CC71,CC81) -> 383.292 | CD20: 383.292 | CE20: 383.292 | CF20: 383.292 | CG20: 383.292 | CH20: 383.292 | CI20: 383.292 | CJ20: 383.292
C21: Contracts ended | D21: # | I21: 0 | J21: 0 | K21: 0 | L21: -1200 | M21: -1680 | N21: -2268 | Q21: =SUM(Q32,Q42,Q52,Q62,Q72,Q82) -> 0 | R21: 0 | S21: 0 | T21: 0 | U21: 0 | V21: 0 | W21: 0 | X21: 0 | Y21: 0 | Z21: 0 | AA21: 0 | AB21: 0 | AC21: 0 | AD21: 0 | AE21: 0 | AF21: 0 | AG21: 0 | AH21: 0 | AI21: 0 | AJ21: 0 | AK21: 0 | AL21: 0 | AM21: 0 | AN21: 0 | AO21: 0 | AP21: 0 | AQ21: 0 | AR21: 0 | AS21: 0 | AT21: 0 | AU21: 0 | AV21: 0 | AW21: =SUM(AW32,AW42,AW52,AW62,AW72,AW82) -> 0 | AX21: 0 | AY21: 0 | AZ21: 0 | BA21: -100 | BB21: -100 | BC21: -100 | BD21: -100 | BE21: -100 | BF21: -100 | BG21: -100 | BH21: -100 | BI21: -100 | BJ21: -100 | BK21: -100 | BL21: -100 | BM21: -140 | BN21: -140 | BO21: -140 | BP21: -140 | BQ21: -140 | BR21: -140 | BS21: -140 | BT21: -140 | BU21: -140 | BV21: -140 | BW21: -140 | BX21: -140 | BY21: -189 | BZ21: -189 | CA21: -189 | CB21: -189 | CC21: =SUM(CC32,CC42,CC52,CC62,CC72,CC82) -> -189 | CD21: -189 | CE21: -189 | CF21: -189 | CG21: -189 | CH21: -189 | CI21: -189 | CJ21: -189
C22: Balance c/f | D22: # | I22: =SUM(I19:I21) -> 1200 | J22: 2880 | K22: 5148 | L22: 6896.4 | M22: 9049.32 | N22: 11380.824 | Q22: =SUM(Q19:Q21) -> 100 | R22: 200 | S22: 300 | T22: 400 | U22: 500 | V22: 600 | W22: 700 | X22: 800 | Y22: 900 | Z22: 1000 | AA22: 1100 | AB22: 1200 | AC22: 1340 | AD22: 1480 | AE22: 1620 | AF22: 1760 | AG22: 1900 | AH22: 2040 | AI22: 2180 | AJ22: 2320 | AK22: 2460 | AL22: 2600 | AM22: 2740 | AN22: 2880 | AO22: 3069 | AP22: 3258 | AQ22: 3447 | AR22: 3636 | AS22: 3825 | AT22: 4014 | AU22: 4203 | AV22: 4392 | AW22: =SUM(AW19:AW21) -> 4581 | AX22: 4770 | AY22: 4959 | AZ22: 5148 | BA22: 5293.7 | BB22: 5439.4 | BC22: 5585.1 | BD22: 5730.8 | BE22: 5876.5 | BF22: 6022.2 | BG22: 6167.9 | BH22: 6313.6 | BI22: 6459.3 | BJ22: 6605 | BK22: 6750.7 | BL22: 6896.4 | BM22: 7075.81 | BN22: 7255.22 | BO22: 7434.63 | BP22: 7614.04 | BQ22: 7793.45 | BR22: 7972.86 | BS22: 8152.27 | BT22: 8331.68 | BU22: 8511.09 | BV22: 8690.5 | BW22: 8869.91 | BX22: 9049.32 | BY22: 9243.612 | BZ22: 9437.904 | CA22: 9632.196 | CB22: 9826.488 | CC22: =SUM(CC19:CC21) -> 10020.78 | CD22: 10215.072 | CE22: 10409.364 | CF22: 10603.656 | CG22: 10797.948 | CH22: 10992.24 | CI22: 11186.532 | CJ22: 11380.824
C24: Revenue | D24: NGN | I24: =SUMIF($Q$6:$CJ$6,I$6,$Q24:$CJ24) -> 288000000 | J24: 423360000 | K24: 571536000 | L24: 742996800 | M24: 965895840 | N24: 1159075008 | Q24: =SUM(Q35,Q45,Q55,Q65,Q75,Q85) -> 24000000 | R24: 24000000 | S24: 24000000 | T24: 24000000 | U24: 24000000 | V24: 24000000 | W24: 24000000 | X24: 24000000 | Y24: 24000000 | Z24: 24000000 | AA24: 24000000 | AB24: 24000000 | AC24: 35280000 | AD24: 35280000 | AE24: 35280000 | AF24: 35280000 | AG24: 35280000 | AH24: 35280000 | AI24: 35280000 | AJ24: 35280000 | AK24: 35280000 | AL24: 35280000 | AM24: 35280000 | AN24: 35280000 | AO24: 47628000 | AP24: 47628000 | AQ24: 47628000 | AR24: 47628000 | AS24: 47628000 | AT24: 47628000 | AU24: 47628000 | AV24: 47628000 | AW24: =SUM(AW35,AW45,AW55,AW65,AW75,AW85) -> 47628000 | AX24: 47628000 | AY24: 47628000 | AZ24: 47628000 | BA24: 61916400 | BB24: 61916400 | BC24: 61916400 | BD24: 61916400 | BE24: 61916400 | BF24: 61916400 | BG24: 61916400 | BH24: 61916400 | BI24: 61916400 | BJ24: 61916400 | BK24: 61916400 | BL24: 61916400 | BM24: 80491320 | BN24: 80491320 | BO24: 80491320 | BP24: 80491320 | BQ24: 80491320 | BR24: 80491320 | BS24: 80491320 | BT24: 80491320 | BU24: 80491320 | BV24: 80491320 | BW24: 80491320 | BX24: 80491320 | BY24: 96589584 | BZ24: 96589584 | CA24: 96589584 | CB24: 96589584 | CC24: =SUM(CC35,CC45,CC55,CC65,CC75,CC85) -> 96589584 | CD24: 96589584 | CE24: 96589584 | CF24: 96589584 | CG24: 96589584 | CH24: 96589584 | CI24: 96589584 | CJ24: 96589584
C25: Down payment | D25: NGN | I25: 72000000 | J25: 105840000 | K25: 142884000 | L25: 185749200 | M25: 241473960 | N25: 289768752 | Q25: =SUM(Q36,Q46,Q56,Q66,Q76,Q86) -> 6000000 | R25: 6000000 | S25: 6000000 | T25: 6000000 | U25: 6000000 | V25: 6000000 | W25: 6000000 | X25: 6000000 | Y25: 6000000 | Z25: 6000000 | AA25: 6000000 | AB25: 6000000 | AC25: 8820000 | AD25: 8820000 | AE25: 8820000 | AF25: 8820000 | AG25: 8820000 | AH25: 8820000 | AI25: 8820000 | AJ25: 8820000 | AK25: 8820000 | AL25: 8820000 | AM25: 8820000 | AN25: 8820000 | AO25: 11907000 | AP25: 11907000 | AQ25: 11907000 | AR25: 11907000 | AS25: 11907000 | AT25: 11907000 | AU25: 11907000 | AV25: 11907000 | AW25: =SUM(AW36,AW46,AW56,AW66,AW76,AW86) -> 11907000 | AX25: 11907000 | AY25: 11907000 | AZ25: 11907000 | BA25: 15479100 | BB25: 15479100 | BC25: 15479100 | BD25: 15479100 | BE25: 15479100 | BF25: 15479100 | BG25: 15479100 | BH25: 15479100 | BI25: 15479100 | BJ25: 15479100 | BK25: 15479100 | BL25: 15479100 | BM25: 20122830 | BN25: 20122830 | BO25: 20122830 | BP25: 20122830 | BQ25: 20122830 | BR25: 20122830 | BS25: 20122830 | BT25: 20122830 | BU25: 20122830 | BV25: 20122830 | BW25: 20122830 | BX25: 20122830 | BY25: 24147396 | BZ25: 24147396 | CA25: 24147396 | CB25: 24147396 | CC25: =SUM(CC36,CC46,CC56,CC66,CC76,CC86) -> 24147396 | CD25: 24147396 | CE25: 24147396 | CF25: 24147396 | CG25: 24147396 | CH25: 24147396 | CI25: 24147396 | CJ25: 24147396
C26: Monthly payment revenue | D26: NGN | I26: 39000000 | J26: 129330000 | K26: 255235500 | L26: 382338150 | M26: 507941595 | N26: 649669734 | Q26: =SUM(Q37,Q47,Q57,Q67,Q77,Q87) -> 500000 | R26: 1000000 | S26: 1500000 | T26: 2000000 | U26: 2500000 | V26: 3000000 | W26: 3500000 | X26: 4000000 | Y26: 4500000 | Z26: 5000000 | AA26: 5500000 | AB26: 6000000 | AC26: 6735000 | AD26: 7470000 | AE26: 8205000 | AF26: 8940000 | AG26: 9675000 | AH26: 10410000 | AI26: 11145000 | AJ26: 11880000 | AK26: 12615000 | AL26: 13350000 | AM26: 14085000 | AN26: 14820000 | AO26: 15812250 | AP26: 16804500 | AQ26: 17796750 | AR26: 18789000 | AS26: 19781250 | AT26: 20773500 | AU26: 21765750 | AV26: 22758000 | AW26: =SUM(AW37,AW47,AW57,AW67,AW77,AW87) -> 23750250 | AX26: 24742500 | AY26: 25734750 | AZ26: 26727000 | BA26: 27516925 | BB26: 28306850 | BC26: 29096775 | BD26: 29886700 | BE26: 30676625 | BF26: 31466550 | BG26: 32256475 | BH26: 33046400 | BI26: 33836325 | BJ26: 34626250 | BK26: 35416175 | BL26: 36206100 | BM26: 37148002.5 | BN26: 38089905 | BO26: 39031807.5 | BP26: 39973710 | BQ26: 40915612.5 | BR26: 41857515 | BS26: 42799417.5 | BT26: 43741320 | BU26: 44683222.5 | BV26: 45625125 | BW26: 46567027.5 | BX26: 47508930 | BY26: 48528963 | BZ26: 49548996 | CA26: 50569029 | CB26: 51589062 | CC26: =SUM(CC37,CC47,CC57,CC67,CC77,CC87) -> 52609095 | CD26: 53629128 | CE26: 54649161 | CF26: 55669194 | CG26: 56689227 | CH26: 57709260 | CI26: 58729293 | CJ26: 59749326
C27: Total product 1 cash payments | D27: NGN | I27: =SUMIF($Q$6:$CJ$6,I$6,$Q27:$CJ27) -> 111000000 | J27: =SUMIF($Q$6:$CJ$6,J$6,$Q27:$CJ27) -> 235170000 | K27: 398119500 | L27: 568087350 | M27: 749415555 | N27: 939438486 | Q27: =SUM(Q25:Q26) -> 6500000 | R27: =SUM(R25:R26) -> 7000000 | S27: 7500000 | T27: 8000000 | U27: 8500000 | V27: 9000000 | W27: 9500000 | X27: 10000000 | Y27: 10500000 | Z27: 11000000 | AA27: 11500000 | AB27: 12000000 | AC27: 15555000 | AD27: 16290000 | AE27: 17025000 | AF27: 17760000 | AG27: 18495000 | AH27: 19230000 | AI27: 19965000 | AJ27: 20700000 | AK27: 21435000 | AL27: 22170000 | AM27: 22905000 | AN27: 23640000 | AO27: 27719250 | AP27: 28711500 | AQ27: 29703750 | AR27: 30696000 | AS27: 31688250 | AT27: 32680500 | AU27: 33672750 | AV27: 34665000 | AW27: 35657250 | AX27: 36649500 | AY27: 37641750 | AZ27: 38634000 | BA27: 42996025 | BB27: 43785950 | BC27: 44575875 | BD27: 45365800 | BE27: 46155725 | BF27: 46945650 | BG27: 47735575 | BH27: 48525500 | BI27: 49315425 | BJ27: 50105350 | BK27: 50895275 | BL27: 51685200 | BM27: 57270832.5 | BN27: 58212735 | BO27: 59154637.5 | BP27: 60096540 | BQ27: 61038442.5 | BR27: 61980345 | BS27: 62922247.5 | BT27: 63864150 | BU27: 64806052.5 | BV27: 65747955 | BW27: 66689857.5 | BX27: 67631760 | BY27: 72676359 | BZ27: 73696392 | CA27: 74716425 | CB27: 75736458 | CC27: 76756491 | CD27: =SUM(CD25:CD26) -> 77776524 | CE27: 78796557 | CF27: 79816590 | CG27: 80836623 | CH27: 81856656 | CI27: 82876689 | CJ27: 83896722
C29: Year 1 | F29: =Start_Year -> 2020
C30: Balance b/f | D30: # | I30: =Q30 -> 0 | J30: =I33 -> 1200 | K30: =J33 -> 1200 | L30: =K33 -> 1200 | M30: =L33 -> 0 | N30: =M33 -> 0 | R30: =Q33 -> 100 | S30: =R33 -> 200 | T30: =S33 -> 300 | U30: =T33 -> 400 | V30: =U33 -> 500 | W30: =V33 -> 600 | X30: =W33 -> 700 | Y30: =X33 -> 800 | Z30: =Y33 -> 900 | AA30: =Z33 -> 1000 | AB30: =AA33 -> 1100 | AC30: =AB33 -> 1200 | AD30: =AC33 -> 1200 | AE30: =AD33 -> 1200 | AF30: =AE33 -> 1200 | AG30: =AF33 -> 1200 | AH30: =AG33 -> 1200 | AI30: =AH33 -> 1200 | AJ30: =AI33 -> 1200 | AK30: =AJ33 -> 1200 | AL30: =AK33 -> 1200 | AM30: =AL33 -> 1200 | AN30: =AM33 -> 1200 | AO30: =AN33 -> 1200 | AP30: =AO33 -> 1200 | AQ30: =AP33 -> 1200 | AR30: =AQ33 -> 1200 | AS30: =AR33 -> 1200 | AT30: =AS33 -> 1200 | AU30: =AT33 -> 1200 | AV30: =AU33 -> 1200 | AW30: =AV33 -> 1200 | AX30: =AW33 -> 1200 | AY30: =AX33 -> 1200 | AZ30: =AY33 -> 1200 | BA30: =AZ33 -> 1200 | BB30: =BA33 -> 1100 | BC30: =BB33 -> 1000 | BD30: =BC33 -> 900 | BE30: =BD33 -> 800 | BF30: =BE33 -> 700 | BG30: =BF33 -> 600 | BH30: =BG33 -> 500 | BI30: =BH33 -> 400 | BJ30: =BI33 -> 300 | BK30: =BJ33 -> 200 | BL30: =BK33 -> 100 | BM30: =BL33 -> 0 | BN30: =BM33 -> 0 | BO30: =BN33 -> 0 | BP30: =BO33 -> 0 | BQ30: =BP33 -> 0 | BR30: =BQ33 -> 0 | BS30: =BR33 -> 0 | BT30: =BS33 -> 0 | BU30: =BT33 -> 0 | BV30: =BU33 -> 0 | BW30: =BV33 -> 0 | BX30: =BW33 -> 0 | BY30: =BX33 -> 0 | BZ30: =BY33 -> 0 | CA30: =BZ33 -> 0 | CB30: =CA33 -> 0 | CC30: =CB33 -> 0 | CD30: =CC33 -> 0 | CE30: =CD33 -> 0 | CF30: =CE33 -> 0 | CG30: =CF33 -> 0 | CH30: =CG33 -> 0 | CI30: =CH33 -> 0 | CJ30: =CI33 -> 0
C31: New contracts | D31: # | I31: =SUMIF($Q$6:$CJ$6,I$6,$Q31:$CJ31) -> 1200 | J31: 0 | K31: 0 | L31: 0 | M31: 0 | N31: 0 | Q31: =IF(Q$6=$F29,Q$17,0) -> 100 | R31: 100 | S31: 100 | T31: 100 | U31: 100 | V31: 100 | W31: 100 | X31: 100 | Y31: 100 | Z31: 100 | AA31: 100 | AB31: 100 | AC31: 0 | AD31: 0 | AE31: 0 | AF31: 0 | AG31: 0 | AH31: 0 | AI31: 0 | AJ31: 0 | AK31: 0 | AL31: 0 | AM31: 0 | AN31: 0 | AO31: 0 | AP31: 0 | AQ31: 0 | AR31: 0 | AS31: 0 | AT31: 0 | AU31: 0 | AV31: 0 | AW31: =IF(AW$6=$F29,AW$17,0) -> 0 | AX31: 0 | AY31: 0 | AZ31: 0 | BA31: 0 | BB31: 0 | BC31: 0 | BD31: 0 | BE31: 0 | BF31: 0 | BG31: 0 | BH31: 0 | BI31: 0 | BJ31: 0 | BK31: 0 | BL31: 0 | BM31: 0 | BN31: 0 | BO31: 0 | BP31: 0 | BQ31: 0 | BR31: 0 | BS31: 0 | BT31: 0 | BU31: 0 | BV31: 0 | BW31: 0 | BX31: 0 | BY31: 0 | BZ31: 0 | CA31: 0 | CB31: 0 | CC31: =IF(CC$6=$F29,CC$17,0) -> 0 | CD31: 0 | CE31: 0 | CF31: 0 | CG31: 0 | CH31: 0 | CI31: 0 | CJ31: 0
C32: Contracts ended | D32: # | I32: 0 | J32: 0 | K32: 0 | L32: -1200 | M32: 0 | N32: 0 | Q32: =-SUMIFS($Q31:$CJ31,$Q$9:$CJ$9,Q$9-Inputs!$E$87) -> 0 | R32: =-SUMIFS($Q31:$CJ31,$Q$9:$CJ$9,R$9-Inputs!$E$87) -> 0 | S32: =-SUMIFS($Q31:$CJ31,$Q$9:$CJ$9,S$9-Inputs!$E$87) -> 0 | T32: =-SUMIFS($Q31:$CJ31,$Q$9:$CJ$9,T$9-Inputs!$E$87) -> 0 | U32: =-SUMIFS($Q31:$CJ31,$Q$9:$CJ$9,U$9-Inputs!$E$87) -> 0 | V32: =-SUMIFS($Q31:$CJ31,$Q$9:$CJ$9,V$9-Inputs!$E$87) -> 0 | W32: =-SUMIFS($Q31:$CJ31,$Q$9:$CJ$9,W$9-Inputs!$E$87) -> 0 | X32: =-SUMIFS($Q31:$CJ31,$Q$9:$CJ$9,X$9-Inputs!$E$87) -> 0 | Y32: =-SUMIFS($Q31:$CJ31,$Q$9:$CJ$9,Y$9-Inputs!$E$87) -> 0 | Z32: =-SUMIFS($Q31:$CJ31,$Q$9:$CJ$9,Z$9-Inputs!$E$87) -> 0 | AA32: =-SUMIFS($Q31:$CJ31,$Q$9:$CJ$9,AA$9-Inputs!$E$87) -> 0 | AB32: =-SUMIFS($Q31:$CJ31,$Q$9:$CJ$9,AB$9-Inputs!$E$87) -> 0 | AC32: =-SUMIFS($Q31:$CJ31,$Q$9:$CJ$9,AC$9-Inputs!$E$87) -> 0 | AD32: =-SUMIFS($Q31:$CJ31,$Q$9:$CJ$9,AD$9-Inputs!$E$87) -> 0 | AE32: =-SUMIFS($Q31:$CJ31,$Q$9:$CJ$9,AE$9-Inputs!$E$87) -> 0 | AF32: =-SUMIFS($Q31:$CJ31,$Q$9:$CJ$9,AF$9-Inputs!$E$87) -> 0 | AG32: =-SUMIFS($Q31:$CJ31,$Q$9:$CJ$9,AG$9-Inputs!$E$87) -> 0 | AH32: =-SUMIFS($Q31:$CJ31,$Q$9:$CJ$9,AH$9-Inputs!$E$87) -> 0 | AI32: =-SUMIFS($Q31:$CJ31,$Q$9:$CJ$9,AI$9-Inputs!$E$87) -> 0 | AJ32: =-SUMIFS($Q31:$CJ31,$Q$9:$CJ$9,AJ$9-Inputs!$E$87) -> 0 | AK32: =-SUMIFS($Q31:$CJ31,$Q$9:$CJ$9,AK$9-Inputs!$E$87) -> 0 | AL32: =-SUMIFS($Q31:$CJ31,$Q$9:$CJ$9,AL$9-Inputs!$E$87) -> 0 | AM32: =-SUMIFS($Q31:$CJ31,$Q$9:$CJ$9,AM$9-Inputs!$E$87) -> 0 | AN32: =-SUMIFS($Q31:$CJ31,$Q$9:$CJ$9,AN$9-Inputs!$E$87) -> 0 | AO32: =-SUMIFS($Q31:$CJ31,$Q$9:$CJ$9,AO$9-Inputs!$E$87) -> 0 | AP32: =-SUMIFS($Q31:$CJ31,$Q$9:$CJ$9,AP$9-Inputs!$E$87) -> 0 | AQ32: =-SUMIFS($Q31:$CJ31,$Q$9:$CJ$9,AQ$9-Inputs!$E$87) -> 0 | AR32: =-SUMIFS($Q31:$CJ31,$Q$9:$CJ$9,AR$9-Inputs!$E$87) -> 0 | AS32: =-SUMIFS($Q31:$CJ31,$Q$9:$CJ$9,AS$9-Inputs!$E$87) -> 0 | AT32: =-SUMIFS($Q31:$CJ31,$Q$9:$CJ$9,AT$9-Inputs!$E$87) -> 0 | AU32: =-SUMIFS($Q31:$CJ31,$Q$9:$CJ$9,AU$9-Inputs!$E$87) -> 0 | AV32: =-SUMIFS($Q31:$CJ31,$Q$9:$CJ$9,AV$9-Inputs!$E$87) -> 0 | AW32: =-SUMIFS($Q31:$CJ31,$Q$9:$CJ$9,AW$9-Inputs!$E$87) -> 0 | AX32: =-SUMIFS($Q31:$CJ31,$Q$9:$CJ$9,AX$9-Inputs!$E$87) -> 0 | AY32: =-SUMIFS($Q31:$CJ31,$Q$9:$CJ$9,AY$9-Inputs!$E$87) -> 0 | AZ32: =-SUMIFS($Q31:$CJ31,$Q$9:$CJ$9,AZ$9-Inputs!$E$87) -> 0 | BA32: =-SUMIFS($Q31:$CJ31,$Q$9:$CJ$9,BA$9-Inputs!$E$87) -> -100 | BB32: =-SUMIFS($Q31:$CJ31,$Q$9:$CJ$9,BB$9-Inputs!$E$87) -> -100 | BC32: =-SUMIFS($Q31:$CJ31,$Q$9:$CJ$9,BC$9-Inputs!$E$87) -> -100 | BD32: =-SUMIFS($Q31:$CJ31,$Q$9:$CJ$9,BD$9-Inputs!$E$87) -> -100 | BE32: =-SUMIFS($Q31:$CJ31,$Q$9:$CJ$9,BE$9-Inputs!$E$87) -> -100 | BF32: =-SUMIFS($Q31:$CJ31,$Q$9:$CJ$9,BF$9-Inputs!$E$87) -> -100 | BG32: =-SUMIFS($Q31:$CJ31,$Q$9:$CJ$9,BG$9-Inputs!$E$87) -> -100 | BH32: =-SUMIFS($Q31:$CJ31,$Q$9:$CJ$9,BH$9-Inputs!$E$87) -> -100 | BI32: =-SUMIFS($Q31:$CJ31,$Q$9:$CJ$9,BI$9-Inputs!$E$87) -> -100 | BJ32: =-SUMIFS($Q31:$CJ31,$Q$9:$CJ$9,BJ$9-Inputs!$E$87) -> -100 | BK32: =-SUMIFS($Q31:$CJ31,$Q$9:$CJ$9,BK$9-Inputs!$E$87) -> -100 | BL32: =-SUMIFS($Q31:$CJ31,$Q$9:$CJ$9,BL$9-Inputs!$E$87) -> -100 | BM32: =-SUMIFS($Q31:$CJ31,$Q$9:$CJ$9,BM$9-Inputs!$E$87) -> 0 | BN32: =-SUMIFS($Q31:$CJ31,$Q$9:$CJ$9,BN$9-Inputs!$E$87) -> 0 | BO32: =-SUMIFS($Q31:$CJ31,$Q$9:$CJ$9,BO$9-Inputs!$E$87) -> 0 | BP32: =-SUMIFS($Q31:$CJ31,$Q$9:$CJ$9,BP$9-Inputs!$E$87) -> 0 | BQ32: =-SUMIFS($Q31:$CJ31,$Q$9:$CJ$9,BQ$9-Inputs!$E$87) -> 0 | BR32: =-SUMIFS($Q31:$CJ31,$Q$9:$CJ$9,BR$9-Inputs!$E$87) -> 0 | BS32: =-SUMIFS($Q31:$CJ31,$Q$9:$CJ$9,BS$9-Inputs!$E$87) -> 0 | BT32: =-SUMIFS($Q31:$CJ31,$Q$9:$CJ$9,BT$9-Inputs!$E$87) -> 0 | BU32: =-SUMIFS($Q31:$CJ31,$Q$9:$CJ$9,BU$9-Inputs!$E$87) -> 0 | BV32: =-SUMIFS($Q31:$CJ31,$Q$9:$CJ$9,BV$9-Inputs!$E$87) -> 0 | BW32: =-SUMIFS($Q31:$CJ31,$Q$9:$CJ$9,BW$9-Inputs!$E$87) -> 0 | BX32: =-SUMIFS($Q31:$CJ31,$Q$9:$CJ$9,BX$9-Inputs!$E$87) -> 0 | BY32: =-SUMIFS($Q31:$CJ31,$Q$9:$CJ$9,BY$9-Inputs!$E$87) -> 0 | BZ32: =-SUMIFS($Q31:$CJ31,$Q$9:$CJ$9,BZ$9-Inputs!$E$87) -> 0 | CA32: =-SUMIFS($Q31:$CJ31,$Q$9:$CJ$9,CA$9-Inputs!$E$87) -> 0 | CB32: =-SUMIFS($Q31:$CJ31,$Q$9:$CJ$9,CB$9-Inputs!$E$87) -> 0 | CC32: =-SUMIFS($Q31:$CJ31,$Q$9:$CJ$9,CC$9-Inputs!$E$87) -> 0 | CD32: =-SUMIFS($Q31:$CJ31,$Q$9:$CJ$9,CD$9-Inputs!$E$87) -> 0 | CE32: =-SUMIFS($Q31:$CJ31,$Q$9:$CJ$9,CE$9-Inputs!$E$87) -> 0 | CF32: =-SUMIFS($Q31:$CJ31,$Q$9:$CJ$9,CF$9-Inputs!$E$87) -> 0 | CG32: =-SUMIFS($Q31:$CJ31,$Q$9:$CJ$9,CG$9-Inputs!$E$87) -> 0 | CH32: =-SUMIFS($Q31:$CJ31,$Q$9:$CJ$9,CH$9-Inputs!$E$87) -> 0 | CI32: =-SUMIFS($Q31:$CJ31,$Q$9:$CJ$9,CI$9-Inputs!$E$87) -> 0 | CJ32: =-SUMIFS($Q31:$CJ31,$Q$9:$CJ$9,CJ$9-Inputs!$E$87) -> 0
C33: Balance c/f | D33: # | I33: =SUM(I30:I32) -> 1200 | J33: 1200 | K33: 1200 | L33: 0 | M33: 0 | N33: 0 | Q33: =SUM(Q30:Q32) -> 100 | R33: =SUM(R30:R32) -> 200 | S33: =SUM(S30:S32) -> 300 | T33: 400 | U33: 500 | V33: 600 | W33: 700 | X33: 800 | Y33: 900 | Z33: 1000 | AA33: 1100 | AB33: 1200 | AC33: 1200 | AD33: 1200 | AE33: 1200 | AF33: 1200 | AG33: 1200 | AH33: 1200 | AI33: 1200 | AJ33: 1200 | AK33: 1200 | AL33: 1200 | AM33: 1200 | AN33: 1200 | AO33: 1200 | AP33: 1200 | AQ33: 1200 | AR33: 1200 | AS33: 1200 | AT33: 1200 | AU33: 1200 | AV33: 1200 | AW33: 1200 | AX33: 1200 | AY33: 1200 | AZ33: 1200 | BA33: 1100 | BB33: 1000 | BC33: 900 | BD33: 800 | BE33: 700 | BF33: 600 | BG33: 500 | BH33: 400 | BI33: 300 | BJ33: 200 | BK33: 100 | BL33: 0 | BM33: 0 | BN33: 0 | BO33: 0 | BP33: 0 | BQ33: 0 | BR33: 0 | BS33: 0 | BT33: 0 | BU33: 0 | BV33: 0 | BW33: 0 | BX33: 0 | BY33: 0 | BZ33: 0 | CA33: 0 | CB33: 0 | CC33: 0 | CD33: 0 | CE33: =SUM(CE30:CE32) -> 0 | CF33: 0 | CG33: 0 | CH33: 0 | CI33: 0 | CJ33: 0
C35: Revenue | D35: NGN | F35: =INDEX(Inputs!$I$84:$N$84, MATCH('Monthly Sales Profile'!$F$29,Inputs!$I$75:$N$75,0)) -> 240000 | I35: =SUMIF($Q$6:$CJ$6,I$6,$Q35:$CJ35) -> 288000000 | J35: 0 | K35: 0 | L35: 0 | M35: 0 | N35: 0 | Q35: =Q31*$F35 -> 24000000 | R35: 24000000 | S35: 24000000 | T35: 24000000 | U35: 24000000 | V35: 24000000 | W35: 24000000 | X35: 24000000 | Y35: 24000000 | Z35: 24000000 | AA35: 24000000 | AB35: 24000000 | AC35: 0 | AD35: 0 | AE35: 0 | AF35: 0 | AG35: 0 | AH35: 0 | AI35: 0 | AJ35: 0 | AK35: 0 | AL35: 0 | AM35: 0 | AN35: 0 | AO35: 0 | AP35: 0 | AQ35: 0 | AR35: 0 | AS35: 0 | AT35: 0 | AU35: 0 | AV35: 0 | AW35: =AW31*$F35 -> 0 | AX35: 0 | AY35: 0 | AZ35: 0 | BA35: 0 | BB35: 0 | BC35: 0 | BD35: 0 | BE35: 0 | BF35: 0 | BG35: 0 | BH35: 0 | BI35: 0 | BJ35: 0 | BK35: 0 | BL35: 0 | BM35: 0 | BN35: 0 | BO35: 0 | BP35: 0 | BQ35: 0 | BR35: 0 | BS35: 0 | BT35: 0 | BU35: 0 | BV35: 0 | BW35: 0 | BX35: 0 | BY35: 0 | BZ35: 0 | CA35: 0 | CB35: 0 | CC35: =CC31*$F35 -> 0 | CD35: 0 | CE35: 0 | CF35: 0 | CG35: 0 | CH35: 0 | CI35: 0 | CJ35: 0
C36: Down payment | D36: NGN | F36: =INDEX(Inputs!$I$85:$N$85, MATCH('Monthly Sales Profile'!$F$29,Inputs!$I$75:$N$75,0)) -> 60000 | I36: 72000000 | J36: 0 | K36: 0 | L36: 0 | M36: 0 | N36: 0 | Q36: =Q31*$F36 -> 6000000 | R36: 6000000 | S36: 6000000 | T36: 6000000 | U36: 6000000 | V36: 6000000 | W36: 6000000 | X36: 6000000 | Y36: 6000000 | Z36: 6000000 | AA36: 6000000 | AB36: 6000000 | AC36: 0 | AD36: 0 | AE36: 0 | AF36: 0 | AG36: 0 | AH36: 0 | AI36: 0 | AJ36: 0 | AK36: 0 | AL36: 0 | AM36: 0 | AN36: 0 | AO36: 0 | AP36: 0 | AQ36: 0 | AR36: 0 | AS36: 0 | AT36: 0 | AU36: 0 | AV36: 0 | AW36: =AW31*$F36 -> 0 | AX36: 0 | AY36: 0 | AZ36: 0 | BA36: 0 | BB36: 0 | BC36: 0 | BD36: 0 | BE36: 0 | BF36: 0 | BG36: 0 | BH36: 0 | BI36: 0 | BJ36: 0 | BK36: 0 | BL36: 0 | BM36: 0 | BN36: 0 | BO36: 0 | BP36: 0 | BQ36: 0 | BR36: 0 | BS36: 0 | BT36: 0 | BU36: 0 | BV36: 0 | BW36: 0 | BX36: 0 | BY36: 0 | BZ36: 0 | CA36: 0 | CB36: 0 | CC36: =CC31*$F36 -> 0 | CD36: 0 | CE36: 0 | CF36: 0 | CG36: 0 | CH36: 0 | CI36: 0 | CJ36: 0
C37: Monthly payment revenue | D37: NGN | F37: =INDEX(Inputs!$I$86:$N$86, MATCH('Monthly Sales Profile'!$F$29,Inputs!$I$75:$N$75,0)) -> 5000 | I37: 39000000 | J37: 72000000 | K37: 72000000 | L37: 33000000 | M37: 0 | N37: 0 | Q37: =Q33*$F37 -> 500000 | R37: 1000000 | S37: 1500000 | T37: 2000000 | U37: 2500000 | V37: 3000000 | W37: 3500000 | X37: 4000000 | Y37: 4500000 | Z37: 5000000 | AA37: 5500000 | AB37: 6000000 | AC37: 6000000 | AD37: 6000000 | AE37: 6000000 | AF37: 6000000 | AG37: 6000000 | AH37: 6000000 | AI37: 6000000 | AJ37: 6000000 | AK37: 6000000 | AL37: 6000000 | AM37: 6000000 | AN37: 6000000 | AO37: 6000000 | AP37: 6000000 | AQ37: 6000000 | AR37: 6000000 | AS37: 6000000 | AT37: 6000000 | AU37: 6000000 | AV37: 6000000 | AW37: =AW33*$F37 -> 6000000 | AX37: 6000000 | AY37: 6000000 | AZ37: 6000000 | BA37: 5500000 | BB37: 5000000 | BC37: 4500000 | BD37: 4000000 | BE37: 3500000 | BF37: 3000000 | BG37: 2500000 | BH37: 2000000 | BI37: 1500000 | BJ37: 1000000 | BK37: 500000 | BL37: 0 | BM37: 0 | BN37: 0 | BO37: 0 | BP37: 0 | BQ37: 0 | BR37: 0 | BS37: 0 | BT37: 0 | BU37: 0 | BV37: 0 | BW37: 0 | BX37: 0 | BY37: 0 | BZ37: 0 | CA37: 0 | CB37: 0 | CC37: =CC33*$F37 -> 0 | CD37: 0 | CE37: 0 | CF37: 0 | CG37: 0 | CH37: 0 | CI37: 0 | CJ37: 0
C39: Year 2 | F39: =F29+1 -> 2021
C40: Balance b/f | D40: # | I40: =Q40 -> 0 | J40: =I43 -> 0 | K40: =J43 -> 1680 | L40: =K43 -> 1680 | M40: =L43 -> 1680 | N40: =M43 -> 0 | R40: =Q43 -> 0 | S40: =R43 -> 0 | T40: =S43 -> 0 | U40: =T43 -> 0 | V40: =U43 -> 0 | W40: =V43 -> 0 | X40: =W43 -> 0 | Y40: =X43 -> 0 | Z40: =Y43 -> 0 | AA40: =Z43 -> 0 | AB40: =AA43 -> 0 | AC40: =AB43 -> 0 | AD40: =AC43 -> 140 | AE40: =AD43 -> 280 | AF40: =AE43 -> 420 | AG40: =AF43 -> 560 | AH40: =AG43 -> 700 | AI40: =AH43 -> 840 | AJ40: =AI43 -> 980 | AK40: =AJ43 -> 1120 | AL40: =AK43 -> 1260 | AM40: =AL43 -> 1400 | AN40: =AM43 -> 1540 | AO40: =AN43 -> 1680 | AP40: =AO43 -> 1680 | AQ40: =AP43 -> 1680 | AR40: =AQ43 -> 1680 | AS40: =AR43 -> 1680 | AT40: =AS43 -> 1680 | AU40: =AT43 -> 1680 | AV40: =AU43 -> 1680 | AW40: =AV43 -> 1680 | AX40: =AW43 -> 1680 | AY40: =AX43 -> 1680 | AZ40: =AY43 -> 1680 | BA40: =AZ43 -> 1680 | BB40: =BA43 -> 1680 | BC40: =BB43 -> 1680 | BD40: =BC43 -> 1680 | BE40: =BD43 -> 1680 | BF40: =BE43 -> 1680 | BG40: =BF43 -> 1680 | BH40: =BG43 -> 1680 | BI40: =BH43 -> 1680 | BJ40: =BI43 -> 1680 | BK40: =BJ43 -> 1680 | BL40: =BK43 -> 1680 | BM40: =BL43 -> 1680 | BN40: =BM43 -> 1540 | BO40: =BN43 -> 1400 | BP40: =BO43 -> 1260 | BQ40: =BP43 -> 1120 | BR40: =BQ43 -> 980 | BS40: =BR43 -> 840 | BT40: =BS43 -> 700 | BU40: =BT43 -> 560 | BV40: =BU43 -> 420 | BW40: =BV43 -> 280 | BX40: =BW43 -> 140 | BY40: =BX43 -> 0 | BZ40: =BY43 -> 0 | CA40: =BZ43 -> 0 | CB40: =CA43 -> 0 | CC40: =CB43 -> 0 | CD40: =CC43 -> 0 | CE40: =CD43 -> 0 | CF40: =CE43 -> 0 | CG40: =CF43 -> 0 | CH40: =CG43 -> 0 | CI40: =CH43 -> 0 | CJ40: =CI43 -> 0
C41: New contracts | D41: # | I41: =SUMIF($Q$6:$CJ$6,I$6,$Q41:$CJ41) -> 0 | J41: 1680 | K41: 0 | L41: 0 | M41: 0 | N41: 0 | Q41: =IF(Q$6=$F39,Q$17,0) -> 0 | R41: 0 | S41: 0 | T41: 0 | U41: 0 | V41: 0 | W41: 0 | X41: 0 | Y41: 0 | Z41: 0 | AA41: 0 | AB41: 0 | AC41: 140 | AD41: 140 | AE41: 140 | AF41: 140 | AG41: 140 | AH41: 140 | AI41: 140 | AJ41: 140 | AK41: 140 | AL41: 140 | AM41: 140 | AN41: 140 | AO41: 0 | AP41: 0 | AQ41: 0 | AR41: 0 | AS41: 0 | AT41: 0 | AU41: 0 | AV41: 0 | AW41: =IF(AW$6=$F39,AW$17,0) -> 0 | AX41: 0 | AY41: 0 | AZ41: 0 | BA41: 0 | BB41: 0 | BC41: 0 | BD41: 0 | BE41: 0 | BF41: 0 | BG41: 0 | BH41: 0 | BI41: 0 | BJ41: 0 | BK41: 0 | BL41: 0 | BM41: 0 | BN41: 0 | BO41: 0 | BP41: 0 | BQ41: 0 | BR41: 0 | BS41: 0 | BT41: 0 | BU41: 0 | BV41: 0 | BW41: 0 | BX41: 0 | BY41: 0 | BZ41: 0 | CA41: 0 | CB41: 0 | CC41: =IF(CC$6=$F39,CC$17,0) -> 0 | CD41: 0 | CE41: 0 | CF41: 0 | CG41: 0 | CH41: 0 | CI41: 0 | CJ41: 0
C42: Contracts ended | D42: # | I42: 0 | J42: 0 | K42: 0 | L42: 0 | M42: -1680 | N42: 0 | Q42: =-SUMIFS($Q41:$CJ41,$Q$9:$CJ$9,Q$9-Inputs!$E$87) -> 0 | R42: =-SUMIFS($Q41:$CJ41,$Q$9:$CJ$9,R$9-Inputs!$E$87) -> 0 | S42: =-SUMIFS($Q41:$CJ41,$Q$9:$CJ$9,S$9-Inputs!$E$87) -> 0 | T42: =-SUMIFS($Q41:$CJ41,$Q$9:$CJ$9,T$9-Inputs!$E$87) -> 0 | U42: =-SUMIFS($Q41:$CJ41,$Q$9:$CJ$9,U$9-Inputs!$E$87) -> 0 | V42: =-SUMIFS($Q41:$CJ41,$Q$9:$CJ$9,V$9-Inputs!$E$87) -> 0 | W42: =-SUMIFS($Q41:$CJ41,$Q$9:$CJ$9,W$9-Inputs!$E$87) -> 0 | X42: =-SUMIFS($Q41:$CJ41,$Q$9:$CJ$9,X$9-Inputs!$E$87) -> 0 | Y42: =-SUMIFS($Q41:$CJ41,$Q$9:$CJ$9,Y$9-Inputs!$E$87) -> 0 | Z42: =-SUMIFS($Q41:$CJ41,$Q$9:$CJ$9,Z$9-Inputs!$E$87) -> 0 | AA42: =-SUMIFS($Q41:$CJ41,$Q$9:$CJ$9,AA$9-Inputs!$E$87) -> 0 | AB42: =-SUMIFS($Q41:$CJ41,$Q$9:$CJ$9,AB$9-Inputs!$E$87) -> 0 | AC42: =-SUMIFS($Q41:$CJ41,$Q$9:$CJ$9,AC$9-Inputs!$E$87) -> 0 | AD42: =-SUMIFS($Q41:$CJ41,$Q$9:$CJ$9,AD$9-Inputs!$E$87) -> 0 | AE42: =-SUMIFS($Q41:$CJ41,$Q$9:$CJ$9,AE$9-Inputs!$E$87) -> 0 | AF42: =-SUMIFS($Q41:$CJ41,$Q$9:$CJ$9,AF$9-Inputs!$E$87) -> 0 | AG42: =-SUMIFS($Q41:$CJ41,$Q$9:$CJ$9,AG$9-Inputs!$E$87) -> 0 | AH42: =-SUMIFS($Q41:$CJ41,$Q$9:$CJ$9,AH$9-Inputs!$E$87) -> 0 | AI42: =-SUMIFS($Q41:$CJ41,$Q$9:$CJ$9,AI$9-Inputs!$E$87) -> 0 | AJ42: =-SUMIFS($Q41:$CJ41,$Q$9:$CJ$9,AJ$9-Inputs!$E$87) -> 0 | AK42: =-SUMIFS($Q41:$CJ41,$Q$9:$CJ$9,AK$9-Inputs!$E$87) -> 0 | AL42: =-SUMIFS($Q41:$CJ41,$Q$9:$CJ$9,AL$9-Inputs!$E$87) -> 0 | AM42: =-SUMIFS($Q41:$CJ41,$Q$9:$CJ$9,AM$9-Inputs!$E$87) -> 0 | AN42: =-SUMIFS($Q41:$CJ41,$Q$9:$CJ$9,AN$9-Inputs!$E$87) -> 0 | AO42: =-SUMIFS($Q41:$CJ41,$Q$9:$CJ$9,AO$9-Inputs!$E$87) -> 0 | AP42: =-SUMIFS($Q41:$CJ41,$Q$9:$CJ$9,AP$9-Inputs!$E$87) -> 0 | AQ42: =-SUMIFS($Q41:$CJ41,$Q$9:$CJ$9,AQ$9-Inputs!$E$87) -> 0 | AR42: =-SUMIFS($Q41:$CJ41,$Q$9:$CJ$9,AR$9-Inputs!$E$87) -> 0 | AS42: =-SUMIFS($Q41:$CJ41,$Q$9:$CJ$9,AS$9-Inputs!$E$87) -> 0 | AT42: =-SUMIFS($Q41:$CJ41,$Q$9:$CJ$9,AT$9-Inputs!$E$87) -> 0 | AU42: =-SUMIFS($Q41:$CJ41,$Q$9:$CJ$9,AU$9-Inputs!$E$87) -> 0 | AV42: =-SUMIFS($Q41:$CJ41,$Q$9:$CJ$9,AV$9-Inputs!$E$87) -> 0 | AW42: =-SUMIFS($Q41:$CJ41,$Q$9:$CJ$9,AW$9-Inputs!$E$87) -> 0 | AX42: =-SUMIFS($Q41:$CJ41,$Q$9:$CJ$9,AX$9-Inputs!$E$87) -> 0 | AY42: =-SUMIFS($Q41:$CJ41,$Q$9:$CJ$9,AY$9-Inputs!$E$87) -> 0 | AZ42: =-SUMIFS($Q41:$CJ41,$Q$9:$CJ$9,AZ$9-Inputs!$E$87) -> 0 | BA42: =-SUMIFS($Q41:$CJ41,$Q$9:$CJ$9,BA$9-Inputs!$E$87) -> 0 | BB42: =-SUMIFS($Q41:$CJ41,$Q$9:$CJ$9,BB$9-Inputs!$E$87) -> 0 | BC42: =-SUMIFS($Q41:$CJ41,$Q$9:$CJ$9,BC$9-Inputs!$E$87) -> 0 | BD42: =-SUMIFS($Q41:$CJ41,$Q$9:$CJ$9,BD$9-Inputs!$E$87) -> 0 | BE42: =-SUMIFS($Q41:$CJ41,$Q$9:$CJ$9,BE$9-Inputs!$E$87) -> 0 | BF42: =-SUMIFS($Q41:$CJ41,$Q$9:$CJ$9,BF$9-Inputs!$E$87) -> 0 | BG42: =-SUMIFS($Q41:$CJ41,$Q$9:$CJ$9,BG$9-Inputs!$E$87) -> 0 | BH42: =-SUMIFS($Q41:$CJ41,$Q$9:$CJ$9,BH$9-Inputs!$E$87) -> 0 | BI42: =-SUMIFS($Q41:$CJ41,$Q$9:$CJ$9,BI$9-Inputs!$E$87) -> 0 | BJ42: =-SUMIFS($Q41:$CJ41,$Q$9:$CJ$9,BJ$9-Inputs!$E$87) -> 0 | BK42: =-SUMIFS($Q41:$CJ41,$Q$9:$CJ$9,BK$9-Inputs!$E$87) -> 0 | BL42: =-SUMIFS($Q41:$CJ41,$Q$9:$CJ$9,BL$9-Inputs!$E$87) -> 0 | BM42: =-SUMIFS($Q41:$CJ41,$Q$9:$CJ$9,BM$9-Inputs!$E$87) -> -140 | BN42: =-SUMIFS($Q41:$CJ41,$Q$9:$CJ$9,BN$9-Inputs!$E$87) -> -140 | BO42: =-SUMIFS($Q41:$CJ41,$Q$9:$CJ$9,BO$9-Inputs!$E$87) -> -140 | BP42: =-SUMIFS($Q41:$CJ41,$Q$9:$CJ$9,BP$9-Inputs!$E$87) -> -140 | BQ42: =-SUMIFS($Q41:$CJ41,$Q$9:$CJ$9,BQ$9-Inputs!$E$87) -> -140 | BR42: =-SUMIFS($Q41:$CJ41,$Q$9:$CJ$9,BR$9-Inputs!$E$87) -> -140 | BS42: =-SUMIFS($Q41:$CJ41,$Q$9:$CJ$9,BS$9-Inputs!$E$87) -> -140 | BT42: =-SUMIFS($Q41:$CJ41,$Q$9:$CJ$9,BT$9-Inputs!$E$87) -> -140 | BU42: =-SUMIFS($Q41:$CJ41,$Q$9:$CJ$9,BU$9-Inputs!$E$87) -> -140 | BV42: =-SUMIFS($Q41:$CJ41,$Q$9:$CJ$9,BV$9-Inputs!$E$87) -> -140 | BW42: =-SUMIFS($Q41:$CJ41,$Q$9:$CJ$9,BW$9-Inputs!$E$87) -> -140 | BX42: =-SUMIFS($Q41:$CJ41,$Q$9:$CJ$9,BX$9-Inputs!$E$87) -> -140 | BY42: =-SUMIFS($Q41:$CJ41,$Q$9:$CJ$9,BY$9-Inputs!$E$87) -> 0 | BZ42: =-SUMIFS($Q41:$CJ41,$Q$9:$CJ$9,BZ$9-Inputs!$E$87) -> 0 | CA42: =-SUMIFS($Q41:$CJ41,$Q$9:$CJ$9,CA$9-Inputs!$E$87) -> 0 | CB42: =-SUMIFS($Q41:$CJ41,$Q$9:$CJ$9,CB$9-Inputs!$E$87) -> 0 | CC42: =-SUMIFS($Q41:$CJ41,$Q$9:$CJ$9,CC$9-Inputs!$E$87) -> 0 | CD42: =-SUMIFS($Q41:$CJ41,$Q$9:$CJ$9,CD$9-Inputs!$E$87) -> 0 | CE42: =-SUMIFS($Q41:$CJ41,$Q$9:$CJ$9,CE$9-Inputs!$E$87) -> 0 | CF42: =-SUMIFS($Q41:$CJ41,$Q$9:$CJ$9,CF$9-Inputs!$E$87) -> 0 | CG42: =-SUMIFS($Q41:$CJ41,$Q$9:$CJ$9,CG$9-Inputs!$E$87) -> 0 | CH42: =-SUMIFS($Q41:$CJ41,$Q$9:$CJ$9,CH$9-Inputs!$E$87) -> 0 | CI42: =-SUMIFS($Q41:$CJ41,$Q$9:$CJ$9,CI$9-Inputs!$E$87) -> 0 | CJ42: =-SUMIFS($Q41:$CJ41,$Q$9:$CJ$9,CJ$9-Inputs!$E$87) -> 0
C43: Balance c/f | D43: # | I43: =SUM(I40:I42) -> 0 | J43: 1680 | K43: 1680 | L43: 1680 | M43: 0 | N43: 0 | Q43: =SUM(Q40:Q42) -> 0 | R43: =SUM(R40:R42) -> 0 | S43: =SUM(S40:S42) -> 0 | T43: 0 | U43: 0 | V43: 0 | W43: 0 | X43: 0 | Y43: 0 | Z43: 0 | AA43: 0 | AB43: 0 | AC43: 140 | AD43: 280 | AE43: 420 | AF43: 560 | AG43: 700 | AH43: 840 | AI43: 980 | AJ43: 1120 | AK43: 1260 | AL43: 1400 | AM43: 1540 | AN43: 1680 | AO43: 1680 | AP43: 1680 | AQ43: 1680 | AR43: 1680 | AS43: 1680 | AT43: 1680 | AU43: 1680 | AV43: 1680 | AW43: 1680 | AX43: 1680 | AY43: 1680 | AZ43: 1680 | BA43: 1680 | BB43: 1680 | BC43: 1680 | BD43: 1680 | BE43: 1680 | BF43: 1680 | BG43: 1680 | BH43: 1680 | BI43: 1680 | BJ43: 1680 | BK43: 1680 | BL43: 1680 | BM43: 1540 | BN43: 1400 | BO43: 1260 | BP43: 1120 | BQ43: 980 | BR43: 840 | BS43: 700 | BT43: 560 | BU43: 420 | BV43: 280 | BW43: 140 | BX43: 0 | BY43: 0 | BZ43: 0 | CA43: 0 | CB43: 0 | CC43: 0 | CD43: 0 | CE43: =SUM(CE40:CE42) -> 0 | CF43: 0 | CG43: 0 | CH43: 0 | CI43: 0 | CJ43: 0
C45: Revenue | D45: NGN | F45: =INDEX(Inputs!$I$84:$N$84, MATCH(F$39,Inputs!$I$75:$N$75,0)) -> 252000 | I45: =SUMIF($Q$6:$CJ$6,I$6,$Q45:$CJ45) -> 0 | J45: 423360000 | K45: 0 | L45: 0 | M45: 0 | N45: 0 | Q45: =Q41*$F45 -> 0 | R45: 0 | S45: 0 | T45: 0 | U45: 0 | V45: 0 | W45: 0 | X45: 0 | Y45: 0 | Z45: 0 | AA45: 0 | AB45: 0 | AC45: 35280000 | AD45: 35280000 | AE45: 35280000 | AF45: 35280000 | AG45: 35280000 | AH45: 35280000 | AI45: 35280000 | AJ45: 35280000 | AK45: 35280000 | AL45: 35280000 | AM45: 35280000 | AN45: 35280000 | AO45: 0 | AP45: 0 | AQ45: 0 | AR45: 0 | AS45: 0 | AT45: 0 | AU45: 0 | AV45: 0 | AW45: =AW41*$F45 -> 0 | AX45: 0 | AY45: 0 | AZ45: 0 | BA45: 0 | BB45: 0 | BC45: 0 | BD45: 0 | BE45: 0 | BF45: 0 | BG45: 0 | BH45: 0 | BI45: 0 | BJ45: 0 | BK45: 0 | BL45: 0 | BM45: 0 | BN45: 0 | BO45: 0 | BP45: 0 | BQ45: 0 | BR45: 0 | BS45: 0 | BT45: 0 | BU45: 0 | BV45: 0 | BW45: 0 | BX45: 0 | BY45: 0 | BZ45: 0 | CA45: 0 | CB45: 0 | CC45: =CC41*$F45 -> 0 | CD45: 0 | CE45: 0 | CF45: 0 | CG45: 0 | CH45: 0 | CI45: 0 | CJ45: 0
C46: Down payment | D46: NGN | F46: =INDEX(Inputs!$I$85:$N$85, MATCH(F$39,Inputs!$I$75:$N$75,0)) -> 63000 | I46: 0 | J46: 105840000 | K46: 0 | L46: 0 | M46: 0 | N46: 0 | Q46: =Q41*$F46 -> 0 | R46: 0 | S46: 0 | T46: 0 | U46: 0 | V46: 0 | W46: 0 | X46: 0 | Y46: 0 | Z46: 0 | AA46: 0 | AB46: 0 | AC46: 8820000 | AD46: 8820000 | AE46: 8820000 | AF46: 8820000 | AG46: 8820000 | AH46: 8820000 | AI46: 8820000 | AJ46: 8820000 | AK46: 8820000 | AL46: 8820000 | AM46: 8820000 | AN46: 8820000 | AO46: 0 | AP46: 0 | AQ46: 0 | AR46: 0 | AS46: 0 | AT46: 0 | AU46: 0 | AV46: 0 | AW46: =AW41*$F46 -> 0 | AX46: 0 | AY46: 0 | AZ46: 0 | BA46: 0 | BB46: 0 | BC46: 0 | BD46: 0 | BE46: 0 | BF46: 0 | BG46: 0 | BH46: 0 | BI46: 0 | BJ46: 0 | BK46: 0 | BL46: 0 | BM46: 0 | BN46: 0 | BO46: 0 | BP46: 0 | BQ46: 0 | BR46: 0 | BS46: 0 | BT46: 0 | BU46: 0 | BV46: 0 | BW46: 0 | BX46: 0 | BY46: 0 | BZ46: 0 | CA46: 0 | CB46: 0 | CC46: =CC41*$F46 -> 0 | CD46: 0 | CE46: 0 | CF46: 0 | CG46: 0 | CH46: 0 | CI46: 0 | CJ46: 0
C47: Monthly payment revenue | D47: NGN | F47: =INDEX(Inputs!$I$86:$N$86, MATCH(F$39,Inputs!$I$75:$N$75,0)) -> 5250 | I47: 0 | J47: 57330000 | K47: 105840000 | L47: 105840000 | M47: 48510000 | N47: 0 | Q47: =Q43*$F47 -> 0 | R47: 0 | S47: 0 | T47: 0 | U47: 0 | V47: 0 | W47: 0 | X47: 0 | Y47: 0 | Z47: 0 | AA47: 0 | AB47: 0 | AC47: 735000 | AD47: 1470000 | AE47: 2205000 | AF47: 2940000 | AG47: 3675000 | AH47: 4410000 | AI47: 5145000 | AJ47: 5880000 | AK47: 6615000 | AL47: 7350000 | AM47: 8085000 | AN47: 8820000 | AO47: 8820000 | AP47: 8820000 | AQ47: 8820000 | AR47: 8820000 | AS47: 8820000 | AT47: 8820000 | AU47: 8820000 | AV47: 8820000 | AW47: =AW43*$F47 -> 8820000 | AX47: 8820000 | AY47: 8820000 | AZ47: 8820000 | BA47: 8820000 | BB47: 8820000 | BC47: 8820000 | BD47: 8820000 | BE47: 8820000 | BF47: 8820000 | BG47: 8820000 | BH47: 8820000 | BI47: 8820000 | BJ47: 8820000 | BK47: 8820000 | BL47: 8820000 | BM47: 8085000 | BN47: 7350000 | BO47: 6615000 | BP47: 5880000 | BQ47: 5145000 | BR47: 4410000 | BS47: 3675000 | BT47: 2940000 | BU47: 2205000 | BV47: 1470000 | BW47: 735000 | BX47: 0 | BY47: 0 | BZ47: 0 | CA47: 0 | CB47: 0 | CC47: =CC43*$F47 -> 0 | CD47: 0 | CE47: 0 | CF47: 0 | CG47: 0 | CH47: 0 | CI47: 0 | CJ47: 0
C49: Year 3 | F49: =F39+1 -> 2022
C50: Balance b/f | D50: # | I50: =Q50 -> 0 | J50: =I53 -> 0 | K50: =J53 -> 0 | L50: =K53 -> 2268 | M50: =L53 -> 2268 | N50: =M53 -> 2268 | R50: =Q53 -> 0 | S50: =R53 -> 0 | T50: =S53 -> 0 | U50: =T53 -> 0 | V50: =U53 -> 0 | W50: =V53 -> 0 | X50: =W53 -> 0 | Y50: =X53 -> 0 | Z50: =Y53 -> 0 | AA50: =Z53 -> 0 | AB50: =AA53 -> 0 | AC50: =AB53 -> 0 | AD50: =AC53 -> 0 | AE50: =AD53 -> 0 | AF50: =AE53 -> 0 | AG50: =AF53 -> 0 | AH50: =AG53 -> 0 | AI50: =AH53 -> 0 | AJ50: =AI53 -> 0 | AK50: =AJ53 -> 0 | AL50: =AK53 -> 0 | AM50: =AL53 -> 0 | AN50: =AM53 -> 0 | AO50: =AN53 -> 0 | AP50: =AO53 -> 189 | AQ50: =AP53 -> 378 | AR50: =AQ53 -> 567 | AS50: =AR53 -> 756 | AT50: =AS53 -> 945 | AU50: =AT53 -> 1134 | AV50: =AU53 -> 1323 | AW50: =AV53 -> 1512 | AX50: =AW53 -> 1701 | AY50: =AX53 -> 1890 | AZ50: =AY53 -> 2079 | BA50: =AZ53 -> 2268 | BB50: =BA53 -> 2268 | BC50: =BB53 -> 2268 | BD50: =BC53 -> 2268 | BE50: =BD53 -> 2268 | BF50: =BE53 -> 2268 | BG50: =BF53 -> 2268 | BH50: =BG53 -> 2268 | BI50: =BH53 -> 2268 | BJ50: =BI53 -> 2268 | BK50: =BJ53 -> 2268 | BL50: =BK53 -> 2268 | BM50: =BL53 -> 2268 | BN50: =BM53 -> 2268 | BO50: =BN53 -> 2268 | BP50: =BO53 -> 2268 | BQ50: =BP53 -> 2268 | BR50: =BQ53 -> 2268 | BS50: =BR53 -> 2268 | BT50: =BS53 -> 2268 | BU50: =BT53 -> 2268 | BV50: =BU53 -> 2268 | BW50: =BV53 -> 2268 | BX50: =BW53 -> 2268 | BY50: =BX53 -> 2268 | BZ50: =BY53 -> 2079 | CA50: =BZ53 -> 1890 | CB50: =CA53 -> 1701 | CC50: =CB53 -> 1512 | CD50: =CC53 -> 1323 | CE50: =CD53 -> 1134 | CF50: =CE53 -> 945 | CG50: =CF53 -> 756 | CH50: =CG53 -> 567 | CI50: =CH53 -> 378 | CJ50: =CI53 -> 189
C51: New contracts | D51: # | I51: =SUMIF($Q$6:$CJ$6,I$6,$Q51:$CJ51) -> 0 | J51: 0 | K51: 2268 | L51: 0 | M51: 0 | N51: 0 | Q51: =IF(Q$6=$F49,Q$17,0) -> 0 | R51: 0 | S51: 0 | T51: 0 | U51: 0 | V51: 0 | W51: 0 | X51: 0 | Y51: 0 | Z51: 0 | AA51: 0 | AB51: 0 | AC51: 0 | AD51: 0 | AE51: 0 | AF51: 0 | AG51: 0 | AH51: 0 | AI51: 0 | AJ51: 0 | AK51: 0 | AL51: 0 | AM51: 0 | AN51: 0 | AO51: 189 | AP51: 189 | AQ51: 189 | AR51: 189 | AS51: 189 | AT51: 189 | AU51: 189 | AV51: 189 | AW51: =IF(AW$6=$F49,AW$17,0) -> 189 | AX51: 189 | AY51: 189 | AZ51: 189 | BA51: 0 | BB51: 0 | BC51: 0 | BD51: 0 | BE51: 0 | BF51: 0 | BG51: 0 | BH51: 0 | BI51: 0 | BJ51: 0 | BK51: 0 | BL51: 0 | BM51: 0 | BN51: 0 | BO51: 0 | BP51: 0 | BQ51: 0 | BR51: 0 | BS51: 0 | BT51: 0 | BU51: 0 | BV51: 0 | BW51: 0 | BX51: 0 | BY51: 0 | BZ51: 0 | CA51: 0 | CB51: 0 | CC51: =IF(CC$6=$F49,CC$17,0) -> 0 | CD51: 0 | CE51: 0 | CF51: 0 | CG51: 0 | CH51: 0 | CI51: 0 | CJ51: 0
C52: Contracts ended | D52: # | I52: 0 | J52: 0 | K52: 0 | L52: 0 | M52: 0 | N52: -2268 | Q52: =-SUMIFS($Q51:$CJ51,$Q$9:$CJ$9,Q$9-Inputs!$E$87) -> 0 | R52: =-SUMIFS($Q51:$CJ51,$Q$9:$CJ$9,R$9-Inputs!$E$87) -> 0 | S52: =-SUMIFS($Q51:$CJ51,$Q$9:$CJ$9,S$9-Inputs!$E$87) -> 0 | T52: =-SUMIFS($Q51:$CJ51,$Q$9:$CJ$9,T$9-Inputs!$E$87) -> 0 | U52: =-SUMIFS($Q51:$CJ51,$Q$9:$CJ$9,U$9-Inputs!$E$87) -> 0 | V52: =-SUMIFS($Q51:$CJ51,$Q$9:$CJ$9,V$9-Inputs!$E$87) -> 0 | W52: =-SUMIFS($Q51:$CJ51,$Q$9:$CJ$9,W$9-Inputs!$E$87) -> 0 | X52: =-SUMIFS($Q51:$CJ51,$Q$9:$CJ$9,X$9-Inputs!$E$87) -> 0 | Y52: =-SUMIFS($Q51:$CJ51,$Q$9:$CJ$9,Y$9-Inputs!$E$87) -> 0 | Z52: =-SUMIFS($Q51:$CJ51,$Q$9:$CJ$9,Z$9-Inputs!$E$87) -> 0 | AA52: =-SUMIFS($Q51:$CJ51,$Q$9:$CJ$9,AA$9-Inputs!$E$87) -> 0 | AB52: =-SUMIFS($Q51:$CJ51,$Q$9:$CJ$9,AB$9-Inputs!$E$87) -> 0 | AC52: =-SUMIFS($Q51:$CJ51,$Q$9:$CJ$9,AC$9-Inputs!$E$87) -> 0 | AD52: =-SUMIFS($Q51:$CJ51,$Q$9:$CJ$9,AD$9-Inputs!$E$87) -> 0 | AE52: =-SUMIFS($Q51:$CJ51,$Q$9:$CJ$9,AE$9-Inputs!$E$87) -> 0 | AF52: =-SUMIFS($Q51:$CJ51,$Q$9:$CJ$9,AF$9-Inputs!$E$87) -> 0 | AG52: =-SUMIFS($Q51:$CJ51,$Q$9:$CJ$9,AG$9-Inputs!$E$87) -> 0 | AH52: =-SUMIFS($Q51:$CJ51,$Q$9:$CJ$9,AH$9-Inputs!$E$87) -> 0 | AI52: =-SUMIFS($Q51:$CJ51,$Q$9:$CJ$9,AI$9-Inputs!$E$87) -> 0 | AJ52: =-SUMIFS($Q51:$CJ51,$Q$9:$CJ$9,AJ$9-Inputs!$E$87) -> 0 | AK52: =-SUMIFS($Q51:$CJ51,$Q$9:$CJ$9,AK$9-Inputs!$E$87) -> 0 | AL52: =-SUMIFS($Q51:$CJ51,$Q$9:$CJ$9,AL$9-Inputs!$E$87) -> 0 | AM52: =-SUMIFS($Q51:$CJ51,$Q$9:$CJ$9,AM$9-Inputs!$E$87) -> 0 | AN52: =-SUMIFS($Q51:$CJ51,$Q$9:$CJ$9,AN$9-Inputs!$E$87) -> 0 | AO52: =-SUMIFS($Q51:$CJ51,$Q$9:$CJ$9,AO$9-Inputs!$E$87) -> 0 | AP52: =-SUMIFS($Q51:$CJ51,$Q$9:$CJ$9,AP$9-Inputs!$E$87) -> 0 | AQ52: =-SUMIFS($Q51:$CJ51,$Q$9:$CJ$9,AQ$9-Inputs!$E$87) -> 0 | AR52: =-SUMIFS($Q51:$CJ51,$Q$9:$CJ$9,AR$9-Inputs!$E$87) -> 0 | AS52: =-SUMIFS($Q51:$CJ51,$Q$9:$CJ$9,AS$9-Inputs!$E$87) -> 0 | AT52: =-SUMIFS($Q51:$CJ51,$Q$9:$CJ$9,AT$9-Inputs!$E$87) -> 0 | AU52: =-SUMIFS($Q51:$CJ51,$Q$9:$CJ$9,AU$9-Inputs!$E$87) -> 0 | AV52: =-SUMIFS($Q51:$CJ51,$Q$9:$CJ$9,AV$9-Inputs!$E$87) -> 0 | AW52: =-SUMIFS($Q51:$CJ51,$Q$9:$CJ$9,AW$9-Inputs!$E$87) -> 0 | AX52: =-SUMIFS($Q51:$CJ51,$Q$9:$CJ$9,AX$9-Inputs!$E$87) -> 0 | AY52: =-SUMIFS($Q51:$CJ51,$Q$9:$CJ$9,AY$9-Inputs!$E$87) -> 0 | AZ52: =-SUMIFS($Q51:$CJ51,$Q$9:$CJ$9,AZ$9-Inputs!$E$87) -> 0 | BA52: =-SUMIFS($Q51:$CJ51,$Q$9:$CJ$9,BA$9-Inputs!$E$87) -> 0 | BB52: =-SUMIFS($Q51:$CJ51,$Q$9:$CJ$9,BB$9-Inputs!$E$87) -> 0 | BC52: =-SUMIFS($Q51:$CJ51,$Q$9:$CJ$9,BC$9-Inputs!$E$87) -> 0 | BD52: =-SUMIFS($Q51:$CJ51,$Q$9:$CJ$9,BD$9-Inputs!$E$87) -> 0 | BE52: =-SUMIFS($Q51:$CJ51,$Q$9:$CJ$9,BE$9-Inputs!$E$87) -> 0 | BF52: =-SUMIFS($Q51:$CJ51,$Q$9:$CJ$9,BF$9-Inputs!$E$87) -> 0 | BG52: =-SUMIFS($Q51:$CJ51,$Q$9:$CJ$9,BG$9-Inputs!$E$87) -> 0 | BH52: =-SUMIFS($Q51:$CJ51,$Q$9:$CJ$9,BH$9-Inputs!$E$87) -> 0 | BI52: =-SUMIFS($Q51:$CJ51,$Q$9:$CJ$9,BI$9-Inputs!$E$87) -> 0 | BJ52: =-SUMIFS($Q51:$CJ51,$Q$9:$CJ$9,BJ$9-Inputs!$E$87) -> 0 | BK52: =-SUMIFS($Q51:$CJ51,$Q$9:$CJ$9,BK$9-Inputs!$E$87) -> 0 | BL52: =-SUMIFS($Q51:$CJ51,$Q$9:$CJ$9,BL$9-Inputs!$E$87) -> 0 | BM52: =-SUMIFS($Q51:$CJ51,$Q$9:$CJ$9,BM$9-Inputs!$E$87) -> 0 | BN52: =-SUMIFS($Q51:$CJ51,$Q$9:$CJ$9,BN$9-Inputs!$E$87) -> 0 | BO52: =-SUMIFS($Q51:$CJ51,$Q$9:$CJ$9,BO$9-Inputs!$E$87) -> 0 | BP52: =-SUMIFS($Q51:$CJ51,$Q$9:$CJ$9,BP$9-Inputs!$E$87) -> 0 | BQ52: =-SUMIFS($Q51:$CJ51,$Q$9:$CJ$9,BQ$9-Inputs!$E$87) -> 0 | BR52: =-SUMIFS($Q51:$CJ51,$Q$9:$CJ$9,BR$9-Inputs!$E$87) -> 0 | BS52: =-SUMIFS($Q51:$CJ51,$Q$9:$CJ$9,BS$9-Inputs!$E$87) -> 0 | BT52: =-SUMIFS($Q51:$CJ51,$Q$9:$CJ$9,BT$9-Inputs!$E$87) -> 0 | BU52: =-SUMIFS($Q51:$CJ51,$Q$9:$CJ$9,BU$9-Inputs!$E$87) -> 0 | BV52: =-SUMIFS($Q51:$CJ51,$Q$9:$CJ$9,BV$9-Inputs!$E$87) -> 0 | BW52: =-SUMIFS($Q51:$CJ51,$Q$9:$CJ$9,BW$9-Inputs!$E$87) -> 0 | BX52: =-SUMIFS($Q51:$CJ51,$Q$9:$CJ$9,BX$9-Inputs!$E$87) -> 0 | BY52: =-SUMIFS($Q51:$CJ51,$Q$9:$CJ$9,BY$9-Inputs!$E$87) -> -189 | BZ52: =-SUMIFS($Q51:$CJ51,$Q$9:$CJ$9,BZ$9-Inputs!$E$87) -> -189 | CA52: =-SUMIFS($Q51:$CJ51,$Q$9:$CJ$9,CA$9-Inputs!$E$87) -> -189 | CB52: =-SUMIFS($Q51:$CJ51,$Q$9:$CJ$9,CB$9-Inputs!$E$87) -> -189 | CC52: =-SUMIFS($Q51:$CJ51,$Q$9:$CJ$9,CC$9-Inputs!$E$87) -> -189 | CD52: =-SUMIFS($Q51:$CJ51,$Q$9:$CJ$9,CD$9-Inputs!$E$87) -> -189 | CE52: =-SUMIFS($Q51:$CJ51,$Q$9:$CJ$9,CE$9-Inputs!$E$87) -> -189 | CF52: =-SUMIFS($Q51:$CJ51,$Q$9:$CJ$9,CF$9-Inputs!$E$87) -> -189 | CG52: =-SUMIFS($Q51:$CJ51,$Q$9:$CJ$9,CG$9-Inputs!$E$87) -> -189 | CH52: =-SUMIFS($Q51:$CJ51,$Q$9:$CJ$9,CH$9-Inputs!$E$87) -> -189 | CI52: =-SUMIFS($Q51:$CJ51,$Q$9:$CJ$9,CI$9-Inputs!$E$87) -> -189 | CJ52: =-SUMIFS($Q51:$CJ51,$Q$9:$CJ$9,CJ$9-Inputs!$E$87) -> -189
C53: Balance c/f | D53: # | I53: =SUM(I50:I52) -> 0 | J53: 0 | K53: 2268 | L53: 2268 | M53: 2268 | N53: 0 | Q53: =SUM(Q50:Q52) -> 0 | R53: =SUM(R50:R52) -> 0 | S53: =SUM(S50:S52) -> 0 | T53: 0 | U53: 0 | V53: 0 | W53: 0 | X53: 0 | Y53: 0 | Z53: 0 | AA53: 0 | AB53: 0 | AC53: 0 | AD53: 0 | AE53: 0 | AF53: 0 | AG53: 0 | AH53: 0 | AI53: 0 | AJ53: 0 | AK53: 0 | AL53: 0 | AM53: 0 | AN53: 0 | AO53: 189 | AP53: 378 | AQ53: 567 | AR53: 756 | AS53: 945 | AT53: 1134 | AU53: 1323 | AV53: 1512 | AW53: 1701 | AX53: 1890 | AY53: 2079 | AZ53: 2268 | BA53: 2268 | BB53: 2268 | BC53: 2268 | BD53: 2268 | BE53: 2268 | BF53: 2268 | BG53: 2268 | BH53: 2268 | BI53: 2268 | BJ53: 2268 | BK53: 2268 | BL53: 2268 | BM53: 2268 | BN53: 2268 | BO53: 2268 | BP53: 2268 | BQ53: 2268 | BR53: 2268 | BS53: 2268 | BT53: 2268 | BU53: 2268 | BV53: 2268 | BW53: 2268 | BX53: 2268 | BY53: 2079 | BZ53: 1890 | CA53: 1701 | CB53: 1512 | CC53: 1323 | CD53: 1134 | CE53: =SUM(CE50:CE52) -> 945 | CF53: 756 | CG53: 567 | CH53: 378 | CI53: 189 | CJ53: 0
C55: Revenue | D55: NGN | F55: =INDEX(Inputs!$I$84:$N$84, MATCH(F$39,Inputs!$I$75:$N$75,0)) -> 252000 | I55: =SUMIF($Q$6:$CJ$6,I$6,$Q55:$CJ55) -> 0 | J55: 0 | K55: 571536000 | L55: 0 | M55: 0 | N55: 0 | Q55: =Q51*$F55 -> 0 | R55: 0 | S55: 0 | T55: 0 | U55: 0 | V55: 0 | W55: 0 | X55: 0 | Y55: 0 | Z55: 0 | AA55: 0 | AB55: 0 | AC55: 0 | AD55: 0 | AE55: 0 | AF55: 0 | AG55: 0 | AH55: 0 | AI55: 0 | AJ55: 0 | AK55: 0 | AL55: 0 | AM55: 0 | AN55: 0 | AO55: 47628000 | AP55: 47628000 | AQ55: 47628000 | AR55: 47628000 | AS55: 47628000 | AT55: 47628000 | AU55: 47628000 | AV55: 47628000 | AW55: =AW51*$F55 -> 47628000 | AX55: 47628000 | AY55: 47628000 | AZ55: 47628000 | BA55: 0 | BB55: 0 | BC55: 0 | BD55: 0 | BE55: 0 | BF55: 0 | BG55: 0 | BH55: 0 | BI55: 0 | BJ55: 0 | BK55: 0 | BL55: 0 | BM55: 0 | BN55: 0 | BO55: 0 | BP55: 0 | BQ55: 0 | BR55: 0 | BS55: 0 | BT55: 0 | BU55: 0 | BV55: 0 | BW55: 0 | BX55: 0 | BY55: 0 | BZ55: 0 | CA55: 0 | CB55: 0 | CC55: =CC51*$F55 -> 0 | CD55: 0 | CE55: 0 | CF55: 0 | CG55: 0 | CH55: 0 | CI55: 0 | CJ55: 0
C56: Down payment | D56: NGN | F56: =INDEX(Inputs!$I$85:$N$85, MATCH(F$39,Inputs!$I$75:$N$75,0)) -> 63000 | I56: 0 | J56: 0 | K56: 142884000 | L56: 0 | M56: 0 | N56: 0 | Q56: =Q51*$F56 -> 0 | R56: 0 | S56: 0 | T56: 0 | U56: 0 | V56: 0 | W56: 0 | X56: 0 | Y56: 0 | Z56: 0 | AA56: 0 | AB56: 0 | AC56: 0 | AD56: 0 | AE56: 0 | AF56: 0 | AG56: 0 | AH56: 0 | AI56: 0 | AJ56: 0 | AK56: 0 | AL56: 0 | AM56: 0 | AN56: 0 | AO56: 11907000 | AP56: 11907000 | AQ56: 11907000 | AR56: 11907000 | AS56: 11907000 | AT56: 11907000 | AU56: 11907000 | AV56: 11907000 | AW56: =AW51*$F56 -> 11907000 | AX56: 11907000 | AY56: 11907000 | AZ56: 11907000 | BA56: 0 | BB56: 0 | BC56: 0 | BD56: 0 | BE56: 0 | BF56: 0 | BG56: 0 | BH56: 0 | BI56: 0 | BJ56: 0 | BK56: 0 | BL56: 0 | BM56: 0 | BN56: 0 | BO56: 0 | BP56: 0 | BQ56: 0 | BR56: 0 | BS56: 0 | BT56: 0 | BU56: 0 | BV56: 0 | BW56: 0 | BX56: 0 | BY56: 0 | BZ56: 0 | CA56: 0 | CB56: 0 | CC56: =CC51*$F56 -> 0 | CD56: 0 | CE56: 0 | CF56: 0 | CG56: 0 | CH56: 0 | CI56: 0 | CJ56: 0
C57: Monthly payment revenue | D57: NGN | F57: =INDEX(Inputs!$I$86:$N$86, MATCH(F$39,Inputs!$I$75:$N$75,0)) -> 5250 | I57: 0 | J57: 0 | K57: 77395500 | L57: 142884000 | M57: 142884000 | N57: 65488500 | Q57: =Q53*$F57 -> 0 | R57: 0 | S57: 0 | T57: 0 | U57: 0 | V57: 0 | W57: 0 | X57: 0 | Y57: 0 | Z57: 0 | AA57: 0 | AB57: 0 | AC57: 0 | AD57: 0 | AE57: 0 | AF57: 0 | AG57: 0 | AH57: 0 | AI57: 0 | AJ57: 0 | AK57: 0 | AL57: 0 | AM57: 0 | AN57: 0 | AO57: 992250 | AP57: 1984500 | AQ57: 2976750 | AR57: 3969000 | AS57: 4961250 | AT57: 5953500 | AU57: 6945750 | AV57: 7938000 | AW57: =AW53*$F57 -> 8930250 | AX57: 9922500 | AY57: 10914750 | AZ57: 11907000 | BA57: 11907000 | BB57: 11907000 | BC57: 11907000 | BD57: 11907000 | BE57: 11907000 | BF57: 11907000 | BG57: 11907000 | BH57: 11907000 | BI57: 11907000 | BJ57: 11907000 | BK57: 11907000 | BL57: 11907000 | BM57: 11907000 | BN57: 11907000 | BO57: 11907000 | BP57: 11907000 | BQ57: 11907000 | BR57: 11907000 | BS57: 11907000 | BT57: 11907000 | BU57: 11907000 | BV57: 11907000 | BW57: 11907000 | BX57: 11907000 | BY57: 10914750 | BZ57: 9922500 | CA57: 8930250 | CB57: 7938000 | CC57: =CC53*$F57 -> 6945750 | CD57: 5953500 | CE57: 4961250 | CF57: 3969000 | CG57: 2976750 | CH57: 1984500 | CI57: 992250 | CJ57: 0
C59: Year 4 | F59: =F49+1 -> 2023
C60: Balance b/f | D60: # | I60: =Q60 -> 0 | J60: =I63 -> 0 | K60: =J63 -> 0 | L60: =K63 -> 0 | M60: =L63 -> 2948.4 | N60: =M63 -> 2948.4 | R60: =Q63 -> 0 | S60: =R63 -> 0 | T60: =S63 -> 0 | U60: =T63 -> 0 | V60: =U63 -> 0 | W60: =V63 -> 0 | X60: =W63 -> 0 | Y60: =X63 -> 0 | Z60: =Y63 -> 0 | AA60: =Z63 -> 0 | AB60: =AA63 -> 0 | AC60: =AB63 -> 0 | AD60: =AC63 -> 0 | AE60: =AD63 -> 0 | AF60: =AE63 -> 0 | AG60: =AF63 -> 0 | AH60: =AG63 -> 0 | AI60: =AH63 -> 0 | AJ60: =AI63 -> 0 | AK60: =AJ63 -> 0 | AL60: =AK63 -> 0 | AM60: =AL63 -> 0 | AN60: =AM63 -> 0 | AO60: =AN63 -> 0 | AP60: =AO63 -> 0 | AQ60: =AP63 -> 0 | AR60: =AQ63 -> 0 | AS60: =AR63 -> 0 | AT60: =AS63 -> 0 | AU60: =AT63 -> 0 | AV60: =AU63 -> 0 | AW60: =AV63 -> 0 | AX60: =AW63 -> 0 | AY60: =AX63 -> 0 | AZ60: =AY63 -> 0 | BA60: =AZ63 -> 0 | BB60: =BA63 -> 245.7 | BC60: =BB63 -> 491.4 | BD60: =BC63 -> 737.1 | BE60: =BD63 -> 982.8 | BF60: =BE63 -> 1228.5 | BG60: =BF63 -> 1474.2 | BH60: =BG63 -> 1719.9 | BI60: =BH63 -> 1965.6 | BJ60: =BI63 -> 2211.3 | BK60: =BJ63 -> 2457 | BL60: =BK63 -> 2702.7 | BM60: =BL63 -> 2948.4 | BN60: =BM63 -> 2948.4 | BO60: =BN63 -> 2948.4 | BP60: =BO63 -> 2948.4 | BQ60: =BP63 -> 2948.4 | BR60: =BQ63 -> 2948.4 | BS60: =BR63 -> 2948.4 | BT60: =BS63 -> 2948.4 | BU60: =BT63 -> 2948.4 | BV60: =BU63 -> 2948.4 | BW60: =BV63 -> 2948.4 | BX60: =BW63 -> 2948.4 | BY60: =BX63 -> 2948.4 | BZ60: =BY63 -> 2948.4 | CA60: =BZ63 -> 2948.4 | CB60: =CA63 -> 2948.4 | CC60: =CB63 -> 2948.4 | CD60: =CC63 -> 2948.4 | CE60: =CD63 -> 2948.4 | CF60: =CE63 -> 2948.4 | CG60: =CF63 -> 2948.4 | CH60: =CG63 -> 2948.4 | CI60: =CH63 -> 2948.4 | CJ60: =CI63 -> 2948.4
C61: New contracts | D61: # | I61: =SUMIF($Q$6:$CJ$6,I$6,$Q61:$CJ61) -> 0 | J61: 0 | K61: 0 | L61: 2948.4 | M61: 0 | N61: 0 | Q61: =IF(Q$6=$F59,Q$17,0) -> 0 | R61: 0 | S61: 0 | T61: 0 | U61: 0 | V61: 0 | W61: 0 | X61: 0 | Y61: 0 | Z61: 0 | AA61: 0 | AB61: 0 | AC61: 0 | AD61: 0 | AE61: 0 | AF61: 0 | AG61: 0 | AH61: 0 | AI61: 0 | AJ61: 0 | AK61: 0 | AL61: 0 | AM61: 0 | AN61: 0 | AO61: 0 | AP61: 0 | AQ61: 0 | AR61: 0 | AS61: 0 | AT61: 0 | AU61: 0 | AV61: 0 | AW61: =IF(AW$6=$F59,AW$17,0) -> 0 | AX61: 0 | AY61: 0 | AZ61: 0 | BA61: 245.7 | BB61: 245.7 | BC61: 245.7 | BD61: 245.7 | BE61: 245.7 | BF61: 245.7 | BG61: 245.7 | BH61: 245.7 | BI61: 245.7 | BJ61: 245.7 | BK61: 245.7 | BL61: 245.7 | BM61: 0 | BN61: 0 | BO61: 0 | BP61: 0 | BQ61: 0 | BR61: 0 | BS61: 0 | BT61: 0 | BU61: 0 | BV61: 0 | BW61: 0 | BX61: 0 | BY61: 0 | BZ61: 0 | CA61: 0 | CB61: 0 | CC61: =IF(CC$6=$F59,CC$17,0) -> 0 | CD61: 0 | CE61: 0 | CF61: 0 | CG61: 0 | CH61: 0 | CI61: 0 | CJ61: 0
C62: Contracts ended | D62: # | I62: 0 | J62: 0 | K62: 0 | L62: 0 | M62: 0 | N62: 0 | Q62: =-SUMIFS($Q61:$CJ61,$Q$9:$CJ$9,Q$9-Inputs!$E$87) -> 0 | R62: =-SUMIFS($Q61:$CJ61,$Q$9:$CJ$9,R$9-Inputs!$E$87) -> 0 | S62: =-SUMIFS($Q61:$CJ61,$Q$9:$CJ$9,S$9-Inputs!$E$87) -> 0 | T62: =-SUMIFS($Q61:$CJ61,$Q$9:$CJ$9,T$9-Inputs!$E$87) -> 0 | U62: =-SUMIFS($Q61:$CJ61,$Q$9:$CJ$9,U$9-Inputs!$E$87) -> 0 | V62: =-SUMIFS($Q61:$CJ61,$Q$9:$CJ$9,V$9-Inputs!$E$87) -> 0 | W62: =-SUMIFS($Q61:$CJ61,$Q$9:$CJ$9,W$9-Inputs!$E$87) -> 0 | X62: =-SUMIFS($Q61:$CJ61,$Q$9:$CJ$9,X$9-Inputs!$E$87) -> 0 | Y62: =-SUMIFS($Q61:$CJ61,$Q$9:$CJ$9,Y$9-Inputs!$E$87) -> 0 | Z62: =-SUMIFS($Q61:$CJ61,$Q$9:$CJ$9,Z$9-Inputs!$E$87) -> 0 | AA62: =-SUMIFS($Q61:$CJ61,$Q$9:$CJ$9,AA$9-Inputs!$E$87) -> 0 | AB62: =-SUMIFS($Q61:$CJ61,$Q$9:$CJ$9,AB$9-Inputs!$E$87) -> 0 | AC62: =-SUMIFS($Q61:$CJ61,$Q$9:$CJ$9,AC$9-Inputs!$E$87) -> 0 | AD62: =-SUMIFS($Q61:$CJ61,$Q$9:$CJ$9,AD$9-Inputs!$E$87) -> 0 | AE62: =-SUMIFS($Q61:$CJ61,$Q$9:$CJ$9,AE$9-Inputs!$E$87) -> 0 | AF62: =-SUMIFS($Q61:$CJ61,$Q$9:$CJ$9,AF$9-Inputs!$E$87) -> 0 | AG62: =-SUMIFS($Q61:$CJ61,$Q$9:$CJ$9,AG$9-Inputs!$E$87) -> 0 | AH62: =-SUMIFS($Q61:$CJ61,$Q$9:$CJ$9,AH$9-Inputs!$E$87) -> 0 | AI62: =-SUMIFS($Q61:$CJ61,$Q$9:$CJ$9,AI$9-Inputs!$E$87) -> 0 | AJ62: =-SUMIFS($Q61:$CJ61,$Q$9:$CJ$9,AJ$9-Inputs!$E$87) -> 0 | AK62: =-SUMIFS($Q61:$CJ61,$Q$9:$CJ$9,AK$9-Inputs!$E$87) -> 0 | AL62: =-SUMIFS($Q61:$CJ61,$Q$9:$CJ$9,AL$9-Inputs!$E$87) -> 0 | AM62: =-SUMIFS($Q61:$CJ61,$Q$9:$CJ$9,AM$9-Inputs!$E$87) -> 0 | AN62: =-SUMIFS($Q61:$CJ61,$Q$9:$CJ$9,AN$9-Inputs!$E$87) -> 0 | AO62: =-SUMIFS($Q61:$CJ61,$Q$9:$CJ$9,AO$9-Inputs!$E$87) -> 0 | AP62: =-SUMIFS($Q61:$CJ61,$Q$9:$CJ$9,AP$9-Inputs!$E$87) -> 0 | AQ62: =-SUMIFS($Q61:$CJ61,$Q$9:$CJ$9,AQ$9-Inputs!$E$87) -> 0 | AR62: =-SUMIFS($Q61:$CJ61,$Q$9:$CJ$9,AR$9-Inputs!$E$87) -> 0 | AS62: =-SUMIFS($Q61:$CJ61,$Q$9:$CJ$9,AS$9-Inputs!$E$87) -> 0 | AT62: =-SUMIFS($Q61:$CJ61,$Q$9:$CJ$9,AT$9-Inputs!$E$87) -> 0 | AU62: =-SUMIFS($Q61:$CJ61,$Q$9:$CJ$9,AU$9-Inputs!$E$87) -> 0 | AV62: =-SUMIFS($Q61:$CJ61,$Q$9:$CJ$9,AV$9-Inputs!$E$87) -> 0 | AW62: =-SUMIFS($Q61:$CJ61,$Q$9:$CJ$9,AW$9-Inputs!$E$87) -> 0 | AX62: =-SUMIFS($Q61:$CJ61,$Q$9:$CJ$9,AX$9-Inputs!$E$87) -> 0 | AY62: =-SUMIFS($Q61:$CJ61,$Q$9:$CJ$9,AY$9-Inputs!$E$87) -> 0 | AZ62: =-SUMIFS($Q61:$CJ61,$Q$9:$CJ$9,AZ$9-Inputs!$E$87) -> 0 | BA62: =-SUMIFS($Q61:$CJ61,$Q$9:$CJ$9,BA$9-Inputs!$E$87) -> 0 | BB62: =-SUMIFS($Q61:$CJ61,$Q$9:$CJ$9,BB$9-Inputs!$E$87) -> 0 | BC62: =-SUMIFS($Q61:$CJ61,$Q$9:$CJ$9,BC$9-Inputs!$E$87) -> 0 | BD62: =-SUMIFS($Q61:$CJ61,$Q$9:$CJ$9,BD$9-Inputs!$E$87) -> 0 | BE62: =-SUMIFS($Q61:$CJ61,$Q$9:$CJ$9,BE$9-Inputs!$E$87) -> 0 | BF62: =-SUMIFS($Q61:$CJ61,$Q$9:$CJ$9,BF$9-Inputs!$E$87) -> 0 | BG62: =-SUMIFS($Q61:$CJ61,$Q$9:$CJ$9,BG$9-Inputs!$E$87) -> 0 | BH62: =-SUMIFS($Q61:$CJ61,$Q$9:$CJ$9,BH$9-Inputs!$E$87) -> 0 | BI62: =-SUMIFS($Q61:$CJ61,$Q$9:$CJ$9,BI$9-Inputs!$E$87) -> 0 | BJ62: =-SUMIFS($Q61:$CJ61,$Q$9:$CJ$9,BJ$9-Inputs!$E$87) -> 0 | BK62: =-SUMIFS($Q61:$CJ61,$Q$9:$CJ$9,BK$9-Inputs!$E$87) -> 0 | BL62: =-SUMIFS($Q61:$CJ61,$Q$9:$CJ$9,BL$9-Inputs!$E$87) -> 0 | BM62: =-SUMIFS($Q61:$CJ61,$Q$9:$CJ$9,BM$9-Inputs!$E$87) -> 0 | BN62: =-SUMIFS($Q61:$CJ61,$Q$9:$CJ$9,BN$9-Inputs!$E$87) -> 0 | BO62: =-SUMIFS($Q61:$CJ61,$Q$9:$CJ$9,BO$9-Inputs!$E$87) -> 0 | BP62: =-SUMIFS($Q61:$CJ61,$Q$9:$CJ$9,BP$9-Inputs!$E$87) -> 0 | BQ62: =-SUMIFS($Q61:$CJ61,$Q$9:$CJ$9,BQ$9-Inputs!$E$87) -> 0 | BR62: =-SUMIFS($Q61:$CJ61,$Q$9:$CJ$9,BR$9-Inputs!$E$87) -> 0 | BS62: =-SUMIFS($Q61:$CJ61,$Q$9:$CJ$9,BS$9-Inputs!$E$87) -> 0 | BT62: =-SUMIFS($Q61:$CJ61,$Q$9:$CJ$9,BT$9-Inputs!$E$87) -> 0 | BU62: =-SUMIFS($Q61:$CJ61,$Q$9:$CJ$9,BU$9-Inputs!$E$87) -> 0 | BV62: =-SUMIFS($Q61:$CJ61,$Q$9:$CJ$9,BV$9-Inputs!$E$87) -> 0 | BW62: =-SUMIFS($Q61:$CJ61,$Q$9:$CJ$9,BW$9-Inputs!$E$87) -> 0 | BX62: =-SUMIFS($Q61:$CJ61,$Q$9:$CJ$9,BX$9-Inputs!$E$87) -> 0 | BY62: =-SUMIFS($Q61:$CJ61,$Q$9:$CJ$9,BY$9-Inputs!$E$87) -> 0 | BZ62: =-SUMIFS($Q61:$CJ61,$Q$9:$CJ$9,BZ$9-Inputs!$E$87) -> 0 | CA62: =-SUMIFS($Q61:$CJ61,$Q$9:$CJ$9,CA$9-Inputs!$E$87) -> 0 | CB62: =-SUMIFS($Q61:$CJ61,$Q$9:$CJ$9,CB$9-Inputs!$E$87) -> 0 | CC62: =-SUMIFS($Q61:$CJ61,$Q$9:$CJ$9,CC$9-Inputs!$E$87) -> 0 | CD62: =-SUMIFS($Q61:$CJ61,$Q$9:$CJ$9,CD$9-Inputs!$E$87) -> 0 | CE62: =-SUMIFS($Q61:$CJ61,$Q$9:$CJ$9,CE$9-Inputs!$E$87) -> 0 | CF62: =-SUMIFS($Q61:$CJ61,$Q$9:$CJ$9,CF$9-Inputs!$E$87) -> 0 | CG62: =-SUMIFS($Q61:$CJ61,$Q$9:$CJ$9,CG$9-Inputs!$E$87) -> 0 | CH62: =-SUMIFS($Q61:$CJ61,$Q$9:$CJ$9,CH$9-Inputs!$E$87) -> 0 | CI62: =-SUMIFS($Q61:$CJ61,$Q$9:$CJ$9,CI$9-Inputs!$E$87) -> 0 | CJ62: =-SUMIFS($Q61:$CJ61,$Q$9:$CJ$9,CJ$9-Inputs!$E$87) -> 0
C63: Balance c/f | D63: # | I63: =SUM(I60:I62) -> 0 | J63: 0 | K63: 0 | L63: 2948.4 | M63: 2948.4 | N63: 2948.4 | Q63: =SUM(Q60:Q62) -> 0 | R63: =SUM(R60:R62) -> 0 | S63: =SUM(S60:S62) -> 0 | T63: 0 | U63: 0 | V63: 0 | W63: 0 | X63: 0 | Y63: 0 | Z63: 0 | AA63: 0 | AB63: 0 | AC63: 0 | AD63: 0 | AE63: 0 | AF63: 0 | AG63: 0 | AH63: 0 | AI63: 0 | AJ63: 0 | AK63: 0 | AL63: 0 | AM63: 0 | AN63: 0 | AO63: 0 | AP63: 0 | AQ63: 0 | AR63: 0 | AS63: 0 | AT63: 0 | AU63: 0 | AV63: 0 | AW63: 0 | AX63: 0 | AY63: 0 | AZ63: 0 | BA63: 245.7 | BB63: 491.4 | BC63: 737.1 | BD63: 982.8 | BE63: 1228.5 | BF63: 1474.2 | BG63: 1719.9 | BH63: 1965.6 | BI63: 2211.3 | BJ63: 2457 | BK63: 2702.7 | BL63: 2948.4 | BM63: 2948.4 | BN63: 2948.4 | BO63: 2948.4 | BP63: 2948.4 | BQ63: 2948.4 | BR63: 2948.4 | BS63: 2948.4 | BT63: 2948.4 | BU63: 2948.4 | BV63: 2948.4 | BW63: 2948.4 | BX63: 2948.4 | BY63: 2948.4 | BZ63: 2948.4 | CA63: 2948.4 | CB63: 2948.4 | CC63: 2948.4 | CD63: 2948.4 | CE63: =SUM(CE60:CE62) -> 2948.4 | CF63: 2948.4 | CG63: 2948.4 | CH63: 2948.4 | CI63: 2948.4 | CJ63: 2948.4
C65: Revenue | D65: NGN | F65: =INDEX(Inputs!$I$84:$N$84, MATCH(F$39,Inputs!$I$75:$N$75,0)) -> 252000 | I65: =SUMIF($Q$6:$CJ$6,I$6,$Q65:$CJ65) -> 0 | J65: 0 | K65: 0 | L65: 742996800 | M65: 0 | N65: 0 | Q65: =Q61*$F65 -> 0 | R65: 0 | S65: 0 | T65: 0 | U65: 0 | V65: 0 | W65: 0 | X65: 0 | Y65: 0 | Z65: 0 | AA65: 0 | AB65: 0 | AC65: 0 | AD65: 0 | AE65: 0 | AF65: 0 | AG65: 0 | AH65: 0 | AI65: 0 | AJ65: 0 | AK65: 0 | AL65: 0 | AM65: 0 | AN65: 0 | AO65: 0 | AP65: 0 | AQ65: 0 | AR65: 0 | AS65: 0 | AT65: 0 | AU65: 0 | AV65: 0 | AW65: =AW61*$F65 -> 0 | AX65: 0 | AY65: 0 | AZ65: 0 | BA65: 61916400 | BB65: 61916400 | BC65: 61916400 | BD65: 61916400 | BE65: 61916400 | BF65: 61916400 | BG65: 61916400 | BH65: 61916400 | BI65: 61916400 | BJ65: 61916400 | BK65: 61916400 | BL65: 61916400 | BM65: 0 | BN65: 0 | BO65: 0 | BP65: 0 | BQ65: 0 | BR65: 0 | BS65: 0 | BT65: 0 | BU65: 0 | BV65: 0 | BW65: 0 | BX65: 0 | BY65: 0 | BZ65: 0 | CA65: 0 | CB65: 0 | CC65: =CC61*$F65 -> 0 | CD65: 0 | CE65: 0 | CF65: 0 | CG65: 0 | CH65: 0 | CI65: 0 | CJ65: 0
C66: Down payment | D66: NGN | F66: =INDEX(Inputs!$I$85:$N$85, MATCH(F$39,Inputs!$I$75:$N$75,0)) -> 63000 | I66: 0 | J66: 0 | K66: 0 | L66: 185749200 | M66: 0 | N66: 0 | Q66: =Q61*$F66 -> 0 | R66: 0 | S66: 0 | T66: 0 | U66: 0 | V66: 0 | W66: 0 | X66: 0 | Y66: 0 | Z66: 0 | AA66: 0 | AB66: 0 | AC66: 0 | AD66: 0 | AE66: 0 | AF66: 0 | AG66: 0 | AH66: 0 | AI66: 0 | AJ66: 0 | AK66: 0 | AL66: 0 | AM66: 0 | AN66: 0 | AO66: 0 | AP66: 0 | AQ66: 0 | AR66: 0 | AS66: 0 | AT66: 0 | AU66: 0 | AV66: 0 | AW66: =AW61*$F66 -> 0 | AX66: 0 | AY66: 0 | AZ66: 0 | BA66: 15479100 | BB66: 15479100 | BC66: 15479100 | BD66: 15479100 | BE66: 15479100 | BF66: 15479100 | BG66: 15479100 | BH66: 15479100 | BI66: 15479100 | BJ66: 15479100 | BK66: 15479100 | BL66: 15479100 | BM66: 0 | BN66: 0 | BO66: 0 | BP66: 0 | BQ66: 0 | BR66: 0 | BS66: 0 | BT66: 0 | BU66: 0 | BV66: 0 | BW66: 0 | BX66: 0 | BY66: 0 | BZ66: 0 | CA66: 0 | CB66: 0 | CC66: =CC61*$F66 -> 0 | CD66: 0 | CE66: 0 | CF66: 0 | CG66: 0 | CH66: 0 | CI66: 0 | CJ66: 0
C67: Monthly payment revenue | D67: NGN | F67: =INDEX(Inputs!$I$86:$N$86, MATCH(F$39,Inputs!$I$75:$N$75,0)) -> 5250 | I67: 0 | J67: 0 | K67: 0 | L67: 100614150 | M67: 185749200 | N67: 185749200 | Q67: =Q63*$F67 -> 0 | R67: 0 | S67: 0 | T67: 0 | U67: 0 | V67: 0 | W67: 0 | X67: 0 | Y67: 0 | Z67: 0 | AA67: 0 | AB67: 0 | AC67: 0 | AD67: 0 | AE67: 0 | AF67: 0 | AG67: 0 | AH67: 0 | AI67: 0 | AJ67: 0 | AK67: 0 | AL67: 0 | AM67: 0 | AN67: 0 | AO67: 0 | AP67: 0 | AQ67: 0 | AR67: 0 | AS67: 0 | AT67: 0 | AU67: 0 | AV67: 0 | AW67: =AW63*$F67 -> 0 | AX67: 0 | AY67: 0 | AZ67: 0 | BA67: 1289925 | BB67: 2579850 | BC67: 3869775 | BD67: 5159700 | BE67: 6449625 | BF67: 7739550 | BG67: 9029475 | BH67: 10319400 | BI67: 11609325 | BJ67: 12899250 | BK67: 14189175 | BL67: 15479100 | BM67: 15479100 | BN67: 15479100 | BO67: 15479100 | BP67: 15479100 | BQ67: 15479100 | BR67: 15479100 | BS67: 15479100 | BT67: 15479100 | BU67: 15479100 | BV67: 15479100 | BW67: 15479100 | BX67: 15479100 | BY67: 15479100 | BZ67: 15479100 | CA67: 15479100 | CB67: 15479100 | CC67: =CC63*$F67 -> 15479100 | CD67: 15479100 | CE67: 15479100 | CF67: 15479100 | CG67: 15479100 | CH67: 15479100 | CI67: 15479100 | CJ67: 15479100
C69: Year 5 | F69: =F59+1 -> 2024
C70: Balance b/f | D70: # | I70: =Q70 -> 0 | J70: =I73 -> 0 | K70: =J73 -> 0 | L70: =K73 -> 0 | M70: =L73 -> 0 | N70: =M73 -> 3832.92 | R70: =Q73 -> 0 | S70: =R73 -> 0 | T70: =S73 -> 0 | U70: =T73 -> 0 | V70: =U73 -> 0 | W70: =V73 -> 0 | X70: =W73 -> 0 | Y70: =X73 -> 0 | Z70: =Y73 -> 0 | AA70: =Z73 -> 0 | AB70: =AA73 -> 0 | AC70: =AB73 -> 0 | AD70: =AC73 -> 0 | AE70: =AD73 -> 0 | AF70: =AE73 -> 0 | AG70: =AF73 -> 0 | AH70: =AG73 -> 0 | AI70: =AH73 -> 0 | AJ70: =AI73 -> 0 | AK70: =AJ73 -> 0 | AL70: =AK73 -> 0 | AM70: =AL73 -> 0 | AN70: =AM73 -> 0 | AO70: =AN73 -> 0 | AP70: =AO73 -> 0 | AQ70: =AP73 -> 0 | AR70: =AQ73 -> 0 | AS70: =AR73 -> 0 | AT70: =AS73 -> 0 | AU70: =AT73 -> 0 | AV70: =AU73 -> 0 | AW70: =AV73 -> 0 | AX70: =AW73 -> 0 | AY70: =AX73 -> 0 | AZ70: =AY73 -> 0 | BA70: =AZ73 -> 0 | BB70: =BA73 -> 0 | BC70: =BB73 -> 0 | BD70: =BC73 -> 0 | BE70: =BD73 -> 0 | BF70: =BE73 -> 0 | BG70: =BF73 -> 0 | BH70: =BG73 -> 0 | BI70: =BH73 -> 0 | BJ70: =BI73 -> 0 | BK70: =BJ73 -> 0 | BL70: =BK73 -> 0 | BM70: =BL73 -> 0 | BN70: =BM73 -> 319.41 | BO70: =BN73 -> 638.82 | BP70: =BO73 -> 958.23 | BQ70: =BP73 -> 1277.64 | BR70: =BQ73 -> 1597.05 | BS70: =BR73 -> 1916.46 | BT70: =BS73 -> 2235.87 | BU70: =BT73 -> 2555.28 | BV70: =BU73 -> 2874.69 | BW70: =BV73 -> 3194.1 | BX70: =BW73 -> 3513.51 | BY70: =BX73 -> 3832.92 | BZ70: =BY73 -> 3832.92 | CA70: =BZ73 -> 3832.92 | CB70: =CA73 -> 3832.92 | CC70: =CB73 -> 3832.92 | CD70: =CC73 -> 3832.92 | CE70: =CD73 -> 3832.92 | CF70: =CE73 -> 3832.92 | CG70: =CF73 -> 3832.92 | CH70: =CG73 -> 3832.92 | CI70: =CH73 -> 3832.92 | CJ70: =CI73 -> 3832.92
C71: New contracts | D71: # | I71: =SUMIF($Q$6:$CJ$6,I$6,$Q71:$CJ71) -> 0 | J71: 0 | K71: 0 | L71: 0 | M71: 3832.92 | N71: 0 | Q71: =IF(Q$6=$F69,Q$17,0) -> 0 | R71: 0 | S71: 0 | T71: 0 | U71: 0 | V71: 0 | W71: 0 | X71: 0 | Y71: 0 | Z71: 0 | AA71: 0 | AB71: 0 | AC71: 0 | AD71: 0 | AE71: 0 | AF71: 0 | AG71: 0 | AH71: 0 | AI71: 0 | AJ71: 0 | AK71: 0 | AL71: 0 | AM71: 0 | AN71: 0 | AO71: 0 | AP71: 0 | AQ71: 0 | AR71: 0 | AS71: 0 | AT71: 0 | AU71: 0 | AV71: 0 | AW71: =IF(AW$6=$F69,AW$17,0) -> 0 | AX71: 0 | AY71: 0 | AZ71: 0 | BA71: 0 | BB71: 0 | BC71: 0 | BD71: 0 | BE71: 0 | BF71: 0 | BG71: 0 | BH71: 0 | BI71: 0 | BJ71: 0 | BK71: 0 | BL71: 0 | BM71: 319.41 | BN71: 319.41 | BO71: 319.41 | BP71: 319.41 | BQ71: 319.41 | BR71: 319.41 | BS71: 319.41 | BT71: 319.41 | BU71: 319.41 | BV71: 319.41 | BW71: 319.41 | BX71: 319.41 | BY71: 0 | BZ71: 0 | CA71: 0 | CB71: 0 | CC71: =IF(CC$6=$F69,CC$17,0) -> 0 | CD71: 0 | CE71: 0 | CF71: 0 | CG71: 0 | CH71: 0 | CI71: 0 | CJ71: 0
C72: Contracts ended | D72: # | I72: 0 | J72: 0 | K72: 0 | L72: 0 | M72: 0 | N72: 0 | Q72: =-SUMIFS($Q71:$CJ71,$Q$9:$CJ$9,Q$9-Inputs!$E$87) -> 0 | R72: =-SUMIFS($Q71:$CJ71,$Q$9:$CJ$9,R$9-Inputs!$E$87) -> 0 | S72: =-SUMIFS($Q71:$CJ71,$Q$9:$CJ$9,S$9-Inputs!$E$87) -> 0 | T72: =-SUMIFS($Q71:$CJ71,$Q$9:$CJ$9,T$9-Inputs!$E$87) -> 0 | U72: =-SUMIFS($Q71:$CJ71,$Q$9:$CJ$9,U$9-Inputs!$E$87) -> 0 | V72: =-SUMIFS($Q71:$CJ71,$Q$9:$CJ$9,V$9-Inputs!$E$87) -> 0 | W72: =-SUMIFS($Q71:$CJ71,$Q$9:$CJ$9,W$9-Inputs!$E$87) -> 0 | X72: =-SUMIFS($Q71:$CJ71,$Q$9:$CJ$9,X$9-Inputs!$E$87) -> 0 | Y72: =-SUMIFS($Q71:$CJ71,$Q$9:$CJ$9,Y$9-Inputs!$E$87) -> 0 | Z72: =-SUMIFS($Q71:$CJ71,$Q$9:$CJ$9,Z$9-Inputs!$E$87) -> 0 | AA72: =-SUMIFS($Q71:$CJ71,$Q$9:$CJ$9,AA$9-Inputs!$E$87) -> 0 | AB72: =-SUMIFS($Q71:$CJ71,$Q$9:$CJ$9,AB$9-Inputs!$E$87) -> 0 | AC72: =-SUMIFS($Q71:$CJ71,$Q$9:$CJ$9,AC$9-Inputs!$E$87) -> 0 | AD72: =-SUMIFS($Q71:$CJ71,$Q$9:$CJ$9,AD$9-Inputs!$E$87) -> 0 | AE72: =-SUMIFS($Q71:$CJ71,$Q$9:$CJ$9,AE$9-Inputs!$E$87) -> 0 | AF72: =-SUMIFS($Q71:$CJ71,$Q$9:$CJ$9,AF$9-Inputs!$E$87) -> 0 | AG72: =-SUMIFS($Q71:$CJ71,$Q$9:$CJ$9,AG$9-Inputs!$E$87) -> 0 | AH72: =-SUMIFS($Q71:$CJ71,$Q$9:$CJ$9,AH$9-Inputs!$E$87) -> 0 | AI72: =-SUMIFS($Q71:$CJ71,$Q$9:$CJ$9,AI$9-Inputs!$E$87) -> 0 | AJ72: =-SUMIFS($Q71:$CJ71,$Q$9:$CJ$9,AJ$9-Inputs!$E$87) -> 0 | AK72: =-SUMIFS($Q71:$CJ71,$Q$9:$CJ$9,AK$9-Inputs!$E$87) -> 0 | AL72: =-SUMIFS($Q71:$CJ71,$Q$9:$CJ$9,AL$9-Inputs!$E$87) -> 0 | AM72: =-SUMIFS($Q71:$CJ71,$Q$9:$CJ$9,AM$9-Inputs!$E$87) -> 0 | AN72: =-SUMIFS($Q71:$CJ71,$Q$9:$CJ$9,AN$9-Inputs!$E$87) -> 0 | AO72: =-SUMIFS($Q71:$CJ71,$Q$9:$CJ$9,AO$9-Inputs!$E$87) -> 0 | AP72: =-SUMIFS($Q71:$CJ71,$Q$9:$CJ$9,AP$9-Inputs!$E$87) -> 0 | AQ72: =-SUMIFS($Q71:$CJ71,$Q$9:$CJ$9,AQ$9-Inputs!$E$87) -> 0 | AR72: =-SUMIFS($Q71:$CJ71,$Q$9:$CJ$9,AR$9-Inputs!$E$87) -> 0 | AS72: =-SUMIFS($Q71:$CJ71,$Q$9:$CJ$9,AS$9-Inputs!$E$87) -> 0 | AT72: =-SUMIFS($Q71:$CJ71,$Q$9:$CJ$9,AT$9-Inputs!$E$87) -> 0 | AU72: =-SUMIFS($Q71:$CJ71,$Q$9:$CJ$9,AU$9-Inputs!$E$87) -> 0 | AV72: =-SUMIFS($Q71:$CJ71,$Q$9:$CJ$9,AV$9-Inputs!$E$87) -> 0 | AW72: =-SUMIFS($Q71:$CJ71,$Q$9:$CJ$9,AW$9-Inputs!$E$87) -> 0 | AX72: =-SUMIFS($Q71:$CJ71,$Q$9:$CJ$9,AX$9-Inputs!$E$87) -> 0 | AY72: =-SUMIFS($Q71:$CJ71,$Q$9:$CJ$9,AY$9-Inputs!$E$87) -> 0 | AZ72: =-SUMIFS($Q71:$CJ71,$Q$9:$CJ$9,AZ$9-Inputs!$E$87) -> 0 | BA72: =-SUMIFS($Q71:$CJ71,$Q$9:$CJ$9,BA$9-Inputs!$E$87) -> 0 | BB72: =-SUMIFS($Q71:$CJ71,$Q$9:$CJ$9,BB$9-Inputs!$E$87) -> 0 | BC72: =-SUMIFS($Q71:$CJ71,$Q$9:$CJ$9,BC$9-Inputs!$E$87) -> 0 | BD72: =-SUMIFS($Q71:$CJ71,$Q$9:$CJ$9,BD$9-Inputs!$E$87) -> 0 | BE72: =-SUMIFS($Q71:$CJ71,$Q$9:$CJ$9,BE$9-Inputs!$E$87) -> 0 | BF72: =-SUMIFS($Q71:$CJ71,$Q$9:$CJ$9,BF$9-Inputs!$E$87) -> 0 | BG72: =-SUMIFS($Q71:$CJ71,$Q$9:$CJ$9,BG$9-Inputs!$E$87) -> 0 | BH72: =-SUMIFS($Q71:$CJ71,$Q$9:$CJ$9,BH$9-Inputs!$E$87) -> 0 | BI72: =-SUMIFS($Q71:$CJ71,$Q$9:$CJ$9,BI$9-Inputs!$E$87) -> 0 | BJ72: =-SUMIFS($Q71:$CJ71,$Q$9:$CJ$9,BJ$9-Inputs!$E$87) -> 0 | BK72: =-SUMIFS($Q71:$CJ71,$Q$9:$CJ$9,BK$9-Inputs!$E$87) -> 0 | BL72: =-SUMIFS($Q71:$CJ71,$Q$9:$CJ$9,BL$9-Inputs!$E$87) -> 0 | BM72: =-SUMIFS($Q71:$CJ71,$Q$9:$CJ$9,BM$9-Inputs!$E$87) -> 0 | BN72: =-SUMIFS($Q71:$CJ71,$Q$9:$CJ$9,BN$9-Inputs!$E$87) -> 0 | BO72: =-SUMIFS($Q71:$CJ71,$Q$9:$CJ$9,BO$9-Inputs!$E$87) -> 0 | BP72: =-SUMIFS($Q71:$CJ71,$Q$9:$CJ$9,BP$9-Inputs!$E$87) -> 0 | BQ72: =-SUMIFS($Q71:$CJ71,$Q$9:$CJ$9,BQ$9-Inputs!$E$87) -> 0 | BR72: =-SUMIFS($Q71:$CJ71,$Q$9:$CJ$9,BR$9-Inputs!$E$87) -> 0 | BS72: =-SUMIFS($Q71:$CJ71,$Q$9:$CJ$9,BS$9-Inputs!$E$87) -> 0 | BT72: =-SUMIFS($Q71:$CJ71,$Q$9:$CJ$9,BT$9-Inputs!$E$87) -> 0 | BU72: =-SUMIFS($Q71:$CJ71,$Q$9:$CJ$9,BU$9-Inputs!$E$87) -> 0 | BV72: =-SUMIFS($Q71:$CJ71,$Q$9:$CJ$9,BV$9-Inputs!$E$87) -> 0 | BW72: =-SUMIFS($Q71:$CJ71,$Q$9:$CJ$9,BW$9-Inputs!$E$87) -> 0 | BX72: =-SUMIFS($Q71:$CJ71,$Q$9:$CJ$9,BX$9-Inputs!$E$87) -> 0 | BY72: =-SUMIFS($Q71:$CJ71,$Q$9:$CJ$9,BY$9-Inputs!$E$87) -> 0 | BZ72: =-SUMIFS($Q71:$CJ71,$Q$9:$CJ$9,BZ$9-Inputs!$E$87) -> 0 | CA72: =-SUMIFS($Q71:$CJ71,$Q$9:$CJ$9,CA$9-Inputs!$E$87) -> 0 | CB72: =-SUMIFS($Q71:$CJ71,$Q$9:$CJ$9,CB$9-Inputs!$E$87) -> 0 | CC72: =-SUMIFS($Q71:$CJ71,$Q$9:$CJ$9,CC$9-Inputs!$E$87) -> 0 | CD72: =-SUMIFS($Q71:$CJ71,$Q$9:$CJ$9,CD$9-Inputs!$E$87) -> 0 | CE72: =-SUMIFS($Q71:$CJ71,$Q$9:$CJ$9,CE$9-Inputs!$E$87) -> 0 | CF72: =-SUMIFS($Q71:$CJ71,$Q$9:$CJ$9,CF$9-Inputs!$E$87) -> 0 | CG72: =-SUMIFS($Q71:$CJ71,$Q$9:$CJ$9,CG$9-Inputs!$E$87) -> 0 | CH72: =-SUMIFS($Q71:$CJ71,$Q$9:$CJ$9,CH$9-Inputs!$E$87) -> 0 | CI72: =-SUMIFS($Q71:$CJ71,$Q$9:$CJ$9,CI$9-Inputs!$E$87) -> 0 | CJ72: =-SUMIFS($Q71:$CJ71,$Q$9:$CJ$9,CJ$9-Inputs!$E$87) -> 0
C73: Balance c/f | D73: # | I73: =SUM(I70:I72) -> 0 | J73: 0 | K73: 0 | L73: 0 | M73: 3832.92 | N73: 3832.92 | Q73: =SUM(Q70:Q72) -> 0 | R73: =SUM(R70:R72) -> 0 | S73: =SUM(S70:S72) -> 0 | T73: 0 | U73: 0 | V73: 0 | W73: 0 | X73: 0 | Y73: 0 | Z73: 0 | AA73: 0 | AB73: 0 | AC73: 0 | AD73: 0 | AE73: 0 | AF73: 0 | AG73: 0 | AH73: 0 | AI73: 0 | AJ73: 0 | AK73: 0 | AL73: 0 | AM73: 0 | AN73: 0 | AO73: 0 | AP73: 0 | AQ73: 0 | AR73: 0 | AS73: 0 | AT73: 0 | AU73: 0 | AV73: 0 | AW73: 0 | AX73: 0 | AY73: 0 | AZ73: 0 | BA73: 0 | BB73: 0 | BC73: 0 | BD73: 0 | BE73: 0 | BF73: 0 | BG73: 0 | BH73: 0 | BI73: 0 | BJ73: 0 | BK73: 0 | BL73: 0 | BM73: 319.41 | BN73: 638.82 | BO73: 958.23 | BP73: 1277.64 | BQ73: 1597.05 | BR73: 1916.46 | BS73: 2235.87 | BT73: 2555.28 | BU73: 2874.69 | BV73: 3194.1 | BW73: 3513.51 | BX73: 3832.92 | BY73: 3832.92 | BZ73: 3832.92 | CA73: 3832.92 | CB73: 3832.92 | CC73: 3832.92 | CD73: 3832.92 | CE73: =SUM(CE70:CE72) -> 3832.92 | CF73: 3832.92 | CG73: 3832.92 | CH73: 3832.92 | CI73: 3832.92 | CJ73: 3832.92
C75: Revenue | D75: NGN | F75: =INDEX(Inputs!$I$84:$N$84, MATCH(F$39,Inputs!$I$75:$N$75,0)) -> 252000 | I75: =SUMIF($Q$6:$CJ$6,I$6,$Q75:$CJ75) -> 0 | J75: 0 | K75: 0 | L75: 0 | M75: 965895840 | N75: 0 | Q75: =Q71*$F75 -> 0 | R75: 0 | S75: 0 | T75: 0 | U75: 0 | V75: 0 | W75: 0 | X75: 0 | Y75: 0 | Z75: 0 | AA75: 0 | AB75: 0 | AC75: 0 | AD75: 0 | AE75: 0 | AF75: 0 | AG75: 0 | AH75: 0 | AI75: 0 | AJ75: 0 | AK75: 0 | AL75: 0 | AM75: 0 | AN75: 0 | AO75: 0 | AP75: 0 | AQ75: 0 | AR75: 0 | AS75: 0 | AT75: 0 | AU75: 0 | AV75: 0 | AW75: =AW71*$F75 -> 0 | AX75: 0 | AY75: 0 | AZ75: 0 | BA75: 0 | BB75: 0 | BC75: 0 | BD75: 0 | BE75: 0 | BF75: 0 | BG75: 0 | BH75: 0 | BI75: 0 | BJ75: 0 | BK75: 0 | BL75: 0 | BM75: 80491320 | BN75: 80491320 | BO75: 80491320 | BP75: 80491320 | BQ75: 80491320 | BR75: 80491320 | BS75: 80491320 | BT75: 80491320 | BU75: 80491320 | BV75: 80491320 | BW75: 80491320 | BX75: 80491320 | BY75: 0 | BZ75: 0 | CA75: 0 | CB75: 0 | CC75: =CC71*$F75 -> 0 | CD75: 0 | CE75: 0 | CF75: 0 | CG75: 0 | CH75: 0 | CI75: 0 | CJ75: 0
C76: Down payment | D76: NGN | F76: =INDEX(Inputs!$I$85:$N$85, MATCH(F$39,Inputs!$I$75:$N$75,0)) -> 63000 | I76: 0 | J76: 0 | K76: 0 | L76: 0 | M76: 241473960 | N76: 0 | Q76: =Q71*$F76 -> 0 | R76: 0 | S76: 0 | T76: 0 | U76: 0 | V76: 0 | W76: 0 | X76: 0 | Y76: 0 | Z76: 0 | AA76: 0 | AB76: 0 | AC76: 0 | AD76: 0 | AE76: 0 | AF76: 0 | AG76: 0 | AH76: 0 | AI76: 0 | AJ76: 0 | AK76: 0 | AL76: 0 | AM76: 0 | AN76: 0 | AO76: 0 | AP76: 0 | AQ76: 0 | AR76: 0 | AS76: 0 | AT76: 0 | AU76: 0 | AV76: 0 | AW76: =AW71*$F76 -> 0 | AX76: 0 | AY76: 0 | AZ76: 0 | BA76: 0 | BB76: 0 | BC76: 0 | BD76: 0 | BE76: 0 | BF76: 0 | BG76: 0 | BH76: 0 | BI76: 0 | BJ76: 0 | BK76: 0 | BL76: 0 | BM76: 20122830 | BN76: 20122830 | BO76: 20122830 | BP76: 20122830 | BQ76: 20122830 | BR76: 20122830 | BS76: 20122830 | BT76: 20122830 | BU76: 20122830 | BV76: 20122830 | BW76: 20122830 | BX76: 20122830 | BY76: 0 | BZ76: 0 | CA76: 0 | CB76: 0 | CC76: =CC71*$F76 -> 0 | CD76: 0 | CE76: 0 | CF76: 0 | CG76: 0 | CH76: 0 | CI76: 0 | CJ76: 0
C77: Monthly payment revenue | D77: NGN | F77: =INDEX(Inputs!$I$86:$N$86, MATCH(F$39,Inputs!$I$75:$N$75,0)) -> 5250 | I77: 0 | J77: 0 | K77: 0 | L77: 0 | M77: 130798395 | N77: 241473960 | Q77: =Q73*$F77 -> 0 | R77: 0 | S77: 0 | T77: 0 | U77: 0 | V77: 0 | W77: 0 | X77: 0 | Y77: 0 | Z77: 0 | AA77: 0 | AB77: 0 | AC77: 0 | AD77: 0 | AE77: 0 | AF77: 0 | AG77: 0 | AH77: 0 | AI77: 0 | AJ77: 0 | AK77: 0 | AL77: 0 | AM77: 0 | AN77: 0 | AO77: 0 | AP77: 0 | AQ77: 0 | AR77: 0 | AS77: 0 | AT77: 0 | AU77: 0 | AV77: 0 | AW77: =AW73*$F77 -> 0 | AX77: 0 | AY77: 0 | AZ77: 0 | BA77: 0 | BB77: 0 | BC77: 0 | BD77: 0 | BE77: 0 | BF77: 0 | BG77: 0 | BH77: 0 | BI77: 0 | BJ77: 0 | BK77: 0 | BL77: 0 | BM77: 1676902.5 | BN77: 3353805 | BO77: 5030707.5 | BP77: 6707610 | BQ77: 8384512.5 | BR77: 10061415 | BS77: 11738317.5 | BT77: 13415220 | BU77: 15092122.5 | BV77: 16769025 | BW77: 18445927.5 | BX77: 20122830 | BY77: 20122830 | BZ77: 20122830 | CA77: 20122830 | CB77: 20122830 | CC77: =CC73*$F77 -> 20122830 | CD77: 20122830 | CE77: 20122830 | CF77: 20122830 | CG77: 20122830 | CH77: 20122830 | CI77: 20122830 | CJ77: 20122830
C79: Year 6 | F79: =F69+1 -> 2025
C80: Balance b/f | D80: # | I80: =Q80 -> 0 | J80: =I83 -> 0 | K80: =J83 -> 0 | L80: =K83 -> 0 | M80: =L83 -> 0 | N80: =M83 -> 0 | R80: =Q83 -> 0 | S80: =R83 -> 0 | T80: =S83 -> 0 | U80: =T83 -> 0 | V80: =U83 -> 0 | W80: =V83 -> 0 | X80: =W83 -> 0 | Y80: =X83 -> 0 | Z80: =Y83 -> 0 | AA80: =Z83 -> 0 | AB80: =AA83 -> 0 | AC80: =AB83 -> 0 | AD80: =AC83 -> 0 | AE80: =AD83 -> 0 | AF80: =AE83 -> 0 | AG80: =AF83 -> 0 | AH80: =AG83 -> 0 | AI80: =AH83 -> 0 | AJ80: =AI83 -> 0 | AK80: =AJ83 -> 0 | AL80: =AK83 -> 0 | AM80: =AL83 -> 0 | AN80: =AM83 -> 0 | AO80: =AN83 -> 0 | AP80: =AO83 -> 0 | AQ80: =AP83 -> 0 | AR80: =AQ83 -> 0 | AS80: =AR83 -> 0 | AT80: =AS83 -> 0 | AU80: =AT83 -> 0 | AV80: =AU83 -> 0 | AW80: =AV83 -> 0 | AX80: =AW83 -> 0 | AY80: =AX83 -> 0 | AZ80: =AY83 -> 0 | BA80: =AZ83 -> 0 | BB80: =BA83 -> 0 | BC80: =BB83 -> 0 | BD80: =BC83 -> 0 | BE80: =BD83 -> 0 | BF80: =BE83 -> 0 | BG80: =BF83 -> 0 | BH80: =BG83 -> 0 | BI80: =BH83 -> 0 | BJ80: =BI83 -> 0 | BK80: =BJ83 -> 0 | BL80: =BK83 -> 0 | BM80: =BL83 -> 0 | BN80: =BM83 -> 0 | BO80: =BN83 -> 0 | BP80: =BO83 -> 0 | BQ80: =BP83 -> 0 | BR80: =BQ83 -> 0 | BS80: =BR83 -> 0 | BT80: =BS83 -> 0 | BU80: =BT83 -> 0 | BV80: =BU83 -> 0 | BW80: =BV83 -> 0 | BX80: =BW83 -> 0 | BY80: =BX83 -> 0 | BZ80: =BY83 -> 383.292 | CA80: =BZ83 -> 766.584 | CB80: =CA83 -> 1149.876 | CC80: =CB83 -> 1533.168 | CD80: =CC83 -> 1916.46 | CE80: =CD83 -> 2299.752 | CF80: =CE83 -> 2683.044 | CG80: =CF83 -> 3066.336 | CH80: =CG83 -> 3449.628 | CI80: =CH83 -> 3832.92 | CJ80: =CI83 -> 4216.212
C81: New contracts | D81: # | I81: =SUMIF($Q$6:$CJ$6,I$6,$Q81:$CJ81) -> 0 | J81: 0 | K81: 0 | L81: 0 | M81: 0 | N81: 4599.504 | Q81: =IF(Q$6=$F79,Q$17,0) -> 0 | R81: 0 | S81: 0 | T81: 0 | U81: 0 | V81: 0 | W81: 0 | X81: 0 | Y81: 0 | Z81: 0 | AA81: 0 | AB81: 0 | AC81: 0 | AD81: 0 | AE81: 0 | AF81: 0 | AG81: 0 | AH81: 0 | AI81: 0 | AJ81: 0 | AK81: 0 | AL81: 0 | AM81: 0 | AN81: 0 | AO81: 0 | AP81: 0 | AQ81: 0 | AR81: 0 | AS81: 0 | AT81: 0 | AU81: 0 | AV81: 0 | AW81: =IF(AW$6=$F79,AW$17,0) -> 0 | AX81: 0 | AY81: 0 | AZ81: 0 | BA81: 0 | BB81: 0 | BC81: 0 | BD81: 0 | BE81: 0 | BF81: 0 | BG81: 0 | BH81: 0 | BI81: 0 | BJ81: 0 | BK81: 0 | BL81: 0 | BM81: 0 | BN81: 0 | BO81: 0 | BP81: 0 | BQ81: 0 | BR81: 0 | BS81: 0 | BT81: 0 | BU81: 0 | BV81: 0 | BW81: 0 | BX81: 0 | BY81: 383.292 | BZ81: 383.292 | CA81: 383.292 | CB81: 383.292 | CC81: =IF(CC$6=$F79,CC$17,0) -> 383.292 | CD81: 383.292 | CE81: 383.292 | CF81: 383.292 | CG81: 383.292 | CH81: 383.292 | CI81: 383.292 | CJ81: 383.292
C82: Contracts ended | D82: # | I82: 0 | J82: 0 | K82: 0 | L82: 0 | M82: 0 | N82: 0 | Q82: =-SUMIFS($Q81:$CJ81,$Q$9:$CJ$9,Q$9-Inputs!$E$87) -> 0 | R82: =-SUMIFS($Q81:$CJ81,$Q$9:$CJ$9,R$9-Inputs!$E$87) -> 0 | S82: =-SUMIFS($Q81:$CJ81,$Q$9:$CJ$9,S$9-Inputs!$E$87) -> 0 | T82: =-SUMIFS($Q81:$CJ81,$Q$9:$CJ$9,T$9-Inputs!$E$87) -> 0 | U82: =-SUMIFS($Q81:$CJ81,$Q$9:$CJ$9,U$9-Inputs!$E$87) -> 0 | V82: =-SUMIFS($Q81:$CJ81,$Q$9:$CJ$9,V$9-Inputs!$E$87) -> 0 | W82: =-SUMIFS($Q81:$CJ81,$Q$9:$CJ$9,W$9-Inputs!$E$87) -> 0 | X82: =-SUMIFS($Q81:$CJ81,$Q$9:$CJ$9,X$9-Inputs!$E$87) -> 0 | Y82: =-SUMIFS($Q81:$CJ81,$Q$9:$CJ$9,Y$9-Inputs!$E$87) -> 0 | Z82: =-SUMIFS($Q81:$CJ81,$Q$9:$CJ$9,Z$9-Inputs!$E$87) -> 0 | AA82: =-SUMIFS($Q81:$CJ81,$Q$9:$CJ$9,AA$9-Inputs!$E$87) -> 0 | AB82: =-SUMIFS($Q81:$CJ81,$Q$9:$CJ$9,AB$9-Inputs!$E$87) -> 0 | AC82: =-SUMIFS($Q81:$CJ81,$Q$9:$CJ$9,AC$9-Inputs!$E$87) -> 0 | AD82: =-SUMIFS($Q81:$CJ81,$Q$9:$CJ$9,AD$9-Inputs!$E$87) -> 0 | AE82: =-SUMIFS($Q81:$CJ81,$Q$9:$CJ$9,AE$9-Inputs!$E$87) -> 0 | AF82: =-SUMIFS($Q81:$CJ81,$Q$9:$CJ$9,AF$9-Inputs!$E$87) -> 0 | AG82: =-SUMIFS($Q81:$CJ81,$Q$9:$CJ$9,AG$9-Inputs!$E$87) -> 0 | AH82: =-SUMIFS($Q81:$CJ81,$Q$9:$CJ$9,AH$9-Inputs!$E$87) -> 0 | AI82: =-SUMIFS($Q81:$CJ81,$Q$9:$CJ$9,AI$9-Inputs!$E$87) -> 0 | AJ82: =-SUMIFS($Q81:$CJ81,$Q$9:$CJ$9,AJ$9-Inputs!$E$87) -> 0 | AK82: =-SUMIFS($Q81:$CJ81,$Q$9:$CJ$9,AK$9-Inputs!$E$87) -> 0 | AL82: =-SUMIFS($Q81:$CJ81,$Q$9:$CJ$9,AL$9-Inputs!$E$87) -> 0 | AM82: =-SUMIFS($Q81:$CJ81,$Q$9:$CJ$9,AM$9-Inputs!$E$87) -> 0 | AN82: =-SUMIFS($Q81:$CJ81,$Q$9:$CJ$9,AN$9-Inputs!$E$87) -> 0 | AO82: =-SUMIFS($Q81:$CJ81,$Q$9:$CJ$9,AO$9-Inputs!$E$87) -> 0 | AP82: =-SUMIFS($Q81:$CJ81,$Q$9:$CJ$9,AP$9-Inputs!$E$87) -> 0 | AQ82: =-SUMIFS($Q81:$CJ81,$Q$9:$CJ$9,AQ$9-Inputs!$E$87) -> 0 | AR82: =-SUMIFS($Q81:$CJ81,$Q$9:$CJ$9,AR$9-Inputs!$E$87) -> 0 | AS82: =-SUMIFS($Q81:$CJ81,$Q$9:$CJ$9,AS$9-Inputs!$E$87) -> 0 | AT82: =-SUMIFS($Q81:$CJ81,$Q$9:$CJ$9,AT$9-Inputs!$E$87) -> 0 | AU82: =-SUMIFS($Q81:$CJ81,$Q$9:$CJ$9,AU$9-Inputs!$E$87) -> 0 | AV82: =-SUMIFS($Q81:$CJ81,$Q$9:$CJ$9,AV$9-Inputs!$E$87) -> 0 | AW82: =-SUMIFS($Q81:$CJ81,$Q$9:$CJ$9,AW$9-Inputs!$E$87) -> 0 | AX82: =-SUMIFS($Q81:$CJ81,$Q$9:$CJ$9,AX$9-Inputs!$E$87) -> 0 | AY82: =-SUMIFS($Q81:$CJ81,$Q$9:$CJ$9,AY$9-Inputs!$E$87) -> 0 | AZ82: =-SUMIFS($Q81:$CJ81,$Q$9:$CJ$9,AZ$9-Inputs!$E$87) -> 0 | BA82: =-SUMIFS($Q81:$CJ81,$Q$9:$CJ$9,BA$9-Inputs!$E$87) -> 0 | BB82: =-SUMIFS($Q81:$CJ81,$Q$9:$CJ$9,BB$9-Inputs!$E$87) -> 0 | BC82: =-SUMIFS($Q81:$CJ81,$Q$9:$CJ$9,BC$9-Inputs!$E$87) -> 0 | BD82: =-SUMIFS($Q81:$CJ81,$Q$9:$CJ$9,BD$9-Inputs!$E$87) -> 0 | BE82: =-SUMIFS($Q81:$CJ81,$Q$9:$CJ$9,BE$9-Inputs!$E$87) -> 0 | BF82: =-SUMIFS($Q81:$CJ81,$Q$9:$CJ$9,BF$9-Inputs!$E$87) -> 0 | BG82: =-SUMIFS($Q81:$CJ81,$Q$9:$CJ$9,BG$9-Inputs!$E$87) -> 0 | BH82: =-SUMIFS($Q81:$CJ81,$Q$9:$CJ$9,BH$9-Inputs!$E$87) -> 0 | BI82: =-SUMIFS($Q81:$CJ81,$Q$9:$CJ$9,BI$9-Inputs!$E$87) -> 0 | BJ82: =-SUMIFS($Q81:$CJ81,$Q$9:$CJ$9,BJ$9-Inputs!$E$87) -> 0 | BK82: =-SUMIFS($Q81:$CJ81,$Q$9:$CJ$9,BK$9-Inputs!$E$87) -> 0 | BL82: =-SUMIFS($Q81:$CJ81,$Q$9:$CJ$9,BL$9-Inputs!$E$87) -> 0 | BM82: =-SUMIFS($Q81:$CJ81,$Q$9:$CJ$9,BM$9-Inputs!$E$87) -> 0 | BN82: =-SUMIFS($Q81:$CJ81,$Q$9:$CJ$9,BN$9-Inputs!$E$87) -> 0 | BO82: =-SUMIFS($Q81:$CJ81,$Q$9:$CJ$9,BO$9-Inputs!$E$87) -> 0 | BP82: =-SUMIFS($Q81:$CJ81,$Q$9:$CJ$9,BP$9-Inputs!$E$87) -> 0 | BQ82: =-SUMIFS($Q81:$CJ81,$Q$9:$CJ$9,BQ$9-Inputs!$E$87) -> 0 | BR82: =-SUMIFS($Q81:$CJ81,$Q$9:$CJ$9,BR$9-Inputs!$E$87) -> 0 | BS82: =-SUMIFS($Q81:$CJ81,$Q$9:$CJ$9,BS$9-Inputs!$E$87) -> 0 | BT82: =-SUMIFS($Q81:$CJ81,$Q$9:$CJ$9,BT$9-Inputs!$E$87) -> 0 | BU82: =-SUMIFS($Q81:$CJ81,$Q$9:$CJ$9,BU$9-Inputs!$E$87) -> 0 | BV82: =-SUMIFS($Q81:$CJ81,$Q$9:$CJ$9,BV$9-Inputs!$E$87) -> 0 | BW82: =-SUMIFS($Q81:$CJ81,$Q$9:$CJ$9,BW$9-Inputs!$E$87) -> 0 | BX82: =-SUMIFS($Q81:$CJ81,$Q$9:$CJ$9,BX$9-Inputs!$E$87) -> 0 | BY82: =-SUMIFS($Q81:$CJ81,$Q$9:$CJ$9,BY$9-Inputs!$E$87) -> 0 | BZ82: =-SUMIFS($Q81:$CJ81,$Q$9:$CJ$9,BZ$9-Inputs!$E$87) -> 0 | CA82: =-SUMIFS($Q81:$CJ81,$Q$9:$CJ$9,CA$9-Inputs!$E$87) -> 0 | CB82: =-SUMIFS($Q81:$CJ81,$Q$9:$CJ$9,CB$9-Inputs!$E$87) -> 0 | CC82: =-SUMIFS($Q81:$CJ81,$Q$9:$CJ$9,CC$9-Inputs!$E$87) -> 0 | CD82: =-SUMIFS($Q81:$CJ81,$Q$9:$CJ$9,CD$9-Inputs!$E$87) -> 0 | CE82: =-SUMIFS($Q81:$CJ81,$Q$9:$CJ$9,CE$9-Inputs!$E$87) -> 0 | CF82: =-SUMIFS($Q81:$CJ81,$Q$9:$CJ$9,CF$9-Inputs!$E$87) -> 0 | CG82: =-SUMIFS($Q81:$CJ81,$Q$9:$CJ$9,CG$9-Inputs!$E$87) -> 0 | CH82: =-SUMIFS($Q81:$CJ81,$Q$9:$CJ$9,CH$9-Inputs!$E$87) -> 0 | CI82: =-SUMIFS($Q81:$CJ81,$Q$9:$CJ$9,CI$9-Inputs!$E$87) -> 0 | CJ82: =-SUMIFS($Q81:$CJ81,$Q$9:$CJ$9,CJ$9-Inputs!$E$87) -> 0
C83: Balance c/f | D83: # | I83: =SUM(I80:I82) -> 0 | J83: 0 | K83: 0 | L83: 0 | M83: 0 | N83: 4599.504 | Q83: =SUM(Q80:Q82) -> 0 | R83: =SUM(R80:R82) -> 0 | S83: =SUM(S80:S82) -> 0 | T83: 0 | U83: 0 | V83: 0 | W83: 0 | X83: 0 | Y83: 0 | Z83: 0 | AA83: 0 | AB83: 0 | AC83: 0 | AD83: 0 | AE83: 0 | AF83: 0 | AG83: 0 | AH83: 0 | AI83: 0 | AJ83: 0 | AK83: 0 | AL83: 0 | AM83: 0 | AN83: 0 | AO83: 0 | AP83: 0 | AQ83: 0 | AR83: 0 | AS83: 0 | AT83: 0 | AU83: 0 | AV83: 0 | AW83: 0 | AX83: 0 | AY83: 0 | AZ83: 0 | BA83: 0 | BB83: 0 | BC83: 0 | BD83: 0 | BE83: 0 | BF83: 0 | BG83: 0 | BH83: 0 | BI83: 0 | BJ83: 0 | BK83: 0 | BL83: 0 | BM83: 0 | BN83: 0 | BO83: 0 | BP83: 0 | BQ83: 0 | BR83: 0 | BS83: 0 | BT83: 0 | BU83: 0 | BV83: 0 | BW83: 0 | BX83: 0 | BY83: 383.292 | BZ83: 766.584 | CA83: 1149.876 | CB83: 1533.168 | CC83: 1916.46 | CD83: 2299.752 | CE83: =SUM(CE80:CE82) -> 2683.044 | CF83: 3066.336 | CG83: 3449.628 | CH83: 3832.92 | CI83: 4216.212 | CJ83: 4599.504
C85: Revenue | D85: NGN | F85: =INDEX(Inputs!$I$84:$N$84, MATCH(F$39,Inputs!$I$75:$N$75,0)) -> 252000 | I85: =SUMIF($Q$6:$CJ$6,I$6,$Q85:$CJ85) -> 0 | J85: 0 | K85: 0 | L85: 0 | M85: 0 | N85: 1159075008 | Q85: =Q81*$F85 -> 0 | R85: 0 | S85: 0 | T85: 0 | U85: 0 | V85: 0 | W85: 0 | X85: 0 | Y85: 0 | Z85: 0 | AA85: 0 | AB85: 0 | AC85: 0 | AD85: 0 | AE85: 0 | AF85: 0 | AG85: 0 | AH85: 0 | AI85: 0 | AJ85: 0 | AK85: 0 | AL85: 0 | AM85: 0 | AN85: 0 | AO85: 0 | AP85: 0 | AQ85: 0 | AR85: 0 | AS85: 0 | AT85: 0 | AU85: 0 | AV85: 0 | AW85: =AW81*$F85 -> 0 | AX85: 0 | AY85: 0 | AZ85: 0 | BA85: 0 | BB85: 0 | BC85: 0 | BD85: 0 | BE85: 0 | BF85: 0 | BG85: 0 | BH85: 0 | BI85: 0 | BJ85: 0 | BK85: 0 | BL85: 0 | BM85: 0 | BN85: 0 | BO85: 0 | BP85: 0 | BQ85: 0 | BR85: 0 | BS85: 0 | BT85: 0 | BU85: 0 | BV85: 0 | BW85: 0 | BX85: 0 | BY85: 96589584 | BZ85: 96589584 | CA85: 96589584 | CB85: 96589584 | CC85: =CC81*$F85 -> 96589584 | CD85: 96589584 | CE85: 96589584 | CF85: 96589584 | CG85: 96589584 | CH85: 96589584 | CI85: 96589584 | CJ85: 96589584
C86: Down payment | D86: NGN | F86: =INDEX(Inputs!$I$85:$N$85, MATCH(F$39,Inputs!$I$75:$N$75,0)) -> 63000 | I86: 0 | J86: 0 | K86: 0 | L86: 0 | M86: 0 | N86: 289768752 | Q86: =Q81*$F86 -> 0 | R86: 0 | S86: 0 | T86: 0 | U86: 0 | V86: 0 | W86: 0 | X86: 0 | Y86: 0 | Z86: 0 | AA86: 0 | AB86: 0 | AC86: 0 | AD86: 0 | AE86: 0 | AF86: 0 | AG86: 0 | AH86: 0 | AI86: 0 | AJ86: 0 | AK86: 0 | AL86: 0 | AM86: 0 | AN86: 0 | AO86: 0 | AP86: 0 | AQ86: 0 | AR86: 0 | AS86: 0 | AT86: 0 | AU86: 0 | AV86: 0 | AW86: =AW81*$F86 -> 0 | AX86: 0 | AY86: 0 | AZ86: 0 | BA86: 0 | BB86: 0 | BC86: 0 | BD86: 0 | BE86: 0 | BF86: 0 | BG86: 0 | BH86: 0 | BI86: 0 | BJ86: 0 | BK86: 0 | BL86: 0 | BM86: 0 | BN86: 0 | BO86: 0 | BP86: 0 | BQ86: 0 | BR86: 0 | BS86: 0 | BT86: 0 | BU86: 0 | BV86: 0 | BW86: 0 | BX86: 0 | BY86: 24147396 | BZ86: 24147396 | CA86: 24147396 | CB86: 24147396 | CC86: =CC81*$F86 -> 24147396 | CD86: 24147396 | CE86: 24147396 | CF86: 24147396 | CG86: 24147396 | CH86: 24147396 | CI86: 24147396 | CJ86: 24147396
C87: Monthly payment revenue | D87: NGN | F87: =INDEX(Inputs!$I$86:$N$86, MATCH(F$39,Inputs!$I$75:$N$75,0)) -> 5250 | I87: 0 | J87: 0 | K87: 0 | L87: 0 | M87: 0 | N87: 156958074 | Q87: =Q83*$F87 -> 0 | R87: 0 | S87: 0 | T87: 0 | U87: 0 | V87: 0 | W87: 0 | X87: 0 | Y87: 0 | Z87: 0 | AA87: 0 | AB87: 0 | AC87: 0 | AD87: 0 | AE87: 0 | AF87: 0 | AG87: 0 | AH87: 0 | AI87: 0 | AJ87: 0 | AK87: 0 | AL87: 0 | AM87: 0 | AN87: 0 | AO87: 0 | AP87: 0 | AQ87: 0 | AR87: 0 | AS87: 0 | AT87: 0 | AU87: 0 | AV87: 0 | AW87: =AW83*$F87 -> 0 | AX87: 0 | AY87: 0 | AZ87: 0 | BA87: 0 | BB87: 0 | BC87: 0 | BD87: 0 | BE87: 0 | BF87: 0 | BG87: 0 | BH87: 0 | BI87: 0 | BJ87: 0 | BK87: 0 | BL87: 0 | BM87: 0 | BN87: 0 | BO87: 0 | BP87: 0 | BQ87: 0 | BR87: 0 | BS87: 0 | BT87: 0 | BU87: 0 | BV87: 0 | BW87: 0 | BX87: 0 | BY87: 2012283 | BZ87: 4024566 | CA87: 6036849 | CB87: 8049132 | CC87: =CC83*$F87 -> 10061415 | CD87: 12073698 | CE87: 14085981 | CF87: 16098264 | CG87: 18110547 | CH87: 20122830 | CI87: 22135113 | CJ87: 24147396
C90: Product 1 COGS | D90: NGN | F90: =Inputs!E34 -> 77175 | I90: =SUMIF($Q$6:$CJ$6,I$6,$Q90:$CJ90) -> -92610000 | J90: -129654000 | K90: -175032900 | L90: -227542770 | M90: -295805601 | N90: -354966721.2 | Q90: =-$F90*Q17 -> -7717500 | R90: -7717500 | S90: -7717500 | T90: -7717500 | U90: -7717500 | V90: -7717500 | W90: -7717500 | X90: -7717500 | Y90: -7717500 | Z90: -7717500 | AA90: -7717500 | AB90: -7717500 | AC90: -10804500 | AD90: -10804500 | AE90: -10804500 | AF90: -10804500 | AG90: -10804500 | AH90: -10804500 | AI90: -10804500 | AJ90: -10804500 | AK90: -10804500 | AL90: -10804500 | AM90: -10804500 | AN90: -10804500 | AO90: -14586075 | AP90: -14586075 | AQ90: -14586075 | AR90: -14586075 | AS90: -14586075 | AT90: -14586075 | AU90: -14586075 | AV90: -14586075 | AW90: =-$F90*AW17 -> -14586075 | AX90: -14586075 | AY90: -14586075 | AZ90: -14586075 | BA90: -18961897.5 | BB90: -18961897.5 | BC90: -18961897.5 | BD90: -18961897.5 | BE90: -18961897.5 | BF90: -18961897.5 | BG90: -18961897.5 | BH90: -18961897.5 | BI90: -18961897.5 | BJ90: -18961897.5 | BK90: -18961897.5 | BL90: -18961897.5 | BM90: -24650466.75 | BN90: -24650466.75 | BO90: -24650466.75 | BP90: -24650466.75 | BQ90: -24650466.75 | BR90: -24650466.75 | BS90: -24650466.75 | BT90: -24650466.75 | BU90: -24650466.75 | BV90: -24650466.75 | BW90: -24650466.75 | BX90: -24650466.75 | BY90: -29580560.1 | BZ90: -29580560.1 | CA90: -29580560.1 | CB90: -29580560.1 | CC90: =-$F90*CC17 -> -29580560.1 | CD90: -29580560.1 | CE90: -29580560.1 | CF90: -29580560.1 | CG90: -29580560.1 | CH90: -29580560.1 | CI90: -29580560.1 | CJ90: -29580560.1
C94: Product 2 sales
C95: Sales percentage | D95: % | I95: =SUMIF($Q$6:$CJ$6,I$6,$Q95:$CJ95) -> 1 | J95: 1 | K95: 1 | L95: 1 | M95: 1 | N95: 1 | Q95: =INDEX(Inputs!$I$100:$T$100, MATCH(MONTH('Monthly Sales Profile'!Q$7), Inputs!$I$99:$T$99,0)) -> 0.08333333333 | R95: =INDEX(Inputs!$I$100:$T$100, MATCH(MONTH('Monthly Sales Profile'!R$7), Inputs!$I$99:$T$99,0)) -> 0.08333333333 | S95: =INDEX(Inputs!$I$100:$T$100, MATCH(MONTH('Monthly Sales Profile'!S$7), Inputs!$I$99:$T$99,0)) -> 0.08333333333 | T95: =INDEX(Inputs!$I$100:$T$100, MATCH(MONTH('Monthly Sales Profile'!T$7), Inputs!$I$99:$T$99,0)) -> 0.08333333333 | U95: =INDEX(Inputs!$I$100:$T$100, MATCH(MONTH('Monthly Sales Profile'!U$7), Inputs!$I$99:$T$99,0)) -> 0.08333333333 | V95: =INDEX(Inputs!$I$100:$T$100, MATCH(MONTH('Monthly Sales Profile'!V$7), Inputs!$I$99:$T$99,0)) -> 0.08333333333 | W95: =INDEX(Inputs!$I$100:$T$100, MATCH(MONTH('Monthly Sales Profile'!W$7), Inputs!$I$99:$T$99,0)) -> 0.08333333333 | X95: =INDEX(Inputs!$I$100:$T$100, MATCH(MONTH('Monthly Sales Profile'!X$7), Inputs!$I$99:$T$99,0)) -> 0.08333333333 | Y95: =INDEX(Inputs!$I$100:$T$100, MATCH(MONTH('Monthly Sales Profile'!Y$7), Inputs!$I$99:$T$99,0)) -> 0.08333333333 | Z95: =INDEX(Inputs!$I$100:$T$100, MATCH(MONTH('Monthly Sales Profile'!Z$7), Inputs!$I$99:$T$99,0)) -> 0.08333333333 | AA95: =INDEX(Inputs!$I$100:$T$100, MATCH(MONTH('Monthly Sales Profile'!AA$7), Inputs!$I$99:$T$99,0)) -> 0.08333333333 | AB95: =INDEX(Inputs!$I$100:$T$100, MATCH(MONTH('Monthly Sales Profile'!AB$7), Inputs!$I$99:$T$99,0)) -> 0.08333333333 | AC95: =INDEX(Inputs!$I$100:$T$100, MATCH(MONTH('Monthly Sales Profile'!AC$7), Inputs!$I$99:$T$99,0)) -> 0.08333333333 | AD95: =INDEX(Inputs!$I$100:$T$100, MATCH(MONTH('Monthly Sales Profile'!AD$7), Inputs!$I$99:$T$99,0)) -> 0.08333333333 | AE95: =INDEX(Inputs!$I$100:$T$100, MATCH(MONTH('Monthly Sales Profile'!AE$7), Inputs!$I$99:$T$99,0)) -> 0.08333333333 | AF95: =INDEX(Inputs!$I$100:$T$100, MATCH(MONTH('Monthly Sales Profile'!AF$7), Inputs!$I$99:$T$99,0)) -> 0.08333333333 | AG95: =INDEX(Inputs!$I$100:$T$100, MATCH(MONTH('Monthly Sales Profile'!AG$7), Inputs!$I$99:$T$99,0)) -> 0.08333333333 | AH95: =INDEX(Inputs!$I$100:$T$100, MATCH(MONTH('Monthly Sales Profile'!AH$7), Inputs!$I$99:$T$99,0)) -> 0.08333333333 | AI95: =INDEX(Inputs!$I$100:$T$100, MATCH(MONTH('Monthly Sales Profile'!AI$7), Inputs!$I$99:$T$99,0)) -> 0.08333333333 | AJ95: =INDEX(Inputs!$I$100:$T$100, MATCH(MONTH('Monthly Sales Profile'!AJ$7), Inputs!$I$99:$T$99,0)) -> 0.08333333333 | AK95: =INDEX(Inputs!$I$100:$T$100, MATCH(MONTH('Monthly Sales Profile'!AK$7), Inputs!$I$99:$T$99,0)) -> 0.08333333333 | AL95: =INDEX(Inputs!$I$100:$T$100, MATCH(MONTH('Monthly Sales Profile'!AL$7), Inputs!$I$99:$T$99,0)) -> 0.08333333333 | AM95: =INDEX(Inputs!$I$100:$T$100, MATCH(MONTH('Monthly Sales Profile'!AM$7), Inputs!$I$99:$T$99,0)) -> 0.08333333333 | AN95: =INDEX(Inputs!$I$100:$T$100, MATCH(MONTH('Monthly Sales Profile'!AN$7), Inputs!$I$99:$T$99,0)) -> 0.08333333333 | AO95: =INDEX(Inputs!$I$100:$T$100, MATCH(MONTH('Monthly Sales Profile'!AO$7), Inputs!$I$99:$T$99,0)) -> 0.08333333333 | AP95: =INDEX(Inputs!$I$100:$T$100, MATCH(MONTH('Monthly Sales Profile'!AP$7), Inputs!$I$99:$T$99,0)) -> 0.08333333333 | AQ95: =INDEX(Inputs!$I$100:$T$100, MATCH(MONTH('Monthly Sales Profile'!AQ$7), Inputs!$I$99:$T$99,0)) -> 0.08333333333 | AR95: =INDEX(Inputs!$I$100:$T$100, MATCH(MONTH('Monthly Sales Profile'!AR$7), Inputs!$I$99:$T$99,0)) -> 0.08333333333 | AS95: =INDEX(Inputs!$I$100:$T$100, MATCH(MONTH('Monthly Sales Profile'!AS$7), Inputs!$I$99:$T$99,0)) -> 0.08333333333 | AT95: =INDEX(Inputs!$I$100:$T$100, MATCH(MONTH('Monthly Sales Profile'!AT$7), Inputs!$I$99:$T$99,0)) -> 0.08333333333 | AU95: =INDEX(Inputs!$I$100:$T$100, MATCH(MONTH('Monthly Sales Profile'!AU$7), Inputs!$I$99:$T$99,0)) -> 0.08333333333 | AV95: =INDEX(Inputs!$I$100:$T$100, MATCH(MONTH('Monthly Sales Profile'!AV$7), Inputs!$I$99:$T$99,0)) -> 0.08333333333 | AW95: =INDEX(Inputs!$I$100:$T$100, MATCH(MONTH('Monthly Sales Profile'!AW$7), Inputs!$I$99:$T$99,0)) -> 0.08333333333 | AX95: =INDEX(Inputs!$I$100:$T$100, MATCH(MONTH('Monthly Sales Profile'!AX$7), Inputs!$I$99:$T$99,0)) -> 0.08333333333 | AY95: =INDEX(Inputs!$I$100:$T$100, MATCH(MONTH('Monthly Sales Profile'!AY$7), Inputs!$I$99:$T$99,0)) -> 0.08333333333 | AZ95: =INDEX(Inputs!$I$100:$T$100, MATCH(MONTH('Monthly Sales Profile'!AZ$7), Inputs!$I$99:$T$99,0)) -> 0.08333333333 | BA95: =INDEX(Inputs!$I$100:$T$100, MATCH(MONTH('Monthly Sales Profile'!BA$7), Inputs!$I$99:$T$99,0)) -> 0.08333333333 | BB95: =INDEX(Inputs!$I$100:$T$100, MATCH(MONTH('Monthly Sales Profile'!BB$7), Inputs!$I$99:$T$99,0)) -> 0.08333333333 | BC95: =INDEX(Inputs!$I$100:$T$100, MATCH(MONTH('Monthly Sales Profile'!BC$7), Inputs!$I$99:$T$99,0)) -> 0.08333333333 | BD95: =INDEX(Inputs!$I$100:$T$100, MATCH(MONTH('Monthly Sales Profile'!BD$7), Inputs!$I$99:$T$99,0)) -> 0.08333333333 | BE95: =INDEX(Inputs!$I$100:$T$100, MATCH(MONTH('Monthly Sales Profile'!BE$7), Inputs!$I$99:$T$99,0)) -> 0.08333333333 | BF95: =INDEX(Inputs!$I$100:$T$100, MATCH(MONTH('Monthly Sales Profile'!BF$7), Inputs!$I$99:$T$99,0)) -> 0.08333333333 | BG95: =INDEX(Inputs!$I$100:$T$100, MATCH(MONTH('Monthly Sales Profile'!BG$7), Inputs!$I$99:$T$99,0)) -> 0.08333333333 | BH95: =INDEX(Inputs!$I$100:$T$100, MATCH(MONTH('Monthly Sales Profile'!BH$7), Inputs!$I$99:$T$99,0)) -> 0.08333333333 | BI95: =INDEX(Inputs!$I$100:$T$100, MATCH(MONTH('Monthly Sales Profile'!BI$7), Inputs!$I$99:$T$99,0)) -> 0.08333333333 | BJ95: =INDEX(Inputs!$I$100:$T$100, MATCH(MONTH('Monthly Sales Profile'!BJ$7), Inputs!$I$99:$T$99,0)) -> 0.08333333333 | BK95: =INDEX(Inputs!$I$100:$T$100, MATCH(MONTH('Monthly Sales Profile'!BK$7), Inputs!$I$99:$T$99,0)) -> 0.08333333333 | BL95: =INDEX(Inputs!$I$100:$T$100, MATCH(MONTH('Monthly Sales Profile'!BL$7), Inputs!$I$99:$T$99,0)) -> 0.08333333333 | BM95: =INDEX(Inputs!$I$100:$T$100, MATCH(MONTH('Monthly Sales Profile'!BM$7), Inputs!$I$99:$T$99,0)) -> 0.08333333333 | BN95: =INDEX(Inputs!$I$100:$T$100, MATCH(MONTH('Monthly Sales Profile'!BN$7), Inputs!$I$99:$T$99,0)) -> 0.08333333333 | BO95: =INDEX(Inputs!$I$100:$T$100, MATCH(MONTH('Monthly Sales Profile'!BO$7), Inputs!$I$99:$T$99,0)) -> 0.08333333333 | BP95: =INDEX(Inputs!$I$100:$T$100, MATCH(MONTH('Monthly Sales Profile'!BP$7), Inputs!$I$99:$T$99,0)) -> 0.08333333333 | BQ95: =INDEX(Inputs!$I$100:$T$100, MATCH(MONTH('Monthly Sales Profile'!BQ$7), Inputs!$I$99:$T$99,0)) -> 0.08333333333 | BR95: =INDEX(Inputs!$I$100:$T$100, MATCH(MONTH('Monthly Sales Profile'!BR$7), Inputs!$I$99:$T$99,0)) -> 0.08333333333 | BS95: =INDEX(Inputs!$I$100:$T$100, MATCH(MONTH('Monthly Sales Profile'!BS$7), Inputs!$I$99:$T$99,0)) -> 0.08333333333 | BT95: =INDEX(Inputs!$I$100:$T$100, MATCH(MONTH('Monthly Sales Profile'!BT$7), Inputs!$I$99:$T$99,0)) -> 0.08333333333 | BU95: =INDEX(Inputs!$I$100:$T$100, MATCH(MONTH('Monthly Sales Profile'!BU$7), Inputs!$I$99:$T$99,0)) -> 0.08333333333 | BV95: =INDEX(Inputs!$I$100:$T$100, MATCH(MONTH('Monthly Sales Profile'!BV$7), Inputs!$I$99:$T$99,0)) -> 0.08333333333 | BW95: =INDEX(Inputs!$I$100:$T$100, MATCH(MONTH('Monthly Sales Profile'!BW$7), Inputs!$I$99:$T$99,0)) -> 0.08333333333 | BX95: =INDEX(Inputs!$I$100:$T$100, MATCH(MONTH('Monthly Sales Profile'!BX$7), Inputs!$I$99:$T$99,0)) -> 0.08333333333 | BY95: =INDEX(Inputs!$I$100:$T$100, MATCH(MONTH('Monthly Sales Profile'!BY$7), Inputs!$I$99:$T$99,0)) -> 0.08333333333 | BZ95: =INDEX(Inputs!$I$100:$T$100, MATCH(MONTH('Monthly Sales Profile'!BZ$7), Inputs!$I$99:$T$99,0)) -> 0.08333333333 | CA95: =INDEX(Inputs!$I$100:$T$100, MATCH(MONTH('Monthly Sales Profile'!CA$7), Inputs!$I$99:$T$99,0)) -> 0.08333333333 | CB95: =INDEX(Inputs!$I$100:$T$100, MATCH(MONTH('Monthly Sales Profile'!CB$7), Inputs!$I$99:$T$99,0)) -> 0.08333333333 | CC95: =INDEX(Inputs!$I$100:$T$100, MATCH(MONTH('Monthly Sales Profile'!CC$7), Inputs!$I$99:$T$99,0)) -> 0.08333333333 | CD95: =INDEX(Inputs!$I$100:$T$100, MATCH(MONTH('Monthly Sales Profile'!CD$7), Inputs!$I$99:$T$99,0)) -> 0.08333333333 | CE95: =INDEX(Inputs!$I$100:$T$100, MATCH(MONTH('Monthly Sales Profile'!CE$7), Inputs!$I$99:$T$99,0)) -> 0.08333333333 | CF95: =INDEX(Inputs!$I$100:$T$100, MATCH(MONTH('Monthly Sales Profile'!CF$7), Inputs!$I$99:$T$99,0)) -> 0.08333333333 | CG95: =INDEX(Inputs!$I$100:$T$100, MATCH(MONTH('Monthly Sales Profile'!CG$7), Inputs!$I$99:$T$99,0)) -> 0.08333333333 | CH95: =INDEX(Inputs!$I$100:$T$100, MATCH(MONTH('Monthly Sales Profile'!CH$7), Inputs!$I$99:$T$99,0)) -> 0.08333333333 | CI95: =INDEX(Inputs!$I$100:$T$100, MATCH(MONTH('Monthly Sales Profile'!CI$7), Inputs!$I$99:$T$99,0)) -> 0.08333333333 | CJ95: =INDEX(Inputs!$I$100:$T$100, MATCH(MONTH('Monthly Sales Profile'!CJ$7), Inputs!$I$99:$T$99,0)) -> 0.08333333333
C96: Annual sales | D96: # | I96: =Inputs!I97 -> 800 | J96: =Inputs!J97 -> 1120 | K96: =Inputs!K97 -> 1512 | L96: =Inputs!L97 -> 1965.6 | M96: =Inputs!M97 -> 2555.28 | N96: =Inputs!N97 -> 3066.336 | Q96: =INDEX($I96:$N96,MATCH('Monthly Sales Profile'!Q$6,$I$6:$N$6,0)) -> 800 | R96: =INDEX($I96:$N96,MATCH('Monthly Sales Profile'!R$6,$I$6:$N$6,0)) -> 800 | S96: =INDEX($I96:$N96,MATCH('Monthly Sales Profile'!S$6,$I$6:$N$6,0)) -> 800 | T96: =INDEX($I96:$N96,MATCH('Monthly Sales Profile'!T$6,$I$6:$N$6,0)) -> 800 | U96: =INDEX($I96:$N96,MATCH('Monthly Sales Profile'!U$6,$I$6:$N$6,0)) -> 800 | V96: =INDEX($I96:$N96,MATCH('Monthly Sales Profile'!V$6,$I$6:$N$6,0)) -> 800 | W96: =INDEX($I96:$N96,MATCH('Monthly Sales Profile'!W$6,$I$6:$N$6,0)) -> 800 | X96: =INDEX($I96:$N96,MATCH('Monthly Sales Profile'!X$6,$I$6:$N$6,0)) -> 800 | Y96: =INDEX($I96:$N96,MATCH('Monthly Sales Profile'!Y$6,$I$6:$N$6,0)) -> 800 | Z96: =INDEX($I96:$N96,MATCH('Monthly Sales Profile'!Z$6,$I$6:$N$6,0)) -> 800 | AA96: =INDEX($I96:$N96,MATCH('Monthly Sales Profile'!AA$6,$I$6:$N$6,0)) -> 800 | AB96: =INDEX($I96:$N96,MATCH('Monthly Sales Profile'!AB$6,$I$6:$N$6,0)) -> 800 | AC96: =INDEX($I96:$N96,MATCH('Monthly Sales Profile'!AC$6,$I$6:$N$6,0)) -> 1120 | AD96: =INDEX($I96:$N96,MATCH('Monthly Sales Profile'!AD$6,$I$6:$N$6,0)) -> 1120 | AE96: =INDEX($I96:$N96,MATCH('Monthly Sales Profile'!AE$6,$I$6:$N$6,0)) -> 1120 | AF96: =INDEX($I96:$N96,MATCH('Monthly Sales Profile'!AF$6,$I$6:$N$6,0)) -> 1120 | AG96: =INDEX($I96:$N96,MATCH('Monthly Sales Profile'!AG$6,$I$6:$N$6,0)) -> 1120 | AH96: =INDEX($I96:$N96,MATCH('Monthly Sales Profile'!AH$6,$I$6:$N$6,0)) -> 1120 | AI96: =INDEX($I96:$N96,MATCH('Monthly Sales Profile'!AI$6,$I$6:$N$6,0)) -> 1120 | AJ96: =INDEX($I96:$N96,MATCH('Monthly Sales Profile'!AJ$6,$I$6:$N$6,0)) -> 1120 | AK96: =INDEX($I96:$N96,MATCH('Monthly Sales Profile'!AK$6,$I$6:$N$6,0)) -> 1120 | AL96: =INDEX($I96:$N96,MATCH('Monthly Sales Profile'!AL$6,$I$6:$N$6,0)) -> 1120 | AM96: =INDEX($I96:$N96,MATCH('Monthly Sales Profile'!AM$6,$I$6:$N$6,0)) -> 1120 | AN96: =INDEX($I96:$N96,MATCH('Monthly Sales Profile'!AN$6,$I$6:$N$6,0)) -> 1120 | AO96: =INDEX($I96:$N96,MATCH('Monthly Sales Profile'!AO$6,$I$6:$N$6,0)) -> 1512 | AP96: =INDEX($I96:$N96,MATCH('Monthly Sales Profile'!AP$6,$I$6:$N$6,0)) -> 1512 | AQ96: =INDEX($I96:$N96,MATCH('Monthly Sales Profile'!AQ$6,$I$6:$N$6,0)) -> 1512 | AR96: =INDEX($I96:$N96,MATCH('Monthly Sales Profile'!AR$6,$I$6:$N$6,0)) -> 1512 | AS96: =INDEX($I96:$N96,MATCH('Monthly Sales Profile'!AS$6,$I$6:$N$6,0)) -> 1512 | AT96: =INDEX($I96:$N96,MATCH('Monthly Sales Profile'!AT$6,$I$6:$N$6,0)) -> 1512 | AU96: =INDEX($I96:$N96,MATCH('Monthly Sales Profile'!AU$6,$I$6:$N$6,0)) -> 1512 | AV96: =INDEX($I96:$N96,MATCH('Monthly Sales Profile'!AV$6,$I$6:$N$6,0)) -> 1512 | AW96: =INDEX($I96:$N96,MATCH('Monthly Sales Profile'!AW$6,$I$6:$N$6,0)) -> 1512 | AX96: =INDEX($I96:$N96,MATCH('Monthly Sales Profile'!AX$6,$I$6:$N$6,0)) -> 1512 | AY96: =INDEX($I96:$N96,MATCH('Monthly Sales Profile'!AY$6,$I$6:$N$6,0)) -> 1512 | AZ96: =INDEX($I96:$N96,MATCH('Monthly Sales Profile'!AZ$6,$I$6:$N$6,0)) -> 1512 | BA96: =INDEX($I96:$N96,MATCH('Monthly Sales Profile'!BA$6,$I$6:$N$6,0)) -> 1965.6 | BB96: =INDEX($I96:$N96,MATCH('Monthly Sales Profile'!BB$6,$I$6:$N$6,0)) -> 1965.6 | BC96: =INDEX($I96:$N96,MATCH('Monthly Sales Profile'!BC$6,$I$6:$N$6,0)) -> 1965.6 | BD96: =INDEX($I96:$N96,MATCH('Monthly Sales Profile'!BD$6,$I$6:$N$6,0)) -> 1965.6 | BE96: =INDEX($I96:$N96,MATCH('Monthly Sales Profile'!BE$6,$I$6:$N$6,0)) -> 1965.6 | BF96: =INDEX($I96:$N96,MATCH('Monthly Sales Profile'!BF$6,$I$6:$N$6,0)) -> 1965.6 | BG96: =INDEX($I96:$N96,MATCH('Monthly Sales Profile'!BG$6,$I$6:$N$6,0)) -> 1965.6 | BH96: =INDEX($I96:$N96,MATCH('Monthly Sales Profile'!BH$6,$I$6:$N$6,0)) -> 1965.6 | BI96: =INDEX($I96:$N96,MATCH('Monthly Sales Profile'!BI$6,$I$6:$N$6,0)) -> 1965.6 | BJ96: =INDEX($I96:$N96,MATCH('Monthly Sales Profile'!BJ$6,$I$6:$N$6,0)) -> 1965.6 | BK96: =INDEX($I96:$N96,MATCH('Monthly Sales Profile'!BK$6,$I$6:$N$6,0)) -> 1965.6 | BL96: =INDEX($I96:$N96,MATCH('Monthly Sales Profile'!BL$6,$I$6:$N$6,0)) -> 1965.6 | BM96: =INDEX($I96:$N96,MATCH('Monthly Sales Profile'!BM$6,$I$6:$N$6,0)) -> 2555.28 | BN96: =INDEX($I96:$N96,MATCH('Monthly Sales Profile'!BN$6,$I$6:$N$6,0)) -> 2555.28 | BO96: =INDEX($I96:$N96,MATCH('Monthly Sales Profile'!BO$6,$I$6:$N$6,0)) -> 2555.28 | BP96: =INDEX($I96:$N96,MATCH('Monthly Sales Profile'!BP$6,$I$6:$N$6,0)) -> 2555.28 | BQ96: =INDEX($I96:$N96,MATCH('Monthly Sales Profile'!BQ$6,$I$6:$N$6,0)) -> 2555.28 | BR96: =INDEX($I96:$N96,MATCH('Monthly Sales Profile'!BR$6,$I$6:$N$6,0)) -> 2555.28 | BS96: =INDEX($I96:$N96,MATCH('Monthly Sales Profile'!BS$6,$I$6:$N$6,0)) -> 2555.28 | BT96: =INDEX($I96:$N96,MATCH('Monthly Sales Profile'!BT$6,$I$6:$N$6,0)) -> 2555.28 | BU96: =INDEX($I96:$N96,MATCH('Monthly Sales Profile'!BU$6,$I$6:$N$6,0)) -> 2555.28 | BV96: =INDEX($I96:$N96,MATCH('Monthly Sales Profile'!BV$6,$I$6:$N$6,0)) -> 2555.28 | BW96: =INDEX($I96:$N96,MATCH('Monthly Sales Profile'!BW$6,$I$6:$N$6,0)) -> 2555.28 | BX96: =INDEX($I96:$N96,MATCH('Monthly Sales Profile'!BX$6,$I$6:$N$6,0)) -> 2555.28 | BY96: =INDEX($I96:$N96,MATCH('Monthly Sales Profile'!BY$6,$I$6:$N$6,0)) -> 3066.336 | BZ96: =INDEX($I96:$N96,MATCH('Monthly Sales Profile'!BZ$6,$I$6:$N$6,0)) -> 3066.336 | CA96: =INDEX($I96:$N96,MATCH('Monthly Sales Profile'!CA$6,$I$6:$N$6,0)) -> 3066.336 | CB96: =INDEX($I96:$N96,MATCH('Monthly Sales Profile'!CB$6,$I$6:$N$6,0)) -> 3066.336 | CC96: =INDEX($I96:$N96,MATCH('Monthly Sales Profile'!CC$6,$I$6:$N$6,0)) -> 3066.336 | CD96: =INDEX($I96:$N96,MATCH('Monthly Sales Profile'!CD$6,$I$6:$N$6,0)) -> 3066.336 | CE96: =INDEX($I96:$N96,MATCH('Monthly Sales Profile'!CE$6,$I$6:$N$6,0)) -> 3066.336 | CF96: =INDEX($I96:$N96,MATCH('Monthly Sales Profile'!CF$6,$I$6:$N$6,0)) -> 3066.336 | CG96: =INDEX($I96:$N96,MATCH('Monthly Sales Profile'!CG$6,$I$6:$N$6,0)) -> 3066.336 | CH96: =INDEX($I96:$N96,MATCH('Monthly Sales Profile'!CH$6,$I$6:$N$6,0)) -> 3066.336 | CI96: =INDEX($I96:$N96,MATCH('Monthly Sales Profile'!CI$6,$I$6:$N$6,0)) -> 3066.336 | CJ96: =INDEX($I96:$N96,MATCH('Monthly Sales Profile'!CJ$6,$I$6:$N$6,0)) -> 3066.336
C97: Monthly sales | D97: # | Q97: =Q96*Q95 -> 66.66666667 | R97: 66.66666667 | S97: 66.66666667 | T97: 66.66666667 | U97: 66.66666667 | V97: 66.66666667 | W97: 66.66666667 | X97: 66.66666667 | Y97: 66.66666667 | Z97: 66.66666667 | AA97: 66.66666667 | AB97: 66.66666667 | AC97: 93.33333333 | AD97: 93.33333333 | AE97: 93.33333333 | AF97: 93.33333333 | AG97: 93.33333333 | AH97: 93.33333333 | AI97: 93.33333333 | AJ97: 93.33333333 | AK97: 93.33333333 | AL97: 93.33333333 | AM97: 93.33333333 | AN97: 93.33333333 | AO97: 126 | AP97: 126 | AQ97: 126 | AR97: 126 | AS97: 126 | AT97: 126 | AU97: 126 | AV97: 126 | AW97: 126 | AX97: 126 | AY97: 126 | AZ97: 126 | BA97: 163.8 | BB97: 163.8 | BC97: 163.8 | BD97: 163.8 | BE97: 163.8 | BF97: 163.8 | BG97: 163.8 | BH97: 163.8 | BI97: 163.8 | BJ97: 163.8 | BK97: 163.8 | BL97: 163.8 | BM97: 212.94 | BN97: 212.94 | BO97: 212.94 | BP97: 212.94 | BQ97: 212.94 | BR97: 212.94 | BS97: 212.94 | BT97: 212.94 | BU97: 212.94 | BV97: 212.94 | BW97: 212.94 | BX97: 212.94 | BY97: 255.528 | BZ97: 255.528 | CA97: 255.528 | CB97: 255.528 | CC97: =CC96*CC95 -> 255.528 | CD97: 255.528 | CE97: 255.528 | CF97: 255.528 | CG97: 255.528 | CH97: 255.528 | CI97: 255.528 | CJ97: 255.528
C99: Balance b/f | D99: # | I99: =Q99 -> 0 | J99: =I102 -> 800 | K99: =J102 -> 1920 | L99: =K102 -> 3432 | M99: =L102 -> 4597.6 | N99: =M102 -> 6032.88 | R99: =Q102 -> 66.66666667 | S99: =R102 -> 133.3333333 | T99: =S102 -> 200 | U99: =T102 -> 266.6666667 | V99: =U102 -> 333.3333333 | W99: =V102 -> 400 | X99: =W102 -> 466.6666667 | Y99: =X102 -> 533.3333333 | Z99: =Y102 -> 600 | AA99: =Z102 -> 666.6666667 | AB99: =AA102 -> 733.3333333 | AC99: =AB102 -> 800 | AD99: =AC102 -> 893.3333333 | AE99: =AD102 -> 986.6666667 | AF99: =AE102 -> 1080 | AG99: =AF102 -> 1173.333333 | AH99: =AG102 -> 1266.666667 | AI99: =AH102 -> 1360 | AJ99: =AI102 -> 1453.333333 | AK99: =AJ102 -> 1546.666667 | AL99: =AK102 -> 1640 | AM99: =AL102 -> 1733.333333 | AN99: =AM102 -> 1826.666667 | AO99: =AN102 -> 1920 | AP99: =AO102 -> 2046 | AQ99: =AP102 -> 2172 | AR99: =AQ102 -> 2298 | AS99: =AR102 -> 2424 | AT99: =AS102 -> 2550 | AU99: =AT102 -> 2676 | AV99: =AU102 -> 2802 | AW99: =AV102 -> 2928 | AX99: =AW102 -> 3054 | AY99: =AX102 -> 3180 | AZ99: =AY102 -> 3306 | BA99: =AZ102 -> 3432 | BB99: =BA102 -> 3529.133333 | BC99: =BB102 -> 3626.266667 | BD99: =BC102 -> 3723.4 | BE99: =BD102 -> 3820.533333 | BF99: =BE102 -> 3917.666667 | BG99: =BF102 -> 4014.8 | BH99: =BG102 -> 4111.933333 | BI99: =BH102 -> 4209.066667 | BJ99: =BI102 -> 4306.2 | BK99: =BJ102 -> 4403.333333 | BL99: =BK102 -> 4500.466667 | BM99: =BL102 -> 4597.6 | BN99: =BM102 -> 4717.206667 | BO99: =BN102 -> 4836.813333 | BP99: =BO102 -> 4956.42 | BQ99: =BP102 -> 5076.026667 | BR99: =BQ102 -> 5195.633333 | BS99: =BR102 -> 5315.24 | BT99: =BS102 -> 5434.846667 | BU99: =BT102 -> 5554.453333 | BV99: =BU102 -> 5674.06 | BW99: =BV102 -> 5793.666667 | BX99: =BW102 -> 5913.273333 | BY99: =BX102 -> 6032.88 | BZ99: =BY102 -> 6162.408 | CA99: =BZ102 -> 6291.936 | CB99: =CA102 -> 6421.464 | CC99: =CB102 -> 6550.992 | CD99: =CC102 -> 6680.52 | CE99: =CD102 -> 6810.048 | CF99: =CE102 -> 6939.576 | CG99: =CF102 -> 7069.104 | CH99: =CG102 -> 7198.632 | CI99: =CH102 -> 7328.16 | CJ99: =CI102 -> 7457.688
C100: New contracts | D100: # | I100: =SUMIF($Q$6:$CJ$6,I$6,$Q100:$CJ100) -> 800 | J100: 1120 | K100: 1512 | L100: 1965.6 | M100: 2555.28 | N100: 3066.336 | Q100: =SUM(Q111,Q121,Q131,Q141,Q151,Q161) -> 66.66666667 | R100: 66.66666667 | S100: 66.66666667 | T100: 66.66666667 | U100: 66.66666667 | V100: 66.66666667 | W100: 66.66666667 | X100: 66.66666667 | Y100: 66.66666667 | Z100: 66.66666667 | AA100: 66.66666667 | AB100: 66.66666667 | AC100: 93.33333333 | AD100: 93.33333333 | AE100: 93.33333333 | AF100: 93.33333333 | AG100: 93.33333333 | AH100: 93.33333333 | AI100: 93.33333333 | AJ100: 93.33333333 | AK100: 93.33333333 | AL100: 93.33333333 | AM100: 93.33333333 | AN100: 93.33333333 | AO100: 126 | AP100: 126 | AQ100: 126 | AR100: 126 | AS100: 126 | AT100: 126 | AU100: 126 | AV100: 126 | AW100: =SUM(AW111,AW121,AW131,AW141,AW151,AW161) -> 126 | AX100: 126 | AY100: 126 | AZ100: 126 | BA100: 163.8 | BB100: 163.8 | BC100: 163.8 | BD100: 163.8 | BE100: 163.8 | BF100: 163.8 | BG100: 163.8 | BH100: 163.8 | BI100: 163.8 | BJ100: 163.8 | BK100: 163.8 | BL100: 163.8 | BM100: 212.94 | BN100: 212.94 | BO100: 212.94 | BP100: 212.94 | BQ100: 212.94 | BR100: 212.94 | BS100: 212.94 | BT100: 212.94 | BU100: 212.94 | BV100: 212.94 | BW100: 212.94 | BX100: 212.94 | BY100: 255.528 | BZ100: 255.528 | CA100: 255.528 | CB100: 255.528 | CC100: =SUM(CC111,CC121,CC131,CC141,CC151,CC161) -> 255.528 | CD100: 255.528 | CE100: 255.528 | CF100: 255.528 | CG100: 255.528 | CH100: 255.528 | CI100: 255.528 | CJ100: 255.528
C101: Contracts ended | D101: # | I101: 0 | J101: 0 | K101: 0 | L101: -800 | M101: -1120 | N101: -1512 | Q101: =SUM(Q112,Q122,Q132,Q142,Q152,Q162) -> 0 | R101: 0 | S101: 0 | T101: 0 | U101: 0 | V101: 0 | W101: 0 | X101: 0 | Y101: 0 | Z101: 0 | AA101: 0 | AB101: 0 | AC101: 0 | AD101: 0 | AE101: 0 | AF101: 0 | AG101: 0 | AH101: 0 | AI101: 0 | AJ101: 0 | AK101: 0 | AL101: 0 | AM101: 0 | AN101: 0 | AO101: 0 | AP101: 0 | AQ101: 0 | AR101: 0 | AS101: 0 | AT101: 0 | AU101: 0 | AV101: 0 | AW101: =SUM(AW112,AW122,AW132,AW142,AW152,AW162) -> 0 | AX101: 0 | AY101: 0 | AZ101: 0 | BA101: -66.66666667 | BB101: -66.66666667 | BC101: -66.66666667 | BD101: -66.66666667 | BE101: -66.66666667 | BF101: -66.66666667 | BG101: -66.66666667 | BH101: -66.66666667 | BI101: -66.66666667 | BJ101: -66.66666667 | BK101: -66.66666667 | BL101: -66.66666667 | BM101: -93.33333333 | BN101: -93.33333333 | BO101: -93.33333333 | BP101: -93.33333333 | BQ101: -93.33333333 | BR101: -93.33333333 | BS101: -93.33333333 | BT101: -93.33333333 | BU101: -93.33333333 | BV101: -93.33333333 | BW101: -93.33333333 | BX101: -93.33333333 | BY101: -126 | BZ101: -126 | CA101: -126 | CB101: -126 | CC101: =SUM(CC112,CC122,CC132,CC142,CC152,CC162) -> -126 | CD101: -126 | CE101: -126 | CF101: -126 | CG101: -126 | CH101: -126 | CI101: -126 | CJ101: -126
C102: Balance c/f | D102: # | I102: =SUM(I99:I101) -> 800 | J102: 1920 | K102: 3432 | L102: 4597.6 | M102: 6032.88 | N102: 7587.216 | Q102: =SUM(Q99:Q101) -> 66.66666667 | R102: =SUM(R99:R101) -> 133.3333333 | S102: =SUM(S99:S101) -> 200 | T102: 266.6666667 | U102: 333.3333333 | V102: 400 | W102: 466.6666667 | X102: 533.3333333 | Y102: 600 | Z102: 666.6666667 | AA102: 733.3333333 | AB102: 800 | AC102: 893.3333333 | AD102: 986.6666667 | AE102: 1080 | AF102: 1173.333333 | AG102: 1266.666667 | AH102: 1360 | AI102: 1453.333333 | AJ102: 1546.666667 | AK102: 1640 | AL102: 1733.333333 | AM102: 1826.666667 | AN102: 1920 | AO102: 2046 | AP102: 2172 | AQ102: 2298 | AR102: 2424 | AS102: 2550 | AT102: 2676 | AU102: 2802 | AV102: 2928 | AW102: 3054 | AX102: 3180 | AY102: 3306 | AZ102: 3432 | BA102: 3529.133333 | BB102: 3626.266667 | BC102: 3723.4 | BD102: 3820.533333 | BE102: 3917.666667 | BF102: 4014.8 | BG102: 4111.933333 | BH102: 4209.066667 | BI102: 4306.2 | BJ102: 4403.333333 | BK102: 4500.466667 | BL102: 4597.6 | BM102: 4717.206667 | BN102: 4836.813333 | BO102: 4956.42 | BP102: 5076.026667 | BQ102: 5195.633333 | BR102: 5315.24 | BS102: 5434.846667 | BT102: 5554.453333 | BU102: 5674.06 | BV102: 5793.666667 | BW102: 5913.273333 | BX102: 6032.88 | BY102: 6162.408 | BZ102: 6291.936 | CA102: 6421.464 | CB102: 6550.992 | CC102: 6680.52 | CD102: 6810.048 | CE102: =SUM(CE99:CE101) -> 6939.576 | CF102: 7069.104 | CG102: 7198.632 | CH102: 7328.16 | CI102: 7457.688 | CJ102: 7587.216
C104: Revenue | D104: NGN | I104: =SUMIF($Q$6:$CJ$6,I$6,$Q104:$CJ104) -> 332000000 | J104: 488040000 | K104: 691796700 | L104: 944302495.5 | M104: 1288972906 | N104: 1624105862 | Q104: =SUM(Q115,Q125,Q135,Q145,Q155,Q165) -> 27666666.67 | R104: 27666666.67 | S104: 27666666.67 | T104: 27666666.67 | U104: 27666666.67 | V104: 27666666.67 | W104: 27666666.67 | X104: 27666666.67 | Y104: 27666666.67 | Z104: 27666666.67 | AA104: 27666666.67 | AB104: 27666666.67 | AC104: 40670000 | AD104: 40670000 | AE104: 40670000 | AF104: 40670000 | AG104: 40670000 | AH104: 40670000 | AI104: 40670000 | AJ104: 40670000 | AK104: 40670000 | AL104: 40670000 | AM104: 40670000 | AN104: 40670000 | AO104: 57649725 | AP104: 57649725 | AQ104: 57649725 | AR104: 57649725 | AS104: 57649725 | AT104: 57649725 | AU104: 57649725 | AV104: 57649725 | AW104: =SUM(AW115,AW125,AW135,AW145,AW155,AW165) -> 57649725 | AX104: 57649725 | AY104: 57649725 | AZ104: 57649725 | BA104: 78691874.62 | BB104: 78691874.62 | BC104: 78691874.62 | BD104: 78691874.62 | BE104: 78691874.62 | BF104: 78691874.62 | BG104: 78691874.62 | BH104: 78691874.62 | BI104: 78691874.62 | BJ104: 78691874.62 | BK104: 78691874.62 | BL104: 78691874.62 | BM104: 107414408.9 | BN104: 107414408.9 | BO104: 107414408.9 | BP104: 107414408.9 | BQ104: 107414408.9 | BR104: 107414408.9 | BS104: 107414408.9 | BT104: 107414408.9 | BU104: 107414408.9 | BV104: 107414408.9 | BW104: 107414408.9 | BX104: 107414408.9 | BY104: 135342155.2 | BZ104: 135342155.2 | CA104: 135342155.2 | CB104: 135342155.2 | CC104: =SUM(CC115,CC125,CC135,CC145,CC155,CC165) -> 135342155.2 | CD104: 135342155.2 | CE104: 135342155.2 | CF104: 135342155.2 | CG104: 135342155.2 | CH104: 135342155.2 | CI104: 135342155.2 | CJ104: 135342155.2
C105: Down payment | D105: NGN | I105: 188000000 | J105: 276360000 | K105: 391740300 | L105: 534725509.5 | M105: 729900320.5 | N105: 919674403.8 | Q105: =SUM(Q116,Q126,Q136,Q146,Q156,Q166) -> 15666666.67 | R105: 15666666.67 | S105: 15666666.67 | T105: 15666666.67 | U105: 15666666.67 | V105: 15666666.67 | W105: 15666666.67 | X105: 15666666.67 | Y105: 15666666.67 | Z105: 15666666.67 | AA105: 15666666.67 | AB105: 15666666.67 | AC105: 23030000 | AD105: 23030000 | AE105: 23030000 | AF105: 23030000 | AG105: 23030000 | AH105: 23030000 | AI105: 23030000 | AJ105: 23030000 | AK105: 23030000 | AL105: 23030000 | AM105: 23030000 | AN105: 23030000 | AO105: 32645025 | AP105: 32645025 | AQ105: 32645025 | AR105: 32645025 | AS105: 32645025 | AT105: 32645025 | AU105: 32645025 | AV105: 32645025 | AW105: =SUM(AW116,AW126,AW136,AW146,AW156,AW166) -> 32645025 | AX105: 32645025 | AY105: 32645025 | AZ105: 32645025 | BA105: 44560459.12 | BB105: 44560459.12 | BC105: 44560459.12 | BD105: 44560459.12 | BE105: 44560459.12 | BF105: 44560459.12 | BG105: 44560459.12 | BH105: 44560459.12 | BI105: 44560459.12 | BJ105: 44560459.12 | BK105: 44560459.12 | BL105: 44560459.12 | BM105: 60825026.71 | BN105: 60825026.71 | BO105: 60825026.71 | BP105: 60825026.71 | BQ105: 60825026.71 | BR105: 60825026.71 | BS105: 60825026.71 | BT105: 60825026.71 | BU105: 60825026.71 | BV105: 60825026.71 | BW105: 60825026.71 | BX105: 60825026.71 | BY105: 76639533.65 | BZ105: 76639533.65 | CA105: 76639533.65 | CB105: 76639533.65 | CC105: =SUM(CC116,CC126,CC136,CC146,CC156,CC166) -> 76639533.65 | CD105: 76639533.65 | CE105: 76639533.65 | CF105: 76639533.65 | CG105: 76639533.65 | CH105: 76639533.65 | CI105: 76639533.65 | CJ105: 76639533.65
C106: Monthly payment revenue | D106: NGN | I106: 26000000 | J106: 86220000 | K106: 172736850 | L106: 266530200.2 | M106: 369828123.3 | N106: 495914153.9 | Q106: =SUM(Q117,Q127,Q137,Q147,Q157,Q167) -> 333333.3333 | R106: 666666.6667 | S106: 1000000 | T106: 1333333.333 | U106: 1666666.667 | V106: 2000000 | W106: 2333333.333 | X106: 2666666.667 | Y106: 3000000 | Z106: 3333333.333 | AA106: 3666666.667 | AB106: 4000000 | AC106: 4490000 | AD106: 4980000 | AE106: 5470000 | AF106: 5960000 | AG106: 6450000 | AH106: 6940000 | AI106: 7430000 | AJ106: 7920000 | AK106: 8410000 | AL106: 8900000 | AM106: 9390000 | AN106: 9880000 | AO106: 10574575 | AP106: 11269150 | AQ106: 11963725 | AR106: 12658300 | AS106: 13352875 | AT106: 14047450 | AU106: 14742025 | AV106: 15436600 | AW106: =SUM(AW117,AW127,AW137,AW147,AW157,AW167) -> 16131175 | AX106: 16825750 | AY106: 17520325 | AZ106: 18214900 | BA106: 18829661.54 | BB106: 19444423.08 | BC106: 20059184.62 | BD106: 20673946.17 | BE106: 21288707.71 | BF106: 21903469.25 | BG106: 22518230.79 | BH106: 23132992.33 | BI106: 23747753.88 | BJ106: 24362515.42 | BK106: 24977276.96 | BL106: 25592038.5 | BM106: 26396188 | BN106: 27200337.51 | BO106: 28004487.01 | BP106: 28808636.52 | BQ106: 29612786.02 | BR106: 30416935.53 | BS106: 31221085.03 | BT106: 32025234.54 | BU106: 32829384.04 | BV106: 33633533.54 | BW106: 34437683.05 | BX106: 35241832.55 | BY106: 36177885.93 | BZ106: 37113939.3 | CA106: 38049992.68 | CB106: 38986046.05 | CC106: =SUM(CC117,CC127,CC137,CC147,CC157,CC167) -> 39922099.43 | CD106: 40858152.81 | CE106: 41794206.18 | CF106: 42730259.56 | CG106: 43666312.93 | CH106: 44602366.31 | CI106: 45538419.68 | CJ106: 46474473.06
C107: Total product 2 cash payments | D107: NGN | I107: =SUMIF($Q$6:$CJ$6,I$6,$Q107:$CJ107) -> 214000000 | J107: =SUMIF($Q$6:$CJ$6,J$6,$Q107:$CJ107) -> 362580000 | K107: 564477150 | L107: 801255709.8 | M107: 1099728444 | N107: 1415588558 | Q107: =SUM(Q105:Q106) -> 16000000 | R107: =SUM(R105:R106) -> 16333333.33 | S107: 16666666.67 | T107: 17000000 | U107: 17333333.33 | V107: 17666666.67 | W107: 18000000 | X107: 18333333.33 | Y107: 18666666.67 | Z107: 19000000 | AA107: 19333333.33 | AB107: 19666666.67 | AC107: 27520000 | AD107: 28010000 | AE107: 28500000 | AF107: 28990000 | AG107: 29480000 | AH107: 29970000 | AI107: 30460000 | AJ107: 30950000 | AK107: 31440000 | AL107: 31930000 | AM107: 32420000 | AN107: 32910000 | AO107: 43219600 | AP107: 43914175 | AQ107: 44608750 | AR107: 45303325 | AS107: 45997900 | AT107: 46692475 | AU107: 47387050 | AV107: 48081625 | AW107: 48776200 | AX107: 49470775 | AY107: 50165350 | AZ107: 50859925 | BA107: 63390120.67 | BB107: 64004882.21 | BC107: 64619643.75 | BD107: 65234405.29 | BE107: 65849166.83 | BF107: 66463928.38 | BG107: 67078689.92 | BH107: 67693451.46 | BI107: 68308213 | BJ107: 68922974.54 | BK107: 69537736.08 | BL107: 70152497.62 | BM107: 87221214.71 | BN107: 88025364.21 | BO107: 88829513.72 | BP107: 89633663.22 | BQ107: 90437812.73 | BR107: 91241962.23 | BS107: 92046111.74 | BT107: 92850261.24 | BU107: 93654410.75 | BV107: 94458560.25 | BW107: 95262709.75 | BX107: 96066859.26 | BY107: 112817419.6 | BZ107: 113753473 | CA107: 114689526.3 | CB107: 115625579.7 | CC107: 116561633.1 | CD107: =SUM(CD105:CD106) -> 117497686.5 | CE107: 118433739.8 | CF107: 119369793.2 | CG107: 120305846.6 | CH107: 121241900 | CI107: 122177953.3 | CJ107: 123114006.7
C109: Year 1 | F109: =Start_Year -> 2020
C110: Balance b/f | D110: # | I110: =Q110 -> 0 | J110: =I113 -> 800 | K110: =J113 -> 800 | L110: =K113 -> 800 | M110: =L113 -> 0 | N110: =M113 -> 0 | R110: =Q113 -> 66.66666667 | S110: =R113 -> 133.3333333 | T110: =S113 -> 200 | U110: =T113 -> 266.6666667 | V110: =U113 -> 333.3333333 | W110: =V113 -> 400 | X110: =W113 -> 466.6666667 | Y110: =X113 -> 533.3333333 | Z110: =Y113 -> 600 | AA110: =Z113 -> 666.6666667 | AB110: =AA113 -> 733.3333333 | AC110: =AB113 -> 800 | AD110: =AC113 -> 800 | AE110: =AD113 -> 800 | AF110: =AE113 -> 800 | AG110: =AF113 -> 800 | AH110: =AG113 -> 800 | AI110: =AH113 -> 800 | AJ110: =AI113 -> 800 | AK110: =AJ113 -> 800 | AL110: =AK113 -> 800 | AM110: =AL113 -> 800 | AN110: =AM113 -> 800 | AO110: =AN113 -> 800 | AP110: =AO113 -> 800 | AQ110: =AP113 -> 800 | AR110: =AQ113 -> 800 | AS110: =AR113 -> 800 | AT110: =AS113 -> 800 | AU110: =AT113 -> 800 | AV110: =AU113 -> 800 | AW110: =AV113 -> 800 | AX110: =AW113 -> 800 | AY110: =AX113 -> 800 | AZ110: =AY113 -> 800 | BA110: =AZ113 -> 800 | BB110: =BA113 -> 733.3333333 | BC110: =BB113 -> 666.6666667 | BD110: =BC113 -> 600 | BE110: =BD113 -> 533.3333333 | BF110: =BE113 -> 466.6666667 | BG110: =BF113 -> 400 | BH110: =BG113 -> 333.3333333 | BI110: =BH113 -> 266.6666667 | BJ110: =BI113 -> 200 | BK110: =BJ113 -> 133.3333333 | BL110: =BK113 -> 66.66666667 | BM110: =BL113 -> 0 | BN110: =BM113 -> 0 | BO110: =BN113 -> 0 | BP110: =BO113 -> 0 | BQ110: =BP113 -> 0 | BR110: =BQ113 -> 0 | BS110: =BR113 -> 0 | BT110: =BS113 -> 0 | BU110: =BT113 -> 0 | BV110: =BU113 -> 0 | BW110: =BV113 -> 0 | BX110: =BW113 -> 0 | BY110: =BX113 -> 0 | BZ110: =BY113 -> 0 | CA110: =BZ113 -> 0 | CB110: =CA113 -> 0 | CC110: =CB113 -> 0 | CD110: =CC113 -> 0 | CE110: =CD113 -> 0 | CF110: =CE113 -> 0 | CG110: =CF113 -> 0 | CH110: =CG113 -> 0 | CI110: =CH113 -> 0 | CJ110: =CI113 -> 0
C111: New contracts | D111: # | I111: =SUMIF($Q$6:$CJ$6,I$6,$Q111:$CJ111) -> 800 | J111: 0 | K111: 0 | L111: 0 | M111: 0 | N111: 0 | Q111: =IF(Q$6=$F109,Q$97,0) -> 66.66666667 | R111: 66.66666667 | S111: 66.66666667 | T111: 66.66666667 | U111: 66.66666667 | V111: 66.66666667 | W111: 66.66666667 | X111: 66.66666667 | Y111: 66.66666667 | Z111: 66.66666667 | AA111: 66.66666667 | AB111: 66.66666667 | AC111: 0 | AD111: 0 | AE111: 0 | AF111: 0 | AG111: 0 | AH111: 0 | AI111: 0 | AJ111: 0 | AK111: 0 | AL111: 0 | AM111: 0 | AN111: 0 | AO111: 0 | AP111: 0 | AQ111: 0 | AR111: 0 | AS111: 0 | AT111: 0 | AU111: 0 | AV111: 0 | AW111: =IF(AW$6=$F109,AW$97,0) -> 0 | AX111: 0 | AY111: 0 | AZ111: 0 | BA111: 0 | BB111: 0 | BC111: 0 | BD111: 0 | BE111: 0 | BF111: 0 | BG111: 0 | BH111: 0 | BI111: 0 | BJ111: 0 | BK111: 0 | BL111: 0 | BM111: 0 | BN111: 0 | BO111: 0 | BP111: 0 | BQ111: 0 | BR111: 0 | BS111: 0 | BT111: 0 | BU111: 0 | BV111: 0 | BW111: 0 | BX111: 0 | BY111: 0 | BZ111: 0 | CA111: 0 | CB111: 0 | CC111: =IF(CC$6=$F109,CC$97,0) -> 0 | CD111: 0 | CE111: 0 | CF111: 0 | CG111: 0 | CH111: 0 | CI111: 0 | CJ111: 0
C112: Contracts ended | D112: # | I112: 0 | J112: 0 | K112: 0 | L112: -800 | M112: 0 | N112: 0 | Q112: =-SUMIFS($Q111:$CJ111,$Q$9:$CJ$9,Q$9-Inputs!$E$87) -> 0 | R112: =-SUMIFS($Q111:$CJ111,$Q$9:$CJ$9,R$9-Inputs!$E$87) -> 0 | S112: =-SUMIFS($Q111:$CJ111,$Q$9:$CJ$9,S$9-Inputs!$E$87) -> 0 | T112: =-SUMIFS($Q111:$CJ111,$Q$9:$CJ$9,T$9-Inputs!$E$87) -> 0 | U112: =-SUMIFS($Q111:$CJ111,$Q$9:$CJ$9,U$9-Inputs!$E$87) -> 0 | V112: =-SUMIFS($Q111:$CJ111,$Q$9:$CJ$9,V$9-Inputs!$E$87) -> 0 | W112: =-SUMIFS($Q111:$CJ111,$Q$9:$CJ$9,W$9-Inputs!$E$87) -> 0 | X112: =-SUMIFS($Q111:$CJ111,$Q$9:$CJ$9,X$9-Inputs!$E$87) -> 0 | Y112: =-SUMIFS($Q111:$CJ111,$Q$9:$CJ$9,Y$9-Inputs!$E$87) -> 0 | Z112: =-SUMIFS($Q111:$CJ111,$Q$9:$CJ$9,Z$9-Inputs!$E$87) -> 0 | AA112: =-SUMIFS($Q111:$CJ111,$Q$9:$CJ$9,AA$9-Inputs!$E$87) -> 0 | AB112: =-SUMIFS($Q111:$CJ111,$Q$9:$CJ$9,AB$9-Inputs!$E$87) -> 0 | AC112: =-SUMIFS($Q111:$CJ111,$Q$9:$CJ$9,AC$9-Inputs!$E$87) -> 0 | AD112: =-SUMIFS($Q111:$CJ111,$Q$9:$CJ$9,AD$9-Inputs!$E$87) -> 0 | AE112: =-SUMIFS($Q111:$CJ111,$Q$9:$CJ$9,AE$9-Inputs!$E$87) -> 0 | AF112: =-SUMIFS($Q111:$CJ111,$Q$9:$CJ$9,AF$9-Inputs!$E$87) -> 0 | AG112: =-SUMIFS($Q111:$CJ111,$Q$9:$CJ$9,AG$9-Inputs!$E$87) -> 0 | AH112: =-SUMIFS($Q111:$CJ111,$Q$9:$CJ$9,AH$9-Inputs!$E$87) -> 0 | AI112: =-SUMIFS($Q111:$CJ111,$Q$9:$CJ$9,AI$9-Inputs!$E$87) -> 0 | AJ112: =-SUMIFS($Q111:$CJ111,$Q$9:$CJ$9,AJ$9-Inputs!$E$87) -> 0 | AK112: =-SUMIFS($Q111:$CJ111,$Q$9:$CJ$9,AK$9-Inputs!$E$87) -> 0 | AL112: =-SUMIFS($Q111:$CJ111,$Q$9:$CJ$9,AL$9-Inputs!$E$87) -> 0 | AM112: =-SUMIFS($Q111:$CJ111,$Q$9:$CJ$9,AM$9-Inputs!$E$87) -> 0 | AN112: =-SUMIFS($Q111:$CJ111,$Q$9:$CJ$9,AN$9-Inputs!$E$87) -> 0 | AO112: =-SUMIFS($Q111:$CJ111,$Q$9:$CJ$9,AO$9-Inputs!$E$87) -> 0 | AP112: =-SUMIFS($Q111:$CJ111,$Q$9:$CJ$9,AP$9-Inputs!$E$87) -> 0 | AQ112: =-SUMIFS($Q111:$CJ111,$Q$9:$CJ$9,AQ$9-Inputs!$E$87) -> 0 | AR112: =-SUMIFS($Q111:$CJ111,$Q$9:$CJ$9,AR$9-Inputs!$E$87) -> 0 | AS112: =-SUMIFS($Q111:$CJ111,$Q$9:$CJ$9,AS$9-Inputs!$E$87) -> 0 | AT112: =-SUMIFS($Q111:$CJ111,$Q$9:$CJ$9,AT$9-Inputs!$E$87) -> 0 | AU112: =-SUMIFS($Q111:$CJ111,$Q$9:$CJ$9,AU$9-Inputs!$E$87) -> 0 | AV112: =-SUMIFS($Q111:$CJ111,$Q$9:$CJ$9,AV$9-Inputs!$E$87) -> 0 | AW112: =-SUMIFS($Q111:$CJ111,$Q$9:$CJ$9,AW$9-Inputs!$E$87) -> 0 | AX112: =-SUMIFS($Q111:$CJ111,$Q$9:$CJ$9,AX$9-Inputs!$E$87) -> 0 | AY112: =-SUMIFS($Q111:$CJ111,$Q$9:$CJ$9,AY$9-Inputs!$E$87) -> 0 | AZ112: =-SUMIFS($Q111:$CJ111,$Q$9:$CJ$9,AZ$9-Inputs!$E$87) -> 0 | BA112: =-SUMIFS($Q111:$CJ111,$Q$9:$CJ$9,BA$9-Inputs!$E$87) -> -66.66666667 | BB112: =-SUMIFS($Q111:$CJ111,$Q$9:$CJ$9,BB$9-Inputs!$E$87) -> -66.66666667 | BC112: =-SUMIFS($Q111:$CJ111,$Q$9:$CJ$9,BC$9-Inputs!$E$87) -> -66.66666667 | BD112: =-SUMIFS($Q111:$CJ111,$Q$9:$CJ$9,BD$9-Inputs!$E$87) -> -66.66666667 | BE112: =-SUMIFS($Q111:$CJ111,$Q$9:$CJ$9,BE$9-Inputs!$E$87) -> -66.66666667 | BF112: =-SUMIFS($Q111:$CJ111,$Q$9:$CJ$9,BF$9-Inputs!$E$87) -> -66.66666667 | BG112: =-SUMIFS($Q111:$CJ111,$Q$9:$CJ$9,BG$9-Inputs!$E$87) -> -66.66666667 | BH112: =-SUMIFS($Q111:$CJ111,$Q$9:$CJ$9,BH$9-Inputs!$E$87) -> -66.66666667 | BI112: =-SUMIFS($Q111:$CJ111,$Q$9:$CJ$9,BI$9-Inputs!$E$87) -> -66.66666667 | BJ112: =-SUMIFS($Q111:$CJ111,$Q$9:$CJ$9,BJ$9-Inputs!$E$87) -> -66.66666667 | BK112: =-SUMIFS($Q111:$CJ111,$Q$9:$CJ$9,BK$9-Inputs!$E$87) -> -66.66666667 | BL112: =-SUMIFS($Q111:$CJ111,$Q$9:$CJ$9,BL$9-Inputs!$E$87) -> -66.66666667 | BM112: =-SUMIFS($Q111:$CJ111,$Q$9:$CJ$9,BM$9-Inputs!$E$87) -> 0 | BN112: =-SUMIFS($Q111:$CJ111,$Q$9:$CJ$9,BN$9-Inputs!$E$87) -> 0 | BO112: =-SUMIFS($Q111:$CJ111,$Q$9:$CJ$9,BO$9-Inputs!$E$87) -> 0 | BP112: =-SUMIFS($Q111:$CJ111,$Q$9:$CJ$9,BP$9-Inputs!$E$87) -> 0 | BQ112: =-SUMIFS($Q111:$CJ111,$Q$9:$CJ$9,BQ$9-Inputs!$E$87) -> 0 | BR112: =-SUMIFS($Q111:$CJ111,$Q$9:$CJ$9,BR$9-Inputs!$E$87) -> 0 | BS112: =-SUMIFS($Q111:$CJ111,$Q$9:$CJ$9,BS$9-Inputs!$E$87) -> 0 | BT112: =-SUMIFS($Q111:$CJ111,$Q$9:$CJ$9,BT$9-Inputs!$E$87) -> 0 | BU112: =-SUMIFS($Q111:$CJ111,$Q$9:$CJ$9,BU$9-Inputs!$E$87) -> 0 | BV112: =-SUMIFS($Q111:$CJ111,$Q$9:$CJ$9,BV$9-Inputs!$E$87) -> 0 | BW112: =-SUMIFS($Q111:$CJ111,$Q$9:$CJ$9,BW$9-Inputs!$E$87) -> 0 | BX112: =-SUMIFS($Q111:$CJ111,$Q$9:$CJ$9,BX$9-Inputs!$E$87) -> 0 | BY112: =-SUMIFS($Q111:$CJ111,$Q$9:$CJ$9,BY$9-Inputs!$E$87) -> 0 | BZ112: =-SUMIFS($Q111:$CJ111,$Q$9:$CJ$9,BZ$9-Inputs!$E$87) -> 0 | CA112: =-SUMIFS($Q111:$CJ111,$Q$9:$CJ$9,CA$9-Inputs!$E$87) -> 0 | CB112: =-SUMIFS($Q111:$CJ111,$Q$9:$CJ$9,CB$9-Inputs!$E$87) -> 0 | CC112: =-SUMIFS($Q111:$CJ111,$Q$9:$CJ$9,CC$9-Inputs!$E$87) -> 0 | CD112: =-SUMIFS($Q111:$CJ111,$Q$9:$CJ$9,CD$9-Inputs!$E$87) -> 0 | CE112: =-SUMIFS($Q111:$CJ111,$Q$9:$CJ$9,CE$9-Inputs!$E$87) -> 0 | CF112: =-SUMIFS($Q111:$CJ111,$Q$9:$CJ$9,CF$9-Inputs!$E$87) -> 0 | CG112: =-SUMIFS($Q111:$CJ111,$Q$9:$CJ$9,CG$9-Inputs!$E$87) -> 0 | CH112: =-SUMIFS($Q111:$CJ111,$Q$9:$CJ$9,CH$9-Inputs!$E$87) -> 0 | CI112: =-SUMIFS($Q111:$CJ111,$Q$9:$CJ$9,CI$9-Inputs!$E$87) -> 0 | CJ112: =-SUMIFS($Q111:$CJ111,$Q$9:$CJ$9,CJ$9-Inputs!$E$87) -> 0
C113: Balance c/f | D113: # | I113: =SUM(I110:I112) -> 800 | J113: 800 | K113: 800 | L113: 0 | M113: 0 | N113: 0 | Q113: =SUM(Q110:Q112) -> 66.66666667 | R113: =SUM(R110:R112) -> 133.3333333 | S113: =SUM(S110:S112) -> 200 | T113: 266.6666667 | U113: 333.3333333 | V113: 400 | W113: 466.6666667 | X113: 533.3333333 | Y113: 600 | Z113: 666.6666667 | AA113: 733.3333333 | AB113: 800 | AC113: 800 | AD113: 800 | AE113: 800 | AF113: 800 | AG113: 800 | AH113: 800 | AI113: 800 | AJ113: 800 | AK113: 800 | AL113: 800 | AM113: 800 | AN113: 800 | AO113: 800 | AP113: 800 | AQ113: 800 | AR113: 800 | AS113: 800 | AT113: 800 | AU113: 800 | AV113: 800 | AW113: 800 | AX113: 800 | AY113: 800 | AZ113: 800 | BA113: 733.3333333 | BB113: 666.6666667 | BC113: 600 | BD113: 533.3333333 | BE113: 466.6666667 | BF113: 400 | BG113: 333.3333333 | BH113: 266.6666667 | BI113: 200 | BJ113: 133.3333333 | BK113: 66.66666667 | BL113: 0 | BM113: 0 | BN113: 0 | BO113: 0 | BP113: 0 | BQ113: 0 | BR113: 0 | BS113: 0 | BT113: 0 | BU113: 0 | BV113: 0 | BW113: 0 | BX113: 0 | BY113: 0 | BZ113: 0 | CA113: 0 | CB113: 0 | CC113: 0 | CD113: 0 | CE113: =SUM(CE110:CE112) -> 0 | CF113: 0 | CG113: 0 | CH113: 0 | CI113: 0 | CJ113: 0
C115: Revenue | D115: NGN | F115: =INDEX(Inputs!$I$104:$N$104, MATCH('Monthly Sales Profile'!$F109,Inputs!$I$75:$N$75,0)) -> 415000 | I115: =SUMIF($Q$6:$CJ$6,I$6,$Q115:$CJ115) -> 332000000 | J115: 0 | K115: 0 | L115: 0 | M115: 0 | N115: 0 | Q115: =Q111*$F115 -> 27666666.67 | R115: 27666666.67 | S115: 27666666.67 | T115: 27666666.67 | U115: 27666666.67 | V115: 27666666.67 | W115: 27666666.67 | X115: 27666666.67 | Y115: 27666666.67 | Z115: 27666666.67 | AA115: 27666666.67 | AB115: 27666666.67 | AC115: 0 | AD115: 0 | AE115: 0 | AF115: 0 | AG115: 0 | AH115: 0 | AI115: 0 | AJ115: 0 | AK115: 0 | AL115: 0 | AM115: 0 | AN115: 0 | AO115: 0 | AP115: 0 | AQ115: 0 | AR115: 0 | AS115: 0 | AT115: 0 | AU115: 0 | AV115: 0 | AW115: =AW111*$F115 -> 0 | AX115: 0 | AY115: 0 | AZ115: 0 | BA115: 0 | BB115: 0 | BC115: 0 | BD115: 0 | BE115: 0 | BF115: 0 | BG115: 0 | BH115: 0 | BI115: 0 | BJ115: 0 | BK115: 0 | BL115: 0 | BM115: 0 | BN115: 0 | BO115: 0 | BP115: 0 | BQ115: 0 | BR115: 0 | BS115: 0 | BT115: 0 | BU115: 0 | BV115: 0 | BW115: 0 | BX115: 0 | BY115: 0 | BZ115: 0 | CA115: 0 | CB115: 0 | CC115: =CC111*$F115 -> 0 | CD115: 0 | CE115: 0 | CF115: 0 | CG115: 0 | CH115: 0 | CI115: 0 | CJ115: 0
C116: Down payment | D116: NGN | F116: =INDEX(Inputs!$I$105:$N$105, MATCH('Monthly Sales Profile'!$F109,Inputs!$I$75:$N$75,0)) -> 235000 | I116: 188000000 | J116: 0 | K116: 0 | L116: 0 | M116: 0 | N116: 0 | Q116: =Q111*$F116 -> 15666666.67 | R116: 15666666.67 | S116: 15666666.67 | T116: 15666666.67 | U116: 15666666.67 | V116: 15666666.67 | W116: 15666666.67 | X116: 15666666.67 | Y116: 15666666.67 | Z116: 15666666.67 | AA116: 15666666.67 | AB116: 15666666.67 | AC116: 0 | AD116: 0 | AE116: 0 | AF116: 0 | AG116: 0 | AH116: 0 | AI116: 0 | AJ116: 0 | AK116: 0 | AL116: 0 | AM116: 0 | AN116: 0 | AO116: 0 | AP116: 0 | AQ116: 0 | AR116: 0 | AS116: 0 | AT116: 0 | AU116: 0 | AV116: 0 | AW116: =AW111*$F116 -> 0 | AX116: 0 | AY116: 0 | AZ116: 0 | BA116: 0 | BB116: 0 | BC116: 0 | BD116: 0 | BE116: 0 | BF116: 0 | BG116: 0 | BH116: 0 | BI116: 0 | BJ116: 0 | BK116: 0 | BL116: 0 | BM116: 0 | BN116: 0 | BO116: 0 | BP116: 0 | BQ116: 0 | BR116: 0 | BS116: 0 | BT116: 0 | BU116: 0 | BV116: 0 | BW116: 0 | BX116: 0 | BY116: 0 | BZ116: 0 | CA116: 0 | CB116: 0 | CC116: =CC111*$F116 -> 0 | CD116: 0 | CE116: 0 | CF116: 0 | CG116: 0 | CH116: 0 | CI116: 0 | CJ116: 0
C117: Monthly payment revenue | D117: NGN | F117: =INDEX(Inputs!$I$106:$N$106, MATCH('Monthly Sales Profile'!$F109,Inputs!$I$75:$N$75,0)) -> 5000 | I117: 26000000 | J117: 48000000 | K117: 48000000 | L117: 22000000 | M117: 0 | N117: 0 | Q117: =Q113*$F117 -> 333333.3333 | R117: 666666.6667 | S117: 1000000 | T117: 1333333.333 | U117: 1666666.667 | V117: 2000000 | W117: 2333333.333 | X117: 2666666.667 | Y117: 3000000 | Z117: 3333333.333 | AA117: 3666666.667 | AB117: 4000000 | AC117: 4000000 | AD117: 4000000 | AE117: 4000000 | AF117: 4000000 | AG117: 4000000 | AH117: 4000000 | AI117: 4000000 | AJ117: 4000000 | AK117: 4000000 | AL117: 4000000 | AM117: 4000000 | AN117: 4000000 | AO117: 4000000 | AP117: 4000000 | AQ117: 4000000 | AR117: 4000000 | AS117: 4000000 | AT117: 4000000 | AU117: 4000000 | AV117: 4000000 | AW117: =AW113*$F117 -> 4000000 | AX117: 4000000 | AY117: 4000000 | AZ117: 4000000 | BA117: 3666666.667 | BB117: 3333333.333 | BC117: 3000000 | BD117: 2666666.667 | BE117: 2333333.333 | BF117: 2000000 | BG117: 1666666.667 | BH117: 1333333.333 | BI117: 1000000 | BJ117: 666666.6667 | BK117: 333333.3333 | BL117: 0 | BM117: 0 | BN117: 0 | BO117: 0 | BP117: 0 | BQ117: 0 | BR117: 0 | BS117: 0 | BT117: 0 | BU117: 0 | BV117: 0 | BW117: 0 | BX117: 0 | BY117: 0 | BZ117: 0 | CA117: 0 | CB117: 0 | CC117: =CC113*$F117 -> 0 | CD117: 0 | CE117: 0 | CF117: 0 | CG117: 0 | CH117: 0 | CI117: 0 | CJ117: 0
C119: Year 2 | F119: =F109+1 -> 2021
C120: Balance b/f | D120: # | I120: =Q120 -> 0 | J120: =I123 -> 0 | K120: =J123 -> 1120 | L120: =K123 -> 1120 | M120: =L123 -> 1120 | N120: =M123 -> 0 | R120: =Q123 -> 0 | S120: =R123 -> 0 | T120: =S123 -> 0 | U120: =T123 -> 0 | V120: =U123 -> 0 | W120: =V123 -> 0 | X120: =W123 -> 0 | Y120: =X123 -> 0 | Z120: =Y123 -> 0 | AA120: =Z123 -> 0 | AB120: =AA123 -> 0 | AC120: =AB123 -> 0 | AD120: =AC123 -> 93.33333333 | AE120: =AD123 -> 186.6666667 | AF120: =AE123 -> 280 | AG120: =AF123 -> 373.3333333 | AH120: =AG123 -> 466.6666667 | AI120: =AH123 -> 560 | AJ120: =AI123 -> 653.3333333 | AK120: =AJ123 -> 746.6666667 | AL120: =AK123 -> 840 | AM120: =AL123 -> 933.3333333 | AN120: =AM123 -> 1026.666667 | AO120: =AN123 -> 1120 | AP120: =AO123 -> 1120 | AQ120: =AP123 -> 1120 | AR120: =AQ123 -> 1120 | AS120: =AR123 -> 1120 | AT120: =AS123 -> 1120 | AU120: =AT123 -> 1120 | AV120: =AU123 -> 1120 | AW120: =AV123 -> 1120 | AX120: =AW123 -> 1120 | AY120: =AX123 -> 1120 | AZ120: =AY123 -> 1120 | BA120: =AZ123 -> 1120 | BB120: =BA123 -> 1120 | BC120: =BB123 -> 1120 | BD120: =BC123 -> 1120 | BE120: =BD123 -> 1120 | BF120: =BE123 -> 1120 | BG120: =BF123 -> 1120 | BH120: =BG123 -> 1120 | BI120: =BH123 -> 1120 | BJ120: =BI123 -> 1120 | BK120: =BJ123 -> 1120 | BL120: =BK123 -> 1120 | BM120: =BL123 -> 1120 | BN120: =BM123 -> 1026.666667 | BO120: =BN123 -> 933.3333333 | BP120: =BO123 -> 840 | BQ120: =BP123 -> 746.6666667 | BR120: =BQ123 -> 653.3333333 | BS120: =BR123 -> 560 | BT120: =BS123 -> 466.6666667 | BU120: =BT123 -> 373.3333333 | BV120: =BU123 -> 280 | BW120: =BV123 -> 186.6666667 | BX120: =BW123 -> 93.33333333 | BY120: =BX123 -> 0 | BZ120: =BY123 -> 0 | CA120: =BZ123 -> 0 | CB120: =CA123 -> 0 | CC120: =CB123 -> 0 | CD120: =CC123 -> 0 | CE120: =CD123 -> 0 | CF120: =CE123 -> 0 | CG120: =CF123 -> 0 | CH120: =CG123 -> 0 | CI120: =CH123 -> 0 | CJ120: =CI123 -> 0
C121: New contracts | D121: # | I121: =SUMIF($Q$6:$CJ$6,I$6,$Q121:$CJ121) -> 0 | J121: 1120 | K121: 0 | L121: 0 | M121: 0 | N121: 0 | Q121: =IF(Q$6=$F119,Q$97,0) -> 0 | R121: 0 | S121: 0 | T121: 0 | U121: 0 | V121: 0 | W121: 0 | X121: 0 | Y121: 0 | Z121: 0 | AA121: 0 | AB121: 0 | AC121: 93.33333333 | AD121: 93.33333333 | AE121: 93.33333333 | AF121: 93.33333333 | AG121: 93.33333333 | AH121: 93.33333333 | AI121: 93.33333333 | AJ121: 93.33333333 | AK121: 93.33333333 | AL121: 93.33333333 | AM121: 93.33333333 | AN121: 93.33333333 | AO121: 0 | AP121: 0 | AQ121: 0 | AR121: 0 | AS121: 0 | AT121: 0 | AU121: 0 | AV121: 0 | AW121: =IF(AW$6=$F119,AW$97,0) -> 0 | AX121: 0 | AY121: 0 | AZ121: 0 | BA121: 0 | BB121: 0 | BC121: 0 | BD121: 0 | BE121: 0 | BF121: 0 | BG121: 0 | BH121: 0 | BI121: 0 | BJ121: 0 | BK121: 0 | BL121: 0 | BM121: 0 | BN121: 0 | BO121: 0 | BP121: 0 | BQ121: 0 | BR121: 0 | BS121: 0 | BT121: 0 | BU121: 0 | BV121: 0 | BW121: 0 | BX121: 0 | BY121: 0 | BZ121: 0 | CA121: 0 | CB121: 0 | CC121: =IF(CC$6=$F119,CC$97,0) -> 0 | CD121: 0 | CE121: 0 | CF121: 0 | CG121: 0 | CH121: 0 | CI121: 0 | CJ121: 0
C122: Contracts ended | D122: # | I122: 0 | J122: 0 | K122: 0 | L122: 0 | M122: -1120 | N122: 0 | Q122: =-SUMIFS($Q121:$CJ121,$Q$9:$CJ$9,Q$9-Inputs!$E$87) -> 0 | R122: =-SUMIFS($Q121:$CJ121,$Q$9:$CJ$9,R$9-Inputs!$E$87) -> 0 | S122: =-SUMIFS($Q121:$CJ121,$Q$9:$CJ$9,S$9-Inputs!$E$87) -> 0 | T122: =-SUMIFS($Q121:$CJ121,$Q$9:$CJ$9,T$9-Inputs!$E$87) -> 0 | U122: =-SUMIFS($Q121:$CJ121,$Q$9:$CJ$9,U$9-Inputs!$E$87) -> 0 | V122: =-SUMIFS($Q121:$CJ121,$Q$9:$CJ$9,V$9-Inputs!$E$87) -> 0 | W122: =-SUMIFS($Q121:$CJ121,$Q$9:$CJ$9,W$9-Inputs!$E$87) -> 0 | X122: =-SUMIFS($Q121:$CJ121,$Q$9:$CJ$9,X$9-Inputs!$E$87) -> 0 | Y122: =-SUMIFS($Q121:$CJ121,$Q$9:$CJ$9,Y$9-Inputs!$E$87) -> 0 | Z122: =-SUMIFS($Q121:$CJ121,$Q$9:$CJ$9,Z$9-Inputs!$E$87) -> 0 | AA122: =-SUMIFS($Q121:$CJ121,$Q$9:$CJ$9,AA$9-Inputs!$E$87) -> 0 | AB122: =-SUMIFS($Q121:$CJ121,$Q$9:$CJ$9,AB$9-Inputs!$E$87) -> 0 | AC122: =-SUMIFS($Q121:$CJ121,$Q$9:$CJ$9,AC$9-Inputs!$E$87) -> 0 | AD122: =-SUMIFS($Q121:$CJ121,$Q$9:$CJ$9,AD$9-Inputs!$E$87) -> 0 | AE122: =-SUMIFS($Q121:$CJ121,$Q$9:$CJ$9,AE$9-Inputs!$E$87) -> 0 | AF122: =-SUMIFS($Q121:$CJ121,$Q$9:$CJ$9,AF$9-Inputs!$E$87) -> 0 | AG122: =-SUMIFS($Q121:$CJ121,$Q$9:$CJ$9,AG$9-Inputs!$E$87) -> 0 | AH122: =-SUMIFS($Q121:$CJ121,$Q$9:$CJ$9,AH$9-Inputs!$E$87) -> 0 | AI122: =-SUMIFS($Q121:$CJ121,$Q$9:$CJ$9,AI$9-Inputs!$E$87) -> 0 | AJ122: =-SUMIFS($Q121:$CJ121,$Q$9:$CJ$9,AJ$9-Inputs!$E$87) -> 0 | AK122: =-SUMIFS($Q121:$CJ121,$Q$9:$CJ$9,AK$9-Inputs!$E$87) -> 0 | AL122: =-SUMIFS($Q121:$CJ121,$Q$9:$CJ$9,AL$9-Inputs!$E$87) -> 0 | AM122: =-SUMIFS($Q121:$CJ121,$Q$9:$CJ$9,AM$9-Inputs!$E$87) -> 0 | AN122: =-SUMIFS($Q121:$CJ121,$Q$9:$CJ$9,AN$9-Inputs!$E$87) -> 0 | AO122: =-SUMIFS($Q121:$CJ121,$Q$9:$CJ$9,AO$9-Inputs!$E$87) -> 0 | AP122: =-SUMIFS($Q121:$CJ121,$Q$9:$CJ$9,AP$9-Inputs!$E$87) -> 0 | AQ122: =-SUMIFS($Q121:$CJ121,$Q$9:$CJ$9,AQ$9-Inputs!$E$87) -> 0 | AR122: =-SUMIFS($Q121:$CJ121,$Q$9:$CJ$9,AR$9-Inputs!$E$87) -> 0 | AS122: =-SUMIFS($Q121:$CJ121,$Q$9:$CJ$9,AS$9-Inputs!$E$87) -> 0 | AT122: =-SUMIFS($Q121:$CJ121,$Q$9:$CJ$9,AT$9-Inputs!$E$87) -> 0 | AU122: =-SUMIFS($Q121:$CJ121,$Q$9:$CJ$9,AU$9-Inputs!$E$87) -> 0 | AV122: =-SUMIFS($Q121:$CJ121,$Q$9:$CJ$9,AV$9-Inputs!$E$87) -> 0 | AW122: =-SUMIFS($Q121:$CJ121,$Q$9:$CJ$9,AW$9-Inputs!$E$87) -> 0 | AX122: =-SUMIFS($Q121:$CJ121,$Q$9:$CJ$9,AX$9-Inputs!$E$87) -> 0 | AY122: =-SUMIFS($Q121:$CJ121,$Q$9:$CJ$9,AY$9-Inputs!$E$87) -> 0 | AZ122: =-SUMIFS($Q121:$CJ121,$Q$9:$CJ$9,AZ$9-Inputs!$E$87) -> 0 | BA122: =-SUMIFS($Q121:$CJ121,$Q$9:$CJ$9,BA$9-Inputs!$E$87) -> 0 | BB122: =-SUMIFS($Q121:$CJ121,$Q$9:$CJ$9,BB$9-Inputs!$E$87) -> 0 | BC122: =-SUMIFS($Q121:$CJ121,$Q$9:$CJ$9,BC$9-Inputs!$E$87) -> 0 | BD122: =-SUMIFS($Q121:$CJ121,$Q$9:$CJ$9,BD$9-Inputs!$E$87) -> 0 | BE122: =-SUMIFS($Q121:$CJ121,$Q$9:$CJ$9,BE$9-Inputs!$E$87) -> 0 | BF122: =-SUMIFS($Q121:$CJ121,$Q$9:$CJ$9,BF$9-Inputs!$E$87) -> 0 | BG122: =-SUMIFS($Q121:$CJ121,$Q$9:$CJ$9,BG$9-Inputs!$E$87) -> 0 | BH122: =-SUMIFS($Q121:$CJ121,$Q$9:$CJ$9,BH$9-Inputs!$E$87) -> 0 | BI122: =-SUMIFS($Q121:$CJ121,$Q$9:$CJ$9,BI$9-Inputs!$E$87) -> 0 | BJ122: =-SUMIFS($Q121:$CJ121,$Q$9:$CJ$9,BJ$9-Inputs!$E$87) -> 0 | BK122: =-SUMIFS($Q121:$CJ121,$Q$9:$CJ$9,BK$9-Inputs!$E$87) -> 0 | BL122: =-SUMIFS($Q121:$CJ121,$Q$9:$CJ$9,BL$9-Inputs!$E$87) -> 0 | BM122: =-SUMIFS($Q121:$CJ121,$Q$9:$CJ$9,BM$9-Inputs!$E$87) -> -93.33333333 | BN122: =-SUMIFS($Q121:$CJ121,$Q$9:$CJ$9,BN$9-Inputs!$E$87) -> -93.33333333 | BO122: =-SUMIFS($Q121:$CJ121,$Q$9:$CJ$9,BO$9-Inputs!$E$87) -> -93.33333333 | BP122: =-SUMIFS($Q121:$CJ121,$Q$9:$CJ$9,BP$9-Inputs!$E$87) -> -93.33333333 | BQ122: =-SUMIFS($Q121:$CJ121,$Q$9:$CJ$9,BQ$9-Inputs!$E$87) -> -93.33333333 | BR122: =-SUMIFS($Q121:$CJ121,$Q$9:$CJ$9,BR$9-Inputs!$E$87) -> -93.33333333 | BS122: =-SUMIFS($Q121:$CJ121,$Q$9:$CJ$9,BS$9-Inputs!$E$87) -> -93.33333333 | BT122: =-SUMIFS($Q121:$CJ121,$Q$9:$CJ$9,BT$9-Inputs!$E$87) -> -93.33333333 | BU122: =-SUMIFS($Q121:$CJ121,$Q$9:$CJ$9,BU$9-Inputs!$E$87) -> -93.33333333 | BV122: =-SUMIFS($Q121:$CJ121,$Q$9:$CJ$9,BV$9-Inputs!$E$87) -> -93.33333333 | BW122: =-SUMIFS($Q121:$CJ121,$Q$9:$CJ$9,BW$9-Inputs!$E$87) -> -93.33333333 | BX122: =-SUMIFS($Q121:$CJ121,$Q$9:$CJ$9,BX$9-Inputs!$E$87) -> -93.33333333 | BY122: =-SUMIFS($Q121:$CJ121,$Q$9:$CJ$9,BY$9-Inputs!$E$87) -> 0 | BZ122: =-SUMIFS($Q121:$CJ121,$Q$9:$CJ$9,BZ$9-Inputs!$E$87) -> 0 | CA122: =-SUMIFS($Q121:$CJ121,$Q$9:$CJ$9,CA$9-Inputs!$E$87) -> 0 | CB122: =-SUMIFS($Q121:$CJ121,$Q$9:$CJ$9,CB$9-Inputs!$E$87) -> 0 | CC122: =-SUMIFS($Q121:$CJ121,$Q$9:$CJ$9,CC$9-Inputs!$E$87) -> 0 | CD122: =-SUMIFS($Q121:$CJ121,$Q$9:$CJ$9,CD$9-Inputs!$E$87) -> 0 | CE122: =-SUMIFS($Q121:$CJ121,$Q$9:$CJ$9,CE$9-Inputs!$E$87) -> 0 | CF122: =-SUMIFS($Q121:$CJ121,$Q$9:$CJ$9,CF$9-Inputs!$E$87) -> 0 | CG122: =-SUMIFS($Q121:$CJ121,$Q$9:$CJ$9,CG$9-Inputs!$E$87) -> 0 | CH122: =-SUMIFS($Q121:$CJ121,$Q$9:$CJ$9,CH$9-Inputs!$E$87) -> 0 | CI122: =-SUMIFS($Q121:$CJ121,$Q$9:$CJ$9,CI$9-Inputs!$E$87) -> 0 | CJ122: =-SUMIFS($Q121:$CJ121,$Q$9:$CJ$9,CJ$9-Inputs!$E$87) -> 0
C123: Balance c/f | D123: # | I123: =SUM(I120:I122) -> 0 | J123: 1120 | K123: 1120 | L123: 1120 | M123: 0 | N123: 0 | Q123: =SUM(Q120:Q122) -> 0 | R123: =SUM(R120:R122) -> 0 | S123: =SUM(S120:S122) -> 0 | T123: 0 | U123: 0 | V123: 0 | W123: 0 | X123: 0 | Y123: 0 | Z123: 0 | AA123: 0 | AB123: 0 | AC123: 93.33333333 | AD123: 186.6666667 | AE123: 280 | AF123: 373.3333333 | AG123: 466.6666667 | AH123: 560 | AI123: 653.3333333 | AJ123: 746.6666667 | AK123: 840 | AL123: 933.3333333 | AM123: 1026.666667 | AN123: 1120 | AO123: 1120 | AP123: 1120 | AQ123: 1120 | AR123: 1120 | AS123: 1120 | AT123: 1120 | AU123: 1120 | AV123: 1120 | AW123: 1120 | AX123: 1120 | AY123: 1120 | AZ123: 1120 | BA123: 1120 | BB123: 1120 | BC123: 1120 | BD123: 1120 | BE123: 1120 | BF123: 1120 | BG123: 1120 | BH123: 1120 | BI123: 1120 | BJ123: 1120 | BK123: 1120 | BL123: 1120 | BM123: 1026.666667 | BN123: 933.3333333 | BO123: 840 | BP123: 746.6666667 | BQ123: 653.3333333 | BR123: 560 | BS123: 466.6666667 | BT123: 373.3333333 | BU123: 280 | BV123: 186.6666667 | BW123: 93.33333333 | BX123: 0 | BY123: 0 | BZ123: 0 | CA123: 0 | CB123: 0 | CC123: 0 | CD123: 0 | CE123: =SUM(CE120:CE122) -> 0 | CF123: 0 | CG123: 0 | CH123: 0 | CI123: 0 | CJ123: 0
C125: Revenue | D125: NGN | F125: =INDEX(Inputs!$I$104:$N$104, MATCH('Monthly Sales Profile'!$F119,Inputs!$I$75:$N$75,0)) -> 435750 | I125: =SUMIF($Q$6:$CJ$6,I$6,$Q125:$CJ125) -> 0 | J125: 488040000 | K125: 0 | L125: 0 | M125: 0 | N125: 0 | Q125: =Q121*$F125 -> 0 | R125: 0 | S125: 0 | T125: 0 | U125: 0 | V125: 0 | W125: 0 | X125: 0 | Y125: 0 | Z125: 0 | AA125: 0 | AB125: 0 | AC125: 40670000 | AD125: 40670000 | AE125: 40670000 | AF125: 40670000 | AG125: 40670000 | AH125: 40670000 | AI125: 40670000 | AJ125: 40670000 | AK125: 40670000 | AL125: 40670000 | AM125: 40670000 | AN125: 40670000 | AO125: 0 | AP125: 0 | AQ125: 0 | AR125: 0 | AS125: 0 | AT125: 0 | AU125: 0 | AV125: 0 | AW125: =AW121*$F125 -> 0 | AX125: 0 | AY125: 0 | AZ125: 0 | BA125: 0 | BB125: 0 | BC125: 0 | BD125: 0 | BE125: 0 | BF125: 0 | BG125: 0 | BH125: 0 | BI125: 0 | BJ125: 0 | BK125: 0 | BL125: 0 | BM125: 0 | BN125: 0 | BO125: 0 | BP125: 0 | BQ125: 0 | BR125: 0 | BS125: 0 | BT125: 0 | BU125: 0 | BV125: 0 | BW125: 0 | BX125: 0 | BY125: 0 | BZ125: 0 | CA125: 0 | CB125: 0 | CC125: =CC121*$F125 -> 0 | CD125: 0 | CE125: 0 | CF125: 0 | CG125: 0 | CH125: 0 | CI125: 0 | CJ125: 0
C126: Down payment | D126: NGN | F126: =INDEX(Inputs!$I$105:$N$105, MATCH('Monthly Sales Profile'!$F119,Inputs!$I$75:$N$75,0)) -> 246750 | I126: 0 | J126: 276360000 | K126: 0 | L126: 0 | M126: 0 | N126: 0 | Q126: =Q121*$F126 -> 0 | R126: 0 | S126: 0 | T126: 0 | U126: 0 | V126: 0 | W126: 0 | X126: 0 | Y126: 0 | Z126: 0 | AA126: 0 | AB126: 0 | AC126: 23030000 | AD126: 23030000 | AE126: 23030000 | AF126: 23030000 | AG126: 23030000 | AH126: 23030000 | AI126: 23030000 | AJ126: 23030000 | AK126: 23030000 | AL126: 23030000 | AM126: 23030000 | AN126: 23030000 | AO126: 0 | AP126: 0 | AQ126: 0 | AR126: 0 | AS126: 0 | AT126: 0 | AU126: 0 | AV126: 0 | AW126: =AW121*$F126 -> 0 | AX126: 0 | AY126: 0 | AZ126: 0 | BA126: 0 | BB126: 0 | BC126: 0 | BD126: 0 | BE126: 0 | BF126: 0 | BG126: 0 | BH126: 0 | BI126: 0 | BJ126: 0 | BK126: 0 | BL126: 0 | BM126: 0 | BN126: 0 | BO126: 0 | BP126: 0 | BQ126: 0 | BR126: 0 | BS126: 0 | BT126: 0 | BU126: 0 | BV126: 0 | BW126: 0 | BX126: 0 | BY126: 0 | BZ126: 0 | CA126: 0 | CB126: 0 | CC126: =CC121*$F126 -> 0 | CD126: 0 | CE126: 0 | CF126: 0 | CG126: 0 | CH126: 0 | CI126: 0 | CJ126: 0
C127: Monthly payment revenue | D127: NGN | F127: =INDEX(Inputs!$I$106:$N$106, MATCH('Monthly Sales Profile'!$F119,Inputs!$I$75:$N$75,0)) -> 5250 | I127: 0 | J127: 38220000 | K127: 70560000 | L127: 70560000 | M127: 32340000 | N127: 0 | Q127: =Q123*$F127 -> 0 | R127: 0 | S127: 0 | T127: 0 | U127: 0 | V127: 0 | W127: 0 | X127: 0 | Y127: 0 | Z127: 0 | AA127: 0 | AB127: 0 | AC127: 490000 | AD127: 980000 | AE127: 1470000 | AF127: 1960000 | AG127: 2450000 | AH127: 2940000 | AI127: 3430000 | AJ127: 3920000 | AK127: 4410000 | AL127: 4900000 | AM127: 5390000 | AN127: 5880000 | AO127: 5880000 | AP127: 5880000 | AQ127: 5880000 | AR127: 5880000 | AS127: 5880000 | AT127: 5880000 | AU127: 5880000 | AV127: 5880000 | AW127: =AW123*$F127 -> 5880000 | AX127: 5880000 | AY127: 5880000 | AZ127: 5880000 | BA127: 5880000 | BB127: 5880000 | BC127: 5880000 | BD127: 5880000 | BE127: 5880000 | BF127: 5880000 | BG127: 5880000 | BH127: 5880000 | BI127: 5880000 | BJ127: 5880000 | BK127: 5880000 | BL127: 5880000 | BM127: 5390000 | BN127: 4900000 | BO127: 4410000 | BP127: 3920000 | BQ127: 3430000 | BR127: 2940000 | BS127: 2450000 | BT127: 1960000 | BU127: 1470000 | BV127: 980000 | BW127: 490000 | BX127: 0 | BY127: 0 | BZ127: 0 | CA127: 0 | CB127: 0 | CC127: =CC123*$F127 -> 0 | CD127: 0 | CE127: 0 | CF127: 0 | CG127: 0 | CH127: 0 | CI127: 0 | CJ127: 0
C129: Year 3 | F129: =F119+1 -> 2022
C130: Balance b/f | D130: # | I130: =Q130 -> 0 | J130: =I133 -> 0 | K130: =J133 -> 0 | L130: =K133 -> 1512 | M130: =L133 -> 1512 | N130: =M133 -> 1512 | R130: =Q133 -> 0 | S130: =R133 -> 0 | T130: =S133 -> 0 | U130: =T133 -> 0 | V130: =U133 -> 0 | W130: =V133 -> 0 | X130: =W133 -> 0 | Y130: =X133 -> 0 | Z130: =Y133 -> 0 | AA130: =Z133 -> 0 | AB130: =AA133 -> 0 | AC130: =AB133 -> 0 | AD130: =AC133 -> 0 | AE130: =AD133 -> 0 | AF130: =AE133 -> 0 | AG130: =AF133 -> 0 | AH130: =AG133 -> 0 | AI130: =AH133 -> 0 | AJ130: =AI133 -> 0 | AK130: =AJ133 -> 0 | AL130: =AK133 -> 0 | AM130: =AL133 -> 0 | AN130: =AM133 -> 0 | AO130: =AN133 -> 0 | AP130: =AO133 -> 126 | AQ130: =AP133 -> 252 | AR130: =AQ133 -> 378 | AS130: =AR133 -> 504 | AT130: =AS133 -> 630 | AU130: =AT133 -> 756 | AV130: =AU133 -> 882 | AW130: =AV133 -> 1008 | AX130: =AW133 -> 1134 | AY130: =AX133 -> 1260 | AZ130: =AY133 -> 1386 | BA130: =AZ133 -> 1512 | BB130: =BA133 -> 1512 | BC130: =BB133 -> 1512 | BD130: =BC133 -> 1512 | BE130: =BD133 -> 1512 | BF130: =BE133 -> 1512 | BG130: =BF133 -> 1512 | BH130: =BG133 -> 1512 | BI130: =BH133 -> 1512 | BJ130: =BI133 -> 1512 | BK130: =BJ133 -> 1512 | BL130: =BK133 -> 1512 | BM130: =BL133 -> 1512 | BN130: =BM133 -> 1512 | BO130: =BN133 -> 1512 | BP130: =BO133 -> 1512 | BQ130: =BP133 -> 1512 | BR130: =BQ133 -> 1512 | BS130: =BR133 -> 1512 | BT130: =BS133 -> 1512 | BU130: =BT133 -> 1512 | BV130: =BU133 -> 1512 | BW130: =BV133 -> 1512 | BX130: =BW133 -> 1512 | BY130: =BX133 -> 1512 | BZ130: =BY133 -> 1386 | CA130: =BZ133 -> 1260 | CB130: =CA133 -> 1134 | CC130: =CB133 -> 1008 | CD130: =CC133 -> 882 | CE130: =CD133 -> 756 | CF130: =CE133 -> 630 | CG130: =CF133 -> 504 | CH130: =CG133 -> 378 | CI130: =CH133 -> 252 | CJ130: =CI133 -> 126
C131: New contracts | D131: # | I131: =SUMIF($Q$6:$CJ$6,I$6,$Q131:$CJ131) -> 0 | J131: 0 | K131: 1512 | L131: 0 | M131: 0 | N131: 0 | Q131: =IF(Q$6=$F129,Q$97,0) -> 0 | R131: 0 | S131: 0 | T131: 0 | U131: 0 | V131: 0 | W131: 0 | X131: 0 | Y131: 0 | Z131: 0 | AA131: 0 | AB131: 0 | AC131: 0 | AD131: 0 | AE131: 0 | AF131: 0 | AG131: 0 | AH131: 0 | AI131: 0 | AJ131: 0 | AK131: 0 | AL131: 0 | AM131: 0 | AN131: 0 | AO131: 126 | AP131: 126 | AQ131: 126 | AR131: 126 | AS131: 126 | AT131: 126 | AU131: 126 | AV131: 126 | AW131: =IF(AW$6=$F129,AW$97,0) -> 126 | AX131: 126 | AY131: 126 | AZ131: 126 | BA131: 0 | BB131: 0 | BC131: 0 | BD131: 0 | BE131: 0 | BF131: 0 | BG131: 0 | BH131: 0 | BI131: 0 | BJ131: 0 | BK131: 0 | BL131: 0 | BM131: 0 | BN131: 0 | BO131: 0 | BP131: 0 | BQ131: 0 | BR131: 0 | BS131: 0 | BT131: 0 | BU131: 0 | BV131: 0 | BW131: 0 | BX131: 0 | BY131: 0 | BZ131: 0 | CA131: 0 | CB131: 0 | CC131: =IF(CC$6=$F129,CC$97,0) -> 0 | CD131: 0 | CE131: 0 | CF131: 0 | CG131: 0 | CH131: 0 | CI131: 0 | CJ131: 0
C132: Contracts ended | D132: # | I132: 0 | J132: 0 | K132: 0 | L132: 0 | M132: 0 | N132: -1512 | Q132: =-SUMIFS($Q131:$CJ131,$Q$9:$CJ$9,Q$9-Inputs!$E$87) -> 0 | R132: =-SUMIFS($Q131:$CJ131,$Q$9:$CJ$9,R$9-Inputs!$E$87) -> 0 | S132: =-SUMIFS($Q131:$CJ131,$Q$9:$CJ$9,S$9-Inputs!$E$87) -> 0 | T132: =-SUMIFS($Q131:$CJ131,$Q$9:$CJ$9,T$9-Inputs!$E$87) -> 0 | U132: =-SUMIFS($Q131:$CJ131,$Q$9:$CJ$9,U$9-Inputs!$E$87) -> 0 | V132: =-SUMIFS($Q131:$CJ131,$Q$9:$CJ$9,V$9-Inputs!$E$87) -> 0 | W132: =-SUMIFS($Q131:$CJ131,$Q$9:$CJ$9,W$9-Inputs!$E$87) -> 0 | X132: =-SUMIFS($Q131:$CJ131,$Q$9:$CJ$9,X$9-Inputs!$E$87) -> 0 | Y132: =-SUMIFS($Q131:$CJ131,$Q$9:$CJ$9,Y$9-Inputs!$E$87) -> 0 | Z132: =-SUMIFS($Q131:$CJ131,$Q$9:$CJ$9,Z$9-Inputs!$E$87) -> 0 | AA132: =-SUMIFS($Q131:$CJ131,$Q$9:$CJ$9,AA$9-Inputs!$E$87) -> 0 | AB132: =-SUMIFS($Q131:$CJ131,$Q$9:$CJ$9,AB$9-Inputs!$E$87) -> 0 | AC132: =-SUMIFS($Q131:$CJ131,$Q$9:$CJ$9,AC$9-Inputs!$E$87) -> 0 | AD132: =-SUMIFS($Q131:$CJ131,$Q$9:$CJ$9,AD$9-Inputs!$E$87) -> 0 | AE132: =-SUMIFS($Q131:$CJ131,$Q$9:$CJ$9,AE$9-Inputs!$E$87) -> 0 | AF132: =-SUMIFS($Q131:$CJ131,$Q$9:$CJ$9,AF$9-Inputs!$E$87) -> 0 | AG132: =-SUMIFS($Q131:$CJ131,$Q$9:$CJ$9,AG$9-Inputs!$E$87) -> 0 | AH132: =-SUMIFS($Q131:$CJ131,$Q$9:$CJ$9,AH$9-Inputs!$E$87) -> 0 | AI132: =-SUMIFS($Q131:$CJ131,$Q$9:$CJ$9,AI$9-Inputs!$E$87) -> 0 | AJ132: =-SUMIFS($Q131:$CJ131,$Q$9:$CJ$9,AJ$9-Inputs!$E$87) -> 0 | AK132: =-SUMIFS($Q131:$CJ131,$Q$9:$CJ$9,AK$9-Inputs!$E$87) -> 0 | AL132: =-SUMIFS($Q131:$CJ131,$Q$9:$CJ$9,AL$9-Inputs!$E$87) -> 0 | AM132: =-SUMIFS($Q131:$CJ131,$Q$9:$CJ$9,AM$9-Inputs!$E$87) -> 0 | AN132: =-SUMIFS($Q131:$CJ131,$Q$9:$CJ$9,AN$9-Inputs!$E$87) -> 0 | AO132: =-SUMIFS($Q131:$CJ131,$Q$9:$CJ$9,AO$9-Inputs!$E$87) -> 0 | AP132: =-SUMIFS($Q131:$CJ131,$Q$9:$CJ$9,AP$9-Inputs!$E$87) -> 0 | AQ132: =-SUMIFS($Q131:$CJ131,$Q$9:$CJ$9,AQ$9-Inputs!$E$87) -> 0 | AR132: =-SUMIFS($Q131:$CJ131,$Q$9:$CJ$9,AR$9-Inputs!$E$87) -> 0 | AS132: =-SUMIFS($Q131:$CJ131,$Q$9:$CJ$9,AS$9-Inputs!$E$87) -> 0 | AT132: =-SUMIFS($Q131:$CJ131,$Q$9:$CJ$9,AT$9-Inputs!$E$87) -> 0 | AU132: =-SUMIFS($Q131:$CJ131,$Q$9:$CJ$9,AU$9-Inputs!$E$87) -> 0 | AV132: =-SUMIFS($Q131:$CJ131,$Q$9:$CJ$9,AV$9-Inputs!$E$87) -> 0 | AW132: =-SUMIFS($Q131:$CJ131,$Q$9:$CJ$9,AW$9-Inputs!$E$87) -> 0 | AX132: =-SUMIFS($Q131:$CJ131,$Q$9:$CJ$9,AX$9-Inputs!$E$87) -> 0 | AY132: =-SUMIFS($Q131:$CJ131,$Q$9:$CJ$9,AY$9-Inputs!$E$87) -> 0 | AZ132: =-SUMIFS($Q131:$CJ131,$Q$9:$CJ$9,AZ$9-Inputs!$E$87) -> 0 | BA132: =-SUMIFS($Q131:$CJ131,$Q$9:$CJ$9,BA$9-Inputs!$E$87) -> 0 | BB132: =-SUMIFS($Q131:$CJ131,$Q$9:$CJ$9,BB$9-Inputs!$E$87) -> 0 | BC132: =-SUMIFS($Q131:$CJ131,$Q$9:$CJ$9,BC$9-Inputs!$E$87) -> 0 | BD132: =-SUMIFS($Q131:$CJ131,$Q$9:$CJ$9,BD$9-Inputs!$E$87) -> 0 | BE132: =-SUMIFS($Q131:$CJ131,$Q$9:$CJ$9,BE$9-Inputs!$E$87) -> 0 | BF132: =-SUMIFS($Q131:$CJ131,$Q$9:$CJ$9,BF$9-Inputs!$E$87) -> 0 | BG132: =-SUMIFS($Q131:$CJ131,$Q$9:$CJ$9,BG$9-Inputs!$E$87) -> 0 | BH132: =-SUMIFS($Q131:$CJ131,$Q$9:$CJ$9,BH$9-Inputs!$E$87) -> 0 | BI132: =-SUMIFS($Q131:$CJ131,$Q$9:$CJ$9,BI$9-Inputs!$E$87) -> 0 | BJ132: =-SUMIFS($Q131:$CJ131,$Q$9:$CJ$9,BJ$9-Inputs!$E$87) -> 0 | BK132: =-SUMIFS($Q131:$CJ131,$Q$9:$CJ$9,BK$9-Inputs!$E$87) -> 0 | BL132: =-SUMIFS($Q131:$CJ131,$Q$9:$CJ$9,BL$9-Inputs!$E$87) -> 0 | BM132: =-SUMIFS($Q131:$CJ131,$Q$9:$CJ$9,BM$9-Inputs!$E$87) -> 0 | BN132: =-SUMIFS($Q131:$CJ131,$Q$9:$CJ$9,BN$9-Inputs!$E$87) -> 0 | BO132: =-SUMIFS($Q131:$CJ131,$Q$9:$CJ$9,BO$9-Inputs!$E$87) -> 0 | BP132: =-SUMIFS($Q131:$CJ131,$Q$9:$CJ$9,BP$9-Inputs!$E$87) -> 0 | BQ132: =-SUMIFS($Q131:$CJ131,$Q$9:$CJ$9,BQ$9-Inputs!$E$87) -> 0 | BR132: =-SUMIFS($Q131:$CJ131,$Q$9:$CJ$9,BR$9-Inputs!$E$87) -> 0 | BS132: =-SUMIFS($Q131:$CJ131,$Q$9:$CJ$9,BS$9-Inputs!$E$87) -> 0 | BT132: =-SUMIFS($Q131:$CJ131,$Q$9:$CJ$9,BT$9-Inputs!$E$87) -> 0 | BU132: =-SUMIFS($Q131:$CJ131,$Q$9:$CJ$9,BU$9-Inputs!$E$87) -> 0 | BV132: =-SUMIFS($Q131:$CJ131,$Q$9:$CJ$9,BV$9-Inputs!$E$87) -> 0 | BW132: =-SUMIFS($Q131:$CJ131,$Q$9:$CJ$9,BW$9-Inputs!$E$87) -> 0 | BX132: =-SUMIFS($Q131:$CJ131,$Q$9:$CJ$9,BX$9-Inputs!$E$87) -> 0 | BY132: =-SUMIFS($Q131:$CJ131,$Q$9:$CJ$9,BY$9-Inputs!$E$87) -> -126 | BZ132: =-SUMIFS($Q131:$CJ131,$Q$9:$CJ$9,BZ$9-Inputs!$E$87) -> -126 | CA132: =-SUMIFS($Q131:$CJ131,$Q$9:$CJ$9,CA$9-Inputs!$E$87) -> -126 | CB132: =-SUMIFS($Q131:$CJ131,$Q$9:$CJ$9,CB$9-Inputs!$E$87) -> -126 | CC132: =-SUMIFS($Q131:$CJ131,$Q$9:$CJ$9,CC$9-Inputs!$E$87) -> -126 | CD132: =-SUMIFS($Q131:$CJ131,$Q$9:$CJ$9,CD$9-Inputs!$E$87) -> -126 | CE132: =-SUMIFS($Q131:$CJ131,$Q$9:$CJ$9,CE$9-Inputs!$E$87) -> -126 | CF132: =-SUMIFS($Q131:$CJ131,$Q$9:$CJ$9,CF$9-Inputs!$E$87) -> -126 | CG132: =-SUMIFS($Q131:$CJ131,$Q$9:$CJ$9,CG$9-Inputs!$E$87) -> -126 | CH132: =-SUMIFS($Q131:$CJ131,$Q$9:$CJ$9,CH$9-Inputs!$E$87) -> -126 | CI132: =-SUMIFS($Q131:$CJ131,$Q$9:$CJ$9,CI$9-Inputs!$E$87) -> -126 | CJ132: =-SUMIFS($Q131:$CJ131,$Q$9:$CJ$9,CJ$9-Inputs!$E$87) -> -126
C133: Balance c/f | D133: # | I133: =SUM(I130:I132) -> 0 | J133: 0 | K133: 1512 | L133: 1512 | M133: 1512 | N133: 0 | Q133: =SUM(Q130:Q132) -> 0 | R133: =SUM(R130:R132) -> 0 | S133: =SUM(S130:S132) -> 0 | T133: 0 | U133: 0 | V133: 0 | W133: 0 | X133: 0 | Y133: 0 | Z133: 0 | AA133: 0 | AB133: 0 | AC133: 0 | AD133: 0 | AE133: 0 | AF133: 0 | AG133: 0 | AH133: 0 | AI133: 0 | AJ133: 0 | AK133: 0 | AL133: 0 | AM133: 0 | AN133: 0 | AO133: 126 | AP133: 252 | AQ133: 378 | AR133: 504 | AS133: 630 | AT133: 756 | AU133: 882 | AV133: 1008 | AW133: 1134 | AX133: 1260 | AY133: 1386 | AZ133: 1512 | BA133: 1512 | BB133: 1512 | BC133: 1512 | BD133: 1512 | BE133: 1512 | BF133: 1512 | BG133: 1512 | BH133: 1512 | BI133: 1512 | BJ133: 1512 | BK133: 1512 | BL133: 1512 | BM133: 1512 | BN133: 1512 | BO133: 1512 | BP133: 1512 | BQ133: 1512 | BR133: 1512 | BS133: 1512 | BT133: 1512 | BU133: 1512 | BV133: 1512 | BW133: 1512 | BX133: 1512 | BY133: 1386 | BZ133: 1260 | CA133: 1134 | CB133: 1008 | CC133: 882 | CD133: 756 | CE133: =SUM(CE130:CE132) -> 630 | CF133: 504 | CG133: 378 | CH133: 252 | CI133: 126 | CJ133: 0
C135: Revenue | D135: NGN | F135: =INDEX(Inputs!$I$104:$N$104, MATCH('Monthly Sales Profile'!$F129,Inputs!$I$75:$N$75,0)) -> 457537.5 | I135: =SUMIF($Q$6:$CJ$6,I$6,$Q135:$CJ135) -> 0 | J135: 0 | K135: 691796700 | L135: 0 | M135: 0 | N135: 0 | Q135: =Q131*$F135 -> 0 | R135: 0 | S135: 0 | T135: 0 | U135: 0 | V135: 0 | W135: 0 | X135: 0 | Y135: 0 | Z135: 0 | AA135: 0 | AB135: 0 | AC135: 0 | AD135: 0 | AE135: 0 | AF135: 0 | AG135: 0 | AH135: 0 | AI135: 0 | AJ135: 0 | AK135: 0 | AL135: 0 | AM135: 0 | AN135: 0 | AO135: 57649725 | AP135: 57649725 | AQ135: 57649725 | AR135: 57649725 | AS135: 57649725 | AT135: 57649725 | AU135: 57649725 | AV135: 57649725 | AW135: =AW131*$F135 -> 57649725 | AX135: 57649725 | AY135: 57649725 | AZ135: 57649725 | BA135: 0 | BB135: 0 | BC135: 0 | BD135: 0 | BE135: 0 | BF135: 0 | BG135: 0 | BH135: 0 | BI135: 0 | BJ135: 0 | BK135: 0 | BL135: 0 | BM135: 0 | BN135: 0 | BO135: 0 | BP135: 0 | BQ135: 0 | BR135: 0 | BS135: 0 | BT135: 0 | BU135: 0 | BV135: 0 | BW135: 0 | BX135: 0 | BY135: 0 | BZ135: 0 | CA135: 0 | CB135: 0 | CC135: =CC131*$F135 -> 0 | CD135: 0 | CE135: 0 | CF135: 0 | CG135: 0 | CH135: 0 | CI135: 0 | CJ135: 0
C136: Down payment | D136: NGN | F136: =INDEX(Inputs!$I$105:$N$105, MATCH('Monthly Sales Profile'!$F129,Inputs!$I$75:$N$75,0)) -> 259087.5 | I136: 0 | J136: 0 | K136: 391740300 | L136: 0 | M136: 0 | N136: 0 | Q136: =Q131*$F136 -> 0 | R136: 0 | S136: 0 | T136: 0 | U136: 0 | V136: 0 | W136: 0 | X136: 0 | Y136: 0 | Z136: 0 | AA136: 0 | AB136: 0 | AC136: 0 | AD136: 0 | AE136: 0 | AF136: 0 | AG136: 0 | AH136: 0 | AI136: 0 | AJ136: 0 | AK136: 0 | AL136: 0 | AM136: 0 | AN136: 0 | AO136: 32645025 | AP136: 32645025 | AQ136: 32645025 | AR136: 32645025 | AS136: 32645025 | AT136: 32645025 | AU136: 32645025 | AV136: 32645025 | AW136: =AW131*$F136 -> 32645025 | AX136: 32645025 | AY136: 32645025 | AZ136: 32645025 | BA136: 0 | BB136: 0 | BC136: 0 | BD136: 0 | BE136: 0 | BF136: 0 | BG136: 0 | BH136: 0 | BI136: 0 | BJ136: 0 | BK136: 0 | BL136: 0 | BM136: 0 | BN136: 0 | BO136: 0 | BP136: 0 | BQ136: 0 | BR136: 0 | BS136: 0 | BT136: 0 | BU136: 0 | BV136: 0 | BW136: 0 | BX136: 0 | BY136: 0 | BZ136: 0 | CA136: 0 | CB136: 0 | CC136: =CC131*$F136 -> 0 | CD136: 0 | CE136: 0 | CF136: 0 | CG136: 0 | CH136: 0 | CI136: 0 | CJ136: 0
C137: Monthly payment revenue | D137: NGN | F137: =INDEX(Inputs!$I$106:$N$106, MATCH('Monthly Sales Profile'!$F129,Inputs!$I$75:$N$75,0)) -> 5512.5 | I137: 0 | J137: 0 | K137: 54176850 | L137: 100018800 | M137: 100018800 | N137: 45841950 | Q137: =Q133*$F137 -> 0 | R137: 0 | S137: 0 | T137: 0 | U137: 0 | V137: 0 | W137: 0 | X137: 0 | Y137: 0 | Z137: 0 | AA137: 0 | AB137: 0 | AC137: 0 | AD137: 0 | AE137: 0 | AF137: 0 | AG137: 0 | AH137: 0 | AI137: 0 | AJ137: 0 | AK137: 0 | AL137: 0 | AM137: 0 | AN137: 0 | AO137: 694575 | AP137: 1389150 | AQ137: 2083725 | AR137: 2778300 | AS137: 3472875 | AT137: 4167450 | AU137: 4862025 | AV137: 5556600 | AW137: =AW133*$F137 -> 6251175 | AX137: 6945750 | AY137: 7640325 | AZ137: 8334900 | BA137: 8334900 | BB137: 8334900 | BC137: 8334900 | BD137: 8334900 | BE137: 8334900 | BF137: 8334900 | BG137: 8334900 | BH137: 8334900 | BI137: 8334900 | BJ137: 8334900 | BK137: 8334900 | BL137: 8334900 | BM137: 8334900 | BN137: 8334900 | BO137: 8334900 | BP137: 8334900 | BQ137: 8334900 | BR137: 8334900 | BS137: 8334900 | BT137: 8334900 | BU137: 8334900 | BV137: 8334900 | BW137: 8334900 | BX137: 8334900 | BY137: 7640325 | BZ137: 6945750 | CA137: 6251175 | CB137: 5556600 | CC137: =CC133*$F137 -> 4862025 | CD137: 4167450 | CE137: 3472875 | CF137: 2778300 | CG137: 2083725 | CH137: 1389150 | CI137: 694575 | CJ137: 0
C139: Year 4 | F139: =F129+1 -> 2023
C140: Balance b/f | D140: # | I140: =Q140 -> 0 | J140: =I143 -> 0 | K140: =J143 -> 0 | L140: =K143 -> 0 | M140: =L143 -> 1965.6 | N140: =M143 -> 1965.6 | R140: =Q143 -> 0 | S140: =R143 -> 0 | T140: =S143 -> 0 | U140: =T143 -> 0 | V140: =U143 -> 0 | W140: =V143 -> 0 | X140: =W143 -> 0 | Y140: =X143 -> 0 | Z140: =Y143 -> 0 | AA140: =Z143 -> 0 | AB140: =AA143 -> 0 | AC140: =AB143 -> 0 | AD140: =AC143 -> 0 | AE140: =AD143 -> 0 | AF140: =AE143 -> 0 | AG140: =AF143 -> 0 | AH140: =AG143 -> 0 | AI140: =AH143 -> 0 | AJ140: =AI143 -> 0 | AK140: =AJ143 -> 0 | AL140: =AK143 -> 0 | AM140: =AL143 -> 0 | AN140: =AM143 -> 0 | AO140: =AN143 -> 0 | AP140: =AO143 -> 0 | AQ140: =AP143 -> 0 | AR140: =AQ143 -> 0 | AS140: =AR143 -> 0 | AT140: =AS143 -> 0 | AU140: =AT143 -> 0 | AV140: =AU143 -> 0 | AW140: =AV143 -> 0 | AX140: =AW143 -> 0 | AY140: =AX143 -> 0 | AZ140: =AY143 -> 0 | BA140: =AZ143 -> 0 | BB140: =BA143 -> 163.8 | BC140: =BB143 -> 327.6 | BD140: =BC143 -> 491.4 | BE140: =BD143 -> 655.2 | BF140: =BE143 -> 819 | BG140: =BF143 -> 982.8 | BH140: =BG143 -> 1146.6 | BI140: =BH143 -> 1310.4 | BJ140: =BI143 -> 1474.2 | BK140: =BJ143 -> 1638 | BL140: =BK143 -> 1801.8 | BM140: =BL143 -> 1965.6 | BN140: =BM143 -> 1965.6 | BO140: =BN143 -> 1965.6 | BP140: =BO143 -> 1965.6 | BQ140: =BP143 -> 1965.6 | BR140: =BQ143 -> 1965.6 | BS140: =BR143 -> 1965.6 | BT140: =BS143 -> 1965.6 | BU140: =BT143 -> 1965.6 | BV140: =BU143 -> 1965.6 | BW140: =BV143 -> 1965.6 | BX140: =BW143 -> 1965.6 | BY140: =BX143 -> 1965.6 | BZ140: =BY143 -> 1965.6 | CA140: =BZ143 -> 1965.6 | CB140: =CA143 -> 1965.6 | CC140: =CB143 -> 1965.6 | CD140: =CC143 -> 1965.6 | CE140: =CD143 -> 1965.6 | CF140: =CE143 -> 1965.6 | CG140: =CF143 -> 1965.6 | CH140: =CG143 -> 1965.6 | CI140: =CH143 -> 1965.6 | CJ140: =CI143 -> 1965.6
C141: New contracts | D141: # | I141: =SUMIF($Q$6:$CJ$6,I$6,$Q141:$CJ141) -> 0 | J141: 0 | K141: 0 | L141: 1965.6 | M141: 0 | N141: 0 | Q141: =IF(Q$6=$F139,Q$97,0) -> 0 | R141: 0 | S141: 0 | T141: 0 | U141: 0 | V141: 0 | W141: 0 | X141: 0 | Y141: 0 | Z141: 0 | AA141: 0 | AB141: 0 | AC141: 0 | AD141: 0 | AE141: 0 | AF141: 0 | AG141: 0 | AH141: 0 | AI141: 0 | AJ141: 0 | AK141: 0 | AL141: 0 | AM141: 0 | AN141: 0 | AO141: 0 | AP141: 0 | AQ141: 0 | AR141: 0 | AS141: 0 | AT141: 0 | AU141: 0 | AV141: 0 | AW141: =IF(AW$6=$F139,AW$97,0) -> 0 | AX141: 0 | AY141: 0 | AZ141: 0 | BA141: 163.8 | BB141: 163.8 | BC141: 163.8 | BD141: 163.8 | BE141: 163.8 | BF141: 163.8 | BG141: 163.8 | BH141: 163.8 | BI141: 163.8 | BJ141: 163.8 | BK141: 163.8 | BL141: 163.8 | BM141: 0 | BN141: 0 | BO141: 0 | BP141: 0 | BQ141: 0 | BR141: 0 | BS141: 0 | BT141: 0 | BU141: 0 | BV141: 0 | BW141: 0 | BX141: 0 | BY141: 0 | BZ141: 0 | CA141: 0 | CB141: 0 | CC141: =IF(CC$6=$F139,CC$97,0) -> 0 | CD141: 0 | CE141: 0 | CF141: 0 | CG141: 0 | CH141: 0 | CI141: 0 | CJ141: 0
C142: Contracts ended | D142: # | I142: 0 | J142: 0 | K142: 0 | L142: 0 | M142: 0 | N142: 0 | Q142: =-SUMIFS($Q141:$CJ141,$Q$9:$CJ$9,Q$9-Inputs!$E$87) -> 0 | R142: =-SUMIFS($Q141:$CJ141,$Q$9:$CJ$9,R$9-Inputs!$E$87) -> 0 | S142: =-SUMIFS($Q141:$CJ141,$Q$9:$CJ$9,S$9-Inputs!$E$87) -> 0 | T142: =-SUMIFS($Q141:$CJ141,$Q$9:$CJ$9,T$9-Inputs!$E$87) -> 0 | U142: =-SUMIFS($Q141:$CJ141,$Q$9:$CJ$9,U$9-Inputs!$E$87) -> 0 | V142: =-SUMIFS($Q141:$CJ141,$Q$9:$CJ$9,V$9-Inputs!$E$87) -> 0 | W142: =-SUMIFS($Q141:$CJ141,$Q$9:$CJ$9,W$9-Inputs!$E$87) -> 0 | X142: =-SUMIFS($Q141:$CJ141,$Q$9:$CJ$9,X$9-Inputs!$E$87) -> 0 | Y142: =-SUMIFS($Q141:$CJ141,$Q$9:$CJ$9,Y$9-Inputs!$E$87) -> 0 | Z142: =-SUMIFS($Q141:$CJ141,$Q$9:$CJ$9,Z$9-Inputs!$E$87) -> 0 | AA142: =-SUMIFS($Q141:$CJ141,$Q$9:$CJ$9,AA$9-Inputs!$E$87) -> 0 | AB142: =-SUMIFS($Q141:$CJ141,$Q$9:$CJ$9,AB$9-Inputs!$E$87) -> 0 | AC142: =-SUMIFS($Q141:$CJ141,$Q$9:$CJ$9,AC$9-Inputs!$E$87) -> 0 | AD142: =-SUMIFS($Q141:$CJ141,$Q$9:$CJ$9,AD$9-Inputs!$E$87) -> 0 | AE142: =-SUMIFS($Q141:$CJ141,$Q$9:$CJ$9,AE$9-Inputs!$E$87) -> 0 | AF142: =-SUMIFS($Q141:$CJ141,$Q$9:$CJ$9,AF$9-Inputs!$E$87) -> 0 | AG142: =-SUMIFS($Q141:$CJ141,$Q$9:$CJ$9,AG$9-Inputs!$E$87) -> 0 | AH142: =-SUMIFS($Q141:$CJ141,$Q$9:$CJ$9,AH$9-Inputs!$E$87) -> 0 | AI142: =-SUMIFS($Q141:$CJ141,$Q$9:$CJ$9,AI$9-Inputs!$E$87) -> 0 | AJ142: =-SUMIFS($Q141:$CJ141,$Q$9:$CJ$9,AJ$9-Inputs!$E$87) -> 0 | AK142: =-SUMIFS($Q141:$CJ141,$Q$9:$CJ$9,AK$9-Inputs!$E$87) -> 0 | AL142: =-SUMIFS($Q141:$CJ141,$Q$9:$CJ$9,AL$9-Inputs!$E$87) -> 0 | AM142: =-SUMIFS($Q141:$CJ141,$Q$9:$CJ$9,AM$9-Inputs!$E$87) -> 0 | AN142: =-SUMIFS($Q141:$CJ141,$Q$9:$CJ$9,AN$9-Inputs!$E$87) -> 0 | AO142: =-SUMIFS($Q141:$CJ141,$Q$9:$CJ$9,AO$9-Inputs!$E$87) -> 0 | AP142: =-SUMIFS($Q141:$CJ141,$Q$9:$CJ$9,AP$9-Inputs!$E$87) -> 0 | AQ142: =-SUMIFS($Q141:$CJ141,$Q$9:$CJ$9,AQ$9-Inputs!$E$87) -> 0 | AR142: =-SUMIFS($Q141:$CJ141,$Q$9:$CJ$9,AR$9-Inputs!$E$87) -> 0 | AS142: =-SUMIFS($Q141:$CJ141,$Q$9:$CJ$9,AS$9-Inputs!$E$87) -> 0 | AT142: =-SUMIFS($Q141:$CJ141,$Q$9:$CJ$9,AT$9-Inputs!$E$87) -> 0 | AU142: =-SUMIFS($Q141:$CJ141,$Q$9:$CJ$9,AU$9-Inputs!$E$87) -> 0 | AV142: =-SUMIFS($Q141:$CJ141,$Q$9:$CJ$9,AV$9-Inputs!$E$87) -> 0 | AW142: =-SUMIFS($Q141:$CJ141,$Q$9:$CJ$9,AW$9-Inputs!$E$87) -> 0 | AX142: =-SUMIFS($Q141:$CJ141,$Q$9:$CJ$9,AX$9-Inputs!$E$87) -> 0 | AY142: =-SUMIFS($Q141:$CJ141,$Q$9:$CJ$9,AY$9-Inputs!$E$87) -> 0 | AZ142: =-SUMIFS($Q141:$CJ141,$Q$9:$CJ$9,AZ$9-Inputs!$E$87) -> 0 | BA142: =-SUMIFS($Q141:$CJ141,$Q$9:$CJ$9,BA$9-Inputs!$E$87) -> 0 | BB142: =-SUMIFS($Q141:$CJ141,$Q$9:$CJ$9,BB$9-Inputs!$E$87) -> 0 | BC142: =-SUMIFS($Q141:$CJ141,$Q$9:$CJ$9,BC$9-Inputs!$E$87) -> 0 | BD142: =-SUMIFS($Q141:$CJ141,$Q$9:$CJ$9,BD$9-Inputs!$E$87) -> 0 | BE142: =-SUMIFS($Q141:$CJ141,$Q$9:$CJ$9,BE$9-Inputs!$E$87) -> 0 | BF142: =-SUMIFS($Q141:$CJ141,$Q$9:$CJ$9,BF$9-Inputs!$E$87) -> 0 | BG142: =-SUMIFS($Q141:$CJ141,$Q$9:$CJ$9,BG$9-Inputs!$E$87) -> 0 | BH142: =-SUMIFS($Q141:$CJ141,$Q$9:$CJ$9,BH$9-Inputs!$E$87) -> 0 | BI142: =-SUMIFS($Q141:$CJ141,$Q$9:$CJ$9,BI$9-Inputs!$E$87) -> 0 | BJ142: =-SUMIFS($Q141:$CJ141,$Q$9:$CJ$9,BJ$9-Inputs!$E$87) -> 0 | BK142: =-SUMIFS($Q141:$CJ141,$Q$9:$CJ$9,BK$9-Inputs!$E$87) -> 0 | BL142: =-SUMIFS($Q141:$CJ141,$Q$9:$CJ$9,BL$9-Inputs!$E$87) -> 0 | BM142: =-SUMIFS($Q141:$CJ141,$Q$9:$CJ$9,BM$9-Inputs!$E$87) -> 0 | BN142: =-SUMIFS($Q141:$CJ141,$Q$9:$CJ$9,BN$9-Inputs!$E$87) -> 0 | BO142: =-SUMIFS($Q141:$CJ141,$Q$9:$CJ$9,BO$9-Inputs!$E$87) -> 0 | BP142: =-SUMIFS($Q141:$CJ141,$Q$9:$CJ$9,BP$9-Inputs!$E$87) -> 0 | BQ142: =-SUMIFS($Q141:$CJ141,$Q$9:$CJ$9,BQ$9-Inputs!$E$87) -> 0 | BR142: =-SUMIFS($Q141:$CJ141,$Q$9:$CJ$9,BR$9-Inputs!$E$87) -> 0 | BS142: =-SUMIFS($Q141:$CJ141,$Q$9:$CJ$9,BS$9-Inputs!$E$87) -> 0 | BT142: =-SUMIFS($Q141:$CJ141,$Q$9:$CJ$9,BT$9-Inputs!$E$87) -> 0 | BU142: =-SUMIFS($Q141:$CJ141,$Q$9:$CJ$9,BU$9-Inputs!$E$87) -> 0 | BV142: =-SUMIFS($Q141:$CJ141,$Q$9:$CJ$9,BV$9-Inputs!$E$87) -> 0 | BW142: =-SUMIFS($Q141:$CJ141,$Q$9:$CJ$9,BW$9-Inputs!$E$87) -> 0 | BX142: =-SUMIFS($Q141:$CJ141,$Q$9:$CJ$9,BX$9-Inputs!$E$87) -> 0 | BY142: =-SUMIFS($Q141:$CJ141,$Q$9:$CJ$9,BY$9-Inputs!$E$87) -> 0 | BZ142: =-SUMIFS($Q141:$CJ141,$Q$9:$CJ$9,BZ$9-Inputs!$E$87) -> 0 | CA142: =-SUMIFS($Q141:$CJ141,$Q$9:$CJ$9,CA$9-Inputs!$E$87) -> 0 | CB142: =-SUMIFS($Q141:$CJ141,$Q$9:$CJ$9,CB$9-Inputs!$E$87) -> 0 | CC142: =-SUMIFS($Q141:$CJ141,$Q$9:$CJ$9,CC$9-Inputs!$E$87) -> 0 | CD142: =-SUMIFS($Q141:$CJ141,$Q$9:$CJ$9,CD$9-Inputs!$E$87) -> 0 | CE142: =-SUMIFS($Q141:$CJ141,$Q$9:$CJ$9,CE$9-Inputs!$E$87) -> 0 | CF142: =-SUMIFS($Q141:$CJ141,$Q$9:$CJ$9,CF$9-Inputs!$E$87) -> 0 | CG142: =-SUMIFS($Q141:$CJ141,$Q$9:$CJ$9,CG$9-Inputs!$E$87) -> 0 | CH142: =-SUMIFS($Q141:$CJ141,$Q$9:$CJ$9,CH$9-Inputs!$E$87) -> 0 | CI142: =-SUMIFS($Q141:$CJ141,$Q$9:$CJ$9,CI$9-Inputs!$E$87) -> 0 | CJ142: =-SUMIFS($Q141:$CJ141,$Q$9:$CJ$9,CJ$9-Inputs!$E$87) -> 0
C143: Balance c/f | D143: # | I143: =SUM(I140:I142) -> 0 | J143: 0 | K143: 0 | L143: 1965.6 | M143: 1965.6 | N143: 1965.6 | Q143: =SUM(Q140:Q142) -> 0 | R143: =SUM(R140:R142) -> 0 | S143: =SUM(S140:S142) -> 0 | T143: 0 | U143: 0 | V143: 0 | W143: 0 | X143: 0 | Y143: 0 | Z143: 0 | AA143: 0 | AB143: 0 | AC143: 0 | AD143: 0 | AE143: 0 | AF143: 0 | AG143: 0 | AH143: 0 | AI143: 0 | AJ143: 0 | AK143: 0 | AL143: 0 | AM143: 0 | AN143: 0 | AO143: 0 | AP143: 0 | AQ143: 0 | AR143: 0 | AS143: 0 | AT143: 0 | AU143: 0 | AV143: 0 | AW143: 0 | AX143: 0 | AY143: 0 | AZ143: 0 | BA143: 163.8 | BB143: 327.6 | BC143: 491.4 | BD143: 655.2 | BE143: 819 | BF143: 982.8 | BG143: 1146.6 | BH143: 1310.4 | BI143: 1474.2 | BJ143: 1638 | BK143: 1801.8 | BL143: 1965.6 | BM143: 1965.6 | BN143: 1965.6 | BO143: 1965.6 | BP143: 1965.6 | BQ143: 1965.6 | BR143: 1965.6 | BS143: 1965.6 | BT143: 1965.6 | BU143: 1965.6 | BV143: 1965.6 | BW143: 1965.6 | BX143: 1965.6 | BY143: 1965.6 | BZ143: 1965.6 | CA143: 1965.6 | CB143: 1965.6 | CC143: 1965.6 | CD143: 1965.6 | CE143: =SUM(CE140:CE142) -> 1965.6 | CF143: 1965.6 | CG143: 1965.6 | CH143: 1965.6 | CI143: 1965.6 | CJ143: 1965.6
C145: Revenue | D145: NGN | F145: =INDEX(Inputs!$I$104:$N$104, MATCH('Monthly Sales Profile'!$F139,Inputs!$I$75:$N$75,0)) -> 480414.375 | I145: =SUMIF($Q$6:$CJ$6,I$6,$Q145:$CJ145) -> 0 | J145: 0 | K145: 0 | L145: 944302495.5 | M145: 0 | N145: 0 | Q145: =Q141*$F145 -> 0 | R145: 0 | S145: 0 | T145: 0 | U145: 0 | V145: 0 | W145: 0 | X145: 0 | Y145: 0 | Z145: 0 | AA145: 0 | AB145: 0 | AC145: 0 | AD145: 0 | AE145: 0 | AF145: 0 | AG145: 0 | AH145: 0 | AI145: 0 | AJ145: 0 | AK145: 0 | AL145: 0 | AM145: 0 | AN145: 0 | AO145: 0 | AP145: 0 | AQ145: 0 | AR145: 0 | AS145: 0 | AT145: 0 | AU145: 0 | AV145: 0 | AW145: =AW141*$F145 -> 0 | AX145: 0 | AY145: 0 | AZ145: 0 | BA145: 78691874.62 | BB145: 78691874.62 | BC145: 78691874.62 | BD145: 78691874.62 | BE145: 78691874.62 | BF145: 78691874.62 | BG145: 78691874.62 | BH145: 78691874.62 | BI145: 78691874.62 | BJ145: 78691874.62 | BK145: 78691874.62 | BL145: 78691874.62 | BM145: 0 | BN145: 0 | BO145: 0 | BP145: 0 | BQ145: 0 | BR145: 0 | BS145: 0 | BT145: 0 | BU145: 0 | BV145: 0 | BW145: 0 | BX145: 0 | BY145: 0 | BZ145: 0 | CA145: 0 | CB145: 0 | CC145: =CC141*$F145 -> 0 | CD145: 0 | CE145: 0 | CF145: 0 | CG145: 0 | CH145: 0 | CI145: 0 | CJ145: 0
C146: Down payment | D146: NGN | F146: =INDEX(Inputs!$I$105:$N$105, MATCH('Monthly Sales Profile'!$F139,Inputs!$I$75:$N$75,0)) -> 272041.875 | I146: 0 | J146: 0 | K146: 0 | L146: 534725509.5 | M146: 0 | N146: 0 | Q146: =Q141*$F146 -> 0 | R146: 0 | S146: 0 | T146: 0 | U146: 0 | V146: 0 | W146: 0 | X146: 0 | Y146: 0 | Z146: 0 | AA146: 0 | AB146: 0 | AC146: 0 | AD146: 0 | AE146: 0 | AF146: 0 | AG146: 0 | AH146: 0 | AI146: 0 | AJ146: 0 | AK146: 0 | AL146: 0 | AM146: 0 | AN146: 0 | AO146: 0 | AP146: 0 | AQ146: 0 | AR146: 0 | AS146: 0 | AT146: 0 | AU146: 0 | AV146: 0 | AW146: =AW141*$F146 -> 0 | AX146: 0 | AY146: 0 | AZ146: 0 | BA146: 44560459.12 | BB146: 44560459.12 | BC146: 44560459.12 | BD146: 44560459.12 | BE146: 44560459.12 | BF146: 44560459.12 | BG146: 44560459.12 | BH146: 44560459.12 | BI146: 44560459.12 | BJ146: 44560459.12 | BK146: 44560459.12 | BL146: 44560459.12 | BM146: 0 | BN146: 0 | BO146: 0 | BP146: 0 | BQ146: 0 | BR146: 0 | BS146: 0 | BT146: 0 | BU146: 0 | BV146: 0 | BW146: 0 | BX146: 0 | BY146: 0 | BZ146: 0 | CA146: 0 | CB146: 0 | CC146: =CC141*$F146 -> 0 | CD146: 0 | CE146: 0 | CF146: 0 | CG146: 0 | CH146: 0 | CI146: 0 | CJ146: 0
C147: Monthly payment revenue | D147: NGN | F147: =INDEX(Inputs!$I$106:$N$106, MATCH('Monthly Sales Profile'!$F139,Inputs!$I$75:$N$75,0)) -> 5788.125 | I147: 0 | J147: 0 | K147: 0 | L147: 73951400.25 | M147: 136525662 | N147: 136525662 | Q147: =Q143*$F147 -> 0 | R147: 0 | S147: 0 | T147: 0 | U147: 0 | V147: 0 | W147: 0 | X147: 0 | Y147: 0 | Z147: 0 | AA147: 0 | AB147: 0 | AC147: 0 | AD147: 0 | AE147: 0 | AF147: 0 | AG147: 0 | AH147: 0 | AI147: 0 | AJ147: 0 | AK147: 0 | AL147: 0 | AM147: 0 | AN147: 0 | AO147: 0 | AP147: 0 | AQ147: 0 | AR147: 0 | AS147: 0 | AT147: 0 | AU147: 0 | AV147: 0 | AW147: =AW143*$F147 -> 0 | AX147: 0 | AY147: 0 | AZ147: 0 | BA147: 948094.875 | BB147: 1896189.75 | BC147: 2844284.625 | BD147: 3792379.5 | BE147: 4740474.375 | BF147: 5688569.25 | BG147: 6636664.125 | BH147: 7584759 | BI147: 8532853.875 | BJ147: 9480948.75 | BK147: 10429043.62 | BL147: 11377138.5 | BM147: 11377138.5 | BN147: 11377138.5 | BO147: 11377138.5 | BP147: 11377138.5 | BQ147: 11377138.5 | BR147: 11377138.5 | BS147: 11377138.5 | BT147: 11377138.5 | BU147: 11377138.5 | BV147: 11377138.5 | BW147: 11377138.5 | BX147: 11377138.5 | BY147: 11377138.5 | BZ147: 11377138.5 | CA147: 11377138.5 | CB147: 11377138.5 | CC147: =CC143*$F147 -> 11377138.5 | CD147: 11377138.5 | CE147: 11377138.5 | CF147: 11377138.5 | CG147: 11377138.5 | CH147: 11377138.5 | CI147: 11377138.5 | CJ147: 11377138.5
C149: Year 5 | F149: =F139+1 -> 2024
C150: Balance b/f | D150: # | I150: =Q150 -> 0 | J150: =I153 -> 0 | K150: =J153 -> 0 | L150: =K153 -> 0 | M150: =L153 -> 0 | N150: =M153 -> 2555.28 | R150: =Q153 -> 0 | S150: =R153 -> 0 | T150: =S153 -> 0 | U150: =T153 -> 0 | V150: =U153 -> 0 | W150: =V153 -> 0 | X150: =W153 -> 0 | Y150: =X153 -> 0 | Z150: =Y153 -> 0 | AA150: =Z153 -> 0 | AB150: =AA153 -> 0 | AC150: =AB153 -> 0 | AD150: =AC153 -> 0 | AE150: =AD153 -> 0 | AF150: =AE153 -> 0 | AG150: =AF153 -> 0 | AH150: =AG153 -> 0 | AI150: =AH153 -> 0 | AJ150: =AI153 -> 0 | AK150: =AJ153 -> 0 | AL150: =AK153 -> 0 | AM150: =AL153 -> 0 | AN150: =AM153 -> 0 | AO150: =AN153 -> 0 | AP150: =AO153 -> 0 | AQ150: =AP153 -> 0 | AR150: =AQ153 -> 0 | AS150: =AR153 -> 0 | AT150: =AS153 -> 0 | AU150: =AT153 -> 0 | AV150: =AU153 -> 0 | AW150: =AV153 -> 0 | AX150: =AW153 -> 0 | AY150: =AX153 -> 0 | AZ150: =AY153 -> 0 | BA150: =AZ153 -> 0 | BB150: =BA153 -> 0 | BC150: =BB153 -> 0 | BD150: =BC153 -> 0 | BE150: =BD153 -> 0 | BF150: =BE153 -> 0 | BG150: =BF153 -> 0 | BH150: =BG153 -> 0 | BI150: =BH153 -> 0 | BJ150: =BI153 -> 0 | BK150: =BJ153 -> 0 | BL150: =BK153 -> 0 | BM150: =BL153 -> 0 | BN150: =BM153 -> 212.94 | BO150: =BN153 -> 425.88 | BP150: =BO153 -> 638.82 | BQ150: =BP153 -> 851.76 | BR150: =BQ153 -> 1064.7 | BS150: =BR153 -> 1277.64 | BT150: =BS153 -> 1490.58 | BU150: =BT153 -> 1703.52 | BV150: =BU153 -> 1916.46 | BW150: =BV153 -> 2129.4 | BX150: =BW153 -> 2342.34 | BY150: =BX153 -> 2555.28 | BZ150: =BY153 -> 2555.28 | CA150: =BZ153 -> 2555.28 | CB150: =CA153 -> 2555.28 | CC150: =CB153 -> 2555.28 | CD150: =CC153 -> 2555.28 | CE150: =CD153 -> 2555.28 | CF150: =CE153 -> 2555.28 | CG150: =CF153 -> 2555.28 | CH150: =CG153 -> 2555.28 | CI150: =CH153 -> 2555.28 | CJ150: =CI153 -> 2555.28
C151: New contracts | D151: # | I151: =SUMIF($Q$6:$CJ$6,I$6,$Q151:$CJ151) -> 0 | J151: 0 | K151: 0 | L151: 0 | M151: 2555.28 | N151: 0 | Q151: =IF(Q$6=$F149,Q$97,0) -> 0 | R151: 0 | S151: 0 | T151: 0 | U151: 0 | V151: 0 | W151: 0 | X151: 0 | Y151: 0 | Z151: 0 | AA151: 0 | AB151: 0 | AC151: 0 | AD151: 0 | AE151: 0 | AF151: 0 | AG151: 0 | AH151: 0 | AI151: 0 | AJ151: 0 | AK151: 0 | AL151: 0 | AM151: 0 | AN151: 0 | AO151: 0 | AP151: 0 | AQ151: 0 | AR151: 0 | AS151: 0 | AT151: 0 | AU151: 0 | AV151: 0 | AW151: =IF(AW$6=$F149,AW$97,0) -> 0 | AX151: 0 | AY151: 0 | AZ151: 0 | BA151: 0 | BB151: 0 | BC151: 0 | BD151: 0 | BE151: 0 | BF151: 0 | BG151: 0 | BH151: 0 | BI151: 0 | BJ151: 0 | BK151: 0 | BL151: 0 | BM151: 212.94 | BN151: 212.94 | BO151: 212.94 | BP151: 212.94 | BQ151: 212.94 | BR151: 212.94 | BS151: 212.94 | BT151: 212.94 | BU151: 212.94 | BV151: 212.94 | BW151: 212.94 | BX151: 212.94 | BY151: 0 | BZ151: 0 | CA151: 0 | CB151: 0 | CC151: =IF(CC$6=$F149,CC$97,0) -> 0 | CD151: 0 | CE151: 0 | CF151: 0 | CG151: 0 | CH151: 0 | CI151: 0 | CJ151: 0
C152: Contracts ended | D152: # | I152: 0 | J152: 0 | K152: 0 | L152: 0 | M152: 0 | N152: 0 | Q152: =-SUMIFS($Q151:$CJ151,$Q$9:$CJ$9,Q$9-Inputs!$E$87) -> 0 | R152: =-SUMIFS($Q151:$CJ151,$Q$9:$CJ$9,R$9-Inputs!$E$87) -> 0 | S152: =-SUMIFS($Q151:$CJ151,$Q$9:$CJ$9,S$9-Inputs!$E$87) -> 0 | T152: =-SUMIFS($Q151:$CJ151,$Q$9:$CJ$9,T$9-Inputs!$E$87) -> 0 | U152: =-SUMIFS($Q151:$CJ151,$Q$9:$CJ$9,U$9-Inputs!$E$87) -> 0 | V152: =-SUMIFS($Q151:$CJ151,$Q$9:$CJ$9,V$9-Inputs!$E$87) -> 0 | W152: =-SUMIFS($Q151:$CJ151,$Q$9:$CJ$9,W$9-Inputs!$E$87) -> 0 | X152: =-SUMIFS($Q151:$CJ151,$Q$9:$CJ$9,X$9-Inputs!$E$87) -> 0 | Y152: =-SUMIFS($Q151:$CJ151,$Q$9:$CJ$9,Y$9-Inputs!$E$87) -> 0 | Z152: =-SUMIFS($Q151:$CJ151,$Q$9:$CJ$9,Z$9-Inputs!$E$87) -> 0 | AA152: =-SUMIFS($Q151:$CJ151,$Q$9:$CJ$9,AA$9-Inputs!$E$87) -> 0 | AB152: =-SUMIFS($Q151:$CJ151,$Q$9:$CJ$9,AB$9-Inputs!$E$87) -> 0 | AC152: =-SUMIFS($Q151:$CJ151,$Q$9:$CJ$9,AC$9-Inputs!$E$87) -> 0 | AD152: =-SUMIFS($Q151:$CJ151,$Q$9:$CJ$9,AD$9-Inputs!$E$87) -> 0 | AE152: =-SUMIFS($Q151:$CJ151,$Q$9:$CJ$9,AE$9-Inputs!$E$87) -> 0 | AF152: =-SUMIFS($Q151:$CJ151,$Q$9:$CJ$9,AF$9-Inputs!$E$87) -> 0 | AG152: =-SUMIFS($Q151:$CJ151,$Q$9:$CJ$9,AG$9-Inputs!$E$87) -> 0 | AH152: =-SUMIFS($Q151:$CJ151,$Q$9:$CJ$9,AH$9-Inputs!$E$87) -> 0 | AI152: =-SUMIFS($Q151:$CJ151,$Q$9:$CJ$9,AI$9-Inputs!$E$87) -> 0 | AJ152: =-SUMIFS($Q151:$CJ151,$Q$9:$CJ$9,AJ$9-Inputs!$E$87) -> 0 | AK152: =-SUMIFS($Q151:$CJ151,$Q$9:$CJ$9,AK$9-Inputs!$E$87) -> 0 | AL152: =-SUMIFS($Q151:$CJ151,$Q$9:$CJ$9,AL$9-Inputs!$E$87) -> 0 | AM152: =-SUMIFS($Q151:$CJ151,$Q$9:$CJ$9,AM$9-Inputs!$E$87) -> 0 | AN152: =-SUMIFS($Q151:$CJ151,$Q$9:$CJ$9,AN$9-Inputs!$E$87) -> 0 | AO152: =-SUMIFS($Q151:$CJ151,$Q$9:$CJ$9,AO$9-Inputs!$E$87) -> 0 | AP152: =-SUMIFS($Q151:$CJ151,$Q$9:$CJ$9,AP$9-Inputs!$E$87) -> 0 | AQ152: =-SUMIFS($Q151:$CJ151,$Q$9:$CJ$9,AQ$9-Inputs!$E$87) -> 0 | AR152: =-SUMIFS($Q151:$CJ151,$Q$9:$CJ$9,AR$9-Inputs!$E$87) -> 0 | AS152: =-SUMIFS($Q151:$CJ151,$Q$9:$CJ$9,AS$9-Inputs!$E$87) -> 0 | AT152: =-SUMIFS($Q151:$CJ151,$Q$9:$CJ$9,AT$9-Inputs!$E$87) -> 0 | AU152: =-SUMIFS($Q151:$CJ151,$Q$9:$CJ$9,AU$9-Inputs!$E$87) -> 0 | AV152: =-SUMIFS($Q151:$CJ151,$Q$9:$CJ$9,AV$9-Inputs!$E$87) -> 0 | AW152: =-SUMIFS($Q151:$CJ151,$Q$9:$CJ$9,AW$9-Inputs!$E$87) -> 0 | AX152: =-SUMIFS($Q151:$CJ151,$Q$9:$CJ$9,AX$9-Inputs!$E$87) -> 0 | AY152: =-SUMIFS($Q151:$CJ151,$Q$9:$CJ$9,AY$9-Inputs!$E$87) -> 0 | AZ152: =-SUMIFS($Q151:$CJ151,$Q$9:$CJ$9,AZ$9-Inputs!$E$87) -> 0 | BA152: =-SUMIFS($Q151:$CJ151,$Q$9:$CJ$9,BA$9-Inputs!$E$87) -> 0 | BB152: =-SUMIFS($Q151:$CJ151,$Q$9:$CJ$9,BB$9-Inputs!$E$87) -> 0 | BC152: =-SUMIFS($Q151:$CJ151,$Q$9:$CJ$9,BC$9-Inputs!$E$87) -> 0 | BD152: =-SUMIFS($Q151:$CJ151,$Q$9:$CJ$9,BD$9-Inputs!$E$87) -> 0 | BE152: =-SUMIFS($Q151:$CJ151,$Q$9:$CJ$9,BE$9-Inputs!$E$87) -> 0 | BF152: =-SUMIFS($Q151:$CJ151,$Q$9:$CJ$9,BF$9-Inputs!$E$87) -> 0 | BG152: =-SUMIFS($Q151:$CJ151,$Q$9:$CJ$9,BG$9-Inputs!$E$87) -> 0 | BH152: =-SUMIFS($Q151:$CJ151,$Q$9:$CJ$9,BH$9-Inputs!$E$87) -> 0 | BI152: =-SUMIFS($Q151:$CJ151,$Q$9:$CJ$9,BI$9-Inputs!$E$87) -> 0 | BJ152: =-SUMIFS($Q151:$CJ151,$Q$9:$CJ$9,BJ$9-Inputs!$E$87) -> 0 | BK152: =-SUMIFS($Q151:$CJ151,$Q$9:$CJ$9,BK$9-Inputs!$E$87) -> 0 | BL152: =-SUMIFS($Q151:$CJ151,$Q$9:$CJ$9,BL$9-Inputs!$E$87) -> 0 | BM152: =-SUMIFS($Q151:$CJ151,$Q$9:$CJ$9,BM$9-Inputs!$E$87) -> 0 | BN152: =-SUMIFS($Q151:$CJ151,$Q$9:$CJ$9,BN$9-Inputs!$E$87) -> 0 | BO152: =-SUMIFS($Q151:$CJ151,$Q$9:$CJ$9,BO$9-Inputs!$E$87) -> 0 | BP152: =-SUMIFS($Q151:$CJ151,$Q$9:$CJ$9,BP$9-Inputs!$E$87) -> 0 | BQ152: =-SUMIFS($Q151:$CJ151,$Q$9:$CJ$9,BQ$9-Inputs!$E$87) -> 0 | BR152: =-SUMIFS($Q151:$CJ151,$Q$9:$CJ$9,BR$9-Inputs!$E$87) -> 0 | BS152: =-SUMIFS($Q151:$CJ151,$Q$9:$CJ$9,BS$9-Inputs!$E$87) -> 0 | BT152: =-SUMIFS($Q151:$CJ151,$Q$9:$CJ$9,BT$9-Inputs!$E$87) -> 0 | BU152: =-SUMIFS($Q151:$CJ151,$Q$9:$CJ$9,BU$9-Inputs!$E$87) -> 0 | BV152: =-SUMIFS($Q151:$CJ151,$Q$9:$CJ$9,BV$9-Inputs!$E$87) -> 0 | BW152: =-SUMIFS($Q151:$CJ151,$Q$9:$CJ$9,BW$9-Inputs!$E$87) -> 0 | BX152: =-SUMIFS($Q151:$CJ151,$Q$9:$CJ$9,BX$9-Inputs!$E$87) -> 0 | BY152: =-SUMIFS($Q151:$CJ151,$Q$9:$CJ$9,BY$9-Inputs!$E$87) -> 0 | BZ152: =-SUMIFS($Q151:$CJ151,$Q$9:$CJ$9,BZ$9-Inputs!$E$87) -> 0 | CA152: =-SUMIFS($Q151:$CJ151,$Q$9:$CJ$9,CA$9-Inputs!$E$87) -> 0 | CB152: =-SUMIFS($Q151:$CJ151,$Q$9:$CJ$9,CB$9-Inputs!$E$87) -> 0 | CC152: =-SUMIFS($Q151:$CJ151,$Q$9:$CJ$9,CC$9-Inputs!$E$87) -> 0 | CD152: =-SUMIFS($Q151:$CJ151,$Q$9:$CJ$9,CD$9-Inputs!$E$87) -> 0 | CE152: =-SUMIFS($Q151:$CJ151,$Q$9:$CJ$9,CE$9-Inputs!$E$87) -> 0 | CF152: =-SUMIFS($Q151:$CJ151,$Q$9:$CJ$9,CF$9-Inputs!$E$87) -> 0 | CG152: =-SUMIFS($Q151:$CJ151,$Q$9:$CJ$9,CG$9-Inputs!$E$87) -> 0 | CH152: =-SUMIFS($Q151:$CJ151,$Q$9:$CJ$9,CH$9-Inputs!$E$87) -> 0 | CI152: =-SUMIFS($Q151:$CJ151,$Q$9:$CJ$9,CI$9-Inputs!$E$87) -> 0 | CJ152: =-SUMIFS($Q151:$CJ151,$Q$9:$CJ$9,CJ$9-Inputs!$E$87) -> 0
C153: Balance c/f | D153: # | I153: =SUM(I150:I152) -> 0 | J153: 0 | K153: 0 | L153: 0 | M153: 2555.28 | N153: 2555.28 | Q153: =SUM(Q150:Q152) -> 0 | R153: =SUM(R150:R152) -> 0 | S153: =SUM(S150:S152) -> 0 | T153: 0 | U153: 0 | V153: 0 | W153: 0 | X153: 0 | Y153: 0 | Z153: 0 | AA153: 0 | AB153: 0 | AC153: 0 | AD153: 0 | AE153: 0 | AF153: 0 | AG153: 0 | AH153: 0 | AI153: 0 | AJ153: 0 | AK153: 0 | AL153: 0 | AM153: 0 | AN153: 0 | AO153: 0 | AP153: 0 | AQ153: 0 | AR153: 0 | AS153: 0 | AT153: 0 | AU153: 0 | AV153: 0 | AW153: 0 | AX153: 0 | AY153: 0 | AZ153: 0 | BA153: 0 | BB153: 0 | BC153: 0 | BD153: 0 | BE153: 0 | BF153: 0 | BG153: 0 | BH153: 0 | BI153: 0 | BJ153: 0 | BK153: 0 | BL153: 0 | BM153: 212.94 | BN153: 425.88 | BO153: 638.82 | BP153: 851.76 | BQ153: 1064.7 | BR153: 1277.64 | BS153: 1490.58 | BT153: 1703.52 | BU153: 1916.46 | BV153: 2129.4 | BW153: 2342.34 | BX153: 2555.28 | BY153: 2555.28 | BZ153: 2555.28 | CA153: 2555.28 | CB153: 2555.28 | CC153: 2555.28 | CD153: 2555.28 | CE153: =SUM(CE150:CE152) -> 2555.28 | CF153: 2555.28 | CG153: 2555.28 | CH153: 2555.28 | CI153: 2555.28 | CJ153: 2555.28
C155: Revenue | D155: NGN | F155: =INDEX(Inputs!$I$104:$N$104, MATCH('Monthly Sales Profile'!$F149,Inputs!$I$75:$N$75,0)) -> 504435.0938 | I155: =SUMIF($Q$6:$CJ$6,I$6,$Q155:$CJ155) -> 0 | J155: 0 | K155: 0 | L155: 0 | M155: 1288972906 | N155: 0 | Q155: =Q151*$F155 -> 0 | R155: 0 | S155: 0 | T155: 0 | U155: 0 | V155: 0 | W155: 0 | X155: 0 | Y155: 0 | Z155: 0 | AA155: 0 | AB155: 0 | AC155: 0 | AD155: 0 | AE155: 0 | AF155: 0 | AG155: 0 | AH155: 0 | AI155: 0 | AJ155: 0 | AK155: 0 | AL155: 0 | AM155: 0 | AN155: 0 | AO155: 0 | AP155: 0 | AQ155: 0 | AR155: 0 | AS155: 0 | AT155: 0 | AU155: 0 | AV155: 0 | AW155: =AW151*$F155 -> 0 | AX155: 0 | AY155: 0 | AZ155: 0 | BA155: 0 | BB155: 0 | BC155: 0 | BD155: 0 | BE155: 0 | BF155: 0 | BG155: 0 | BH155: 0 | BI155: 0 | BJ155: 0 | BK155: 0 | BL155: 0 | BM155: 107414408.9 | BN155: 107414408.9 | BO155: 107414408.9 | BP155: 107414408.9 | BQ155: 107414408.9 | BR155: 107414408.9 | BS155: 107414408.9 | BT155: 107414408.9 | BU155: 107414408.9 | BV155: 107414408.9 | BW155: 107414408.9 | BX155: 107414408.9 | BY155: 0 | BZ155: 0 | CA155: 0 | CB155: 0 | CC155: =CC151*$F155 -> 0 | CD155: 0 | CE155: 0 | CF155: 0 | CG155: 0 | CH155: 0 | CI155: 0 | CJ155: 0
C156: Down payment | D156: NGN | F156: =INDEX(Inputs!$I$105:$N$105, MATCH('Monthly Sales Profile'!$F149,Inputs!$I$75:$N$75,0)) -> 285643.9688 | I156: 0 | J156: 0 | K156: 0 | L156: 0 | M156: 729900320.5 | N156: 0 | Q156: =Q151*$F156 -> 0 | R156: 0 | S156: 0 | T156: 0 | U156: 0 | V156: 0 | W156: 0 | X156: 0 | Y156: 0 | Z156: 0 | AA156: 0 | AB156: 0 | AC156: 0 | AD156: 0 | AE156: 0 | AF156: 0 | AG156: 0 | AH156: 0 | AI156: 0 | AJ156: 0 | AK156: 0 | AL156: 0 | AM156: 0 | AN156: 0 | AO156: 0 | AP156: 0 | AQ156: 0 | AR156: 0 | AS156: 0 | AT156: 0 | AU156: 0 | AV156: 0 | AW156: =AW151*$F156 -> 0 | AX156: 0 | AY156: 0 | AZ156: 0 | BA156: 0 | BB156: 0 | BC156: 0 | BD156: 0 | BE156: 0 | BF156: 0 | BG156: 0 | BH156: 0 | BI156: 0 | BJ156: 0 | BK156: 0 | BL156: 0 | BM156: 60825026.71 | BN156: 60825026.71 | BO156: 60825026.71 | BP156: 60825026.71 | BQ156: 60825026.71 | BR156: 60825026.71 | BS156: 60825026.71 | BT156: 60825026.71 | BU156: 60825026.71 | BV156: 60825026.71 | BW156: 60825026.71 | BX156: 60825026.71 | BY156: 0 | BZ156: 0 | CA156: 0 | CB156: 0 | CC156: =CC151*$F156 -> 0 | CD156: 0 | CE156: 0 | CF156: 0 | CG156: 0 | CH156: 0 | CI156: 0 | CJ156: 0
C157: Monthly payment revenue | D157: NGN | F157: =INDEX(Inputs!$I$106:$N$106, MATCH('Monthly Sales Profile'!$F149,Inputs!$I$75:$N$75,0)) -> 6077.53125 | I157: 0 | J157: 0 | K157: 0 | L157: 0 | M157: 100943661.3 | N157: 186357528.6 | Q157: =Q153*$F157 -> 0 | R157: 0 | S157: 0 | T157: 0 | U157: 0 | V157: 0 | W157: 0 | X157: 0 | Y157: 0 | Z157: 0 | AA157: 0 | AB157: 0 | AC157: 0 | AD157: 0 | AE157: 0 | AF157: 0 | AG157: 0 | AH157: 0 | AI157: 0 | AJ157: 0 | AK157: 0 | AL157: 0 | AM157: 0 | AN157: 0 | AO157: 0 | AP157: 0 | AQ157: 0 | AR157: 0 | AS157: 0 | AT157: 0 | AU157: 0 | AV157: 0 | AW157: =AW153*$F157 -> 0 | AX157: 0 | AY157: 0 | AZ157: 0 | BA157: 0 | BB157: 0 | BC157: 0 | BD157: 0 | BE157: 0 | BF157: 0 | BG157: 0 | BH157: 0 | BI157: 0 | BJ157: 0 | BK157: 0 | BL157: 0 | BM157: 1294149.504 | BN157: 2588299.009 | BO157: 3882448.513 | BP157: 5176598.018 | BQ157: 6470747.522 | BR157: 7764897.026 | BS157: 9059046.531 | BT157: 10353196.04 | BU157: 11647345.54 | BV157: 12941495.04 | BW157: 14235644.55 | BX157: 15529794.05 | BY157: 15529794.05 | BZ157: 15529794.05 | CA157: 15529794.05 | CB157: 15529794.05 | CC157: =CC153*$F157 -> 15529794.05 | CD157: 15529794.05 | CE157: 15529794.05 | CF157: 15529794.05 | CG157: 15529794.05 | CH157: 15529794.05 | CI157: 15529794.05 | CJ157: 15529794.05
C159: Year 6 | F159: =F149+1 -> 2025
C160: Balance b/f | D160: # | I160: =Q160 -> 0 | J160: =I163 -> 0 | K160: =J163 -> 0 | L160: =K163 -> 0 | M160: =L163 -> 0 | N160: =M163 -> 0 | R160: =Q163 -> 0 | S160: =R163 -> 0 | T160: =S163 -> 0 | U160: =T163 -> 0 | V160: =U163 -> 0 | W160: =V163 -> 0 | X160: =W163 -> 0 | Y160: =X163 -> 0 | Z160: =Y163 -> 0 | AA160: =Z163 -> 0 | AB160: =AA163 -> 0 | AC160: =AB163 -> 0 | AD160: =AC163 -> 0 | AE160: =AD163 -> 0 | AF160: =AE163 -> 0 | AG160: =AF163 -> 0 | AH160: =AG163 -> 0 | AI160: =AH163 -> 0 | AJ160: =AI163 -> 0 | AK160: =AJ163 -> 0 | AL160: =AK163 -> 0 | AM160: =AL163 -> 0 | AN160: =AM163 -> 0 | AO160: =AN163 -> 0 | AP160: =AO163 -> 0 | AQ160: =AP163 -> 0 | AR160: =AQ163 -> 0 | AS160: =AR163 -> 0 | AT160: =AS163 -> 0 | AU160: =AT163 -> 0 | AV160: =AU163 -> 0 | AW160: =AV163 -> 0 | AX160: =AW163 -> 0 | AY160: =AX163 -> 0 | AZ160: =AY163 -> 0 | BA160: =AZ163 -> 0 | BB160: =BA163 -> 0 | BC160: =BB163 -> 0 | BD160: =BC163 -> 0 | BE160: =BD163 -> 0 | BF160: =BE163 -> 0 | BG160: =BF163 -> 0 | BH160: =BG163 -> 0 | BI160: =BH163 -> 0 | BJ160: =BI163 -> 0 | BK160: =BJ163 -> 0 | BL160: =BK163 -> 0 | BM160: =BL163 -> 0 | BN160: =BM163 -> 0 | BO160: =BN163 -> 0 | BP160: =BO163 -> 0 | BQ160: =BP163 -> 0 | BR160: =BQ163 -> 0 | BS160: =BR163 -> 0 | BT160: =BS163 -> 0 | BU160: =BT163 -> 0 | BV160: =BU163 -> 0 | BW160: =BV163 -> 0 | BX160: =BW163 -> 0 | BY160: =BX163 -> 0 | BZ160: =BY163 -> 255.528 | CA160: =BZ163 -> 511.056 | CB160: =CA163 -> 766.584 | CC160: =CB163 -> 1022.112 | CD160: =CC163 -> 1277.64 | CE160: =CD163 -> 1533.168 | CF160: =CE163 -> 1788.696 | CG160: =CF163 -> 2044.224 | CH160: =CG163 -> 2299.752 | CI160: =CH163 -> 2555.28 | CJ160: =CI163 -> 2810.808
C161: New contracts | D161: # | I161: =SUMIF($Q$6:$CJ$6,I$6,$Q161:$CJ161) -> 0 | J161: 0 | K161: 0 | L161: 0 | M161: 0 | N161: 3066.336 | Q161: =IF(Q$6=$F159,Q$97,0) -> 0 | R161: 0 | S161: 0 | T161: 0 | U161: 0 | V161: 0 | W161: 0 | X161: 0 | Y161: 0 | Z161: 0 | AA161: 0 | AB161: 0 | AC161: 0 | AD161: 0 | AE161: 0 | AF161: 0 | AG161: 0 | AH161: 0 | AI161: 0 | AJ161: 0 | AK161: 0 | AL161: 0 | AM161: 0 | AN161: 0 | AO161: 0 | AP161: 0 | AQ161: 0 | AR161: 0 | AS161: 0 | AT161: 0 | AU161: 0 | AV161: 0 | AW161: =IF(AW$6=$F159,AW$97,0) -> 0 | AX161: 0 | AY161: 0 | AZ161: 0 | BA161: 0 | BB161: 0 | BC161: 0 | BD161: 0 | BE161: 0 | BF161: 0 | BG161: 0 | BH161: 0 | BI161: 0 | BJ161: 0 | BK161: 0 | BL161: 0 | BM161: 0 | BN161: 0 | BO161: 0 | BP161: 0 | BQ161: 0 | BR161: 0 | BS161: 0 | BT161: 0 | BU161: 0 | BV161: 0 | BW161: 0 | BX161: 0 | BY161: 255.528 | BZ161: 255.528 | CA161: 255.528 | CB161: 255.528 | CC161: =IF(CC$6=$F159,CC$97,0) -> 255.528 | CD161: 255.528 | CE161: 255.528 | CF161: 255.528 | CG161: 255.528 | CH161: 255.528 | CI161: 255.528 | CJ161: 255.528
C162: Contracts ended | D162: # | I162: 0 | J162: 0 | K162: 0 | L162: 0 | M162: 0 | N162: 0 | Q162: =-SUMIFS($Q161:$CJ161,$Q$9:$CJ$9,Q$9-Inputs!$E$87) -> 0 | R162: =-SUMIFS($Q161:$CJ161,$Q$9:$CJ$9,R$9-Inputs!$E$87) -> 0 | S162: =-SUMIFS($Q161:$CJ161,$Q$9:$CJ$9,S$9-Inputs!$E$87) -> 0 | T162: =-SUMIFS($Q161:$CJ161,$Q$9:$CJ$9,T$9-Inputs!$E$87) -> 0 | U162: =-SUMIFS($Q161:$CJ161,$Q$9:$CJ$9,U$9-Inputs!$E$87) -> 0 | V162: =-SUMIFS($Q161:$CJ161,$Q$9:$CJ$9,V$9-Inputs!$E$87) -> 0 | W162: =-SUMIFS($Q161:$CJ161,$Q$9:$CJ$9,W$9-Inputs!$E$87) -> 0 | X162: =-SUMIFS($Q161:$CJ161,$Q$9:$CJ$9,X$9-Inputs!$E$87) -> 0 | Y162: =-SUMIFS($Q161:$CJ161,$Q$9:$CJ$9,Y$9-Inputs!$E$87) -> 0 | Z162: =-SUMIFS($Q161:$CJ161,$Q$9:$CJ$9,Z$9-Inputs!$E$87) -> 0 | AA162: =-SUMIFS($Q161:$CJ161,$Q$9:$CJ$9,AA$9-Inputs!$E$87) -> 0 | AB162: =-SUMIFS($Q161:$CJ161,$Q$9:$CJ$9,AB$9-Inputs!$E$87) -> 0 | AC162: =-SUMIFS($Q161:$CJ161,$Q$9:$CJ$9,AC$9-Inputs!$E$87) -> 0 | AD162: =-SUMIFS($Q161:$CJ161,$Q$9:$CJ$9,AD$9-Inputs!$E$87) -> 0 | AE162: =-SUMIFS($Q161:$CJ161,$Q$9:$CJ$9,AE$9-Inputs!$E$87) -> 0 | AF162: =-SUMIFS($Q161:$CJ161,$Q$9:$CJ$9,AF$9-Inputs!$E$87) -> 0 | AG162: =-SUMIFS($Q161:$CJ161,$Q$9:$CJ$9,AG$9-Inputs!$E$87) -> 0 | AH162: =-SUMIFS($Q161:$CJ161,$Q$9:$CJ$9,AH$9-Inputs!$E$87) -> 0 | AI162: =-SUMIFS($Q161:$CJ161,$Q$9:$CJ$9,AI$9-Inputs!$E$87) -> 0 | AJ162: =-SUMIFS($Q161:$CJ161,$Q$9:$CJ$9,AJ$9-Inputs!$E$87) -> 0 | AK162: =-SUMIFS($Q161:$CJ161,$Q$9:$CJ$9,AK$9-Inputs!$E$87) -> 0 | AL162: =-SUMIFS($Q161:$CJ161,$Q$9:$CJ$9,AL$9-Inputs!$E$87) -> 0 | AM162: =-SUMIFS($Q161:$CJ161,$Q$9:$CJ$9,AM$9-Inputs!$E$87) -> 0 | AN162: =-SUMIFS($Q161:$CJ161,$Q$9:$CJ$9,AN$9-Inputs!$E$87) -> 0 | AO162: =-SUMIFS($Q161:$CJ161,$Q$9:$CJ$9,AO$9-Inputs!$E$87) -> 0 | AP162: =-SUMIFS($Q161:$CJ161,$Q$9:$CJ$9,AP$9-Inputs!$E$87) -> 0 | AQ162: =-SUMIFS($Q161:$CJ161,$Q$9:$CJ$9,AQ$9-Inputs!$E$87) -> 0 | AR162: =-SUMIFS($Q161:$CJ161,$Q$9:$CJ$9,AR$9-Inputs!$E$87) -> 0 | AS162: =-SUMIFS($Q161:$CJ161,$Q$9:$CJ$9,AS$9-Inputs!$E$87) -> 0 | AT162: =-SUMIFS($Q161:$CJ161,$Q$9:$CJ$9,AT$9-Inputs!$E$87) -> 0 | AU162: =-SUMIFS($Q161:$CJ161,$Q$9:$CJ$9,AU$9-Inputs!$E$87) -> 0 | AV162: =-SUMIFS($Q161:$CJ161,$Q$9:$CJ$9,AV$9-Inputs!$E$87) -> 0 | AW162: =-SUMIFS($Q161:$CJ161,$Q$9:$CJ$9,AW$9-Inputs!$E$87) -> 0 | AX162: =-SUMIFS($Q161:$CJ161,$Q$9:$CJ$9,AX$9-Inputs!$E$87) -> 0 | AY162: =-SUMIFS($Q161:$CJ161,$Q$9:$CJ$9,AY$9-Inputs!$E$87) -> 0 | AZ162: =-SUMIFS($Q161:$CJ161,$Q$9:$CJ$9,AZ$9-Inputs!$E$87) -> 0 | BA162: =-SUMIFS($Q161:$CJ161,$Q$9:$CJ$9,BA$9-Inputs!$E$87) -> 0 | BB162: =-SUMIFS($Q161:$CJ161,$Q$9:$CJ$9,BB$9-Inputs!$E$87) -> 0 | BC162: =-SUMIFS($Q161:$CJ161,$Q$9:$CJ$9,BC$9-Inputs!$E$87) -> 0 | BD162: =-SUMIFS($Q161:$CJ161,$Q$9:$CJ$9,BD$9-Inputs!$E$87) -> 0 | BE162: =-SUMIFS($Q161:$CJ161,$Q$9:$CJ$9,BE$9-Inputs!$E$87) -> 0 | BF162: =-SUMIFS($Q161:$CJ161,$Q$9:$CJ$9,BF$9-Inputs!$E$87) -> 0 | BG162: =-SUMIFS($Q161:$CJ161,$Q$9:$CJ$9,BG$9-Inputs!$E$87) -> 0 | BH162: =-SUMIFS($Q161:$CJ161,$Q$9:$CJ$9,BH$9-Inputs!$E$87) -> 0 | BI162: =-SUMIFS($Q161:$CJ161,$Q$9:$CJ$9,BI$9-Inputs!$E$87) -> 0 | BJ162: =-SUMIFS($Q161:$CJ161,$Q$9:$CJ$9,BJ$9-Inputs!$E$87) -> 0 | BK162: =-SUMIFS($Q161:$CJ161,$Q$9:$CJ$9,BK$9-Inputs!$E$87) -> 0 | BL162: =-SUMIFS($Q161:$CJ161,$Q$9:$CJ$9,BL$9-Inputs!$E$87) -> 0 | BM162: =-SUMIFS($Q161:$CJ161,$Q$9:$CJ$9,BM$9-Inputs!$E$87) -> 0 | BN162: =-SUMIFS($Q161:$CJ161,$Q$9:$CJ$9,BN$9-Inputs!$E$87) -> 0 | BO162: =-SUMIFS($Q161:$CJ161,$Q$9:$CJ$9,BO$9-Inputs!$E$87) -> 0 | BP162: =-SUMIFS($Q161:$CJ161,$Q$9:$CJ$9,BP$9-Inputs!$E$87) -> 0 | BQ162: =-SUMIFS($Q161:$CJ161,$Q$9:$CJ$9,BQ$9-Inputs!$E$87) -> 0 | BR162: =-SUMIFS($Q161:$CJ161,$Q$9:$CJ$9,BR$9-Inputs!$E$87) -> 0 | BS162: =-SUMIFS($Q161:$CJ161,$Q$9:$CJ$9,BS$9-Inputs!$E$87) -> 0 | BT162: =-SUMIFS($Q161:$CJ161,$Q$9:$CJ$9,BT$9-Inputs!$E$87) -> 0 | BU162: =-SUMIFS($Q161:$CJ161,$Q$9:$CJ$9,BU$9-Inputs!$E$87) -> 0 | BV162: =-SUMIFS($Q161:$CJ161,$Q$9:$CJ$9,BV$9-Inputs!$E$87) -> 0 | BW162: =-SUMIFS($Q161:$CJ161,$Q$9:$CJ$9,BW$9-Inputs!$E$87) -> 0 | BX162: =-SUMIFS($Q161:$CJ161,$Q$9:$CJ$9,BX$9-Inputs!$E$87) -> 0 | BY162: =-SUMIFS($Q161:$CJ161,$Q$9:$CJ$9,BY$9-Inputs!$E$87) -> 0 | BZ162: =-SUMIFS($Q161:$CJ161,$Q$9:$CJ$9,BZ$9-Inputs!$E$87) -> 0 | CA162: =-SUMIFS($Q161:$CJ161,$Q$9:$CJ$9,CA$9-Inputs!$E$87) -> 0 | CB162: =-SUMIFS($Q161:$CJ161,$Q$9:$CJ$9,CB$9-Inputs!$E$87) -> 0 | CC162: =-SUMIFS($Q161:$CJ161,$Q$9:$CJ$9,CC$9-Inputs!$E$87) -> 0 | CD162: =-SUMIFS($Q161:$CJ161,$Q$9:$CJ$9,CD$9-Inputs!$E$87) -> 0 | CE162: =-SUMIFS($Q161:$CJ161,$Q$9:$CJ$9,CE$9-Inputs!$E$87) -> 0 | CF162: =-SUMIFS($Q161:$CJ161,$Q$9:$CJ$9,CF$9-Inputs!$E$87) -> 0 | CG162: =-SUMIFS($Q161:$CJ161,$Q$9:$CJ$9,CG$9-Inputs!$E$87) -> 0 | CH162: =-SUMIFS($Q161:$CJ161,$Q$9:$CJ$9,CH$9-Inputs!$E$87) -> 0 | CI162: =-SUMIFS($Q161:$CJ161,$Q$9:$CJ$9,CI$9-Inputs!$E$87) -> 0 | CJ162: =-SUMIFS($Q161:$CJ161,$Q$9:$CJ$9,CJ$9-Inputs!$E$87) -> 0
C163: Balance c/f | D163: # | I163: =SUM(I160:I162) -> 0 | J163: 0 | K163: 0 | L163: 0 | M163: 0 | N163: 3066.336 | Q163: =SUM(Q160:Q162) -> 0 | R163: =SUM(R160:R162) -> 0 | S163: =SUM(S160:S162) -> 0 | T163: 0 | U163: 0 | V163: 0 | W163: 0 | X163: 0 | Y163: 0 | Z163: 0 | AA163: 0 | AB163: 0 | AC163: 0 | AD163: 0 | AE163: 0 | AF163: 0 | AG163: 0 | AH163: 0 | AI163: 0 | AJ163: 0 | AK163: 0 | AL163: 0 | AM163: 0 | AN163: 0 | AO163: 0 | AP163: 0 | AQ163: 0 | AR163: 0 | AS163: 0 | AT163: 0 | AU163: 0 | AV163: 0 | AW163: 0 | AX163: 0 | AY163: 0 | AZ163: 0 | BA163: 0 | BB163: 0 | BC163: 0 | BD163: 0 | BE163: 0 | BF163: 0 | BG163: 0 | BH163: 0 | BI163: 0 | BJ163: 0 | BK163: 0 | BL163: 0 | BM163: 0 | BN163: 0 | BO163: 0 | BP163: 0 | BQ163: 0 | BR163: 0 | BS163: 0 | BT163: 0 | BU163: 0 | BV163: 0 | BW163: 0 | BX163: 0 | BY163: 255.528 | BZ163: 511.056 | CA163: 766.584 | CB163: 1022.112 | CC163: 1277.64 | CD163: 1533.168 | CE163: =SUM(CE160:CE162) -> 1788.696 | CF163: 2044.224 | CG163: 2299.752 | CH163: 2555.28 | CI163: 2810.808 | CJ163: 3066.336
C165: Revenue | D165: NGN | F165: =INDEX(Inputs!$I$104:$N$104, MATCH('Monthly Sales Profile'!$F159,Inputs!$I$75:$N$75,0)) -> 529656.8484 | I165: =SUMIF($Q$6:$CJ$6,I$6,$Q165:$CJ165) -> 0 | J165: 0 | K165: 0 | L165: 0 | M165: 0 | N165: 1624105862 | Q165: =Q161*$F165 -> 0 | R165: 0 | S165: 0 | T165: 0 | U165: 0 | V165: 0 | W165: 0 | X165: 0 | Y165: 0 | Z165: 0 | AA165: 0 | AB165: 0 | AC165: 0 | AD165: 0 | AE165: 0 | AF165: 0 | AG165: 0 | AH165: 0 | AI165: 0 | AJ165: 0 | AK165: 0 | AL165: 0 | AM165: 0 | AN165: 0 | AO165: 0 | AP165: 0 | AQ165: 0 | AR165: 0 | AS165: 0 | AT165: 0 | AU165: 0 | AV165: 0 | AW165: =AW161*$F165 -> 0 | AX165: 0 | AY165: 0 | AZ165: 0 | BA165: 0 | BB165: 0 | BC165: 0 | BD165: 0 | BE165: 0 | BF165: 0 | BG165: 0 | BH165: 0 | BI165: 0 | BJ165: 0 | BK165: 0 | BL165: 0 | BM165: 0 | BN165: 0 | BO165: 0 | BP165: 0 | BQ165: 0 | BR165: 0 | BS165: 0 | BT165: 0 | BU165: 0 | BV165: 0 | BW165: 0 | BX165: 0 | BY165: 135342155.2 | BZ165: 135342155.2 | CA165: 135342155.2 | CB165: 135342155.2 | CC165: =CC161*$F165 -> 135342155.2 | CD165: 135342155.2 | CE165: 135342155.2 | CF165: 135342155.2 | CG165: 135342155.2 | CH165: 135342155.2 | CI165: 135342155.2 | CJ165: 135342155.2
C166: Down payment | D166: NGN | F166: =INDEX(Inputs!$I$105:$N$105, MATCH('Monthly Sales Profile'!$F159,Inputs!$I$75:$N$75,0)) -> 299926.1672 | I166: 0 | J166: 0 | K166: 0 | L166: 0 | M166: 0 | N166: 919674403.8 | Q166: =Q161*$F166 -> 0 | R166: 0 | S166: 0 | T166: 0 | U166: 0 | V166: 0 | W166: 0 | X166: 0 | Y166: 0 | Z166: 0 | AA166: 0 | AB166: 0 | AC166: 0 | AD166: 0 | AE166: 0 | AF166: 0 | AG166: 0 | AH166: 0 | AI166: 0 | AJ166: 0 | AK166: 0 | AL166: 0 | AM166: 0 | AN166: 0 | AO166: 0 | AP166: 0 | AQ166: 0 | AR166: 0 | AS166: 0 | AT166: 0 | AU166: 0 | AV166: 0 | AW166: =AW161*$F166 -> 0 | AX166: 0 | AY166: 0 | AZ166: 0 | BA166: 0 | BB166: 0 | BC166: 0 | BD166: 0 | BE166: 0 | BF166: 0 | BG166: 0 | BH166: 0 | BI166: 0 | BJ166: 0 | BK166: 0 | BL166: 0 | BM166: 0 | BN166: 0 | BO166: 0 | BP166: 0 | BQ166: 0 | BR166: 0 | BS166: 0 | BT166: 0 | BU166: 0 | BV166: 0 | BW166: 0 | BX166: 0 | BY166: 76639533.65 | BZ166: 76639533.65 | CA166: 76639533.65 | CB166: 76639533.65 | CC166: =CC161*$F166 -> 76639533.65 | CD166: 76639533.65 | CE166: 76639533.65 | CF166: 76639533.65 | CG166: 76639533.65 | CH166: 76639533.65 | CI166: 76639533.65 | CJ166: 76639533.65
C167: Monthly payment revenue | D167: NGN | F167: =INDEX(Inputs!$I$106:$N$106, MATCH('Monthly Sales Profile'!$F159,Inputs!$I$75:$N$75,0)) -> 6381.407813 | I167: 0 | J167: 0 | K167: 0 | L167: 0 | M167: 0 | N167: 127189013.3 | Q167: =Q163*$F167 -> 0 | R167: 0 | S167: 0 | T167: 0 | U167: 0 | V167: 0 | W167: 0 | X167: 0 | Y167: 0 | Z167: 0 | AA167: 0 | AB167: 0 | AC167: 0 | AD167: 0 | AE167: 0 | AF167: 0 | AG167: 0 | AH167: 0 | AI167: 0 | AJ167: 0 | AK167: 0 | AL167: 0 | AM167: 0 | AN167: 0 | AO167: 0 | AP167: 0 | AQ167: 0 | AR167: 0 | AS167: 0 | AT167: 0 | AU167: 0 | AV167: 0 | AW167: =AW163*$F167 -> 0 | AX167: 0 | AY167: 0 | AZ167: 0 | BA167: 0 | BB167: 0 | BC167: 0 | BD167: 0 | BE167: 0 | BF167: 0 | BG167: 0 | BH167: 0 | BI167: 0 | BJ167: 0 | BK167: 0 | BL167: 0 | BM167: 0 | BN167: 0 | BO167: 0 | BP167: 0 | BQ167: 0 | BR167: 0 | BS167: 0 | BT167: 0 | BU167: 0 | BV167: 0 | BW167: 0 | BX167: 0 | BY167: 1630628.376 | BZ167: 3261256.751 | CA167: 4891885.127 | CB167: 6522513.502 | CC167: =CC163*$F167 -> 8153141.878 | CD167: 9783770.253 | CE167: 11414398.63 | CF167: 13045027 | CG167: 14675655.38 | CH167: 16306283.76 | CI167: 17936912.13 | CJ167: 19567540.51
C170: Product 2 COGS | D170: NGN | F170: =Inputs!E41 -> 195825 | I170: =SUMIF($Q$6:$CJ$6,I$6,$Q170:$CJ170) -> -156660000 | J170: -219324000 | K170: -296087400 | L170: -384913620 | M170: -500387706 | N170: -600465247.2 | Q170: =-$F170*Q100 -> -13055000 | R170: -13055000 | S170: -13055000 | T170: -13055000 | U170: -13055000 | V170: -13055000 | W170: -13055000 | X170: -13055000 | Y170: -13055000 | Z170: -13055000 | AA170: -13055000 | AB170: -13055000 | AC170: -18277000 | AD170: -18277000 | AE170: -18277000 | AF170: -18277000 | AG170: -18277000 | AH170: -18277000 | AI170: -18277000 | AJ170: -18277000 | AK170: -18277000 | AL170: -18277000 | AM170: -18277000 | AN170: -18277000 | AO170: -24673950 | AP170: -24673950 | AQ170: -24673950 | AR170: -24673950 | AS170: -24673950 | AT170: -24673950 | AU170: -24673950 | AV170: -24673950 | AW170: =-$F170*AW100 -> -24673950 | AX170: -24673950 | AY170: -24673950 | AZ170: -24673950 | BA170: -32076135 | BB170: -32076135 | BC170: -32076135 | BD170: -32076135 | BE170: -32076135 | BF170: -32076135 | BG170: -32076135 | BH170: -32076135 | BI170: -32076135 | BJ170: -32076135 | BK170: -32076135 | BL170: -32076135 | BM170: -41698975.5 | BN170: -41698975.5 | BO170: -41698975.5 | BP170: -41698975.5 | BQ170: -41698975.5 | BR170: -41698975.5 | BS170: -41698975.5 | BT170: -41698975.5 | BU170: -41698975.5 | BV170: -41698975.5 | BW170: -41698975.5 | BX170: -41698975.5 | BY170: -50038770.6 | BZ170: -50038770.6 | CA170: -50038770.6 | CB170: -50038770.6 | CC170: =-$F170*CC100 -> -50038770.6 | CD170: -50038770.6 | CE170: -50038770.6 | CF170: -50038770.6 | CG170: -50038770.6 | CH170: -50038770.6 | CI170: -50038770.6 | CJ170: -50038770.6
C174: Product 3 sales
C175: Sales percentage | D175: % | I175: =SUMIF($Q$6:$CJ$6,I$6,$Q175:$CJ175) -> 1 | J175: =SUMIF($Q$6:$CJ$6,J$6,$Q175:$CJ175) -> 1 | K175: 1 | L175: 1 | M175: 1 | N175: 1 | Q175: =INDEX(Inputs!$I120:$T120, MATCH(MONTH('Monthly Sales Profile'!Q$7), Inputs!$I119:$T119,0)) -> 0.08333333333 | R175: =INDEX(Inputs!$I120:$T120, MATCH(MONTH('Monthly Sales Profile'!R$7), Inputs!$I119:$T119,0)) -> 0.08333333333 | S175: =INDEX(Inputs!$I120:$T120, MATCH(MONTH('Monthly Sales Profile'!S$7), Inputs!$I119:$T119,0)) -> 0.08333333333 | T175: =INDEX(Inputs!$I120:$T120, MATCH(MONTH('Monthly Sales Profile'!T$7), Inputs!$I119:$T119,0)) -> 0.08333333333 | U175: =INDEX(Inputs!$I120:$T120, MATCH(MONTH('Monthly Sales Profile'!U$7), Inputs!$I119:$T119,0)) -> 0.08333333333 | V175: =INDEX(Inputs!$I120:$T120, MATCH(MONTH('Monthly Sales Profile'!V$7), Inputs!$I119:$T119,0)) -> 0.08333333333 | W175: =INDEX(Inputs!$I120:$T120, MATCH(MONTH('Monthly Sales Profile'!W$7), Inputs!$I119:$T119,0)) -> 0.08333333333 | X175: =INDEX(Inputs!$I120:$T120, MATCH(MONTH('Monthly Sales Profile'!X$7), Inputs!$I119:$T119,0)) -> 0.08333333333 | Y175: =INDEX(Inputs!$I120:$T120, MATCH(MONTH('Monthly Sales Profile'!Y$7), Inputs!$I119:$T119,0)) -> 0.08333333333 | Z175: =INDEX(Inputs!$I120:$T120, MATCH(MONTH('Monthly Sales Profile'!Z$7), Inputs!$I119:$T119,0)) -> 0.08333333333 | AA175: =INDEX(Inputs!$I120:$T120, MATCH(MONTH('Monthly Sales Profile'!AA$7), Inputs!$I119:$T119,0)) -> 0.08333333333 | AB175: =INDEX(Inputs!$I120:$T120, MATCH(MONTH('Monthly Sales Profile'!AB$7), Inputs!$I119:$T119,0)) -> 0.08333333333 | AC175: =INDEX(Inputs!$I120:$T120, MATCH(MONTH('Monthly Sales Profile'!AC$7), Inputs!$I119:$T119,0)) -> 0.08333333333 | AD175: =INDEX(Inputs!$I120:$T120, MATCH(MONTH('Monthly Sales Profile'!AD$7), Inputs!$I119:$T119,0)) -> 0.08333333333 | AE175: =INDEX(Inputs!$I120:$T120, MATCH(MONTH('Monthly Sales Profile'!AE$7), Inputs!$I119:$T119,0)) -> 0.08333333333 | AF175: =INDEX(Inputs!$I120:$T120, MATCH(MONTH('Monthly Sales Profile'!AF$7), Inputs!$I119:$T119,0)) -> 0.08333333333 | AG175: =INDEX(Inputs!$I120:$T120, MATCH(MONTH('Monthly Sales Profile'!AG$7), Inputs!$I119:$T119,0)) -> 0.08333333333 | AH175: =INDEX(Inputs!$I120:$T120, MATCH(MONTH('Monthly Sales Profile'!AH$7), Inputs!$I119:$T119,0)) -> 0.08333333333 | AI175: =INDEX(Inputs!$I120:$T120, MATCH(MONTH('Monthly Sales Profile'!AI$7), Inputs!$I119:$T119,0)) -> 0.08333333333 | AJ175: =INDEX(Inputs!$I120:$T120, MATCH(MONTH('Monthly Sales Profile'!AJ$7), Inputs!$I119:$T119,0)) -> 0.08333333333 | AK175: =INDEX(Inputs!$I120:$T120, MATCH(MONTH('Monthly Sales Profile'!AK$7), Inputs!$I119:$T119,0)) -> 0.08333333333 | AL175: =INDEX(Inputs!$I120:$T120, MATCH(MONTH('Monthly Sales Profile'!AL$7), Inputs!$I119:$T119,0)) -> 0.08333333333 | AM175: =INDEX(Inputs!$I120:$T120, MATCH(MONTH('Monthly Sales Profile'!AM$7), Inputs!$I119:$T119,0)) -> 0.08333333333 | AN175: =INDEX(Inputs!$I120:$T120, MATCH(MONTH('Monthly Sales Profile'!AN$7), Inputs!$I119:$T119,0)) -> 0.08333333333 | AO175: =INDEX(Inputs!$I120:$T120, MATCH(MONTH('Monthly Sales Profile'!AO$7), Inputs!$I119:$T119,0)) -> 0.08333333333 | AP175: =INDEX(Inputs!$I120:$T120, MATCH(MONTH('Monthly Sales Profile'!AP$7), Inputs!$I119:$T119,0)) -> 0.08333333333 | AQ175: =INDEX(Inputs!$I120:$T120, MATCH(MONTH('Monthly Sales Profile'!AQ$7), Inputs!$I119:$T119,0)) -> 0.08333333333 | AR175: =INDEX(Inputs!$I120:$T120, MATCH(MONTH('Monthly Sales Profile'!AR$7), Inputs!$I119:$T119,0)) -> 0.08333333333 | AS175: =INDEX(Inputs!$I120:$T120, MATCH(MONTH('Monthly Sales Profile'!AS$7), Inputs!$I119:$T119,0)) -> 0.08333333333 | AT175: =INDEX(Inputs!$I120:$T120, MATCH(MONTH('Monthly Sales Profile'!AT$7), Inputs!$I119:$T119,0)) -> 0.08333333333 | AU175: =INDEX(Inputs!$I120:$T120, MATCH(MONTH('Monthly Sales Profile'!AU$7), Inputs!$I119:$T119,0)) -> 0.08333333333 | AV175: =INDEX(Inputs!$I120:$T120, MATCH(MONTH('Monthly Sales Profile'!AV$7), Inputs!$I119:$T119,0)) -> 0.08333333333 | AW175: =INDEX(Inputs!$I120:$T120, MATCH(MONTH('Monthly Sales Profile'!AW$7), Inputs!$I119:$T119,0)) -> 0.08333333333 | AX175: =INDEX(Inputs!$I120:$T120, MATCH(MONTH('Monthly Sales Profile'!AX$7), Inputs!$I119:$T119,0)) -> 0.08333333333 | AY175: =INDEX(Inputs!$I120:$T120, MATCH(MONTH('Monthly Sales Profile'!AY$7), Inputs!$I119:$T119,0)) -> 0.08333333333 | AZ175: =INDEX(Inputs!$I120:$T120, MATCH(MONTH('Monthly Sales Profile'!AZ$7), Inputs!$I119:$T119,0)) -> 0.08333333333 | BA175: =INDEX(Inputs!$I120:$T120, MATCH(MONTH('Monthly Sales Profile'!BA$7), Inputs!$I119:$T119,0)) -> 0.08333333333 | BB175: =INDEX(Inputs!$I120:$T120, MATCH(MONTH('Monthly Sales Profile'!BB$7), Inputs!$I119:$T119,0)) -> 0.08333333333 | BC175: =INDEX(Inputs!$I120:$T120, MATCH(MONTH('Monthly Sales Profile'!BC$7), Inputs!$I119:$T119,0)) -> 0.08333333333 | BD175: =INDEX(Inputs!$I120:$T120, MATCH(MONTH('Monthly Sales Profile'!BD$7), Inputs!$I119:$T119,0)) -> 0.08333333333 | BE175: =INDEX(Inputs!$I120:$T120, MATCH(MONTH('Monthly Sales Profile'!BE$7), Inputs!$I119:$T119,0)) -> 0.08333333333 | BF175: =INDEX(Inputs!$I120:$T120, MATCH(MONTH('Monthly Sales Profile'!BF$7), Inputs!$I119:$T119,0)) -> 0.08333333333 | BG175: =INDEX(Inputs!$I120:$T120, MATCH(MONTH('Monthly Sales Profile'!BG$7), Inputs!$I119:$T119,0)) -> 0.08333333333 | BH175: =INDEX(Inputs!$I120:$T120, MATCH(MONTH('Monthly Sales Profile'!BH$7), Inputs!$I119:$T119,0)) -> 0.08333333333 | BI175: =INDEX(Inputs!$I120:$T120, MATCH(MONTH('Monthly Sales Profile'!BI$7), Inputs!$I119:$T119,0)) -> 0.08333333333 | BJ175: =INDEX(Inputs!$I120:$T120, MATCH(MONTH('Monthly Sales Profile'!BJ$7), Inputs!$I119:$T119,0)) -> 0.08333333333 | BK175: =INDEX(Inputs!$I120:$T120, MATCH(MONTH('Monthly Sales Profile'!BK$7), Inputs!$I119:$T119,0)) -> 0.08333333333 | BL175: =INDEX(Inputs!$I120:$T120, MATCH(MONTH('Monthly Sales Profile'!BL$7), Inputs!$I119:$T119,0)) -> 0.08333333333 | BM175: =INDEX(Inputs!$I120:$T120, MATCH(MONTH('Monthly Sales Profile'!BM$7), Inputs!$I119:$T119,0)) -> 0.08333333333 | BN175: =INDEX(Inputs!$I120:$T120, MATCH(MONTH('Monthly Sales Profile'!BN$7), Inputs!$I119:$T119,0)) -> 0.08333333333 | BO175: =INDEX(Inputs!$I120:$T120, MATCH(MONTH('Monthly Sales Profile'!BO$7), Inputs!$I119:$T119,0)) -> 0.08333333333 | BP175: =INDEX(Inputs!$I120:$T120, MATCH(MONTH('Monthly Sales Profile'!BP$7), Inputs!$I119:$T119,0)) -> 0.08333333333 | BQ175: =INDEX(Inputs!$I120:$T120, MATCH(MONTH('Monthly Sales Profile'!BQ$7), Inputs!$I119:$T119,0)) -> 0.08333333333 | BR175: =INDEX(Inputs!$I120:$T120, MATCH(MONTH('Monthly Sales Profile'!BR$7), Inputs!$I119:$T119,0)) -> 0.08333333333 | BS175: =INDEX(Inputs!$I120:$T120, MATCH(MONTH('Monthly Sales Profile'!BS$7), Inputs!$I119:$T119,0)) -> 0.08333333333 | BT175: =INDEX(Inputs!$I120:$T120, MATCH(MONTH('Monthly Sales Profile'!BT$7), Inputs!$I119:$T119,0)) -> 0.08333333333 | BU175: =INDEX(Inputs!$I120:$T120, MATCH(MONTH('Monthly Sales Profile'!BU$7), Inputs!$I119:$T119,0)) -> 0.08333333333 | BV175: =INDEX(Inputs!$I120:$T120, MATCH(MONTH('Monthly Sales Profile'!BV$7), Inputs!$I119:$T119,0)) -> 0.08333333333 | BW175: =INDEX(Inputs!$I120:$T120, MATCH(MONTH('Monthly Sales Profile'!BW$7), Inputs!$I119:$T119,0)) -> 0.08333333333 | BX175: =INDEX(Inputs!$I120:$T120, MATCH(MONTH('Monthly Sales Profile'!BX$7), Inputs!$I119:$T119,0)) -> 0.08333333333 | BY175: =INDEX(Inputs!$I120:$T120, MATCH(MONTH('Monthly Sales Profile'!BY$7), Inputs!$I119:$T119,0)) -> 0.08333333333 | BZ175: =INDEX(Inputs!$I120:$T120, MATCH(MONTH('Monthly Sales Profile'!BZ$7), Inputs!$I119:$T119,0)) -> 0.08333333333 | CA175: =INDEX(Inputs!$I120:$T120, MATCH(MONTH('Monthly Sales Profile'!CA$7), Inputs!$I119:$T119,0)) -> 0.08333333333 | CB175: =INDEX(Inputs!$I120:$T120, MATCH(MONTH('Monthly Sales Profile'!CB$7), Inputs!$I119:$T119,0)) -> 0.08333333333 | CC175: =INDEX(Inputs!$I120:$T120, MATCH(MONTH('Monthly Sales Profile'!CC$7), Inputs!$I119:$T119,0)) -> 0.08333333333 | CD175: =INDEX(Inputs!$I120:$T120, MATCH(MONTH('Monthly Sales Profile'!CD$7), Inputs!$I119:$T119,0)) -> 0.08333333333 | CE175: =INDEX(Inputs!$I120:$T120, MATCH(MONTH('Monthly Sales Profile'!CE$7), Inputs!$I119:$T119,0)) -> 0.08333333333 | CF175: =INDEX(Inputs!$I120:$T120, MATCH(MONTH('Monthly Sales Profile'!CF$7), Inputs!$I119:$T119,0)) -> 0.08333333333 | CG175: =INDEX(Inputs!$I120:$T120, MATCH(MONTH('Monthly Sales Profile'!CG$7), Inputs!$I119:$T119,0)) -> 0.08333333333 | CH175: =INDEX(Inputs!$I120:$T120, MATCH(MONTH('Monthly Sales Profile'!CH$7), Inputs!$I119:$T119,0)) -> 0.08333333333 | CI175: =INDEX(Inputs!$I120:$T120, MATCH(MONTH('Monthly Sales Profile'!CI$7), Inputs!$I119:$T119,0)) -> 0.08333333333 | CJ175: =INDEX(Inputs!$I120:$T120, MATCH(MONTH('Monthly Sales Profile'!CJ$7), Inputs!$I119:$T119,0)) -> 0.08333333333
C176: Annual sales | D176: # | I176: =Inputs!I117 -> 1200 | J176: =Inputs!J117 -> 1680 | K176: =Inputs!K117 -> 2268 | L176: =Inputs!L117 -> 2948.4 | M176: =Inputs!M117 -> 3832.92 | N176: =Inputs!N117 -> 4599.504 | Q176: =INDEX($I176:$N176, MATCH('Monthly Sales Profile'!Q$6,$I$6:$N$6,0)) -> 1200 | R176: =INDEX($I176:$N176, MATCH('Monthly Sales Profile'!R$6,$I$6:$N$6,0)) -> 1200 | S176: =INDEX($I176:$N176, MATCH('Monthly Sales Profile'!S$6,$I$6:$N$6,0)) -> 1200 | T176: =INDEX($I176:$N176, MATCH('Monthly Sales Profile'!T$6,$I$6:$N$6,0)) -> 1200 | U176: =INDEX($I176:$N176, MATCH('Monthly Sales Profile'!U$6,$I$6:$N$6,0)) -> 1200 | V176: =INDEX($I176:$N176, MATCH('Monthly Sales Profile'!V$6,$I$6:$N$6,0)) -> 1200 | W176: =INDEX($I176:$N176, MATCH('Monthly Sales Profile'!W$6,$I$6:$N$6,0)) -> 1200 | X176: =INDEX($I176:$N176, MATCH('Monthly Sales Profile'!X$6,$I$6:$N$6,0)) -> 1200 | Y176: =INDEX($I176:$N176, MATCH('Monthly Sales Profile'!Y$6,$I$6:$N$6,0)) -> 1200 | Z176: =INDEX($I176:$N176, MATCH('Monthly Sales Profile'!Z$6,$I$6:$N$6,0)) -> 1200 | AA176: =INDEX($I176:$N176, MATCH('Monthly Sales Profile'!AA$6,$I$6:$N$6,0)) -> 1200 | AB176: =INDEX($I176:$N176, MATCH('Monthly Sales Profile'!AB$6,$I$6:$N$6,0)) -> 1200 | AC176: =INDEX($I176:$N176, MATCH('Monthly Sales Profile'!AC$6,$I$6:$N$6,0)) -> 1680 | AD176: =INDEX($I176:$N176, MATCH('Monthly Sales Profile'!AD$6,$I$6:$N$6,0)) -> 1680 | AE176: =INDEX($I176:$N176, MATCH('Monthly Sales Profile'!AE$6,$I$6:$N$6,0)) -> 1680 | AF176: =INDEX($I176:$N176, MATCH('Monthly Sales Profile'!AF$6,$I$6:$N$6,0)) -> 1680 | AG176: =INDEX($I176:$N176, MATCH('Monthly Sales Profile'!AG$6,$I$6:$N$6,0)) -> 1680 | AH176: =INDEX($I176:$N176, MATCH('Monthly Sales Profile'!AH$6,$I$6:$N$6,0)) -> 1680 | AI176: =INDEX($I176:$N176, MATCH('Monthly Sales Profile'!AI$6,$I$6:$N$6,0)) -> 1680 | AJ176: =INDEX($I176:$N176, MATCH('Monthly Sales Profile'!AJ$6,$I$6:$N$6,0)) -> 1680 | AK176: =INDEX($I176:$N176, MATCH('Monthly Sales Profile'!AK$6,$I$6:$N$6,0)) -> 1680 | AL176: =INDEX($I176:$N176, MATCH('Monthly Sales Profile'!AL$6,$I$6:$N$6,0)) -> 1680 | AM176: =INDEX($I176:$N176, MATCH('Monthly Sales Profile'!AM$6,$I$6:$N$6,0)) -> 1680 | AN176: =INDEX($I176:$N176, MATCH('Monthly Sales Profile'!AN$6,$I$6:$N$6,0)) -> 1680 | AO176: =INDEX($I176:$N176, MATCH('Monthly Sales Profile'!AO$6,$I$6:$N$6,0)) -> 2268 | AP176: =INDEX($I176:$N176, MATCH('Monthly Sales Profile'!AP$6,$I$6:$N$6,0)) -> 2268 | AQ176: =INDEX($I176:$N176, MATCH('Monthly Sales Profile'!AQ$6,$I$6:$N$6,0)) -> 2268 | AR176: =INDEX($I176:$N176, MATCH('Monthly Sales Profile'!AR$6,$I$6:$N$6,0)) -> 2268 | AS176: =INDEX($I176:$N176, MATCH('Monthly Sales Profile'!AS$6,$I$6:$N$6,0)) -> 2268 | AT176: =INDEX($I176:$N176, MATCH('Monthly Sales Profile'!AT$6,$I$6:$N$6,0)) -> 2268 | AU176: =INDEX($I176:$N176, MATCH('Monthly Sales Profile'!AU$6,$I$6:$N$6,0)) -> 2268 | AV176: =INDEX($I176:$N176, MATCH('Monthly Sales Profile'!AV$6,$I$6:$N$6,0)) -> 2268 | AW176: =INDEX($I176:$N176, MATCH('Monthly Sales Profile'!AW$6,$I$6:$N$6,0)) -> 2268 | AX176: =INDEX($I176:$N176, MATCH('Monthly Sales Profile'!AX$6,$I$6:$N$6,0)) -> 2268 | AY176: =INDEX($I176:$N176, MATCH('Monthly Sales Profile'!AY$6,$I$6:$N$6,0)) -> 2268 | AZ176: =INDEX($I176:$N176, MATCH('Monthly Sales Profile'!AZ$6,$I$6:$N$6,0)) -> 2268 | BA176: =INDEX($I176:$N176, MATCH('Monthly Sales Profile'!BA$6,$I$6:$N$6,0)) -> 2948.4 | BB176: =INDEX($I176:$N176, MATCH('Monthly Sales Profile'!BB$6,$I$6:$N$6,0)) -> 2948.4 | BC176: =INDEX($I176:$N176, MATCH('Monthly Sales Profile'!BC$6,$I$6:$N$6,0)) -> 2948.4 | BD176: =INDEX($I176:$N176, MATCH('Monthly Sales Profile'!BD$6,$I$6:$N$6,0)) -> 2948.4 | BE176: =INDEX($I176:$N176, MATCH('Monthly Sales Profile'!BE$6,$I$6:$N$6,0)) -> 2948.4 | BF176: =INDEX($I176:$N176, MATCH('Monthly Sales Profile'!BF$6,$I$6:$N$6,0)) -> 2948.4 | BG176: =INDEX($I176:$N176, MATCH('Monthly Sales Profile'!BG$6,$I$6:$N$6,0)) -> 2948.4 | BH176: =INDEX($I176:$N176, MATCH('Monthly Sales Profile'!BH$6,$I$6:$N$6,0)) -> 2948.4 | BI176: =INDEX($I176:$N176, MATCH('Monthly Sales Profile'!BI$6,$I$6:$N$6,0)) -> 2948.4 | BJ176: =INDEX($I176:$N176, MATCH('Monthly Sales Profile'!BJ$6,$I$6:$N$6,0)) -> 2948.4 | BK176: =INDEX($I176:$N176, MATCH('Monthly Sales Profile'!BK$6,$I$6:$N$6,0)) -> 2948.4 | BL176: =INDEX($I176:$N176, MATCH('Monthly Sales Profile'!BL$6,$I$6:$N$6,0)) -> 2948.4 | BM176: =INDEX($I176:$N176, MATCH('Monthly Sales Profile'!BM$6,$I$6:$N$6,0)) -> 3832.92 | BN176: =INDEX($I176:$N176, MATCH('Monthly Sales Profile'!BN$6,$I$6:$N$6,0)) -> 3832.92 | BO176: =INDEX($I176:$N176, MATCH('Monthly Sales Profile'!BO$6,$I$6:$N$6,0)) -> 3832.92 | BP176: =INDEX($I176:$N176, MATCH('Monthly Sales Profile'!BP$6,$I$6:$N$6,0)) -> 3832.92 | BQ176: =INDEX($I176:$N176, MATCH('Monthly Sales Profile'!BQ$6,$I$6:$N$6,0)) -> 3832.92 | BR176: =INDEX($I176:$N176, MATCH('Monthly Sales Profile'!BR$6,$I$6:$N$6,0)) -> 3832.92 | BS176: =INDEX($I176:$N176, MATCH('Monthly Sales Profile'!BS$6,$I$6:$N$6,0)) -> 3832.92 | BT176: =INDEX($I176:$N176, MATCH('Monthly Sales Profile'!BT$6,$I$6:$N$6,0)) -> 3832.92 | BU176: =INDEX($I176:$N176, MATCH('Monthly Sales Profile'!BU$6,$I$6:$N$6,0)) -> 3832.92 | BV176: =INDEX($I176:$N176, MATCH('Monthly Sales Profile'!BV$6,$I$6:$N$6,0)) -> 3832.92 | BW176: =INDEX($I176:$N176, MATCH('Monthly Sales Profile'!BW$6,$I$6:$N$6,0)) -> 3832.92 | BX176: =INDEX($I176:$N176, MATCH('Monthly Sales Profile'!BX$6,$I$6:$N$6,0)) -> 3832.92 | BY176: =INDEX($I176:$N176, MATCH('Monthly Sales Profile'!BY$6,$I$6:$N$6,0)) -> 4599.504 | BZ176: =INDEX($I176:$N176, MATCH('Monthly Sales Profile'!BZ$6,$I$6:$N$6,0)) -> 4599.504 | CA176: =INDEX($I176:$N176, MATCH('Monthly Sales Profile'!CA$6,$I$6:$N$6,0)) -> 4599.504 | CB176: =INDEX($I176:$N176, MATCH('Monthly Sales Profile'!CB$6,$I$6:$N$6,0)) -> 4599.504 | CC176: =INDEX($I176:$N176, MATCH('Monthly Sales Profile'!CC$6,$I$6:$N$6,0)) -> 4599.504 | CD176: =INDEX($I176:$N176, MATCH('Monthly Sales Profile'!CD$6,$I$6:$N$6,0)) -> 4599.504 | CE176: =INDEX($I176:$N176, MATCH('Monthly Sales Profile'!CE$6,$I$6:$N$6,0)) -> 4599.504 | CF176: =INDEX($I176:$N176, MATCH('Monthly Sales Profile'!CF$6,$I$6:$N$6,0)) -> 4599.504 | CG176: =INDEX($I176:$N176, MATCH('Monthly Sales Profile'!CG$6,$I$6:$N$6,0)) -> 4599.504 | CH176: =INDEX($I176:$N176, MATCH('Monthly Sales Profile'!CH$6,$I$6:$N$6,0)) -> 4599.504 | CI176: =INDEX($I176:$N176, MATCH('Monthly Sales Profile'!CI$6,$I$6:$N$6,0)) -> 4599.504 | CJ176: =INDEX($I176:$N176, MATCH('Monthly Sales Profile'!CJ$6,$I$6:$N$6,0)) -> 4599.504
C177: Monthly sales | D177: # | Q177: =Q176*Q175 -> 100 | R177: 100 | S177: 100 | T177: 100 | U177: 100 | V177: 100 | W177: 100 | X177: 100 | Y177: 100 | Z177: 100 | AA177: 100 | AB177: 100 | AC177: 140 | AD177: 140 | AE177: 140 | AF177: 140 | AG177: 140 | AH177: 140 | AI177: 140 | AJ177: 140 | AK177: 140 | AL177: 140 | AM177: 140 | AN177: 140 | AO177: 189 | AP177: 189 | AQ177: 189 | AR177: 189 | AS177: 189 | AT177: 189 | AU177: 189 | AV177: 189 | AW177: 189 | AX177: 189 | AY177: 189 | AZ177: 189 | BA177: 245.7 | BB177: 245.7 | BC177: 245.7 | BD177: 245.7 | BE177: 245.7 | BF177: 245.7 | BG177: 245.7 | BH177: 245.7 | BI177: 245.7 | BJ177: 245.7 | BK177: 245.7 | BL177: 245.7 | BM177: 319.41 | BN177: 319.41 | BO177: 319.41 | BP177: 319.41 | BQ177: 319.41 | BR177: 319.41 | BS177: 319.41 | BT177: 319.41 | BU177: 319.41 | BV177: 319.41 | BW177: 319.41 | BX177: 319.41 | BY177: 383.292 | BZ177: 383.292 | CA177: 383.292 | CB177: 383.292 | CC177: =CC176*CC175 -> 383.292 | CD177: 383.292 | CE177: 383.292 | CF177: 383.292 | CG177: 383.292 | CH177: 383.292 | CI177: 383.292 | CJ177: 383.292
C179: Balance b/f | D179: # | I179: =Q179 -> 0 | J179: =I182 -> 1200 | K179: =J182 -> 2880 | L179: 5148 | M179: 6896.4 | N179: 9049.32 | R179: =Q182 -> 100 | S179: =R182 -> 200 | T179: =S182 -> 300 | U179: =T182 -> 400 | V179: =U182 -> 500 | W179: =V182 -> 600 | X179: =W182 -> 700 | Y179: =X182 -> 800 | Z179: =Y182 -> 900 | AA179: =Z182 -> 1000 | AB179: =AA182 -> 1100 | AC179: =AB182 -> 1200 | AD179: =AC182 -> 1340 | AE179: =AD182 -> 1480 | AF179: =AE182 -> 1620 | AG179: =AF182 -> 1760 | AH179: =AG182 -> 1900 | AI179: =AH182 -> 2040 | AJ179: =AI182 -> 2180 | AK179: =AJ182 -> 2320 | AL179: =AK182 -> 2460 | AM179: =AL182 -> 2600 | AN179: =AM182 -> 2740 | AO179: =AN182 -> 2880 | AP179: =AO182 -> 3069 | AQ179: =AP182 -> 3258 | AR179: =AQ182 -> 3447 | AS179: =AR182 -> 3636 | AT179: =AS182 -> 3825 | AU179: =AT182 -> 4014 | AV179: =AU182 -> 4203 | AW179: =AV182 -> 4392 | AX179: =AW182 -> 4581 | AY179: =AX182 -> 4770 | AZ179: =AY182 -> 4959 | BA179: =AZ182 -> 5148 | BB179: =BA182 -> 5293.7 | BC179: =BB182 -> 5439.4 | BD179: =BC182 -> 5585.1 | BE179: =BD182 -> 5730.8 | BF179: =BE182 -> 5876.5 | BG179: =BF182 -> 6022.2 | BH179: =BG182 -> 6167.9 | BI179: =BH182 -> 6313.6 | BJ179: =BI182 -> 6459.3 | BK179: =BJ182 -> 6605 | BL179: =BK182 -> 6750.7 | BM179: =BL182 -> 6896.4 | BN179: =BM182 -> 7075.81 | BO179: =BN182 -> 7255.22 | BP179: =BO182 -> 7434.63 | BQ179: =BP182 -> 7614.04 | BR179: =BQ182 -> 7793.45 | BS179: =BR182 -> 7972.86 | BT179: =BS182 -> 8152.27 | BU179: =BT182 -> 8331.68 | BV179: =BU182 -> 8511.09 | BW179: =BV182 -> 8690.5 | BX179: =BW182 -> 8869.91 | BY179: =BX182 -> 9049.32 | BZ179: =BY182 -> 9243.612 | CA179: =BZ182 -> 9437.904 | CB179: =CA182 -> 9632.196 | CC179: =CB182 -> 9826.488 | CD179: =CC182 -> 10020.78 | CE179: =CD182 -> 10215.072 | CF179: =CE182 -> 10409.364 | CG179: =CF182 -> 10603.656 | CH179: =CG182 -> 10797.948 | CI179: =CH182 -> 10992.24 | CJ179: =CI182 -> 11186.532
C180: New contracts | D180: # | I180: =SUMIF($Q$6:$CJ$6,I$6,$Q180:$CJ180) -> 1200 | J180: 1680 | K180: 2268 | L180: 2948.4 | M180: 3832.92 | N180: 4599.504 | Q180: =Q177 -> 100 | R180: 100 | S180: 100 | T180: 100 | U180: 100 | V180: 100 | W180: 100 | X180: 100 | Y180: 100 | Z180: 100 | AA180: 100 | AB180: 100 | AC180: 140 | AD180: 140 | AE180: 140 | AF180: 140 | AG180: 140 | AH180: 140 | AI180: 140 | AJ180: 140 | AK180: 140 | AL180: 140 | AM180: 140 | AN180: 140 | AO180: 189 | AP180: 189 | AQ180: 189 | AR180: 189 | AS180: 189 | AT180: 189 | AU180: 189 | AV180: 189 | AW180: 189 | AX180: 189 | AY180: 189 | AZ180: 189 | BA180: 245.7 | BB180: 245.7 | BC180: 245.7 | BD180: 245.7 | BE180: 245.7 | BF180: 245.7 | BG180: 245.7 | BH180: 245.7 | BI180: 245.7 | BJ180: 245.7 | BK180: 245.7 | BL180: 245.7 | BM180: 319.41 | BN180: 319.41 | BO180: 319.41 | BP180: 319.41 | BQ180: 319.41 | BR180: 319.41 | BS180: 319.41 | BT180: 319.41 | BU180: 319.41 | BV180: 319.41 | BW180: 319.41 | BX180: 319.41 | BY180: 383.292 | BZ180: 383.292 | CA180: 383.292 | CB180: 383.292 | CC180: =CC177 -> 383.292 | CD180: 383.292 | CE180: 383.292 | CF180: 383.292 | CG180: 383.292 | CH180: 383.292 | CI180: 383.292 | CJ180: 383.292
C181: Contracts ended | D181: # | I181: 0 | J181: 0 | K181: 0 | L181: -1200 | M181: -1680 | N181: -2268 | Q181: =-SUMIFS($Q180:$CJ180,$Q$9:$CJ$9,Q$9-Inputs!$E$87) -> 0 | R181: =-SUMIFS($Q180:$CJ180,$Q$9:$CJ$9,R$9-Inputs!$E$87) -> 0 | S181: =-SUMIFS($Q180:$CJ180,$Q$9:$CJ$9,S$9-Inputs!$E$87) -> 0 | T181: =-SUMIFS($Q180:$CJ180,$Q$9:$CJ$9,T$9-Inputs!$E$87) -> 0 | U181: =-SUMIFS($Q180:$CJ180,$Q$9:$CJ$9,U$9-Inputs!$E$87) -> 0 | V181: =-SUMIFS($Q180:$CJ180,$Q$9:$CJ$9,V$9-Inputs!$E$87) -> 0 | W181: =-SUMIFS($Q180:$CJ180,$Q$9:$CJ$9,W$9-Inputs!$E$87) -> 0 | X181: =-SUMIFS($Q180:$CJ180,$Q$9:$CJ$9,X$9-Inputs!$E$87) -> 0 | Y181: =-SUMIFS($Q180:$CJ180,$Q$9:$CJ$9,Y$9-Inputs!$E$87) -> 0 | Z181: =-SUMIFS($Q180:$CJ180,$Q$9:$CJ$9,Z$9-Inputs!$E$87) -> 0 | AA181: =-SUMIFS($Q180:$CJ180,$Q$9:$CJ$9,AA$9-Inputs!$E$87) -> 0 | AB181: =-SUMIFS($Q180:$CJ180,$Q$9:$CJ$9,AB$9-Inputs!$E$87) -> 0 | AC181: =-SUMIFS($Q180:$CJ180,$Q$9:$CJ$9,AC$9-Inputs!$E$87) -> 0 | AD181: =-SUMIFS($Q180:$CJ180,$Q$9:$CJ$9,AD$9-Inputs!$E$87) -> 0 | AE181: =-SUMIFS($Q180:$CJ180,$Q$9:$CJ$9,AE$9-Inputs!$E$87) -> 0 | AF181: =-SUMIFS($Q180:$CJ180,$Q$9:$CJ$9,AF$9-Inputs!$E$87) -> 0 | AG181: =-SUMIFS($Q180:$CJ180,$Q$9:$CJ$9,AG$9-Inputs!$E$87) -> 0 | AH181: =-SUMIFS($Q180:$CJ180,$Q$9:$CJ$9,AH$9-Inputs!$E$87) -> 0 | AI181: =-SUMIFS($Q180:$CJ180,$Q$9:$CJ$9,AI$9-Inputs!$E$87) -> 0 | AJ181: =-SUMIFS($Q180:$CJ180,$Q$9:$CJ$9,AJ$9-Inputs!$E$87) -> 0 | AK181: =-SUMIFS($Q180:$CJ180,$Q$9:$CJ$9,AK$9-Inputs!$E$87) -> 0 | AL181: =-SUMIFS($Q180:$CJ180,$Q$9:$CJ$9,AL$9-Inputs!$E$87) -> 0 | AM181: =-SUMIFS($Q180:$CJ180,$Q$9:$CJ$9,AM$9-Inputs!$E$87) -> 0 | AN181: =-SUMIFS($Q180:$CJ180,$Q$9:$CJ$9,AN$9-Inputs!$E$87) -> 0 | AO181: =-SUMIFS($Q180:$CJ180,$Q$9:$CJ$9,AO$9-Inputs!$E$87) -> 0 | AP181: =-SUMIFS($Q180:$CJ180,$Q$9:$CJ$9,AP$9-Inputs!$E$87) -> 0 | AQ181: =-SUMIFS($Q180:$CJ180,$Q$9:$CJ$9,AQ$9-Inputs!$E$87) -> 0 | AR181: =-SUMIFS($Q180:$CJ180,$Q$9:$CJ$9,AR$9-Inputs!$E$87) -> 0 | AS181: =-SUMIFS($Q180:$CJ180,$Q$9:$CJ$9,AS$9-Inputs!$E$87) -> 0 | AT181: =-SUMIFS($Q180:$CJ180,$Q$9:$CJ$9,AT$9-Inputs!$E$87) -> 0 | AU181: =-SUMIFS($Q180:$CJ180,$Q$9:$CJ$9,AU$9-Inputs!$E$87) -> 0 | AV181: =-SUMIFS($Q180:$CJ180,$Q$9:$CJ$9,AV$9-Inputs!$E$87) -> 0 | AW181: =-SUMIFS($Q180:$CJ180,$Q$9:$CJ$9,AW$9-Inputs!$E$87) -> 0 | AX181: =-SUMIFS($Q180:$CJ180,$Q$9:$CJ$9,AX$9-Inputs!$E$87) -> 0 | AY181: =-SUMIFS($Q180:$CJ180,$Q$9:$CJ$9,AY$9-Inputs!$E$87) -> 0 | AZ181: =-SUMIFS($Q180:$CJ180,$Q$9:$CJ$9,AZ$9-Inputs!$E$87) -> 0 | BA181: =-SUMIFS($Q180:$CJ180,$Q$9:$CJ$9,BA$9-Inputs!$E$87) -> -100 | BB181: =-SUMIFS($Q180:$CJ180,$Q$9:$CJ$9,BB$9-Inputs!$E$87) -> -100 | BC181: =-SUMIFS($Q180:$CJ180,$Q$9:$CJ$9,BC$9-Inputs!$E$87) -> -100 | BD181: =-SUMIFS($Q180:$CJ180,$Q$9:$CJ$9,BD$9-Inputs!$E$87) -> -100 | BE181: =-SUMIFS($Q180:$CJ180,$Q$9:$CJ$9,BE$9-Inputs!$E$87) -> -100 | BF181: =-SUMIFS($Q180:$CJ180,$Q$9:$CJ$9,BF$9-Inputs!$E$87) -> -100 | BG181: =-SUMIFS($Q180:$CJ180,$Q$9:$CJ$9,BG$9-Inputs!$E$87) -> -100 | BH181: =-SUMIFS($Q180:$CJ180,$Q$9:$CJ$9,BH$9-Inputs!$E$87) -> -100 | BI181: =-SUMIFS($Q180:$CJ180,$Q$9:$CJ$9,BI$9-Inputs!$E$87) -> -100 | BJ181: =-SUMIFS($Q180:$CJ180,$Q$9:$CJ$9,BJ$9-Inputs!$E$87) -> -100 | BK181: =-SUMIFS($Q180:$CJ180,$Q$9:$CJ$9,BK$9-Inputs!$E$87) -> -100 | BL181: =-SUMIFS($Q180:$CJ180,$Q$9:$CJ$9,BL$9-Inputs!$E$87) -> -100 | BM181: =-SUMIFS($Q180:$CJ180,$Q$9:$CJ$9,BM$9-Inputs!$E$87) -> -140 | BN181: =-SUMIFS($Q180:$CJ180,$Q$9:$CJ$9,BN$9-Inputs!$E$87) -> -140 | BO181: =-SUMIFS($Q180:$CJ180,$Q$9:$CJ$9,BO$9-Inputs!$E$87) -> -140 | BP181: =-SUMIFS($Q180:$CJ180,$Q$9:$CJ$9,BP$9-Inputs!$E$87) -> -140 | BQ181: =-SUMIFS($Q180:$CJ180,$Q$9:$CJ$9,BQ$9-Inputs!$E$87) -> -140 | BR181: =-SUMIFS($Q180:$CJ180,$Q$9:$CJ$9,BR$9-Inputs!$E$87) -> -140 | BS181: =-SUMIFS($Q180:$CJ180,$Q$9:$CJ$9,BS$9-Inputs!$E$87) -> -140 | BT181: =-SUMIFS($Q180:$CJ180,$Q$9:$CJ$9,BT$9-Inputs!$E$87) -> -140 | BU181: =-SUMIFS($Q180:$CJ180,$Q$9:$CJ$9,BU$9-Inputs!$E$87) -> -140 | BV181: =-SUMIFS($Q180:$CJ180,$Q$9:$CJ$9,BV$9-Inputs!$E$87) -> -140 | BW181: =-SUMIFS($Q180:$CJ180,$Q$9:$CJ$9,BW$9-Inputs!$E$87) -> -140 | BX181: =-SUMIFS($Q180:$CJ180,$Q$9:$CJ$9,BX$9-Inputs!$E$87) -> -140 | BY181: =-SUMIFS($Q180:$CJ180,$Q$9:$CJ$9,BY$9-Inputs!$E$87) -> -189 | BZ181: =-SUMIFS($Q180:$CJ180,$Q$9:$CJ$9,BZ$9-Inputs!$E$87) -> -189 | CA181: =-SUMIFS($Q180:$CJ180,$Q$9:$CJ$9,CA$9-Inputs!$E$87) -> -189 | CB181: =-SUMIFS($Q180:$CJ180,$Q$9:$CJ$9,CB$9-Inputs!$E$87) -> -189 | CC181: =-SUMIFS($Q180:$CJ180,$Q$9:$CJ$9,CC$9-Inputs!$E$87) -> -189 | CD181: =-SUMIFS($Q180:$CJ180,$Q$9:$CJ$9,CD$9-Inputs!$E$87) -> -189 | CE181: =-SUMIFS($Q180:$CJ180,$Q$9:$CJ$9,CE$9-Inputs!$E$87) -> -189 | CF181: =-SUMIFS($Q180:$CJ180,$Q$9:$CJ$9,CF$9-Inputs!$E$87) -> -189 | CG181: =-SUMIFS($Q180:$CJ180,$Q$9:$CJ$9,CG$9-Inputs!$E$87) -> -189 | CH181: =-SUMIFS($Q180:$CJ180,$Q$9:$CJ$9,CH$9-Inputs!$E$87) -> -189 | CI181: =-SUMIFS($Q180:$CJ180,$Q$9:$CJ$9,CI$9-Inputs!$E$87) -> -189 | CJ181: =-SUMIFS($Q180:$CJ180,$Q$9:$CJ$9,CJ$9-Inputs!$E$87) -> -189
C182: Balance c/f | D182: # | I182: =SUM(I179:I181) -> 1200 | J182: =SUM(J179:J181) -> 2880 | K182: =SUM(K179:K181) -> 5148 | L182: =SUM(L179:L181) -> 6896.4 | M182: =SUM(M179:M181) -> 9049.32 | N182: =SUM(N179:N181) -> 11380.824 | Q182: =SUM(Q179:Q181) -> 100 | R182: =SUM(R179:R181) -> 200 | S182: 300 | T182: 400 | U182: 500 | V182: 600 | W182: 700 | X182: 800 | Y182: 900 | Z182: 1000 | AA182: 1100 | AB182: 1200 | AC182: 1340 | AD182: 1480 | AE182: 1620 | AF182: 1760 | AG182: 1900 | AH182: 2040 | AI182: 2180 | AJ182: 2320 | AK182: 2460 | AL182: 2600 | AM182: 2740 | AN182: 2880 | AO182: 3069 | AP182: 3258 | AQ182: 3447 | AR182: 3636 | AS182: 3825 | AT182: 4014 | AU182: 4203 | AV182: 4392 | AW182: 4581 | AX182: 4770 | AY182: 4959 | AZ182: 5148 | BA182: 5293.7 | BB182: 5439.4 | BC182: 5585.1 | BD182: 5730.8 | BE182: 5876.5 | BF182: 6022.2 | BG182: 6167.9 | BH182: 6313.6 | BI182: 6459.3 | BJ182: 6605 | BK182: 6750.7 | BL182: 6896.4 | BM182: 7075.81 | BN182: 7255.22 | BO182: 7434.63 | BP182: 7614.04 | BQ182: 7793.45 | BR182: 7972.86 | BS182: 8152.27 | BT182: 8331.68 | BU182: 8511.09 | BV182: 8690.5 | BW182: 8869.91 | BX182: 9049.32 | BY182: 9243.612 | BZ182: 9437.904 | CA182: 9632.196 | CB182: 9826.488 | CC182: 10020.78 | CD182: =SUM(CD179:CD181) -> 10215.072 | CE182: 10409.364 | CF182: 10603.656 | CG182: 10797.948 | CH182: 10992.24 | CI182: 11186.532 | CJ182: 11380.824
C184: Revenue | D184: NGN | I184: =SUMIF($Q$6:$CJ$6,I$6,$Q184:$CJ184) -> 288000000 | J184: 423360000 | K184: 600112800 | L184: 819153972 | M184: 1118145172 | N184: 1408862916 | Q184: =SUM(Q195,Q205,Q215,Q225,Q235,Q245) -> 24000000 | R184: 24000000 | S184: 24000000 | T184: 24000000 | U184: 24000000 | V184: 24000000 | W184: 24000000 | X184: 24000000 | Y184: 24000000 | Z184: 24000000 | AA184: 24000000 | AB184: 24000000 | AC184: 35280000 | AD184: 35280000 | AE184: 35280000 | AF184: 35280000 | AG184: 35280000 | AH184: 35280000 | AI184: 35280000 | AJ184: 35280000 | AK184: 35280000 | AL184: 35280000 | AM184: 35280000 | AN184: 35280000 | AO184: 50009400 | AP184: 50009400 | AQ184: 50009400 | AR184: 50009400 | AS184: 50009400 | AT184: 50009400 | AU184: 50009400 | AV184: 50009400 | AW184: =SUM(AW195,AW205,AW215,AW225,AW235,AW245) -> 50009400 | AX184: 50009400 | AY184: 50009400 | AZ184: 50009400 | BA184: 68262831 | BB184: 68262831 | BC184: 68262831 | BD184: 68262831 | BE184: 68262831 | BF184: 68262831 | BG184: 68262831 | BH184: 68262831 | BI184: 68262831 | BJ184: 68262831 | BK184: 68262831 | BL184: 68262831 | BM184: 93178764.31 | BN184: 93178764.31 | BO184: 93178764.31 | BP184: 93178764.31 | BQ184: 93178764.31 | BR184: 93178764.31 | BS184: 93178764.31 | BT184: 93178764.31 | BU184: 93178764.31 | BV184: 93178764.31 | BW184: 93178764.31 | BX184: 93178764.31 | BY184: 117405243 | BZ184: 117405243 | CA184: 117405243 | CB184: 117405243 | CC184: =SUM(CC195,CC205,CC215,CC225,CC235,CC245) -> 117405243 | CD184: 117405243 | CE184: 117405243 | CF184: 117405243 | CG184: 117405243 | CH184: 117405243 | CI184: 117405243 | CJ184: 117405243
C185: Down payment | D185: NGN | I185: =SUMIF($Q$6:$CJ$6,I$6,$Q185:$CJ185) -> 72000000 | J185: =SUMIF($Q$6:$CJ$6,J$6,$Q185:$CJ185) -> 105840000 | K185: 150028200 | L185: 204788493 | M185: 279536292.9 | N185: 352215729.1 | Q185: =SUM(Q196,Q206,Q216,Q226,Q236,Q246) -> 6000000 | R185: 6000000 | S185: 6000000 | T185: 6000000 | U185: 6000000 | V185: 6000000 | W185: 6000000 | X185: 6000000 | Y185: 6000000 | Z185: 6000000 | AA185: 6000000 | AB185: 6000000 | AC185: 8820000 | AD185: 8820000 | AE185: 8820000 | AF185: 8820000 | AG185: 8820000 | AH185: 8820000 | AI185: 8820000 | AJ185: 8820000 | AK185: 8820000 | AL185: 8820000 | AM185: 8820000 | AN185: 8820000 | AO185: 12502350 | AP185: 12502350 | AQ185: 12502350 | AR185: 12502350 | AS185: 12502350 | AT185: 12502350 | AU185: 12502350 | AV185: 12502350 | AW185: =SUM(AW196,AW206,AW216,AW226,AW236,AW246) -> 12502350 | AX185: 12502350 | AY185: 12502350 | AZ185: 12502350 | BA185: 17065707.75 | BB185: 17065707.75 | BC185: 17065707.75 | BD185: 17065707.75 | BE185: 17065707.75 | BF185: 17065707.75 | BG185: 17065707.75 | BH185: 17065707.75 | BI185: 17065707.75 | BJ185: 17065707.75 | BK185: 17065707.75 | BL185: 17065707.75 | BM185: 23294691.08 | BN185: 23294691.08 | BO185: 23294691.08 | BP185: 23294691.08 | BQ185: 23294691.08 | BR185: 23294691.08 | BS185: 23294691.08 | BT185: 23294691.08 | BU185: 23294691.08 | BV185: 23294691.08 | BW185: 23294691.08 | BX185: 23294691.08 | BY185: 29351310.76 | BZ185: 29351310.76 | CA185: 29351310.76 | CB185: 29351310.76 | CC185: =SUM(CC196,CC206,CC216,CC226,CC236,CC246) -> 29351310.76 | CD185: 29351310.76 | CE185: 29351310.76 | CF185: 29351310.76 | CG185: 29351310.76 | CH185: 29351310.76 | CI185: 29351310.76 | CJ185: 29351310.76
C186: Monthly payment revenue | D186: NGN | I186: 39000000 | J186: 129330000 | K186: 259105275 | L186: 399795300.4 | M186: 554742185 | N186: 743871230.9 | Q186: =SUM(Q197,Q207,Q217,Q227,Q237,Q247) -> 500000 | R186: 1000000 | S186: 1500000 | T186: 2000000 | U186: 2500000 | V186: 3000000 | W186: 3500000 | X186: 4000000 | Y186: 4500000 | Z186: 5000000 | AA186: 5500000 | AB186: 6000000 | AC186: 6735000 | AD186: 7470000 | AE186: 8205000 | AF186: 8940000 | AG186: 9675000 | AH186: 10410000 | AI186: 11145000 | AJ186: 11880000 | AK186: 12615000 | AL186: 13350000 | AM186: 14085000 | AN186: 14820000 | AO186: 15861862.5 | AP186: 16903725 | AQ186: 17945587.5 | AR186: 18987450 | AS186: 20029312.5 | AT186: 21071175 | AU186: 22113037.5 | AV186: 23154900 | AW186: =SUM(AW197,AW207,AW217,AW227,AW237,AW247) -> 24196762.5 | AX186: 25238625 | AY186: 26280487.5 | AZ186: 27322350 | BA186: 28244492.31 | BB186: 29166634.62 | BC186: 30088776.94 | BD186: 31010919.25 | BE186: 31933061.56 | BF186: 32855203.88 | BG186: 33777346.19 | BH186: 34699488.5 | BI186: 35621630.81 | BJ186: 36543773.12 | BK186: 37465915.44 | BL186: 38388057.75 | BM186: 39594282.01 | BN186: 40800506.26 | BO186: 42006730.52 | BP186: 43212954.78 | BQ186: 44419179.03 | BR186: 45625403.29 | BS186: 46831627.55 | BT186: 48037851.8 | BU186: 49244076.06 | BV186: 50450300.32 | BW186: 51656524.57 | BX186: 52862748.83 | BY186: 54266828.89 | BZ186: 55670908.96 | CA186: 57074989.02 | CB186: 58479069.08 | CC186: =SUM(CC197,CC207,CC217,CC227,CC237,CC247) -> 59883149.15 | CD186: 61287229.21 | CE186: 62691309.27 | CF186: 64095389.33 | CG186: 65499469.4 | CH186: 66903549.46 | CI186: 68307629.52 | CJ186: 69711709.59
C187: Total product 3 cash payments | D187: NGN | I187: 111000000 | J187: 235170000 | K187: 409133475 | L187: 604583793.4 | M187: 834278478 | N187: 1096086960 | Q187: =Q185+Q186 -> 6500000 | R187: =R185+R186 -> 7000000 | S187: 7500000 | T187: 8000000 | U187: 8500000 | V187: 9000000 | W187: 9500000 | X187: 10000000 | Y187: 10500000 | Z187: 11000000 | AA187: 11500000 | AB187: 12000000 | AC187: 15555000 | AD187: 16290000 | AE187: 17025000 | AF187: 17760000 | AG187: 18495000 | AH187: 19230000 | AI187: 19965000 | AJ187: 20700000 | AK187: 21435000 | AL187: 22170000 | AM187: 22905000 | AN187: 23640000 | AO187: 28364212.5 | AP187: 29406075 | AQ187: 30447937.5 | AR187: 31489800 | AS187: 32531662.5 | AT187: 33573525 | AU187: 34615387.5 | AV187: 35657250 | AW187: 36699112.5 | AX187: 37740975 | AY187: 38782837.5 | AZ187: 39824700 | BA187: 45310200.06 | BB187: 46232342.38 | BC187: 47154484.69 | BD187: 48076627 | BE187: 48998769.31 | BF187: 49920911.62 | BG187: 50843053.94 | BH187: 51765196.25 | BI187: 52687338.56 | BJ187: 53609480.88 | BK187: 54531623.19 | BL187: 55453765.5 | BM187: 62888973.09 | BN187: 64095197.34 | BO187: 65301421.6 | BP187: 66507645.85 | BQ187: 67713870.11 | BR187: 68920094.37 | BS187: 70126318.62 | BT187: 71332542.88 | BU187: 72538767.14 | BV187: 73744991.39 | BW187: 74951215.65 | BX187: 76157439.91 | BY187: 83618139.65 | BZ187: 85022219.71 | CA187: 86426299.78 | CB187: 87830379.84 | CC187: 89234459.9 | CD187: =CD185+CD186 -> 90638539.97 | CE187: 92042620.03 | CF187: 93446700.09 | CG187: 94850780.16 | CH187: 96254860.22 | CI187: 97658940.28 | CJ187: 99063020.35
C189: Year 1 | F189: =Start_Year -> 2020
C190: Balance b/f | D190: # | I190: =Q190 -> 0 | J190: =I193 -> 1200 | K190: =J193 -> 1200 | L190: =K193 -> 1200 | M190: =L193 -> 0 | N190: =M193 -> 0 | R190: =Q193 -> 100 | S190: =R193 -> 200 | T190: =S193 -> 300 | U190: =T193 -> 400 | V190: =U193 -> 500 | W190: =V193 -> 600 | X190: =W193 -> 700 | Y190: =X193 -> 800 | Z190: =Y193 -> 900 | AA190: =Z193 -> 1000 | AB190: =AA193 -> 1100 | AC190: =AB193 -> 1200 | AD190: =AC193 -> 1200 | AE190: =AD193 -> 1200 | AF190: =AE193 -> 1200 | AG190: =AF193 -> 1200 | AH190: =AG193 -> 1200 | AI190: =AH193 -> 1200 | AJ190: =AI193 -> 1200 | AK190: =AJ193 -> 1200 | AL190: =AK193 -> 1200 | AM190: =AL193 -> 1200 | AN190: =AM193 -> 1200 | AO190: =AN193 -> 1200 | AP190: =AO193 -> 1200 | AQ190: =AP193 -> 1200 | AR190: =AQ193 -> 1200 | AS190: =AR193 -> 1200 | AT190: =AS193 -> 1200 | AU190: =AT193 -> 1200 | AV190: =AU193 -> 1200 | AW190: =AV193 -> 1200 | AX190: =AW193 -> 1200 | AY190: =AX193 -> 1200 | AZ190: =AY193 -> 1200 | BA190: =AZ193 -> 1200 | BB190: =BA193 -> 1100 | BC190: =BB193 -> 1000 | BD190: =BC193 -> 900 | BE190: =BD193 -> 800 | BF190: =BE193 -> 700 | BG190: =BF193 -> 600 | BH190: =BG193 -> 500 | BI190: =BH193 -> 400 | BJ190: =BI193 -> 300 | BK190: =BJ193 -> 200 | BL190: =BK193 -> 100 | BM190: =BL193 -> 0 | BN190: =BM193 -> 0 | BO190: =BN193 -> 0 | BP190: =BO193 -> 0 | BQ190: =BP193 -> 0 | BR190: =BQ193 -> 0 | BS190: =BR193 -> 0 | BT190: =BS193 -> 0 | BU190: =BT193 -> 0 | BV190: =BU193 -> 0 | BW190: =BV193 -> 0 | BX190: =BW193 -> 0 | BY190: =BX193 -> 0 | BZ190: =BY193 -> 0 | CA190: =BZ193 -> 0 | CB190: =CA193 -> 0 | CC190: =CB193 -> 0 | CD190: =CC193 -> 0 | CE190: =CD193 -> 0 | CF190: =CE193 -> 0 | CG190: =CF193 -> 0 | CH190: =CG193 -> 0 | CI190: =CH193 -> 0 | CJ190: =CI193 -> 0
C191: New contracts | D191: # | I191: =SUMIF($Q$6:$CJ$6,I$6,$Q191:$CJ191) -> 1200 | J191: 0 | K191: 0 | L191: 0 | M191: 0 | N191: 0 | Q191: =IF(Q$6=$F189,Q$177,0) -> 100 | R191: 100 | S191: 100 | T191: 100 | U191: 100 | V191: 100 | W191: 100 | X191: 100 | Y191: 100 | Z191: 100 | AA191: 100 | AB191: 100 | AC191: 0 | AD191: 0 | AE191: 0 | AF191: 0 | AG191: 0 | AH191: 0 | AI191: 0 | AJ191: 0 | AK191: 0 | AL191: 0 | AM191: 0 | AN191: 0 | AO191: 0 | AP191: 0 | AQ191: 0 | AR191: 0 | AS191: 0 | AT191: 0 | AU191: 0 | AV191: 0 | AW191: =IF(AW$6=$F189,AW$177,0) -> 0 | AX191: 0 | AY191: 0 | AZ191: 0 | BA191: 0 | BB191: 0 | BC191: 0 | BD191: 0 | BE191: 0 | BF191: 0 | BG191: 0 | BH191: 0 | BI191: 0 | BJ191: 0 | BK191: 0 | BL191: 0 | BM191: 0 | BN191: 0 | BO191: 0 | BP191: 0 | BQ191: 0 | BR191: 0 | BS191: 0 | BT191: 0 | BU191: 0 | BV191: 0 | BW191: 0 | BX191: 0 | BY191: 0 | BZ191: 0 | CA191: 0 | CB191: 0 | CC191: =IF(CC$6=$F189,CC$177,0) -> 0 | CD191: 0 | CE191: 0 | CF191: 0 | CG191: 0 | CH191: 0 | CI191: 0 | CJ191: 0
C192: Contracts ended | D192: # | I192: 0 | J192: 0 | K192: 0 | L192: -1200 | M192: 0 | N192: 0 | Q192: =-SUMIFS($Q191:$CJ191,$Q$9:$CJ$9,Q$9-Inputs!$E$87) -> 0 | R192: =-SUMIFS($Q191:$CJ191,$Q$9:$CJ$9,R$9-Inputs!$E$87) -> 0 | S192: =-SUMIFS($Q191:$CJ191,$Q$9:$CJ$9,S$9-Inputs!$E$87) -> 0 | T192: =-SUMIFS($Q191:$CJ191,$Q$9:$CJ$9,T$9-Inputs!$E$87) -> 0 | U192: =-SUMIFS($Q191:$CJ191,$Q$9:$CJ$9,U$9-Inputs!$E$87) -> 0 | V192: =-SUMIFS($Q191:$CJ191,$Q$9:$CJ$9,V$9-Inputs!$E$87) -> 0 | W192: =-SUMIFS($Q191:$CJ191,$Q$9:$CJ$9,W$9-Inputs!$E$87) -> 0 | X192: =-SUMIFS($Q191:$CJ191,$Q$9:$CJ$9,X$9-Inputs!$E$87) -> 0 | Y192: =-SUMIFS($Q191:$CJ191,$Q$9:$CJ$9,Y$9-Inputs!$E$87) -> 0 | Z192: =-SUMIFS($Q191:$CJ191,$Q$9:$CJ$9,Z$9-Inputs!$E$87) -> 0 | AA192: =-SUMIFS($Q191:$CJ191,$Q$9:$CJ$9,AA$9-Inputs!$E$87) -> 0 | AB192: =-SUMIFS($Q191:$CJ191,$Q$9:$CJ$9,AB$9-Inputs!$E$87) -> 0 | AC192: =-SUMIFS($Q191:$CJ191,$Q$9:$CJ$9,AC$9-Inputs!$E$87) -> 0 | AD192: =-SUMIFS($Q191:$CJ191,$Q$9:$CJ$9,AD$9-Inputs!$E$87) -> 0 | AE192: =-SUMIFS($Q191:$CJ191,$Q$9:$CJ$9,AE$9-Inputs!$E$87) -> 0 | AF192: =-SUMIFS($Q191:$CJ191,$Q$9:$CJ$9,AF$9-Inputs!$E$87) -> 0 | AG192: =-SUMIFS($Q191:$CJ191,$Q$9:$CJ$9,AG$9-Inputs!$E$87) -> 0 | AH192: =-SUMIFS($Q191:$CJ191,$Q$9:$CJ$9,AH$9-Inputs!$E$87) -> 0 | AI192: =-SUMIFS($Q191:$CJ191,$Q$9:$CJ$9,AI$9-Inputs!$E$87) -> 0 | AJ192: =-SUMIFS($Q191:$CJ191,$Q$9:$CJ$9,AJ$9-Inputs!$E$87) -> 0 | AK192: =-SUMIFS($Q191:$CJ191,$Q$9:$CJ$9,AK$9-Inputs!$E$87) -> 0 | AL192: =-SUMIFS($Q191:$CJ191,$Q$9:$CJ$9,AL$9-Inputs!$E$87) -> 0 | AM192: =-SUMIFS($Q191:$CJ191,$Q$9:$CJ$9,AM$9-Inputs!$E$87) -> 0 | AN192: =-SUMIFS($Q191:$CJ191,$Q$9:$CJ$9,AN$9-Inputs!$E$87) -> 0 | AO192: =-SUMIFS($Q191:$CJ191,$Q$9:$CJ$9,AO$9-Inputs!$E$87) -> 0 | AP192: =-SUMIFS($Q191:$CJ191,$Q$9:$CJ$9,AP$9-Inputs!$E$87) -> 0 | AQ192: =-SUMIFS($Q191:$CJ191,$Q$9:$CJ$9,AQ$9-Inputs!$E$87) -> 0 | AR192: =-SUMIFS($Q191:$CJ191,$Q$9:$CJ$9,AR$9-Inputs!$E$87) -> 0 | AS192: =-SUMIFS($Q191:$CJ191,$Q$9:$CJ$9,AS$9-Inputs!$E$87) -> 0 | AT192: =-SUMIFS($Q191:$CJ191,$Q$9:$CJ$9,AT$9-Inputs!$E$87) -> 0 | AU192: =-SUMIFS($Q191:$CJ191,$Q$9:$CJ$9,AU$9-Inputs!$E$87) -> 0 | AV192: =-SUMIFS($Q191:$CJ191,$Q$9:$CJ$9,AV$9-Inputs!$E$87) -> 0 | AW192: =-SUMIFS($Q191:$CJ191,$Q$9:$CJ$9,AW$9-Inputs!$E$87) -> 0 | AX192: =-SUMIFS($Q191:$CJ191,$Q$9:$CJ$9,AX$9-Inputs!$E$87) -> 0 | AY192: =-SUMIFS($Q191:$CJ191,$Q$9:$CJ$9,AY$9-Inputs!$E$87) -> 0 | AZ192: =-SUMIFS($Q191:$CJ191,$Q$9:$CJ$9,AZ$9-Inputs!$E$87) -> 0 | BA192: =-SUMIFS($Q191:$CJ191,$Q$9:$CJ$9,BA$9-Inputs!$E$87) -> -100 | BB192: =-SUMIFS($Q191:$CJ191,$Q$9:$CJ$9,BB$9-Inputs!$E$87) -> -100 | BC192: =-SUMIFS($Q191:$CJ191,$Q$9:$CJ$9,BC$9-Inputs!$E$87) -> -100 | BD192: =-SUMIFS($Q191:$CJ191,$Q$9:$CJ$9,BD$9-Inputs!$E$87) -> -100 | BE192: =-SUMIFS($Q191:$CJ191,$Q$9:$CJ$9,BE$9-Inputs!$E$87) -> -100 | BF192: =-SUMIFS($Q191:$CJ191,$Q$9:$CJ$9,BF$9-Inputs!$E$87) -> -100 | BG192: =-SUMIFS($Q191:$CJ191,$Q$9:$CJ$9,BG$9-Inputs!$E$87) -> -100 | BH192: =-SUMIFS($Q191:$CJ191,$Q$9:$CJ$9,BH$9-Inputs!$E$87) -> -100 | BI192: =-SUMIFS($Q191:$CJ191,$Q$9:$CJ$9,BI$9-Inputs!$E$87) -> -100 | BJ192: =-SUMIFS($Q191:$CJ191,$Q$9:$CJ$9,BJ$9-Inputs!$E$87) -> -100 | BK192: =-SUMIFS($Q191:$CJ191,$Q$9:$CJ$9,BK$9-Inputs!$E$87) -> -100 | BL192: =-SUMIFS($Q191:$CJ191,$Q$9:$CJ$9,BL$9-Inputs!$E$87) -> -100 | BM192: =-SUMIFS($Q191:$CJ191,$Q$9:$CJ$9,BM$9-Inputs!$E$87) -> 0 | BN192: =-SUMIFS($Q191:$CJ191,$Q$9:$CJ$9,BN$9-Inputs!$E$87) -> 0 | BO192: =-SUMIFS($Q191:$CJ191,$Q$9:$CJ$9,BO$9-Inputs!$E$87) -> 0 | BP192: =-SUMIFS($Q191:$CJ191,$Q$9:$CJ$9,BP$9-Inputs!$E$87) -> 0 | BQ192: =-SUMIFS($Q191:$CJ191,$Q$9:$CJ$9,BQ$9-Inputs!$E$87) -> 0 | BR192: =-SUMIFS($Q191:$CJ191,$Q$9:$CJ$9,BR$9-Inputs!$E$87) -> 0 | BS192: =-SUMIFS($Q191:$CJ191,$Q$9:$CJ$9,BS$9-Inputs!$E$87) -> 0 | BT192: =-SUMIFS($Q191:$CJ191,$Q$9:$CJ$9,BT$9-Inputs!$E$87) -> 0 | BU192: =-SUMIFS($Q191:$CJ191,$Q$9:$CJ$9,BU$9-Inputs!$E$87) -> 0 | BV192: =-SUMIFS($Q191:$CJ191,$Q$9:$CJ$9,BV$9-Inputs!$E$87) -> 0 | BW192: =-SUMIFS($Q191:$CJ191,$Q$9:$CJ$9,BW$9-Inputs!$E$87) -> 0 | BX192: =-SUMIFS($Q191:$CJ191,$Q$9:$CJ$9,BX$9-Inputs!$E$87) -> 0 | BY192: =-SUMIFS($Q191:$CJ191,$Q$9:$CJ$9,BY$9-Inputs!$E$87) -> 0 | BZ192: =-SUMIFS($Q191:$CJ191,$Q$9:$CJ$9,BZ$9-Inputs!$E$87) -> 0 | CA192: =-SUMIFS($Q191:$CJ191,$Q$9:$CJ$9,CA$9-Inputs!$E$87) -> 0 | CB192: =-SUMIFS($Q191:$CJ191,$Q$9:$CJ$9,CB$9-Inputs!$E$87) -> 0 | CC192: =-SUMIFS($Q191:$CJ191,$Q$9:$CJ$9,CC$9-Inputs!$E$87) -> 0 | CD192: =-SUMIFS($Q191:$CJ191,$Q$9:$CJ$9,CD$9-Inputs!$E$87) -> 0 | CE192: =-SUMIFS($Q191:$CJ191,$Q$9:$CJ$9,CE$9-Inputs!$E$87) -> 0 | CF192: =-SUMIFS($Q191:$CJ191,$Q$9:$CJ$9,CF$9-Inputs!$E$87) -> 0 | CG192: =-SUMIFS($Q191:$CJ191,$Q$9:$CJ$9,CG$9-Inputs!$E$87) -> 0 | CH192: =-SUMIFS($Q191:$CJ191,$Q$9:$CJ$9,CH$9-Inputs!$E$87) -> 0 | CI192: =-SUMIFS($Q191:$CJ191,$Q$9:$CJ$9,CI$9-Inputs!$E$87) -> 0 | CJ192: =-SUMIFS($Q191:$CJ191,$Q$9:$CJ$9,CJ$9-Inputs!$E$87) -> 0
C193: Balance c/f | D193: # | I193: =SUM(I190:I192) -> 1200 | J193: 1200 | K193: 1200 | L193: 0 | M193: 0 | N193: 0 | Q193: =SUM(Q190:Q192) -> 100 | R193: =SUM(R190:R192) -> 200 | S193: =SUM(S190:S192) -> 300 | T193: 400 | U193: 500 | V193: 600 | W193: 700 | X193: 800 | Y193: 900 | Z193: 1000 | AA193: 1100 | AB193: 1200 | AC193: 1200 | AD193: 1200 | AE193: 1200 | AF193: 1200 | AG193: 1200 | AH193: 1200 | AI193: 1200 | AJ193: 1200 | AK193: 1200 | AL193: 1200 | AM193: 1200 | AN193: 1200 | AO193: 1200 | AP193: 1200 | AQ193: 1200 | AR193: 1200 | AS193: 1200 | AT193: 1200 | AU193: 1200 | AV193: 1200 | AW193: 1200 | AX193: 1200 | AY193: 1200 | AZ193: 1200 | BA193: 1100 | BB193: 1000 | BC193: 900 | BD193: 800 | BE193: 700 | BF193: 600 | BG193: 500 | BH193: 400 | BI193: 300 | BJ193: 200 | BK193: 100 | BL193: 0 | BM193: 0 | BN193: 0 | BO193: 0 | BP193: 0 | BQ193: 0 | BR193: 0 | BS193: 0 | BT193: 0 | BU193: 0 | BV193: 0 | BW193: 0 | BX193: 0 | BY193: 0 | BZ193: 0 | CA193: 0 | CB193: 0 | CC193: 0 | CD193: 0 | CE193: =SUM(CE190:CE192) -> 0 | CF193: 0 | CG193: 0 | CH193: 0 | CI193: 0 | CJ193: 0
C195: Revenue | D195: NGN | F195: =INDEX(Inputs!$I$124:$N$124, MATCH('Monthly Sales Profile'!$F189,Inputs!$I$75:$N$75,0)) -> 240000 | I195: =SUMIF($Q$6:$CJ$6,I$6,$Q195:$CJ195) -> 288000000 | J195: 0 | K195: 0 | L195: 0 | M195: 0 | N195: 0 | Q195: =Q191*$F195 -> 24000000 | R195: 24000000 | S195: 24000000 | T195: 24000000 | U195: 24000000 | V195: 24000000 | W195: 24000000 | X195: 24000000 | Y195: 24000000 | Z195: 24000000 | AA195: 24000000 | AB195: 24000000 | AC195: 0 | AD195: 0 | AE195: 0 | AF195: 0 | AG195: 0 | AH195: 0 | AI195: 0 | AJ195: 0 | AK195: 0 | AL195: 0 | AM195: 0 | AN195: 0 | AO195: 0 | AP195: 0 | AQ195: 0 | AR195: 0 | AS195: 0 | AT195: 0 | AU195: 0 | AV195: 0 | AW195: =AW191*$F195 -> 0 | AX195: 0 | AY195: 0 | AZ195: 0 | BA195: 0 | BB195: 0 | BC195: 0 | BD195: 0 | BE195: 0 | BF195: 0 | BG195: 0 | BH195: 0 | BI195: 0 | BJ195: 0 | BK195: 0 | BL195: 0 | BM195: 0 | BN195: 0 | BO195: 0 | BP195: 0 | BQ195: 0 | BR195: 0 | BS195: 0 | BT195: 0 | BU195: 0 | BV195: 0 | BW195: 0 | BX195: 0 | BY195: 0 | BZ195: 0 | CA195: 0 | CB195: 0 | CC195: =CC191*$F195 -> 0 | CD195: 0 | CE195: 0 | CF195: 0 | CG195: 0 | CH195: 0 | CI195: 0 | CJ195: 0
C196: Down payment | D196: NGN | F196: =INDEX(Inputs!$I$125:$N$125, MATCH('Monthly Sales Profile'!$F189,Inputs!$I$75:$N$75,0)) -> 60000 | I196: 72000000 | J196: 0 | K196: 0 | L196: 0 | M196: 0 | N196: 0 | Q196: =Q191*$F196 -> 6000000 | R196: 6000000 | S196: 6000000 | T196: 6000000 | U196: 6000000 | V196: 6000000 | W196: 6000000 | X196: 6000000 | Y196: 6000000 | Z196: 6000000 | AA196: 6000000 | AB196: 6000000 | AC196: 0 | AD196: 0 | AE196: 0 | AF196: 0 | AG196: 0 | AH196: 0 | AI196: 0 | AJ196: 0 | AK196: 0 | AL196: 0 | AM196: 0 | AN196: 0 | AO196: 0 | AP196: 0 | AQ196: 0 | AR196: 0 | AS196: 0 | AT196: 0 | AU196: 0 | AV196: 0 | AW196: =AW191*$F196 -> 0 | AX196: 0 | AY196: 0 | AZ196: 0 | BA196: 0 | BB196: 0 | BC196: 0 | BD196: 0 | BE196: 0 | BF196: 0 | BG196: 0 | BH196: 0 | BI196: 0 | BJ196: 0 | BK196: 0 | BL196: 0 | BM196: 0 | BN196: 0 | BO196: 0 | BP196: 0 | BQ196: 0 | BR196: 0 | BS196: 0 | BT196: 0 | BU196: 0 | BV196: 0 | BW196: 0 | BX196: 0 | BY196: 0 | BZ196: 0 | CA196: 0 | CB196: 0 | CC196: =CC191*$F196 -> 0 | CD196: 0 | CE196: 0 | CF196: 0 | CG196: 0 | CH196: 0 | CI196: 0 | CJ196: 0
C197: Monthly payment revenue | D197: NGN | F197: =INDEX(Inputs!$I$126:$N$126, MATCH('Monthly Sales Profile'!$F189,Inputs!$I$75:$N$75,0)) -> 5000 | I197: 39000000 | J197: 72000000 | K197: 72000000 | L197: 33000000 | M197: 0 | N197: 0 | Q197: =Q193*$F197 -> 500000 | R197: 1000000 | S197: 1500000 | T197: 2000000 | U197: 2500000 | V197: 3000000 | W197: 3500000 | X197: 4000000 | Y197: 4500000 | Z197: 5000000 | AA197: 5500000 | AB197: 6000000 | AC197: 6000000 | AD197: 6000000 | AE197: 6000000 | AF197: 6000000 | AG197: 6000000 | AH197: 6000000 | AI197: 6000000 | AJ197: 6000000 | AK197: 6000000 | AL197: 6000000 | AM197: 6000000 | AN197: 6000000 | AO197: 6000000 | AP197: 6000000 | AQ197: 6000000 | AR197: 6000000 | AS197: 6000000 | AT197: 6000000 | AU197: 6000000 | AV197: 6000000 | AW197: =AW193*$F197 -> 6000000 | AX197: 6000000 | AY197: 6000000 | AZ197: 6000000 | BA197: 5500000 | BB197: 5000000 | BC197: 4500000 | BD197: 4000000 | BE197: 3500000 | BF197: 3000000 | BG197: 2500000 | BH197: 2000000 | BI197: 1500000 | BJ197: 1000000 | BK197: 500000 | BL197: 0 | BM197: 0 | BN197: 0 | BO197: 0 | BP197: 0 | BQ197: 0 | BR197: 0 | BS197: 0 | BT197: 0 | BU197: 0 | BV197: 0 | BW197: 0 | BX197: 0 | BY197: 0 | BZ197: 0 | CA197: 0 | CB197: 0 | CC197: =CC193*$F197 -> 0 | CD197: 0 | CE197: 0 | CF197: 0 | CG197: 0 | CH197: 0 | CI197: 0 | CJ197: 0
C199: Year 2 | F199: =F189+1 -> 2021
C200: Balance b/f | D200: # | I200: =Q200 -> 0 | J200: =I203 -> 0 | K200: =J203 -> 1680 | L200: =K203 -> 1680 | M200: =L203 -> 1680 | N200: =M203 -> 0 | R200: =Q203 -> 0 | S200: =R203 -> 0 | T200: =S203 -> 0 | U200: =T203 -> 0 | V200: =U203 -> 0 | W200: =V203 -> 0 | X200: =W203 -> 0 | Y200: =X203 -> 0 | Z200: =Y203 -> 0 | AA200: =Z203 -> 0 | AB200: =AA203 -> 0 | AC200: =AB203 -> 0 | AD200: =AC203 -> 140 | AE200: =AD203 -> 280 | AF200: =AE203 -> 420 | AG200: =AF203 -> 560 | AH200: =AG203 -> 700 | AI200: =AH203 -> 840 | AJ200: =AI203 -> 980 | AK200: =AJ203 -> 1120 | AL200: =AK203 -> 1260 | AM200: =AL203 -> 1400 | AN200: =AM203 -> 1540 | AO200: =AN203 -> 1680 | AP200: =AO203 -> 1680 | AQ200: =AP203 -> 1680 | AR200: =AQ203 -> 1680 | AS200: =AR203 -> 1680 | AT200: =AS203 -> 1680 | AU200: =AT203 -> 1680 | AV200: =AU203 -> 1680 | AW200: =AV203 -> 1680 | AX200: =AW203 -> 1680 | AY200: =AX203 -> 1680 | AZ200: =AY203 -> 1680 | BA200: =AZ203 -> 1680 | BB200: =BA203 -> 1680 | BC200: =BB203 -> 1680 | BD200: =BC203 -> 1680 | BE200: =BD203 -> 1680 | BF200: =BE203 -> 1680 | BG200: =BF203 -> 1680 | BH200: =BG203 -> 1680 | BI200: =BH203 -> 1680 | BJ200: =BI203 -> 1680 | BK200: =BJ203 -> 1680 | BL200: =BK203 -> 1680 | BM200: =BL203 -> 1680 | BN200: =BM203 -> 1540 | BO200: =BN203 -> 1400 | BP200: =BO203 -> 1260 | BQ200: =BP203 -> 1120 | BR200: =BQ203 -> 980 | BS200: =BR203 -> 840 | BT200: =BS203 -> 700 | BU200: =BT203 -> 560 | BV200: =BU203 -> 420 | BW200: =BV203 -> 280 | BX200: =BW203 -> 140 | BY200: =BX203 -> 0 | BZ200: =BY203 -> 0 | CA200: =BZ203 -> 0 | CB200: =CA203 -> 0 | CC200: =CB203 -> 0 | CD200: =CC203 -> 0 | CE200: =CD203 -> 0 | CF200: =CE203 -> 0 | CG200: =CF203 -> 0 | CH200: =CG203 -> 0 | CI200: =CH203 -> 0 | CJ200: =CI203 -> 0
C201: New contracts | D201: # | I201: =SUMIF($Q$6:$CJ$6,I$6,$Q201:$CJ201) -> 0 | J201: 1680 | K201: 0 | L201: 0 | M201: 0 | N201: 0 | Q201: =IF(Q$6=$F199,Q$177,0) -> 0 | R201: 0 | S201: 0 | T201: 0 | U201: 0 | V201: 0 | W201: 0 | X201: 0 | Y201: 0 | Z201: 0 | AA201: 0 | AB201: 0 | AC201: 140 | AD201: 140 | AE201: 140 | AF201: 140 | AG201: 140 | AH201: 140 | AI201: 140 | AJ201: 140 | AK201: 140 | AL201: 140 | AM201: 140 | AN201: 140 | AO201: 0 | AP201: 0 | AQ201: 0 | AR201: 0 | AS201: 0 | AT201: 0 | AU201: 0 | AV201: 0 | AW201: =IF(AW$6=$F199,AW$177,0) -> 0 | AX201: 0 | AY201: 0 | AZ201: 0 | BA201: 0 | BB201: 0 | BC201: 0 | BD201: 0 | BE201: 0 | BF201: 0 | BG201: 0 | BH201: 0 | BI201: 0 | BJ201: 0 | BK201: 0 | BL201: 0 | BM201: 0 | BN201: 0 | BO201: 0 | BP201: 0 | BQ201: 0 | BR201: 0 | BS201: 0 | BT201: 0 | BU201: 0 | BV201: 0 | BW201: 0 | BX201: 0 | BY201: 0 | BZ201: 0 | CA201: 0 | CB201: 0 | CC201: =IF(CC$6=$F199,CC$177,0) -> 0 | CD201: 0 | CE201: 0 | CF201: 0 | CG201: 0 | CH201: 0 | CI201: 0 | CJ201: 0
C202: Contracts ended | D202: # | I202: 0 | J202: 0 | K202: 0 | L202: 0 | M202: -1680 | N202: 0 | Q202: =-SUMIFS($Q201:$CJ201,$Q$9:$CJ$9,Q$9-Inputs!$E$87) -> 0 | R202: =-SUMIFS($Q201:$CJ201,$Q$9:$CJ$9,R$9-Inputs!$E$87) -> 0 | S202: =-SUMIFS($Q201:$CJ201,$Q$9:$CJ$9,S$9-Inputs!$E$87) -> 0 | T202: =-SUMIFS($Q201:$CJ201,$Q$9:$CJ$9,T$9-Inputs!$E$87) -> 0 | U202: =-SUMIFS($Q201:$CJ201,$Q$9:$CJ$9,U$9-Inputs!$E$87) -> 0 | V202: =-SUMIFS($Q201:$CJ201,$Q$9:$CJ$9,V$9-Inputs!$E$87) -> 0 | W202: =-SUMIFS($Q201:$CJ201,$Q$9:$CJ$9,W$9-Inputs!$E$87) -> 0 | X202: =-SUMIFS($Q201:$CJ201,$Q$9:$CJ$9,X$9-Inputs!$E$87) -> 0 | Y202: =-SUMIFS($Q201:$CJ201,$Q$9:$CJ$9,Y$9-Inputs!$E$87) -> 0 | Z202: =-SUMIFS($Q201:$CJ201,$Q$9:$CJ$9,Z$9-Inputs!$E$87) -> 0 | AA202: =-SUMIFS($Q201:$CJ201,$Q$9:$CJ$9,AA$9-Inputs!$E$87) -> 0 | AB202: =-SUMIFS($Q201:$CJ201,$Q$9:$CJ$9,AB$9-Inputs!$E$87) -> 0 | AC202: =-SUMIFS($Q201:$CJ201,$Q$9:$CJ$9,AC$9-Inputs!$E$87) -> 0 | AD202: =-SUMIFS($Q201:$CJ201,$Q$9:$CJ$9,AD$9-Inputs!$E$87) -> 0 | AE202: =-SUMIFS($Q201:$CJ201,$Q$9:$CJ$9,AE$9-Inputs!$E$87) -> 0 | AF202: =-SUMIFS($Q201:$CJ201,$Q$9:$CJ$9,AF$9-Inputs!$E$87) -> 0 | AG202: =-SUMIFS($Q201:$CJ201,$Q$9:$CJ$9,AG$9-Inputs!$E$87) -> 0 | AH202: =-SUMIFS($Q201:$CJ201,$Q$9:$CJ$9,AH$9-Inputs!$E$87) -> 0 | AI202: =-SUMIFS($Q201:$CJ201,$Q$9:$CJ$9,AI$9-Inputs!$E$87) -> 0 | AJ202: =-SUMIFS($Q201:$CJ201,$Q$9:$CJ$9,AJ$9-Inputs!$E$87) -> 0 | AK202: =-SUMIFS($Q201:$CJ201,$Q$9:$CJ$9,AK$9-Inputs!$E$87) -> 0 | AL202: =-SUMIFS($Q201:$CJ201,$Q$9:$CJ$9,AL$9-Inputs!$E$87) -> 0 | AM202: =-SUMIFS($Q201:$CJ201,$Q$9:$CJ$9,AM$9-Inputs!$E$87) -> 0 | AN202: =-SUMIFS($Q201:$CJ201,$Q$9:$CJ$9,AN$9-Inputs!$E$87) -> 0 | AO202: =-SUMIFS($Q201:$CJ201,$Q$9:$CJ$9,AO$9-Inputs!$E$87) -> 0 | AP202: =-SUMIFS($Q201:$CJ201,$Q$9:$CJ$9,AP$9-Inputs!$E$87) -> 0 | AQ202: =-SUMIFS($Q201:$CJ201,$Q$9:$CJ$9,AQ$9-Inputs!$E$87) -> 0 | AR202: =-SUMIFS($Q201:$CJ201,$Q$9:$CJ$9,AR$9-Inputs!$E$87) -> 0 | AS202: =-SUMIFS($Q201:$CJ201,$Q$9:$CJ$9,AS$9-Inputs!$E$87) -> 0 | AT202: =-SUMIFS($Q201:$CJ201,$Q$9:$CJ$9,AT$9-Inputs!$E$87) -> 0 | AU202: =-SUMIFS($Q201:$CJ201,$Q$9:$CJ$9,AU$9-Inputs!$E$87) -> 0 | AV202: =-SUMIFS($Q201:$CJ201,$Q$9:$CJ$9,AV$9-Inputs!$E$87) -> 0 | AW202: =-SUMIFS($Q201:$CJ201,$Q$9:$CJ$9,AW$9-Inputs!$E$87) -> 0 | AX202: =-SUMIFS($Q201:$CJ201,$Q$9:$CJ$9,AX$9-Inputs!$E$87) -> 0 | AY202: =-SUMIFS($Q201:$CJ201,$Q$9:$CJ$9,AY$9-Inputs!$E$87) -> 0 | AZ202: =-SUMIFS($Q201:$CJ201,$Q$9:$CJ$9,AZ$9-Inputs!$E$87) -> 0 | BA202: =-SUMIFS($Q201:$CJ201,$Q$9:$CJ$9,BA$9-Inputs!$E$87) -> 0 | BB202: =-SUMIFS($Q201:$CJ201,$Q$9:$CJ$9,BB$9-Inputs!$E$87) -> 0 | BC202: =-SUMIFS($Q201:$CJ201,$Q$9:$CJ$9,BC$9-Inputs!$E$87) -> 0 | BD202: =-SUMIFS($Q201:$CJ201,$Q$9:$CJ$9,BD$9-Inputs!$E$87) -> 0 | BE202: =-SUMIFS($Q201:$CJ201,$Q$9:$CJ$9,BE$9-Inputs!$E$87) -> 0 | BF202: =-SUMIFS($Q201:$CJ201,$Q$9:$CJ$9,BF$9-Inputs!$E$87) -> 0 | BG202: =-SUMIFS($Q201:$CJ201,$Q$9:$CJ$9,BG$9-Inputs!$E$87) -> 0 | BH202: =-SUMIFS($Q201:$CJ201,$Q$9:$CJ$9,BH$9-Inputs!$E$87) -> 0 | BI202: =-SUMIFS($Q201:$CJ201,$Q$9:$CJ$9,BI$9-Inputs!$E$87) -> 0 | BJ202: =-SUMIFS($Q201:$CJ201,$Q$9:$CJ$9,BJ$9-Inputs!$E$87) -> 0 | BK202: =-SUMIFS($Q201:$CJ201,$Q$9:$CJ$9,BK$9-Inputs!$E$87) -> 0 | BL202: =-SUMIFS($Q201:$CJ201,$Q$9:$CJ$9,BL$9-Inputs!$E$87) -> 0 | BM202: =-SUMIFS($Q201:$CJ201,$Q$9:$CJ$9,BM$9-Inputs!$E$87) -> -140 | BN202: =-SUMIFS($Q201:$CJ201,$Q$9:$CJ$9,BN$9-Inputs!$E$87) -> -140 | BO202: =-SUMIFS($Q201:$CJ201,$Q$9:$CJ$9,BO$9-Inputs!$E$87) -> -140 | BP202: =-SUMIFS($Q201:$CJ201,$Q$9:$CJ$9,BP$9-Inputs!$E$87) -> -140 | BQ202: =-SUMIFS($Q201:$CJ201,$Q$9:$CJ$9,BQ$9-Inputs!$E$87) -> -140 | BR202: =-SUMIFS($Q201:$CJ201,$Q$9:$CJ$9,BR$9-Inputs!$E$87) -> -140 | BS202: =-SUMIFS($Q201:$CJ201,$Q$9:$CJ$9,BS$9-Inputs!$E$87) -> -140 | BT202: =-SUMIFS($Q201:$CJ201,$Q$9:$CJ$9,BT$9-Inputs!$E$87) -> -140 | BU202: =-SUMIFS($Q201:$CJ201,$Q$9:$CJ$9,BU$9-Inputs!$E$87) -> -140 | BV202: =-SUMIFS($Q201:$CJ201,$Q$9:$CJ$9,BV$9-Inputs!$E$87) -> -140 | BW202: =-SUMIFS($Q201:$CJ201,$Q$9:$CJ$9,BW$9-Inputs!$E$87) -> -140 | BX202: =-SUMIFS($Q201:$CJ201,$Q$9:$CJ$9,BX$9-Inputs!$E$87) -> -140 | BY202: =-SUMIFS($Q201:$CJ201,$Q$9:$CJ$9,BY$9-Inputs!$E$87) -> 0 | BZ202: =-SUMIFS($Q201:$CJ201,$Q$9:$CJ$9,BZ$9-Inputs!$E$87) -> 0 | CA202: =-SUMIFS($Q201:$CJ201,$Q$9:$CJ$9,CA$9-Inputs!$E$87) -> 0 | CB202: =-SUMIFS($Q201:$CJ201,$Q$9:$CJ$9,CB$9-Inputs!$E$87) -> 0 | CC202: =-SUMIFS($Q201:$CJ201,$Q$9:$CJ$9,CC$9-Inputs!$E$87) -> 0 | CD202: =-SUMIFS($Q201:$CJ201,$Q$9:$CJ$9,CD$9-Inputs!$E$87) -> 0 | CE202: =-SUMIFS($Q201:$CJ201,$Q$9:$CJ$9,CE$9-Inputs!$E$87) -> 0 | CF202: =-SUMIFS($Q201:$CJ201,$Q$9:$CJ$9,CF$9-Inputs!$E$87) -> 0 | CG202: =-SUMIFS($Q201:$CJ201,$Q$9:$CJ$9,CG$9-Inputs!$E$87) -> 0 | CH202: =-SUMIFS($Q201:$CJ201,$Q$9:$CJ$9,CH$9-Inputs!$E$87) -> 0 | CI202: =-SUMIFS($Q201:$CJ201,$Q$9:$CJ$9,CI$9-Inputs!$E$87) -> 0 | CJ202: =-SUMIFS($Q201:$CJ201,$Q$9:$CJ$9,CJ$9-Inputs!$E$87) -> 0
C203: Balance c/f | D203: # | I203: =SUM(I200:I202) -> 0 | J203: 1680 | K203: 1680 | L203: 1680 | M203: 0 | N203: 0 | Q203: =SUM(Q200:Q202) -> 0 | R203: =SUM(R200:R202) -> 0 | S203: =SUM(S200:S202) -> 0 | T203: 0 | U203: 0 | V203: 0 | W203: 0 | X203: 0 | Y203: 0 | Z203: 0 | AA203: 0 | AB203: 0 | AC203: 140 | AD203: 280 | AE203: 420 | AF203: 560 | AG203: 700 | AH203: 840 | AI203: 980 | AJ203: 1120 | AK203: 1260 | AL203: 1400 | AM203: 1540 | AN203: 1680 | AO203: 1680 | AP203: 1680 | AQ203: 1680 | AR203: 1680 | AS203: 1680 | AT203: 1680 | AU203: 1680 | AV203: 1680 | AW203: 1680 | AX203: 1680 | AY203: 1680 | AZ203: 1680 | BA203: 1680 | BB203: 1680 | BC203: 1680 | BD203: 1680 | BE203: 1680 | BF203: 1680 | BG203: 1680 | BH203: 1680 | BI203: 1680 | BJ203: 1680 | BK203: 1680 | BL203: 1680 | BM203: 1540 | BN203: 1400 | BO203: 1260 | BP203: 1120 | BQ203: 980 | BR203: 840 | BS203: 700 | BT203: 560 | BU203: 420 | BV203: 280 | BW203: 140 | BX203: 0 | BY203: 0 | BZ203: 0 | CA203: 0 | CB203: 0 | CC203: 0 | CD203: 0 | CE203: =SUM(CE200:CE202) -> 0 | CF203: 0 | CG203: 0 | CH203: 0 | CI203: 0 | CJ203: 0
C205: Revenue | D205: NGN | F205: =INDEX(Inputs!$I$124:$N$124, MATCH('Monthly Sales Profile'!$F199,Inputs!$I$75:$N$75,0)) -> 252000 | I205: =SUMIF($Q$6:$CJ$6,I$6,$Q205:$CJ205) -> 0 | J205: 423360000 | K205: 0 | L205: 0 | M205: 0 | N205: 0 | Q205: =Q201*$F205 -> 0 | R205: 0 | S205: 0 | T205: 0 | U205: 0 | V205: 0 | W205: 0 | X205: 0 | Y205: 0 | Z205: 0 | AA205: 0 | AB205: 0 | AC205: 35280000 | AD205: 35280000 | AE205: 35280000 | AF205: 35280000 | AG205: 35280000 | AH205: 35280000 | AI205: 35280000 | AJ205: 35280000 | AK205: 35280000 | AL205: 35280000 | AM205: 35280000 | AN205: 35280000 | AO205: 0 | AP205: 0 | AQ205: 0 | AR205: 0 | AS205: 0 | AT205: 0 | AU205: 0 | AV205: 0 | AW205: =AW201*$F205 -> 0 | AX205: 0 | AY205: 0 | AZ205: 0 | BA205: 0 | BB205: 0 | BC205: 0 | BD205: 0 | BE205: 0 | BF205: 0 | BG205: 0 | BH205: 0 | BI205: 0 | BJ205: 0 | BK205: 0 | BL205: 0 | BM205: 0 | BN205: 0 | BO205: 0 | BP205: 0 | BQ205: 0 | BR205: 0 | BS205: 0 | BT205: 0 | BU205: 0 | BV205: 0 | BW205: 0 | BX205: 0 | BY205: 0 | BZ205: 0 | CA205: 0 | CB205: 0 | CC205: =CC201*$F205 -> 0 | CD205: 0 | CE205: 0 | CF205: 0 | CG205: 0 | CH205: 0 | CI205: 0 | CJ205: 0
C206: Down payment | D206: NGN | F206: =INDEX(Inputs!$I$125:$N$125, MATCH('Monthly Sales Profile'!$F199,Inputs!$I$75:$N$75,0)) -> 63000 | I206: 0 | J206: 105840000 | K206: 0 | L206: 0 | M206: 0 | N206: 0 | Q206: =Q201*$F206 -> 0 | R206: 0 | S206: 0 | T206: 0 | U206: 0 | V206: 0 | W206: 0 | X206: 0 | Y206: 0 | Z206: 0 | AA206: 0 | AB206: 0 | AC206: 8820000 | AD206: 8820000 | AE206: 8820000 | AF206: 8820000 | AG206: 8820000 | AH206: 8820000 | AI206: 8820000 | AJ206: 8820000 | AK206: 8820000 | AL206: 8820000 | AM206: 8820000 | AN206: 8820000 | AO206: 0 | AP206: 0 | AQ206: 0 | AR206: 0 | AS206: 0 | AT206: 0 | AU206: 0 | AV206: 0 | AW206: =AW201*$F206 -> 0 | AX206: 0 | AY206: 0 | AZ206: 0 | BA206: 0 | BB206: 0 | BC206: 0 | BD206: 0 | BE206: 0 | BF206: 0 | BG206: 0 | BH206: 0 | BI206: 0 | BJ206: 0 | BK206: 0 | BL206: 0 | BM206: 0 | BN206: 0 | BO206: 0 | BP206: 0 | BQ206: 0 | BR206: 0 | BS206: 0 | BT206: 0 | BU206: 0 | BV206: 0 | BW206: 0 | BX206: 0 | BY206: 0 | BZ206: 0 | CA206: 0 | CB206: 0 | CC206: =CC201*$F206 -> 0 | CD206: 0 | CE206: 0 | CF206: 0 | CG206: 0 | CH206: 0 | CI206: 0 | CJ206: 0
C207: Monthly payment revenue | D207: NGN | F207: =INDEX(Inputs!$I$126:$N$126, MATCH('Monthly Sales Profile'!$F199,Inputs!$I$75:$N$75,0)) -> 5250 | I207: 0 | J207: 57330000 | K207: 105840000 | L207: 105840000 | M207: 48510000 | N207: 0 | Q207: =Q203*$F207 -> 0 | R207: 0 | S207: 0 | T207: 0 | U207: 0 | V207: 0 | W207: 0 | X207: 0 | Y207: 0 | Z207: 0 | AA207: 0 | AB207: 0 | AC207: 735000 | AD207: 1470000 | AE207: 2205000 | AF207: 2940000 | AG207: 3675000 | AH207: 4410000 | AI207: 5145000 | AJ207: 5880000 | AK207: 6615000 | AL207: 7350000 | AM207: 8085000 | AN207: 8820000 | AO207: 8820000 | AP207: 8820000 | AQ207: 8820000 | AR207: 8820000 | AS207: 8820000 | AT207: 8820000 | AU207: 8820000 | AV207: 8820000 | AW207: =AW203*$F207 -> 8820000 | AX207: 8820000 | AY207: 8820000 | AZ207: 8820000 | BA207: 8820000 | BB207: 8820000 | BC207: 8820000 | BD207: 8820000 | BE207: 8820000 | BF207: 8820000 | BG207: 8820000 | BH207: 8820000 | BI207: 8820000 | BJ207: 8820000 | BK207: 8820000 | BL207: 8820000 | BM207: 8085000 | BN207: 7350000 | BO207: 6615000 | BP207: 5880000 | BQ207: 5145000 | BR207: 4410000 | BS207: 3675000 | BT207: 2940000 | BU207: 2205000 | BV207: 1470000 | BW207: 735000 | BX207: 0 | BY207: 0 | BZ207: 0 | CA207: 0 | CB207: 0 | CC207: =CC203*$F207 -> 0 | CD207: 0 | CE207: 0 | CF207: 0 | CG207: 0 | CH207: 0 | CI207: 0 | CJ207: 0
C209: Year 3 | F209: =F199+1 -> 2022
C210: Balance b/f | D210: # | I210: =Q210 -> 0 | J210: =I213 -> 0 | K210: =J213 -> 0 | L210: =K213 -> 2268 | M210: =L213 -> 2268 | N210: =M213 -> 2268 | R210: =Q213 -> 0 | S210: =R213 -> 0 | T210: =S213 -> 0 | U210: =T213 -> 0 | V210: =U213 -> 0 | W210: =V213 -> 0 | X210: =W213 -> 0 | Y210: =X213 -> 0 | Z210: =Y213 -> 0 | AA210: =Z213 -> 0 | AB210: =AA213 -> 0 | AC210: =AB213 -> 0 | AD210: =AC213 -> 0 | AE210: =AD213 -> 0 | AF210: =AE213 -> 0 | AG210: =AF213 -> 0 | AH210: =AG213 -> 0 | AI210: =AH213 -> 0 | AJ210: =AI213 -> 0 | AK210: =AJ213 -> 0 | AL210: =AK213 -> 0 | AM210: =AL213 -> 0 | AN210: =AM213 -> 0 | AO210: =AN213 -> 0 | AP210: =AO213 -> 189 | AQ210: =AP213 -> 378 | AR210: =AQ213 -> 567 | AS210: =AR213 -> 756 | AT210: =AS213 -> 945 | AU210: =AT213 -> 1134 | AV210: =AU213 -> 1323 | AW210: =AV213 -> 1512 | AX210: =AW213 -> 1701 | AY210: =AX213 -> 1890 | AZ210: =AY213 -> 2079 | BA210: =AZ213 -> 2268 | BB210: =BA213 -> 2268 | BC210: =BB213 -> 2268 | BD210: =BC213 -> 2268 | BE210: =BD213 -> 2268 | BF210: =BE213 -> 2268 | BG210: =BF213 -> 2268 | BH210: =BG213 -> 2268 | BI210: =BH213 -> 2268 | BJ210: =BI213 -> 2268 | BK210: =BJ213 -> 2268 | BL210: =BK213 -> 2268 | BM210: =BL213 -> 2268 | BN210: =BM213 -> 2268 | BO210: =BN213 -> 2268 | BP210: =BO213 -> 2268 | BQ210: =BP213 -> 2268 | BR210: =BQ213 -> 2268 | BS210: =BR213 -> 2268 | BT210: =BS213 -> 2268 | BU210: =BT213 -> 2268 | BV210: =BU213 -> 2268 | BW210: =BV213 -> 2268 | BX210: =BW213 -> 2268 | BY210: =BX213 -> 2268 | BZ210: =BY213 -> 2079 | CA210: =BZ213 -> 1890 | CB210: =CA213 -> 1701 | CC210: =CB213 -> 1512 | CD210: =CC213 -> 1323 | CE210: =CD213 -> 1134 | CF210: =CE213 -> 945 | CG210: =CF213 -> 756 | CH210: =CG213 -> 567 | CI210: =CH213 -> 378 | CJ210: =CI213 -> 189
C211: New contracts | D211: # | I211: =SUMIF($Q$6:$CJ$6,I$6,$Q211:$CJ211) -> 0 | J211: 0 | K211: 2268 | L211: 0 | M211: 0 | N211: 0 | Q211: =IF(Q$6=$F209,Q$177,0) -> 0 | R211: 0 | S211: 0 | T211: 0 | U211: 0 | V211: 0 | W211: 0 | X211: 0 | Y211: 0 | Z211: 0 | AA211: 0 | AB211: 0 | AC211: 0 | AD211: 0 | AE211: 0 | AF211: 0 | AG211: 0 | AH211: 0 | AI211: 0 | AJ211: 0 | AK211: 0 | AL211: 0 | AM211: 0 | AN211: 0 | AO211: 189 | AP211: 189 | AQ211: 189 | AR211: 189 | AS211: 189 | AT211: 189 | AU211: 189 | AV211: 189 | AW211: =IF(AW$6=$F209,AW$177,0) -> 189 | AX211: 189 | AY211: 189 | AZ211: 189 | BA211: 0 | BB211: 0 | BC211: 0 | BD211: 0 | BE211: 0 | BF211: 0 | BG211: 0 | BH211: 0 | BI211: 0 | BJ211: 0 | BK211: 0 | BL211: 0 | BM211: 0 | BN211: 0 | BO211: 0 | BP211: 0 | BQ211: 0 | BR211: 0 | BS211: 0 | BT211: 0 | BU211: 0 | BV211: 0 | BW211: 0 | BX211: 0 | BY211: 0 | BZ211: 0 | CA211: 0 | CB211: 0 | CC211: =IF(CC$6=$F209,CC$177,0) -> 0 | CD211: 0 | CE211: 0 | CF211: 0 | CG211: 0 | CH211: 0 | CI211: 0 | CJ211: 0
